Workbook

Sheet Results_summary_Qtrly (hidden)
B2: GOLDFIELDS GAS PIPELINE | I2: =#REF! ->  | J2: =#REF! ->  | K2: =#REF! ->  | L2: =#REF! ->  | M2: =#REF! ->  | N2: =#REF! ->  | O2: =#REF! ->  | P2: =#REF! ->  | Q2: =#REF! ->  | R2: =#REF! ->  | S2: =#REF! ->  | T2: =#REF! ->  | U2: =#REF! ->  | V2: =#REF! ->  | W2: =#REF! ->  | X2: =#REF! ->  | Y2: =#REF! ->  | Z2: =#REF! ->  | AA2: =#REF! ->  | AB2: =#REF! ->  | AC2: =#REF! ->  | AD2: =#REF! ->  | AE2: =#REF! ->  | AF2: =#REF! ->  | AG2: =#REF! ->  | AH2: =#REF! ->  | AI2: =#REF! ->  | AJ2: =#REF! ->  | AK2: =#REF! ->  | AL2: =#REF! ->  | AM2: =#REF! ->  | AN2: =#REF! -> 
B3: REFERENCE TARIFF MODEL FOR 2013 -2017 AA PERIOD | G3: =IF(ROUND(#REF!,8)=0,"","RESET TARIFF") ->  | I3: =#REF! ->  | J3: =#REF! ->  | K3: =#REF! ->  | L3: =#REF! ->  | M3: =#REF! ->  | N3: =#REF! ->  | O3: =#REF! ->  | P3: =#REF! ->  | Q3: =#REF! ->  | R3: =#REF! ->  | S3: =#REF! ->  | T3: =#REF! ->  | U3: =#REF! ->  | V3: =#REF! ->  | W3: =#REF! ->  | X3: =#REF! ->  | Y3: =#REF! ->  | Z3: =#REF! ->  | AA3: =#REF! ->  | AB3: =#REF! ->  | AC3: =#REF! ->  | AD3: =#REF! ->  | AE3: =#REF! ->  | AF3: =#REF! ->  | AG3: =#REF! ->  | AH3: =#REF! ->  | AI3: =#REF! ->  | AJ3: =#REF! ->  | AK3: =#REF! ->  | AL3: =#REF! ->  | AM3: =#REF! ->  | AN3: =#REF! -> 
I4: =#REF! ->  | J4: =#REF! ->  | K4: =#REF! ->  | L4: =#REF! ->  | M4: =#REF! ->  | N4: =#REF! ->  | O4: =#REF! ->  | P4: =#REF! ->  | Q4: =#REF! ->  | R4: =#REF! ->  | S4: =#REF! ->  | T4: =#REF! ->  | U4: =#REF! ->  | V4: =#REF! ->  | W4: =#REF! ->  | X4: =#REF! ->  | Y4: =#REF! ->  | Z4: =#REF! ->  | AA4: =#REF! ->  | AB4: =#REF! ->  | AC4: =#REF! ->  | AD4: =#REF! ->  | AE4: =#REF! ->  | AF4: =#REF! ->  | AG4: =#REF! ->  | AH4: =#REF! ->  | AI4: =#REF! ->  | AJ4: =#REF! ->  | AK4: =#REF! ->  | AL4: =#REF! ->  | AM4: =#REF! ->  | AN4: =#REF! -> 
B7: General
B8: A series of assumptions have been made about business relationships in the preparation of this model.
B9: In developing the input data for rolling forward the opening capital base, actual opex and capex expenditures have been used for the period from 2010 to 2011;
B13: Model
B15: This model determines the Roll forward capital base, total revenue and reference tariff for the Goldfields Gas Pipeline.
B17: Worksheets
B18: Results_summary | G18: Quarterly tariff forecasts and key assumptions
B19: Reference_tariff calc._annual | G19: Annual allowable reference revenue calculation for the period 1 January 2010 to 31 December 2014
B20: Reference_tariff calc._qtrly | G20: Reference tariff calculation on a quarterly basis for the periods 1 January 2010 to 31 December 2014
B21: Diagnostics | G21: Provides check on the Reference Service revenue and tariff calculation
B22: Diagnostics_COS | G22: Provides check on the COS calculation
B23: Cost of Service_revenue | G23: Provides COS revenue calculation for the covered pipeline
B24: Opex_allocation | G24: Provides share of Reference service opex
B25: Capacity and throughput | G25: Annual capacity and throughput forecasts for 1 January 2010 to 31 December 2014
B26: Capacity and throughput_qtly | G26: Capacity and throughput forecasts on quarterly basis for 1 January 2010 to 31 December 2014
B27: WACC_estimate | G27: Provides a range of assumptions on the underlying WACC parameters and point estimate of pretax nominal WACC adopted in the calculation
B28: IAB Rollfwd 2000-2014 | G28: IAB roll forward and depreciation calculation for 2000 to 2014
B29: Capex Rollfwd 2000-2014 | G29: Existing Capex roll forward and depreciation calculation for the period 2000 to 2014
B30: Capex Rollfwd 2010-2014 | G30: New Capex roll forward and depreciation calculation for the period 2010 to 2014
B31: Asset base_2000-2009 | G31: Capital base roll forward summary for the period from 1 January 2000 to 31 December 2009
B32: Asset base_2010-2014 | G32: Capital base roll forward summary for the period from 1 January 2010 to 31 December 2014
B36: Inputs
B37: All model inputs are shown in blue colour fonts as shown here | J37: 123
B38: All monetary inputs are expressed in $m rounded to 3 decimal places
B39: All monetary inputs for Opex and Capex are in nominal $ of the day; IAB and depreciations are in historical dollar i.e. $2000 as per the previous AA
B40: Pipe capacity forecasts are shown in TJ/d rounded to 2 decimal places
B41: Pipe throughput forecasts are expressed in TJ/d rounded to 2 decimal places
B42: Changes to the model inputs and rows are coloured in green
B44: Model outputs | I44: =I2 ->  | J44: =J2 ->  | AC44: =AC2 -> 
B48: Opening capital base (1 January 2013) $2000 | H48: $m | U48: ='Capital base 2010-2019'!L19 -> 411.1906227
B49: Nominal-pre tax WACC | U49: =#REF! -> 
B50: Inflation forecasts | U50: =#REF! -> 
B52: Reference service capacity | H52: TJ/d
B54: Qtly Reference tariff 2013 to 2017
B56: Toll charge | H56: $/GJ | U56: =#REF! ->  | V56: =#REF! ->  | W56: =#REF! ->  | X56: =#REF! ->  | Y56: =#REF! ->  | Z56: =#REF! ->  | AA56: =#REF! ->  | AB56: =#REF! ->  | AC56: =#REF! ->  | AD56: =#REF! ->  | AE56: =#REF! ->  | AF56: =#REF! ->  | AG56: =#REF! ->  | AH56: =#REF! ->  | AI56: =#REF! ->  | AJ56: =#REF! ->  | AK56: =#REF! ->  | AL56: =#REF! ->  | AM56: =#REF! ->  | AN56: =#REF! -> 
B57: Reservation charge | H57: $/GJ km | U57: =#REF! ->  | V57: =#REF! ->  | W57: =#REF! ->  | X57: =#REF! ->  | Y57: =#REF! ->  | Z57: =#REF! ->  | AA57: =#REF! ->  | AB57: =#REF! ->  | AC57: =#REF! ->  | AD57: =#REF! ->  | AE57: =#REF! ->  | AF57: =#REF! ->  | AG57: =#REF! ->  | AH57: =#REF! ->  | AI57: =#REF! ->  | AJ57: =#REF! ->  | AK57: =#REF! ->  | AL57: =#REF! ->  | AM57: =#REF! ->  | AN57: =#REF! -> 
B58: Throughput charge | H58: $/GJ km | U58: =#REF! ->  | V58: =#REF! ->  | W58: =#REF! ->  | X58: =#REF! ->  | Y58: =#REF! ->  | Z58: =#REF! ->  | AA58: =#REF! ->  | AB58: =#REF! ->  | AC58: =#REF! ->  | AD58: =#REF! ->  | AE58: =#REF! ->  | AF58: =#REF! ->  | AG58: =#REF! ->  | AH58: =#REF! ->  | AI58: =#REF! ->  | AJ58: =#REF! ->  | AK58: =#REF! ->  | AL58: =#REF! ->  | AM58: =#REF! ->  | AN58: =#REF! -> 
B60: Revenue from reference tariff | H60: $m | U60: =#REF! ->  | V60: =#REF! ->  | W60: =#REF! ->  | X60: =#REF! ->  | Y60: =#REF! ->  | Z60: =#REF! ->  | AA60: =#REF! ->  | AB60: =#REF! ->  | AC60: =#REF! ->  | AD60: =#REF! ->  | AE60: =#REF! ->  | AF60: =#REF! ->  | AG60: =#REF! ->  | AH60: =#REF! ->  | AI60: =#REF! ->  | AJ60: =#REF! ->  | AK60: =#REF! ->  | AL60: =#REF! ->  | AM60: =#REF! ->  | AN60: =#REF! -> 

Sheet Diagnostics_2010 (hidden)
B2: GOLDFIELDS GAS PIPELINE | I2: =#REF! ->  | J2: =#REF! ->  | K2: =#REF! ->  | L2: =#REF! ->  | M2: =#REF! -> 
B3: COS Diagnostics on Covered Pipeline Asset | G3: =IF(ROUND(H9,8)=0,"","RESET TARIFF") ->  | I3: =#REF! ->  | J3: =#REF! ->  | K3: =#REF! ->  | L3: =#REF! ->  | M3: =#REF! -> 
B4: =#REF! ->  | E4: =#REF! ->  | I4: =#REF! ->  | J4: =#REF! ->  | K4: =#REF! ->  | L4: =#REF! ->  | M4: =#REF! -> 
B7: Diagnostics on COS analysis
B9: Revenue requirement | H9: =I20-I26 -> 
B11: Revenue requirement
B12: Capital base | G12: $m | I12: ='Capital base 2010-2019'!I19 -> 442.5623507
B13: Non-capital costs | G13: $m | I13: =#REF! ->  | J13: =#REF! ->  | K13: =#REF! ->  | L13: =#REF! ->  | M13: =#REF! -> 
B14: Capital expenditure | G14: $m | I14: ='Capital base 2010-2019'!I33 -> 0.663878 | J14: ='Capital base 2010-2019'!J33 -> 0.434892 | K14: ='Capital base 2010-2019'!K33 -> 1.011698 | L14: ='Capital base 2010-2019'!L33 -> 3.100982714 | M14: ='Capital base 2010-2019'!M33 -> 2.991012571
B15: Over depreciation AA1 | G15: $m | I15: =#REF! -> 
B16: Increase in line pack | G16: $m | I16: ='Capital base 2010-2019'!#REF! ->  | J16: ='Capital base 2010-2019'!#REF! ->  | K16: ='Capital base 2010-2019'!#REF! ->  | L16: ='Capital base 2010-2019'!#REF! ->  | M16: ='Capital base 2010-2019'!#REF! -> 
B17: Increase in working capital | G17: $m | I17: ='Capital base 2010-2019'!#REF! ->  | J17: ='Capital base 2010-2019'!#REF! ->  | K17: ='Capital base 2010-2019'!#REF! ->  | L17: ='Capital base 2010-2019'!#REF! ->  | M17: ='Capital base 2010-2019'!#REF! -> 
B18: Residual value | G18: $m | I18: 0 | J18: 0 | K18: 0 | L18: 0 | M18: =-'Capital base 2010-2019'!M60 -> -393.3409176
I19: =SUM(I13:I18) ->  | J19: =SUM(J13:J18) ->  | K19: =SUM(K13:K18) ->  | L19: =SUM(L13:L18) ->  | M19: =SUM(M13:M18) -> 
B20: NPV revenue requirement | G20: $m | I20: =I12+NPV(#REF!,I19:M19) -> 
B22: Return | G22: $m | I22: =#REF! ->  | J22: =#REF! ->  | K22: =#REF! ->  | L22: =#REF! ->  | M22: =#REF! -> 
B23: Net Depreciation | G23: $m | I23: =#REF!+#REF! ->  | J23: =#REF!+#REF! ->  | K23: =#REF!+#REF! ->  | L23: =#REF!+#REF! ->  | M23: =#REF!+#REF! -> 
B24: Non capital costs | G24: $m | I24: =#REF! ->  | J24: =#REF! ->  | K24: =#REF! ->  | L24: =#REF! ->  | M24: =#REF! -> 
G25: $m | I25: =SUM(I22:I24) ->  | J25: =SUM(J22:J24) ->  | K25: =SUM(K22:K24) ->  | L25: =SUM(L22:L24) ->  | M25: =SUM(M22:M24) -> 
B26: NPV revenue requirement | G26: $m | I26: =NPV(#REF!,I25:M25) -> 

Sheet Notes
B2: ='Model inputs'!B2 -> GOLDFIELDS GAS PIPELINE
B3: ='Model inputs'!B3 -> Access Arrangement revision 2015-2019
B4: Notes
B6: Tax payable calculation | G6: =IF(ROUND('Post-tax total revenue'!M37,6)=0,"OK","RECALCULATE") -> OK
B7: Return on debt | G7: ='Post-tax total revenue'!K41 -> OK
B8: Return on equity | G8: ='Post-tax total revenue'!K46 -> OK
B9: Tariff calculation | G9: ='Tariff calculation'!G54 -> OK
B12: General
B14: This model is a version of the tariff model which was provided,with proposed revisions to the Access Arrangement for the Goldfields Gas Pipeline (GGP),
B15: to the Economic Regulation Authority (ERA) on 15 August 2014.
B16: The version of the model provided to the ERA on 15 August 2014 was designed to demonstrate the calculation of the proposed revised reference tariff for the GGP.
B17: This models similarly demonstrates the calculation of the proposed revised reference tariff.
B19: Information pertaining to individual users of the GGP has been aggregated.
B21: A series of assumptions have been made about business relationships in the preparation of the model.
B22: In developing the input data for rolling forward the opening capital base, actual opex and capex expenditures have been used for the period from 2010 to 2013; forecasts have been used for 2014.
B23: The model should not be used for any purpose other than demonstration of the calculation of the proposed revised reference tariff.
B25: Model
B27: This model determines the roll forward capital base, total revenue and reference tariff for the GGP.
B29: Worksheets
B30: Notes | G30: Notes on the model, and summaries of checks and results
B31: Model inputs | G31: Sets out all model inputs excluding capacity and throughput forecasts
B32: Capacity forecast and revenue | G32: Sets out capacity and throughput forecasts and distances from receipt to delivery points; calculates forecast revenue.
B33: Post-tax total revenue | G33: Calculates after-tax total revenue for each year of the access arrangement period (2015-2019)
B34: Tariff calculation | G34: Calculates reference tariff from total revenues and forecat revenues
B35: ICB roll forward | G35: Rolls forward the intial (1 Janaury 2000) capital base
B36: CAPEX 2000-2009 roll forward | G36: Rolls forward additions to capital base 2000-2009
B37: CAPEX 2010-2019 roll forward | G37: Rolls forward additions to capital base 2010-2019
B38: Capital base 2010-2019 | G38: Calculates capital base 2010-2019 from ICB roll forward, CAPEX 2000-2009 roll forward, CAPEX 2010-2019 roll forward
B39: Tax asset base 1994-2000 | G39: Calculates tax depreciation and rolls forward tax asset base from commencement of operation at the beginning of Q4 1996
B40: Tax asset base 2000-2009 | G40: Calculates tax depreciation and rolls forward tax asset base for additions to Covered Pipeline 2000 to 2009
B41: Tax asset base 2010-2019 | G41: Calculates tax depreciation and rolls forward tax asset base for additions to Covered Pipeline 2010 to 2019
B42: Consolidated tax asset base | G42: Summarises tax asset base and tax depreciation calculations; provides tax depreciation for post-tax total revenue calculation 2015 to 2019
B44: Macros
B46: The model includes two calcualtion macros.
B47: One calculates tax payable: in worksheet Post-tax total revenue - button "Solve for tax payable"
B48: A second macro calculates the reference tariff compoenents: in worksheet Tariff calculation - button "Reset reference tariff"
B51: Model inputs
B53: All model inputs are in two worksheets: Model inputs and Capacity and revenue
B54: The worksheet Capacity and revenue sets out the capacity and throughput forecasts used in reference tariff calculation; its also sets out the calculation of forecast revenue.
B55: All other inputs are in the worksheet Model inputs.
B57: All model inputs are shown in blue: | J57: 123
B58: Results from goal seeking macros are shown in red: | J58: 123
B60: All monetary inputs are expressed in $ million rounded to 3 decimal places
B61: All monetary inputs for CAPEX and OPEX are historical costs ("dollars of the day").
B62: Capacity forecasts are shown in TJ/d rounded to 2 decimal places.
B63: Throughput forecasts are expressed in TJ/d rounded to 2 decimal places
B64: All other inputs are rounded to 2 decimal places.
B67: Model outputs | I67: ='Model inputs'!BB2 -> 2015 | J67: =I67+1 -> 2016 | K67: =J67+1 -> 2017 | L67: 2018 | M67: 2019
B69: Capital base (beginning of year) | G69: $m | I69: ='Post-tax total revenue'!N7 -> 396.5521229 | J69: ='Post-tax total revenue'!O7 -> 392.9876111 | K69: ='Post-tax total revenue'!P7 -> 386.5096955 | L69: ='Post-tax total revenue'!Q7 -> 377.0312435 | M69: ='Post-tax total revenue'!R7 -> 366.8431841
B71: Nominal vanilla WACC | F71: ='Model inputs'!F86 -> 0.096448
B73: Total revenue
B74: Return on asset | G74: $m | I74: ='Post-tax total revenue'!N17+'Post-tax total revenue'!N18 -> 38.24665915 | J74: ='Post-tax total revenue'!O17+'Post-tax total revenue'!O18 -> 37.90286912 | K74: ='Post-tax total revenue'!P17+'Post-tax total revenue'!P18 -> 37.27808711 | L74: ='Post-tax total revenue'!Q17+'Post-tax total revenue'!Q18 -> 36.36390937 | M74: ='Post-tax total revenue'!R17+'Post-tax total revenue'!R18 -> 35.38129142
B75: Depreciation | G75: $m | I75: ='Post-tax total revenue'!N19 -> 10.34876809 | J75: ='Post-tax total revenue'!O19 -> 10.71632392 | K75: ='Post-tax total revenue'!P19 -> 10.90642766 | L75: ='Post-tax total revenue'!Q19 -> 10.99106491 | M75: ='Post-tax total revenue'!R19 -> 11.00308101
B76: Over-depreciation | G76: $m | I76: ='Post-tax total revenue'!N20 -> -3.211205316 | J76: ='Post-tax total revenue'!O20 -> 0 | K76: ='Post-tax total revenue'!P20 -> 0 | L76: ='Post-tax total revenue'!Q20 -> 0 | M76: ='Post-tax total revenue'!R20 -> 0
B77: Operating expenditure | G77: $m | I77: ='Post-tax total revenue'!N21 -> 25.27741564 | J77: ='Post-tax total revenue'!O21 -> 25.41325912 | K77: ='Post-tax total revenue'!P21 -> 26.16785387 | L77: ='Post-tax total revenue'!Q21 -> 26.89704636 | M77: ='Post-tax total revenue'!R21 -> 28.26337208
B78: Cost of tax | G78: $m | I78: ='Post-tax total revenue'!N22 -> 0.5913366063 | J78: ='Post-tax total revenue'!O22 -> 3.677055743 | K78: ='Post-tax total revenue'!P22 -> 9.993614558 | L78: ='Post-tax total revenue'!Q22 -> 10.132274 | M78: ='Post-tax total revenue'!R22 -> 10.02968282
B79: Value of imputation credits | G79: $m | I79: ='Post-tax total revenue'!N23 -> -0.1478341516 | J79: ='Post-tax total revenue'!O23 -> -0.9192639358 | K79: ='Post-tax total revenue'!P23 -> -2.49840364 | L79: ='Post-tax total revenue'!Q23 -> -2.533068499 | M79: ='Post-tax total revenue'!R23 -> -2.507420705
G81: $m | I81: =SUM(I74:I80) -> 71.10514002 | J81: =SUM(J74:J80) -> 76.79024396 | K81: 81.84757955 | L81: 81.85122614 | M81: 82.17000663
B83: Reference tariff
B84: Toll charge | G84: $/GJ | I84: ='Tariff calculation'!I35 -> 0.2358058304
B85: Capacity reservation charge | G85: $/GJ km | I85: ='Tariff calculation'!I36 -> 0.001459001581
B86: Throughput charge | G86: $/GJ km | I86: ='Tariff calculation'!I37 -> 0.0004424538133
B88: Forecast revenue | G88: $m | I88: ='Tariff calculation'!I25 -> 72.70099713 | J88: ='Tariff calculation'!J25 -> 80.24726081 | K88: ='Tariff calculation'!K25 -> 79.86588927 | L88: ='Tariff calculation'!L25 -> 79.86588927 | M88: ='Tariff calculation'!M25 -> 79.86588927

Sheet Model inputs
B2: GOLDFIELDS GAS PIPELINE | I2: 2000 | J2: 2000 | K2: 2000 | L2: 2000 | M2: 2001 | N2: 2001 | O2: 2001 | P2: 2001 | Q2: 2002 | R2: 2002 | S2: 2002 | T2: 2002 | U2: 2003 | V2: 2003 | W2: 2003 | X2: 2003 | Y2: 2004 | Z2: 2004 | AA2: 2004 | AB2: 2004 | AC2: 2005 | AD2: 2005 | AE2: 2005 | AF2: 2005 | AG2: 2006 | AH2: 2006 | AI2: 2006 | AJ2: 2006 | AK2: 2007 | AL2: 2007 | AM2: 2007 | AN2: 2007 | AO2: 2008 | AP2: 2008 | AQ2: 2008 | AR2: 2008 | AS2: 2009 | AT2: 2009 | AU2: 2009 | AV2: 2009 | AW2: 2010 | AX2: =AW2+1 -> 2011 | AY2: =AX2+1 -> 2012 | AZ2: 2013 | BA2: 2014 | BB2: 2015 | BC2: 2016 | BD2: 2017 | BE2: 2018 | BF2: 2019
B3: Access Arrangement revision 2015-2019 | I3: Q1 | J3: Q2 | K3: Q3 | L3: Q4 | M3: Q1 | N3: Q2 | O3: Q3 | P3: Q4 | Q3: Q1 | R3: Q2 | S3: Q3 | T3: Q4 | U3: Q1 | V3: Q2 | W3: Q3 | X3: Q4 | Y3: Q1 | Z3: Q2 | AA3: Q3 | AB3: Q4 | AC3: Q1 | AD3: Q2 | AE3: Q3 | AF3: Q4 | AG3: Q1 | AH3: Q2 | AI3: Q3 | AJ3: Q4 | AK3: Q1 | AL3: Q2 | AM3: Q3 | AN3: Q4 | AO3: Q1 | AP3: Q2 | AQ3: Q3 | AR3: Q4 | AS3: Q1 | AT3: Q2 | AU3: Q3 | AV3: Q4
I4: 91 | J4: 91 | K4: 92 | L4: 92 | M4: 90 | N4: 91 | O4: 92 | P4: 92 | Q4: 90 | R4: 91 | S4: 92 | T4: 92 | U4: 90 | V4: 91 | W4: 92 | X4: 92 | Y4: 91 | Z4: 91 | AA4: 92 | AB4: 92 | AC4: 90 | AD4: 91 | AE4: 92 | AF4: 92 | AG4: 90 | AH4: 91 | AI4: 92 | AJ4: 92 | AK4: 90 | AL4: 91 | AM4: 92 | AN4: 92 | AO4: 91 | AP4: 91 | AQ4: 92 | AR4: 92 | AS4: 90 | AT4: 91 | AU4: 92 | AV4: 92 | AW4: 365 | AX4: 365 | AY4: 366 | AZ4: 365 | BA4: 365 | BB4: 365 | BC4: 366 | BD4: 365 | BE4: 365 | BF4: 365
B7: Asset groups and asset lives for regulation
B9: Pipeline and laterals | G9: 70 | H9: years
B10: Main line valve and scraper stations | G10: 50 | H10: years
B11: Compressor stations | G11: 30 | H11: years
B12: Receipt and delivery point facilities | G12: 30 | H12: years
B13: SCADA and communications | G13: 15 | H13: years
B14: Cathodic protection | G14: 15 | H14: years
B15: Maintenance bases and depots | G15: 50 | H15: years
B16: Other depreciable assets | G16: 10 | H16: years
B17: Non-depreciable assets
B19: Initial capital base
B21: =B9 -> Pipeline and laterals | H21: $m | I21: 438.6555358
B22: Main line valve and scraper stations | H22: $m | I22: 9.177771758
B23: Compressor stations | H23: $m | I23: 41.57599489
B24: Receipt and delivery point facilities | H24: $m | I24: 1.534343975
B25: SCADA and communications | H25: $m | I25: 10.12958811
B26: Cathodic protection | H26: $m | I26: 1.828833019
B27: Maintenance bases and depots | H27: $m | I27: 7.727642558
B28: Other depreciable assets | H28: $m | I28: 0.4393552199
B29: Non-depreciable assets | H29: $m | I29: 2.581675929
H31: $m | I31: =SUM(I21:I30) -> 513.6507412
B33: Depreciation: initial capital base
B35: =B9 -> Pipeline and laterals | H35: $m | I35: 1.700215255 | J35: 1.700215255 | K35: 1.700215255 | L35: 1.700215255 | M35: 1.700215255 | N35: 1.700215255 | O35: 1.700215255 | P35: 1.700215255 | Q35: 1.700215255 | R35: 1.700215255 | S35: 1.700215255 | T35: 1.700215255 | U35: 1.700215255 | V35: 1.700215255 | W35: 1.700215255 | X35: 1.700215255 | Y35: 1.700215255 | Z35: 1.700215255 | AA35: 1.700215255 | AB35: 1.700215255 | AC35: 1.700215255 | AD35: 1.700215255 | AE35: 1.700215255 | AF35: 1.700215255 | AG35: 1.700215255 | AH35: 1.700215255 | AI35: 1.700215255 | AJ35: 1.700215255 | AK35: 1.700215255 | AL35: 1.700215255 | AM35: 1.700215255 | AN35: 1.700215255 | AO35: 1.700215255 | AP35: 1.700215255 | AQ35: 1.700215255 | AR35: 1.700215255 | AS35: 1.700215255 | AT35: 1.700215255 | AU35: 1.700215255 | AV35: 1.700215255
B36: Main line valve and scraper stations | H36: $m | I36: 0.05156051549 | J36: 0.05156051549 | K36: 0.05156051549 | L36: 0.05156051549 | M36: 0.05156051549 | N36: 0.05156051549 | O36: 0.05156051549 | P36: 0.05156051549 | Q36: 0.05156051549 | R36: 0.05156051549 | S36: 0.05156051549 | T36: 0.05156051549 | U36: 0.05156051549 | V36: 0.05156051549 | W36: 0.05156051549 | X36: 0.05156051549 | Y36: 0.05156051549 | Z36: 0.05156051549 | AA36: 0.05156051549 | AB36: 0.05156051549 | AC36: 0.05156051549 | AD36: 0.05156051549 | AE36: 0.05156051549 | AF36: 0.05156051549 | AG36: 0.05156051549 | AH36: 0.05156051549 | AI36: 0.05156051549 | AJ36: 0.05156051549 | AK36: 0.05156051549 | AL36: 0.05156051549 | AM36: 0.05156051549 | AN36: 0.05156051549 | AO36: 0.05156051549 | AP36: 0.05156051549 | AQ36: 0.05156051549 | AR36: 0.05156051549 | AS36: 0.05156051549 | AT36: 0.05156051549 | AU36: 0.05156051549 | AV36: 0.05156051549
B37: Compressor stations | H37: $m | I37: 0.4242448458 | J37: 0.4242448458 | K37: 0.4242448458 | L37: 0.4242448458 | M37: 0.4242448458 | N37: 0.4242448458 | O37: 0.4242448458 | P37: 0.4242448458 | Q37: 0.4242448458 | R37: 0.4242448458 | S37: 0.4242448458 | T37: 0.4242448458 | U37: 0.4242448458 | V37: 0.4242448458 | W37: 0.4242448458 | X37: 0.4242448458 | Y37: 0.4242448458 | Z37: 0.4242448458 | AA37: 0.4242448458 | AB37: 0.4242448458 | AC37: 0.4242448458 | AD37: 0.4242448458 | AE37: 0.4242448458 | AF37: 0.4242448458 | AG37: 0.4242448458 | AH37: 0.4242448458 | AI37: 0.4242448458 | AJ37: 0.4242448458 | AK37: 0.4242448458 | AL37: 0.4242448458 | AM37: 0.4242448458 | AN37: 0.4242448458 | AO37: 0.4242448458 | AP37: 0.4242448458 | AQ37: 0.4242448458 | AR37: 0.4242448458 | AS37: 0.4242448458 | AT37: 0.4242448458 | AU37: 0.4242448458 | AV37: 0.4242448458
B38: Receipt and delivery point facilities | H38: $m | I38: 0.01565657117 | J38: 0.01565657117 | K38: 0.01565657117 | L38: 0.01565657117 | M38: 0.01565657117 | N38: 0.01565657117 | O38: 0.01565657117 | P38: 0.01565657117 | Q38: 0.01565657117 | R38: 0.01565657117 | S38: 0.01565657117 | T38: 0.01565657117 | U38: 0.01565657117 | V38: 0.01565657117 | W38: 0.01565657117 | X38: 0.01565657117 | Y38: 0.01565657117 | Z38: 0.01565657117 | AA38: 0.01565657117 | AB38: 0.01565657117 | AC38: 0.01565657117 | AD38: 0.01565657117 | AE38: 0.01565657117 | AF38: 0.01565657117 | AG38: 0.01565657117 | AH38: 0.01565657117 | AI38: 0.01565657117 | AJ38: 0.01565657117 | AK38: 0.01565657117 | AL38: 0.01565657117 | AM38: 0.01565657117 | AN38: 0.01565657117 | AO38: 0.01565657117 | AP38: 0.01565657117 | AQ38: 0.01565657117 | AR38: 0.01565657117 | AS38: 0.01565657117 | AT38: 0.01565657117 | AU38: 0.01565657117 | AV38: 0.01565657117
B39: SCADA and communications | H39: $m | I39: 0.2665681081 | J39: 0.2665681081 | K39: 0.2665681081 | L39: 0.2665681081 | M39: 0.2665681081 | N39: 0.2665681081 | O39: 0.2665681081 | P39: 0.2665681081 | Q39: 0.2665681081 | R39: 0.2665681081 | S39: 0.2665681081 | T39: 0.2665681081 | U39: 0.2665681081 | V39: 0.2665681081 | W39: 0.2665681081 | X39: 0.2665681081 | Y39: 0.2665681081 | Z39: 0.2665681081 | AA39: 0.2665681081 | AB39: 0.2665681081 | AC39: 0.2665681081 | AD39: 0.2665681081 | AE39: 0.2665681081 | AF39: 0.2665681081 | AG39: 0.2665681081 | AH39: 0.2665681081 | AI39: 0.2665681081 | AJ39: 0.2665681081 | AK39: 0.2665681081 | AL39: 0.2665681081 | AM39: 0.2665681081 | AN39: 0.2665681081 | AO39: 0.2665681081 | AP39: 0.2665681081 | AQ39: 0.2665681081 | AR39: 0.2665681081 | AS39: 0.2665681081 | AT39: 0.2665681081 | AU39: -5.329070518e-15 | AV39: -5.329070518e-15
B40: Cathodic protection | H40: $m | I40: 0.0481271847 | J40: 0.0481271847 | K40: 0.0481271847 | L40: 0.0481271847 | M40: 0.0481271847 | N40: 0.0481271847 | O40: 0.0481271847 | P40: 0.0481271847 | Q40: 0.0481271847 | R40: 0.0481271847 | S40: 0.0481271847 | T40: 0.0481271847 | U40: 0.0481271847 | V40: 0.0481271847 | W40: 0.0481271847 | X40: 0.0481271847 | Y40: 0.0481271847 | Z40: 0.0481271847 | AA40: 0.0481271847 | AB40: 0.0481271847 | AC40: 0.0481271847 | AD40: 0.0481271847 | AE40: 0.0481271847 | AF40: 0.0481271847 | AG40: 0.0481271847 | AH40: 0.0481271847 | AI40: 0.0481271847 | AJ40: 0.0481271847 | AK40: 0.0481271847 | AL40: 0.0481271847 | AM40: 0.0481271847 | AN40: 0.0481271847 | AO40: 0.0481271847 | AP40: 0.0481271847 | AQ40: 0.0481271847 | AR40: 0.0481271847 | AS40: 0.0481271847 | AT40: 0.0481271847 | AU40: 0 | AV40: 0
B41: Maintenance bases and depots | H41: $m | I41: 0.04341372223 | J41: 0.04341372223 | K41: 0.04341372223 | L41: 0.04341372223 | M41: 0.04341372223 | N41: 0.04341372223 | O41: 0.04341372223 | P41: 0.04341372223 | Q41: 0.04341372223 | R41: 0.04341372223 | S41: 0.04341372223 | T41: 0.04341372223 | U41: 0.04341372223 | V41: 0.04341372223 | W41: 0.04341372223 | X41: 0.04341372223 | Y41: 0.04341372223 | Z41: 0.04341372223 | AA41: 0.04341372223 | AB41: 0.04341372223 | AC41: 0.04341372223 | AD41: 0.04341372223 | AE41: 0.04341372223 | AF41: 0.04341372223 | AG41: 0.04341372223 | AH41: 0.04341372223 | AI41: 0.04341372223 | AJ41: 0.04341372223 | AK41: 0.04341372223 | AL41: 0.04341372223 | AM41: 0.04341372223 | AN41: 0.04341372223 | AO41: 0.04341372223 | AP41: 0.04341372223 | AQ41: 0.04341372223 | AR41: 0.04341372223 | AS41: 0.04341372223 | AT41: 0.04341372223 | AU41: 0.04341372223 | AV41: 0.04341372223
B42: Other depreciable assets | H42: $m | I42: 0.02440862333 | J42: 0.02440862333 | K42: 0.02440862333 | L42: 0.02440862333 | M42: 0.02440862333 | N42: 0.02440862333 | O42: 0.02440862333 | P42: 0.02440862333 | Q42: 0.02440862333 | R42: 0.02440862333 | S42: 0.02440862333 | T42: 0.02440862333 | U42: 0.02440862333 | V42: 0.02440862333 | W42: 0.02440862333 | X42: 0.02440862333 | Y42: 0.02440862333 | Z42: 0.02440862333 | AA42: 5.551115123e-17 | AB42: 5.551115123e-17 | AC42: 5.551115123e-17 | AD42: 5.551115123e-17 | AE42: 5.551115123e-17 | AF42: 5.551115123e-17 | AG42: 5.551115123e-17 | AH42: 5.551115123e-17 | AI42: -3.885780586e-16 | AJ42: -3.885780586e-16 | AK42: -3.885780586e-16 | AL42: -3.885780586e-16 | AM42: -3.885780586e-16 | AN42: -3.885780586e-16 | AO42: -3.885780586e-16 | AP42: -3.885780586e-16 | AQ42: -3.885780586e-16 | AR42: -3.885780586e-16 | AS42: -3.885780586e-16 | AT42: -3.885780586e-16 | AU42: -3.885780586e-16 | AV42: -3.885780586e-16
H44: $m | I44: =SUM(I35:I43) -> 2.574194826 | J44: =SUM(J35:J43) -> 2.574194826 | K44: 2.574194826 | L44: 2.574194826 | M44: 2.574194826 | N44: 2.574194826 | O44: 2.574194826 | P44: 2.574194826 | Q44: 2.574194826 | R44: 2.574194826 | S44: 2.574194826 | T44: 2.574194826 | U44: 2.574194826 | V44: 2.574194826 | W44: 2.574194826 | X44: 2.574194826 | Y44: 2.574194826 | Z44: 2.574194826 | AA44: 2.549786202 | AB44: 2.549786202 | AC44: 2.549786202 | AD44: 2.549786202 | AE44: 2.549786202 | AF44: 2.549786202 | AG44: 2.549786202 | AH44: 2.549786202 | AI44: 2.549786202 | AJ44: 2.549786202 | AK44: 2.549786202 | AL44: 2.549786202 | AM44: 2.549786202 | AN44: 2.549786202 | AO44: 2.549786202 | AP44: 2.549786202 | AQ44: 2.549786202 | AR44: 2.549786202 | AS44: 2.549786202 | AT44: 2.549786202 | AU44: 2.23509091 | AV44: 2.23509091
B46: CAPEX: 2000-2019: actual and forecast
B48: =B9 -> Pipeline and laterals | H48: $m | I48: 0 | J48: 0 | K48: 0 | L48: 0 | M48: 0 | N48: 0 | O48: 0 | P48: 0 | Q48: 0 | R48: 0 | S48: 0 | T48: 0 | U48: 0 | V48: 0 | W48: 0 | X48: 0 | Y48: 0 | Z48: 0 | AA48: 0 | AB48: 0 | AC48: 0.30112484 | AD48: 0.00025486 | AE48: 0.00045632 | AF48: -0.00033 | AG48: 0 | AH48: 0 | AI48: 0 | AJ48: 0 | AK48: 0 | AL48: 0.28621376 | AM48: 0 | AN48: 0 | AO48: 0 | AP48: 0.00355109 | AQ48: 0.01002201 | AR48: 0.06076867 | AS48: 0.00144492 | AT48: 0.0014231 | AU48: 0.00856286 | AV48: 0.00071536 | AW48: -0.082937 | AX48: 0 | AY48: 0 | AZ48: 0.025633 | BA48: 0 | BB48: 3.386537 | BC48: 2.00022086 | BD48: 0.312519922 | BE48: 0 | BF48: 0.2550402963
B49: Main line valve and scraper stations | H49: $m | I49: 0 | J49: 0 | K49: 0 | L49: 0 | M49: 0 | N49: 0 | O49: 0 | P49: 0 | Q49: 0 | R49: 0 | S49: 0 | T49: 0 | U49: 0 | V49: 0 | W49: 0 | X49: 0 | Y49: 0 | Z49: 0 | AA49: 0 | AB49: 0 | AC49: 0 | AD49: 0 | AE49: 0 | AF49: 0 | AG49: 0 | AH49: 0 | AI49: 0 | AJ49: 0 | AK49: 0 | AL49: 0 | AM49: 0 | AN49: 0 | AO49: 0 | AP49: 0 | AQ49: 0 | AR49: 0 | AS49: 0.02711449 | AT49: 0.00114492 | AU49: 0 | AV49: 0 | AW49: 0 | AX49: 0 | AY49: 0 | AZ49: 0 | BA49: 0 | BB49: 0 | BC49: 0.700194 | BD49: 0 | BE49: 0 | BF49: 0
B50: Compressor stations | H50: $m | I50: 0.7266078075 | J50: 0.7266078075 | K50: 0.7266078075 | L50: 0.7266078075 | M50: 2.016678142 | N50: 2.016678142 | O50: 2.016678142 | P50: 2.016678142 | Q50: 0.1623632675 | R50: 0.1623632675 | S50: 0.1623632675 | T50: 0.1623632675 | U50: 2.450314792 | V50: 2.450314792 | W50: 2.450314792 | X50: 2.450314792 | Y50: 1.018218935 | Z50: 1.018218935 | AA50: 1.018218935 | AB50: 1.018218935 | AC50: 0.23668579 | AD50: =0.28744481+0.079 -> 0.36644481 | AE50: 0.06653221 | AF50: 0.03745882 | AG50: 0.03906246 | AH50: 0.33773978 | AI50: 0.3358245 | AJ50: 0.20489235 | AK50: 0.09346673 | AL50: 0.18295022 | AM50: 0.05837254 | AN50: 0.02024216 | AO50: 0 | AP50: 0.23202959 | AQ50: 0.04096777 | AR50: 0.12877112 | AS50: 0.28400227 | AT50: 0.0078502 | AU50: 0.00194744 | AV50: 0 | AW50: 0.431132 | AX50: 0.0473 | AY50: 0.258575 | AZ50: 0.579652 | BA50: 0.9085273333 | BB50: 1.0700052 | BC50: 0.8985823 | BD50: 0 | BE50: 0.2421644756 | BF50: 0.3443044001
B51: Receipt and delivery point facilities | H51: $m | I51: 0.04005906 | J51: 0.04005906 | K51: 0.04005906 | L51: 0.04005906 | M51: 0.0242860925 | N51: 0.0242860925 | O51: 0.0242860925 | P51: 0.0242860925 | Q51: 0.0147807275 | R51: 0.0147807275 | S51: 0.0147807275 | T51: 0.0147807275 | U51: 0.0173773425 | V51: 0.0173773425 | W51: 0.0173773425 | X51: 0.0173773425 | Y51: 0.00844475 | Z51: 0.00844475 | AA51: 0.00844475 | AB51: 0.00844475 | AC51: 0 | AD51: 0 | AE51: 0 | AF51: 0.01755367 | AG51: 0.01368143 | AH51: 0.12254546 | AI51: 0.11840168 | AJ51: 0.12576146 | AK51: 0.3960732 | AL51: 0.08453083 | AM51: 0.00012867 | AN51: 0 | AO51: 0 | AP51: 0 | AQ51: 0 | AR51: 0.00321914 | AS51: 0 | AT51: 0 | AU51: 0 | AV51: 0 | AW51: 0 | AX51: 0 | AY51: 0 | AZ51: 0.1356 | BA51: 0.174059 | BB51: 0.40788 | BC51: 0 | BD51: 0.72119982 | BE51: 0.4209402949 | BF51: 0
B52: SCADA and communications | H52: $m | I52: 0.006985115 | J52: 0.006985115 | K52: 0.006985115 | L52: 0.006985115 | M52: 0.0012955875 | N52: 0.0012955875 | O52: 0.0012955875 | P52: 0.0012955875 | Q52: 0.0139746075 | R52: 0.0139746075 | S52: 0.0139746075 | T52: 0.0139746075 | U52: 0.0173468175 | V52: 0.0173468175 | W52: 0.0173468175 | X52: 0.0173468175 | Y52: 0.109894455 | Z52: 0.109894455 | AA52: 0.109894455 | AB52: 0.109894455 | AC52: 0.02500167 | AD52: 0.00555411 | AE52: 0.00094376 | AF52: 0 | AG52: 0.05128961 | AH52: 0.20082489 | AI52: 0.17556474 | AJ52: 0.02213489 | AK52: 0.04928407 | AL52: 0.07052838 | AM52: 0.01797736 | AN52: 0.05761879 | AO52: 0.00726825 | AP52: 0.05729485 | AQ52: 0.30337709 | AR52: 0.33711321 | AS52: 0.24756857 | AT52: 0.46381265 | AU52: 0.00427515 | AV52: 0 | AW52: 0.181882 | AX52: 0.36438 | AY52: 0.727342 | AZ52: 0.472833 | BA52: 0.8658075133 | BB52: 0.5668399 | BC52: 0.498188031 | BD52: 0.216359946 | BE52: 0.04952238764 | BF52: 0.05100805927
B53: Cathodic protection | H53: $m | I53: 0 | J53: 0 | K53: 0 | L53: 0 | M53: 0 | N53: 0 | O53: 0 | P53: 0 | Q53: 0 | R53: 0 | S53: 0 | T53: 0 | U53: 0.00394725 | V53: 0.00394725 | W53: 0.00394725 | X53: 0.00394725 | Y53: 0 | Z53: 0 | AA53: 0 | AB53: 0 | AC53: 0.000297 | AD53: 0 | AE53: 0 | AF53: 0 | AG53: 0 | AH53: 0 | AI53: 0.00825 | AJ53: 0 | AK53: 0 | AL53: 0 | AM53: 0 | AN53: 0 | AO53: 0 | AP53: 0.06568597 | AQ53: 0.0018755 | AR53: 0.04616319 | AS53: 0.10849443 | AT53: 0.73988261 | AU53: 0.16139918 | AV53: 0.58868282 | AW53: 0 | AX53: 0 | AY53: 0 | AZ53: 0 | BA53: 0 | BB53: 0.10197 | BC53: 0.03617669 | BD53: 0.0937559766 | BE53: 0.02847537289 | BF53: 0.02932963408
B54: Maintenance bases and depots | H54: $m | I54: 0.00182295 | J54: 0.00182295 | K54: 0.00182295 | L54: 0.00182295 | M54: 0.001067045 | N54: 0.001067045 | O54: 0.001067045 | P54: 0.001067045 | Q54: 0.00055 | R54: 0.00055 | S54: 0.00055 | T54: 0.00055 | U54: 0 | V54: 0 | W54: 0 | X54: 0 | Y54: 0 | Z54: 0 | AA54: 0 | AB54: 0 | AC54: 0 | AD54: 0 | AE54: 0 | AF54: 0.002619 | AG54: 0 | AH54: 0.0348373 | AI54: 0 | AJ54: 0 | AK54: 0 | AL54: 0 | AM54: 0.01046586 | AN54: 0.001661 | AO54: 0 | AP54: 0.06127894 | AQ54: 0.01224307 | AR54: 0.07122134 | AS54: 0 | AT54: 0 | AU54: 0 | AV54: 0.01881 | AW54: 0.089104 | AX54: 0 | AY54: 0 | AZ54: 1.32 | BA54: 0.0913748 | BB54: 0.658273 | BC54: 0 | BD54: 0 | BE54: 0 | BF54: 0
B55: Other depreciable assets | H55: $m | I55: 0.1355580325 | J55: 0.1355580325 | K55: 0.1355580325 | L55: 0.1355580325 | M55: 0.0545215825 | N55: 0.0545215825 | O55: 0.0545215825 | P55: 0.0545215825 | Q55: 0.0881759075 | R55: 0.0881759075 | S55: 0.0881759075 | T55: 0.0881759075 | U55: 0.045699415 | V55: 0.045699415 | W55: 0.045699415 | X55: 0.045699415 | Y55: 0.39829845 | Z55: 0.39829845 | AA55: 0.39829845 | AB55: 0.39829845 | AC55: 0.08118179 | AD55: 0.1946215 | AE55: 0.07621263 | AF55: 0.08803465 | AG55: 0.15023145 | AH55: 0.0845521 | AI55: 0.05615649 | AJ55: 0.05214001 | AK55: 0.08470009 | AL55: 0.17527503 | AM55: 0.2000654 | AN55: 0.00599739 | AO55: 0.03913356 | AP55: 0.13693153 | AQ55: 0.05626088 | AR55: 0.01692312 | AS55: 0.25993214 | AT55: 0.1239055 | AU55: 0.09556458 | AV55: 0.12330345 | AW55: 0.044697 | AX55: 0.023212 | AY55: 0.025781 | AZ55: 0.5672647141 | BA55: 0.9512439246 | BB55: 0.5927512371 | BC55: 0.1050463988 | BD55: 0.084139979 | BE55: 0.06190298455 | BF55: 0.06376007409
B56: Non-depreciable assets | H56: $m | I56: -1.456675929 | J56: 1.823369148 | K56: 0 | L56: -0.01981922987 | M56: 0 | N56: 0.7752762321 | O56: -0.0283387489 | P56: -0.02772268914 | Q56: 0 | R56: -0.6273935395 | S56: -0.02082825464 | T56: -0.0203754665 | U56: 0 | V56: 1.459328769 | W56: -0.03641204637 | X56: -0.03562048015 | Y56: 0 | Z56: -0.7080215592 | AA56: 0 | AB56: -0.0275374145 | AC56: 0 | AD56: -0.06990471975 | AE56: -0.02676923077 | AF56: -0.02618729097 | AG56: 0 | AH56: 0.3860815217 | AI56: -0.03042994505 | AJ56: -0.02976842451 | AK56: 0 | AL56: 0.06457336957 | AM56: -0.03047802198 | AN56: -0.02981545628 | AO56: 0 | AP56: -0.1822037745 | AQ56: 0 | AR56: -0.02751089943 | AS56: 0 | AT56: 0.2547581522 | AU56: -0.03031043956 | AV56: -0.02965151696 | AW56: 0 | AX56: 0 | AY56: 0 | AZ56: 0 | BA56: 0 | BB56: 0 | BC56: 0 | BD56: 0 | BE56: 0 | BF56: 0
H58: $m | I58: =SUM(I48:I57) -> -0.5456429638 | J58: =SUM(J48:J57) -> 2.734402113 | K58: 0.911032965 | L58: 0.8912137351 | M58: 2.09784845 | N58: 2.873124682 | O58: 2.069509701 | P58: 2.070125761 | Q58: 0.27984451 | R58: -0.3475490295 | S58: 0.2590162554 | T58: 0.2594690435 | U58: 2.534685618 | V58: 3.994014386 | W58: 2.498273571 | X58: 2.499065137 | Y58: 1.53485659 | Z58: 0.8268350308 | AA58: 1.53485659 | AB58: 1.507319175 | AC58: 0.64429109 | AD58: 0.4969705603 | AE58: 0.1173756892 | AF58: 0.119148849 | AG58: 0.25426495 | AH58: 1.166581052 | AI58: 0.6637674649 | AJ58: 0.3751602855 | AK58: 0.62352409 | AL58: 0.8640715896 | AM58: 0.256531808 | AN58: 0.05570388372 | AO58: 0.04640181 | AP58: 0.3745681955 | AQ58: 0.42474632 | AR58: 0.6366688906 | AS58: 0.92855682 | AT58: 1.592777132 | AU58: 0.2414387704 | AV58: 0.701860113 | AW58: 0.663878 | AX58: 0.434892 | AY58: 1.011698 | AZ58: 3.100982714 | BA58: 2.991012571 | BB58: 6.784256337 | BC58: 4.23840828 | BD58: 1.427975644 | BE58: 0.8030055156 | BF58: 0.7434424638
B60: CAPEX: 2000-2014: forecast used for AA depreciation
B62: =B9 -> Pipeline and laterals | H62: $m | I62: 0 | J62: 0 | K62: 0 | L62: 0 | M62: 0 | N62: 0 | O62: 0 | P62: 0 | Q62: 0 | R62: 0 | S62: 0 | T62: 0 | U62: 0 | V62: 0 | W62: 0 | X62: 0 | Y62: 0 | Z62: 0 | AA62: 0 | AB62: 0 | AC62: 0 | AD62: 0 | AE62: 0 | AF62: 0 | AG62: 0 | AH62: 0 | AI62: 0 | AJ62: 0 | AK62: 0 | AL62: 0 | AM62: 0 | AN62: 0 | AO62: 0 | AP62: 0 | AQ62: 0 | AR62: 0 | AS62: 0 | AT62: 0 | AU62: 0 | AV62: 0 | AW62: 0 | AX62: 0 | AY62: 0 | AZ62: 0 | BA62: 0
B63: Main line valve and scraper stations | H63: $m | I63: 0 | J63: 0 | K63: 0 | L63: 0 | M63: 0 | N63: 0 | O63: 0 | P63: 0 | Q63: 0 | R63: 0 | S63: 0 | T63: 0 | U63: 0 | V63: 0 | W63: 0 | X63: 0 | Y63: 0 | Z63: 0 | AA63: 0 | AB63: 0 | AC63: 0 | AD63: 0 | AE63: 0 | AF63: 0 | AG63: 0 | AH63: 0 | AI63: 0 | AJ63: 0 | AK63: 0 | AL63: 0 | AM63: 0 | AN63: 0 | AO63: 0 | AP63: 0 | AQ63: 0 | AR63: 0 | AS63: 0 | AT63: 0 | AU63: 0 | AV63: 0 | AW63: 0.066 | AX63: 0 | AY63: 0 | AZ63: 0 | BA63: 0
B64: Compressor stations | H64: $m | I64: 0.7266078075 | J64: 0.7266078075 | K64: 0.7266078075 | L64: 0.7266078075 | M64: 2.016678142 | N64: 2.016678142 | O64: 2.016678142 | P64: 2.016678142 | Q64: 0.1623632675 | R64: 0.1623632675 | S64: 0.1623632675 | T64: 0.1623632675 | U64: 2.450314792 | V64: 2.450314792 | W64: 2.450314792 | X64: 2.450314792 | Y64: 1.018218935 | Z64: 1.018218935 | AA64: 1.018218935 | AB64: 1.018218935 | AC64: 0.1074778518 | AD64: 0.1074778518 | AE64: 0.1074778518 | AF64: 0.1074778518 | AG64: 0.8976499761 | AH64: 0.8976499761 | AI64: 0.8976499761 | AJ64: 0.8976499761 | AK64: 0.9181207023 | AL64: 0.9181207023 | AM64: 0.9181207023 | AN64: 0.9181207023 | AO64: 0 | AP64: 0 | AQ64: 0 | AR64: 0 | AS64: 0 | AT64: 0 | AU64: 0 | AV64: 0 | AW64: 3.367486309 | AX64: 3.471727259 | AY64: 0.8089211836 | AZ64: 0.8506827205 | BA64: 0.8920527312
B65: Receipt and delivery point facilities | H65: $m | I65: 0.04005906 | J65: 0.04005906 | K65: 0.04005906 | L65: 0.04005906 | M65: 0.0242860925 | N65: 0.0242860925 | O65: 0.0242860925 | P65: 0.0242860925 | Q65: 0.0147807275 | R65: 0.0147807275 | S65: 0.0147807275 | T65: 0.0147807275 | U65: 0.0173773425 | V65: 0.0173773425 | W65: 0.0173773425 | X65: 0.0173773425 | Y65: 0.00844475 | Z65: 0.00844475 | AA65: 0.00844475 | AB65: 0.00844475 | AC65: 0 | AD65: 0 | AE65: 0 | AF65: 0 | AG65: 0 | AH65: 0 | AI65: 0 | AJ65: 0 | AK65: 0 | AL65: 0 | AM65: 0 | AN65: 0 | AO65: 0 | AP65: 0 | AQ65: 0 | AR65: 0 | AS65: 0 | AT65: 0 | AU65: 0 | AV65: 0 | AW65: 0.08770763276 | AX65: 0.05734802252 | AY65: 0.06037941784 | AZ65: 0.0634965785 | BA65: 0.06658451489
B66: SCADA and communications | H66: $m | I66: 0.006985115 | J66: 0.006985115 | K66: 0.006985115 | L66: 0.006985115 | M66: 0.0012955875 | N66: 0.0012955875 | O66: 0.0012955875 | P66: 0.0012955875 | Q66: 0.0139746075 | R66: 0.0139746075 | S66: 0.0139746075 | T66: 0.0139746075 | U66: 0.0173468175 | V66: 0.0173468175 | W66: 0.0173468175 | X66: 0.0173468175 | Y66: 0.109894455 | Z66: 0.109894455 | AA66: 0.109894455 | AB66: 0.109894455 | AC66: 0.01476326781 | AD66: 0.01476326781 | AE66: 0.01476326781 | AF66: 0.01476326781 | AG66: 0.25 | AH66: 0.25 | AI66: 0.25 | AJ66: 0.25 | AK66: 0.25 | AL66: 0.25 | AM66: 0.25 | AN66: 0.25 | AO66: 0 | AP66: 0 | AQ66: 0 | AR66: 0 | AS66: 0 | AT66: 0 | AU66: 0 | AV66: 0 | AW66: 0.428353991 | AX66: 1.883262125 | AY66: 1.94399762 | AZ66: 0.4772208885 | BA66: 0.5004288753
B67: Cathodic protection | H67: $m | I67: 0 | J67: 0 | K67: 0 | L67: 0 | M67: 0 | N67: 0 | O67: 0 | P67: 0 | Q67: 0 | R67: 0 | S67: 0 | T67: 0 | U67: 0.00394725 | V67: 0.00394725 | W67: 0.00394725 | X67: 0.00394725 | Y67: 0 | Z67: 0 | AA67: 0 | AB67: 0 | AC67: 0 | AD67: 0 | AE67: 0 | AF67: 0 | AG67: 0 | AH67: 0 | AI67: 0 | AJ67: 0 | AK67: 0 | AL67: 0 | AM67: 0 | AN67: 0 | AO67: 0 | AP67: 0 | AQ67: 0 | AR67: 0 | AS67: 0 | AT67: 0 | AU67: 0 | AV67: 0 | AW67: 1.32143061 | AX67: 1.357299476 | AY67: 0.0362276507 | AZ67: 0.0380979471 | BA67: 0.03995070893
B68: Maintenance bases and depots | H68: $m | I68: 0.00182295 | J68: 0.00182295 | K68: 0.00182295 | L68: 0.00182295 | M68: 0.001067045 | N68: 0.001067045 | O68: 0.001067045 | P68: 0.001067045 | Q68: 0.00055 | R68: 0.00055 | S68: 0.00055 | T68: 0.00055 | U68: 0 | V68: 0 | W68: 0 | X68: 0 | Y68: 0 | Z68: 0 | AA68: 0 | AB68: 0 | AC68: 0 | AD68: 0 | AE68: 0 | AF68: 0 | AG68: 0 | AH68: 0 | AI68: 0 | AJ68: 0 | AK68: 0 | AL68: 0 | AM68: 0 | AN68: 0 | AO68: 0 | AP68: 0 | AQ68: 0 | AR68: 0 | AS68: 0 | AT68: 0 | AU68: 0 | AV68: 0 | AW68: 0.0217730531 | AX68: 0.02293920901 | AY68: 0.02415176714 | AZ68: 0.0253986314 | BA68: 0.02663380596
B69: Other depreciable assets | H69: $m | I69: 0.1355580325 | J69: 0.1355580325 | K69: 0.1355580325 | L69: 0.1355580325 | M69: 0.0545215825 | N69: 0.0545215825 | O69: 0.0545215825 | P69: 0.0545215825 | Q69: 0.0881759075 | R69: 0.0881759075 | S69: 0.0881759075 | T69: 0.0881759075 | U69: 0.045699415 | V69: 0.045699415 | W69: 0.045699415 | X69: 0.045699415 | Y69: 0.39829845 | Z69: 0.39829845 | AA69: 0.39829845 | AB69: 0.39829845 | AC69: 0.2732588804 | AD69: 0.2732588804 | AE69: 0.2732588804 | AF69: 0.2732588804 | AG69: 0.1673500239 | AH69: 0.1673500239 | AI69: 0.1673500239 | AJ69: 0.1673500239 | AK69: 0.1893792977 | AL69: 0.1893792977 | AM69: 0.1893792977 | AN69: 0.1893792977 | AO69: 0.4025 | AP69: 0.4025 | AQ69: 0.4025 | AR69: 0.4025 | AS69: 0.43 | AT69: 0.43 | AU69: 0.43 | AV69: 0.43 | AW69: 3.428080529 | AX69: 2.326332667 | AY69: 0.8126325017 | AZ69: 1.223003819 | BA69: 0.6369560666
B70: Non-depreciable assets | H70: $m | I70: 0 | J70: 0 | K70: 0 | L70: 0 | M70: 0 | N70: 0 | O70: 0 | P70: 0 | Q70: 0 | R70: 0 | S70: 0 | T70: 0 | U70: 0 | V70: 0 | W70: 0 | X70: 0 | Y70: 0 | Z70: 0 | AA70: 0 | AB70: 0 | AC70: 0 | AD70: 0 | AE70: 0 | AF70: 0 | AG70: 0 | AH70: 0 | AI70: 0 | AJ70: 0 | AK70: 0 | AL70: 0 | AM70: 0 | AN70: 0 | AO70: 0 | AP70: 0 | AQ70: 0 | AR70: 0 | AS70: 0 | AT70: 0 | AU70: 0 | AV70: 0 | AW70: 0 | AX70: 0 | AY70: 0 | AZ70: 0 | BA70: 0
H72: $m | I72: =SUM(I62:I71) -> 0.911032965 | J72: 0.911032965 | K72: 0.911032965 | L72: 0.911032965 | M72: 2.09784845 | N72: 2.09784845 | O72: 2.09784845 | P72: 2.09784845 | Q72: 0.27984451 | R72: 0.27984451 | S72: 0.27984451 | T72: 0.27984451 | U72: 2.534685618 | V72: 2.534685618 | W72: 2.534685618 | X72: 2.534685618 | Y72: 1.53485659 | Z72: 1.53485659 | AA72: 1.53485659 | AB72: 1.53485659 | AC72: 0.3955 | AD72: 0.3955 | AE72: 0.3955 | AF72: 0.3955 | AG72: 1.315 | AH72: 1.315 | AI72: 1.315 | AJ72: 1.315 | AK72: 1.3575 | AL72: 1.3575 | AM72: 1.3575 | AN72: 1.3575 | AO72: 0.4025 | AP72: 0.4025 | AQ72: 0.4025 | AR72: 0.4025 | AS72: 0.43 | AT72: 0.43 | AU72: 0.43 | AV72: =SUM(AV62:AV71) -> 0.43 | AW72: =SUM(AW62:AW71) -> 8.720832125 | AX72: 9.118908758 | AY72: 3.686310141 | AZ72: 2.677900585 | BA72: 2.162606703
B74: Rate of return
B76: Nominal risk free rate | F76: 0.0373
B77: Return on market | F77: 0.115
B78: Equity beta | F78: 1.1
B80: Market risk premium | F80: =F77-F76 -> 0.0777
B81: Return on equity | F81: =F76+F78*F80 -> 0.12277
B82: Return on debt | F82: 0.0789
B84: Gearing | F84: 0.6
B86: Nominal vanilla WACC | F86: =(1-F84)*F81+F84*F82 -> 0.096448
B88: Tax
B90: Corporate tax rate | F90: 0.3
B91: Gamma (imputation credits) | F91: 0.25
B93: Tax loss brought forward to 1 January 2015 | F93: 0
B95: Operating expenditure forecast
B97: APA and GGT operating costs | H97: $m | BB97: 13.22711187 | BC97: 14.06298344 | BD97: 14.92722568 | BE97: 14.87444915 | BF97: 14.95284461
B98: Management Fees - APA Operations and APA Commercial | H98: $m | BB98: 2.618517527 | BC98: 2.730770676 | BD98: 2.816128075 | BE98: 2.900611917 | BF98: 2.987630275
B99: Regulatory Costs | H99: $m | BB99: 2.301045013 | BC99: 1.274841529 | BD99: 0.8594967447 | BE99: 1.330031814 | BF99: 2.297185122
B100: Insurance | H100: $m | BB100: 0.7392633011 | BC100: 0.7614412001 | BD100: 0.7842844361 | BE100: 0.8078129692 | BF100: 0.8320473583
B101: Corporate Overheads | H101: $m | BB101: 6.391477931 | BC101: 6.583222269 | BD101: 6.780718937 | BE101: 6.984140505 | BF101: 7.193664721
H103: $m | BB103: =SUM(BB97:BB102) -> 25.27741564 | BC103: =SUM(BC97:BC102) -> 25.41325912 | BD103: 26.16785387 | BE103: 26.89704636 | BF103: 28.26337208
B105: Allocation of total revenue to reference tariff
B107: Toll charge | F107: 0.113
B108: Capacity reservation charge | F108: 0.722
B109: Throughput charge | F109: =1-F107-F108 -> 0.165
B112: Asset groups and asset lives for tax
B114: =B9 -> Pipeline and laterals | G114: 20 | H114: years
B115: Main line valve and scraper stations | G115: 20 | H115: years
B116: Compressor stations | G116: 20 | H116: years
B117: Receipt and delivery point facilities | G117: 20 | H117: years
B118: SCADA and communications | G118: 10 | H118: years
B119: Cathodic protection | G119: 10 | H119: years
B120: Maintenance bases and depots | G120: 20 | H120: years
B121: Other depreciable assets | G121: 10 | H121: years
B123: Tax asset base: construction CAPEX
I125: 1994 | J125: 1994 | K125: 1994 | L125: 1995 | M125: 1995 | N125: 1995 | O125: 1995 | P125: 1996 | Q125: 1996 | R125: 1996 | S125: 1996 | T125: 1997 | U125: 1997 | V125: 1997 | W125: 1997 | X125: 1998 | Y125: 1998 | Z125: 1998 | AA125: 1998 | AB125: 1999 | AC125: 1999 | AD125: 1999 | AE125: 1999
I126: Q2 | J126: Q3 | K126: Q4 | L126: Q1 | M126: Q2 | N126: Q3 | O126: Q4 | P126: Q1 | Q126: Q2 | R126: Q3 | S126: Q4 | T126: Q1 | U126: Q2 | V126: Q3 | W126: Q4 | X126: Q1 | Y126: Q2 | Z126: Q3 | AA126: Q4 | AB126: Q1 | AC126: Q2 | AD126: Q3 | AE126: Q4
B128: =B9 -> Pipeline and laterals | H128: $m | I128: 2.361156 | J128: 1.605109 | K128: 2.937571 | L128: 3.113841 | M128: 27.413657 | N128: 64.819974 | O128: 68.317256 | P128: 57.880709 | Q128: 82.112537 | R128: 43.819779 | S128: 15.83599628 | T128: 1.05115735 | U128: 16.11628926 | V128: 2.00973523 | W128: 0.70600554 | X128: 0.30012823 | Y128: 0.19896727 | Z128: 0.07728339 | AA128: 0.02311641 | AB128: 0.00553 | AC128: 0.019303 | AD128: 0 | AE128: 0
B129: Main line valve and scraper stations | H129: $m | I129: 0 | J129: 0 | K129: 0 | L129: 0 | M129: 0 | N129: 0.687031 | O129: 1.940245 | P129: 0.614376 | Q129: 1.286032 | R129: 0.05913409 | S129: 0.03776801 | T129: 3.81281403 | U129: 0.09972937 | V129: 0 | W129: 0 | X129: 0 | Y129: 0 | Z129: 0 | AA129: 0 | AB129: 0 | AC129: 0 | AD129: 0 | AE129: 0
B130: Compressor stations | H130: $m | I130: 0 | J130: 0 | K130: 0 | L130: 0 | M130: 0 | N130: 0 | O130: 2.900787 | P130: 4.705954 | Q130: 9.174634 | R130: 11.9551269 | S130: 4.39324821 | T130: 3.92813396 | U130: 0.666978975 | V130: 0.41128281 | W130: 0.20947615 | X130: 0.01737324 | Y130: 0.00709719 | Z130: 0.03312192 | AA130: 0.66431315 | AB130: 0.20149756 | AC130: 0.04473364 | AD130: 0.000662 | AE130: 0.00252609
B131: Receipt and delivery point facilities | H131: $m | I131: 0 | J131: 0 | K131: 0 | L131: 0 | M131: 0 | N131: 0 | O131: 0 | P131: 0 | Q131: 0.042049 | R131: 0.001425 | S131: 0 | T131: 0.0210087 | U131: 0.04836833498 | V131: 0.34246084 | W131: 0.42160467 | X131: 0.27888151 | Y131: 0.26791962 | Z131: 0.07108844 | AA131: 0.027055 | AB131: -0.0228684 | AC131: -0.00092974 | AD131: 0 | AE131: 0.00695839
B132: SCADA and communications | H132: $m | I132: 0 | J132: 0 | K132: 0 | L132: 0 | M132: 0 | N132: 0.305995 | O132: 1.700413 | P132: 1.576864 | Q132: 0.607338 | R132: 0.43022233 | S132: 0.87796736 | T132: 0.20585228 | U132: 1.62354332 | V132: 0.30784069 | W132: 1.37652283 | X132: 0.30472775 | Y132: 0.14931137 | Z132: 0.02286199 | AA132: 0.0050148 | AB132: 0.001043 | AC132: 0 | AD132: 0 | AE132: 0.005765
B133: Cathodic protection | H133: $m | I133: 0 | J133: 0 | K133: 0 | L133: 0 | M133: 0 | N133: 0 | O133: 0.235896 | P133: 0.255941 | Q133: 0.297853 | R133: 0.27575881 | S133: 0.2701697 | T133: 0.34922847 | U133: 0.02670588 | V133: 0 | W133: 0.0100767 | X133: 0 | Y133: 0 | Z133: 0 | AA133: 0 | AB133: 0 | AC133: 0 | AD133: 0 | AE133: 0
B134: Maintenance bases and depots | H134: $m | I134: 0 | J134: 0 | K134: 0 | L134: 0 | M134: 0 | N134: 0.37883 | O134: 0.923659 | P134: 0.802813 | Q134: 0.982528 | R134: 1.75368156 | S134: 1.33433487 | T134: 0.74489761 | U134: -0.15140863 | V134: 0.35165853 | W134: 0.19388344 | X134: 0.03512375 | Y134: -0.12388292 | Z134: 0 | AA134: 0 | AB134: 0 | AC134: 0 | AD134: 0 | AE134: 0.01321571
B135: Other depreciable assets | H135: $m | I135: 0 | J135: 0 | K135: 0 | L135: 0 | M135: 0 | N135: 0 | O135: 0 | P135: 0 | Q135: 0 | R135: 0 | S135: 0 | T135: 0 | U135: 0 | V135: 0 | W135: 0 | X135: 0 | Y135: 0.02414102 | Z135: 0.0535999 | AA135: 0.08550301 | AB135: 0.01464136 | AC135: 0.01161044 | AD135: 0.08081583 | AE135: 0.16515581
B136: Non-depreciable assets
H137: $m | I137: =SUM(I128:I136) -> 2.361156 | J137: =SUM(J128:J136) -> 1.605109 | K137: 2.937571 | L137: 3.113841 | M137: 27.413657 | N137: 66.19183 | O137: 76.018256 | P137: 65.836657 | Q137: 94.502971 | R137: 58.29512769 | S137: 22.74948443 | T137: 10.1130924 | U137: 18.43020651 | V137: 3.4229781 | W137: 2.91756933 | X137: 0.93623448 | Y137: 0.52355355 | Z137: 0.25795564 | AA137: 0.80500237 | AB137: 0.19984352 | AC137: 0.07471734 | AD137: 0.08147783 | AE137: 0.193621

Sheet Capacity and throughput
B2: ='Model inputs'!B2 -> GOLDFIELDS GAS PIPELINE | I2: 2015 | J2: 2015 | K2: 2015 | L2: 2015 | M2: 2016 | N2: 2016 | O2: 2016 | P2: 2016 | Q2: 2017 | R2: 2017 | S2: 2017 | T2: 2017 | U2: 2018 | V2: 2018 | W2: 2018 | X2: 2018 | Y2: 2019 | Z2: 2019 | AA2: 2019 | AB2: 2019
B3: Capacity and throughput (quarterly) | I3: Q1 | J3: Q2 | K3: Q3 | L3: Q4 | M3: Q1 | N3: Q2 | O3: Q3 | P3: Q4 | Q3: Q1 | R3: Q2 | S3: Q3 | T3: Q4 | U3: Q1 | V3: Q2 | W3: Q3 | X3: Q4 | Y3: Q1 | Z3: Q2 | AA3: Q3 | AB3: Q4
I4: 90 | J4: 91 | K4: 92 | L4: 92 | M4: 91 | N4: 91 | O4: 92 | P4: 92 | Q4: 90 | R4: 91 | S4: 92 | T4: 92 | U4: 90 | V4: 91 | W4: 92 | X4: 92 | Y4: 90 | Z4: 91 | AA4: 92 | AB4: 92
B7: Reserved capacity
H9: TJ/d
H10: TJ/d
H11: TJ/d
H12: TJ/d | J12: Commercially sensitive information pertaining to individual users of GGP
H13: TJ/d
H14: TJ/d
H15: TJ/d
H17: TJ/d
H18: TJ/d
H19: TJ/d
H20: TJ/d | J20: Commercially sensitive information pertaining to individual users of GGP
H21: TJ/d
H22: TJ/d
H23: TJ/d
H24: TJ/d
H26: TJ/d | I26: 94.62 | J26: 95.19 | K26: 94.97 | L26: 94.4 | M26: 105.3 | N26: 105.87 | O26: 105.37 | P26: 104.8 | Q26: 104.7 | R26: 105.27 | S26: 105.37 | T26: 104.8 | U26: 104.7 | V26: 105.27 | W26: 105.37 | X26: 104.8 | Y26: 104.7 | Z26: 105.27 | AA26: 105.37 | AB26: 104.8
B28: Throughput
H30: TJ/d
H31: TJ/d
H32: TJ/d
H33: TJ/d | J33: Commercially sensitive information pertaining to individual users of GGP
H34: TJ/d
H35: TJ/d
H36: TJ/d
H38: TJ/d
H39: TJ/d
H40: TJ/d
H41: TJ/d | J41: Commercially sensitive information pertaining to individual users of GGP
H42: TJ/d
H43: TJ/d
H44: TJ/d
H45: TJ/d
H47: TJ/d | I47: 75.67 | J47: 71.57 | K47: 69.44 | L47: 69.1 | M47: 77.82 | N47: 78.18 | O47: 78.24 | P47: 77.9 | Q47: 77.82 | R47: 78.18 | S47: 78.24 | T47: 77.9 | U47: 77.82 | V47: 78.18 | W47: 78.24 | X47: 77.9 | Y47: 77.82 | Z47: 78.18 | AA47: 78.24 | AB47: 77.9
B49: Load factor: pipeline | I49: =I47/I26 -> 0.7997252167 | J49: 0.7518646917 | K49: 0.7311782668 | L49: 0.7319915254 | M49: 0.739031339 | N49: 0.7384528195 | O49: 0.7425263358 | P49: 0.7433206107 | Q49: 0.7432664756 | R49: 0.742661727 | S49: 0.7425263358 | T49: 0.7433206107 | U49: 0.7432664756 | V49: 0.742661727 | W49: 0.7425263358 | X49: 0.7433206107 | Y49: 0.7432664756 | Z49: 0.742661727 | AA49: 0.7425263358 | AB49: 0.7433206107
B51: Capacity.distance | F51: Distance from receipt point
G53: km | H53: PJ km/d
G54: km | H54: PJ km/d
G55: km | H55: PJ km/d
G56: km | H56: PJ km/d | J56: Commercially sensitive information pertaining to individual users of GGP
G57: km | H57: PJ km/d
G58: km | H58: PJ km/d
G59: km | H59: PJ km/d
G61: km | H61: PJ km/d
G62: km | H62: PJ km/d
G63: km | H63: PJ km/d
G64: km | H64: PJ km/d | J64: Commercially sensitive information pertaining to individual users of GGP
G65: km | H65: PJ km/d
G66: km | H66: PJ km/d
G67: km | H67: PJ km/d
G68: km | H68: PJ km/d
H70: PJ km/d | I70: 100.5778594 | J70: 101.3570983 | K70: 96.6531861 | L70: 95.8803174 | M70: 108.3176262 | N70: 109.0968651 | O70: 108.7139181 | P70: 107.9410494 | Q70: 107.7990882 | R70: 108.5783271 | S70: 108.7139181 | T70: 107.9410494 | U70: 107.7990882 | V70: 108.5783271 | W70: 108.7139181 | X70: 107.9410494 | Y70: 107.7990882 | Z70: 108.5783271 | AA70: 108.7139181 | AB70: 107.9410494
B72: Throughput.distance | F72: Distance from receipt point
H74: PJ km/d
H75: PJ km/d
H76: PJ km/d
H77: PJ km/d | J77: Commercially sensitive information pertaining to individual users of GGP
H78: PJ km/d
H79: PJ km/d
H80: PJ km/d
H82: PJ km/d
H83: PJ km/d
H84: PJ km/d
H85: PJ km/d | J85: Commercially sensitive information pertaining to individual users of GGP
H86: PJ km/d
H87: PJ km/d
H88: PJ km/d
H89: PJ km/d
H91: PJ km/d | I91: 80.3807363 | J91: 74.7216013 | K91: 71.784457 | L91: 71.3234476 | M91: 81.2783908 | N91: 81.7665184 | O91: 81.847873 | P91: 81.3868636 | Q91: 81.2783908 | R91: 81.7665184 | S91: 81.847873 | T91: 81.3868636 | U91: 81.2783908 | V91: 81.7665184 | W91: 81.847873 | X91: 81.3868636 | Y91: 81.2783908 | Z91: 81.7665184 | AA91: 81.847873 | AB91: 81.3868636
B94: Reference tariff
B96: Toll charge | H96: $/GJ | I96: ='Tariff calculation'!I35 -> 0.2358058304 | J96: =I96 -> 0.2358058304 | K96: =J96 -> 0.2358058304 | L96: 0.2358058304 | M96: 0.2358058304 | N96: 0.2358058304 | O96: 0.2358058304 | P96: 0.2358058304 | Q96: 0.2358058304 | R96: 0.2358058304 | S96: 0.2358058304 | T96: 0.2358058304 | U96: 0.2358058304 | V96: 0.2358058304 | W96: 0.2358058304 | X96: 0.2358058304 | Y96: 0.2358058304 | Z96: 0.2358058304 | AA96: =Z96 -> 0.2358058304 | AB96: 0.2358058304
B97: Capacity reservation charge | H97: $/GJ km | I97: ='Tariff calculation'!I36 -> 0.001459001581 | J97: =I97 -> 0.001459001581 | K97: 0.001459001581 | L97: 0.001459001581 | M97: 0.001459001581 | N97: 0.001459001581 | O97: 0.001459001581 | P97: 0.001459001581 | Q97: 0.001459001581 | R97: 0.001459001581 | S97: 0.001459001581 | T97: 0.001459001581 | U97: 0.001459001581 | V97: 0.001459001581 | W97: 0.001459001581 | X97: 0.001459001581 | Y97: 0.001459001581 | Z97: 0.001459001581 | AA97: 0.001459001581 | AB97: 0.001459001581
B98: Throughput charge | H98: $/GJ km | I98: ='Tariff calculation'!I37 -> 0.0004424538133 | J98: 0.0004424538133 | K98: 0.0004424538133 | L98: 0.0004424538133 | M98: 0.0004424538133 | N98: 0.0004424538133 | O98: 0.0004424538133 | P98: 0.0004424538133 | Q98: 0.0004424538133 | R98: 0.0004424538133 | S98: 0.0004424538133 | T98: 0.0004424538133 | U98: 0.0004424538133 | V98: 0.0004424538133 | W98: 0.0004424538133 | X98: 0.0004424538133 | Y98: 0.0004424538133 | Z98: 0.0004424538133 | AA98: 0.0004424538133 | AB98: 0.0004424538133
B101: Forecast revenue
B103: Quarterly
B105: Revenue from toll charge | H105: $m | I105: =I4*I26*I96/1000 -> 2.008075291 | J105: 2.042618487 | K105: 2.060292134 | L105: 2.047926476 | M105: 2.259562209 | N105: 2.271793457 | O105: 2.285911153 | P105: 2.273545495 | Q105: 2.22199834 | R105: 2.258918459 | S105: 2.285911153 | T105: 2.273545495 | U105: 2.22199834 | V105: 2.258918459 | W105: 2.285911153 | X105: 2.273545495 | Y105: 2.22199834 | Z105: 2.258918459 | AA105: 2.285911153 | AB105: 2.273545495
B106: Revenue from capacity reservation carge | H106: $m | I106: =I4*I70*I97 -> 13.20689303 | J106: 13.45709517 | K106: 12.97357792 | L106: 12.86983719 | M106: 14.3812385 | N106: 14.48469738 | O106: 14.59246761 | P106: 14.48872688 | Q106: 14.15511361 | R106: 14.41585153 | S106: 14.59246761 | T106: 14.48872688 | U106: 14.15511361 | V106: 14.41585153 | W106: 14.59246761 | X106: 14.48872688 | Y106: 14.15511361 | Z106: 14.41585153 | AA106: 14.59246761 | AB106: 14.48872688
B107: Revenue from throughput charge | H107: $m | I107: =I4*I91*I98 -> 3.200828696 | J107: =J4*J91*J98 -> 3.008538026 | K107: 2.92204022 | L107: 2.903274486 | M107: 3.272535989 | N107: 3.292189616 | O107: 3.331679124 | P107: 3.31291339 | Q107: 3.236574055 | R107: 3.292189616 | S107: 3.331679124 | T107: 3.31291339 | U107: 3.236574055 | V107: 3.292189616 | W107: 3.331679124 | X107: 3.31291339 | Y107: 3.236574055 | Z107: 3.292189616 | AA107: 3.331679124 | AB107: 3.31291339
B109: Forecast revenue (quarterly) | H109: $m | I109: =SUM(I105:I108) -> 18.41579702 | J109: =SUM(J105:J108) -> 18.50825168 | K109: 17.95591028 | L109: 17.82103815 | M109: 19.9133367 | N109: 20.04868045 | O109: 20.21005789 | P109: 20.07518577 | Q109: 19.61368601 | R109: 19.96695961 | S109: 20.21005789 | T109: 20.07518577 | U109: 19.61368601 | V109: 19.96695961 | W109: 20.21005789 | X109: 20.07518577 | Y109: 19.61368601 | Z109: 19.96695961 | AA109: 20.21005789 | AB109: 20.07518577
B111: Annual
B113: Revenue from toll charge | H113: $m | L113: =SUM(I105:L105) -> 8.158912388 | P113: =SUM(M105:P105) -> 9.090812314 | T113: =SUM(Q105:T105) -> 9.040373447 | X113: =SUM(U105:X105) -> 9.040373447 | AB113: =SUM(Y105:AB105) -> 9.040373447
B114: Revenue from capacity reservation carge | H114: $m | L114: 52.50740332 | P114: 57.94713038 | T114: 57.65215964 | X114: 57.65215964 | AB114: 57.65215964
B115: Revenue from throughput charge | H115: $m | L115: 12.03468143 | P115: 13.20931812 | T115: 13.17335618 | X115: 13.17335618 | AB115: 13.17335618
B117: Forecast revenue (annual) | H117: $m | L117: =SUM(I109:L109) -> 72.70099713 | P117: =SUM(M109:P109) -> 80.24726081 | T117: =SUM(Q109:T109) -> 79.86588927 | X117: =SUM(U109:X109) -> 79.86588927 | AB117: =SUM(Y109:AB109) -> 79.86588927

Sheet Post-tax total revenue
B2: GOLDFIELDS GAS PIPELINE | N2: 2015 | O2: =N2+1 -> 2016 | P2: 2017 | Q2: 2018 | R2: 2019
B3: Nominal post-tax total revenue
B7: Capital base | H7: $m | N7: ='Capital base 2010-2019'!N19 -> 396.5521229 | O7: ='Capital base 2010-2019'!O19 -> 392.9876111 | P7: ='Capital base 2010-2019'!P19 -> 386.5096955 | Q7: ='Capital base 2010-2019'!Q19 -> 377.0312435 | R7: ='Capital base 2010-2019'!R19 -> 366.8431841
B8: CAPEX | H8: $m | N8: ='Capital base 2010-2019'!N33 -> 6.784256337 | O8: ='Capital base 2010-2019'!O33 -> 4.23840828 | P8: ='Capital base 2010-2019'!P33 -> 1.427975644 | Q8: ='Capital base 2010-2019'!Q33 -> 0.8030055156 | R8: ='Capital base 2010-2019'!R33 -> 0.7434424638
B10: Rate of return on equity | N10: ='Model inputs'!$F$81 -> 0.12277 | O10: ='Model inputs'!$F$81 -> 0.12277 | P10: ='Model inputs'!$F$81 -> 0.12277 | Q10: ='Model inputs'!$F$81 -> 0.12277 | R10: ='Model inputs'!$F$81 -> 0.12277
B11: Rate of return on debt | N11: ='Model inputs'!$F$82 -> 0.0789 | O11: ='Model inputs'!$F$82 -> 0.0789 | P11: ='Model inputs'!$F$82 -> 0.0789 | Q11: ='Model inputs'!$F$82 -> 0.0789 | R11: ='Model inputs'!$F$82 -> 0.0789
B12: Gearing | N12: ='Model inputs'!$F$84 -> 0.6 | O12: ='Model inputs'!$F$84 -> 0.6 | P12: ='Model inputs'!$F$84 -> 0.6 | Q12: ='Model inputs'!$F$84 -> 0.6 | R12: ='Model inputs'!$F$84 -> 0.6
B14: Corporate tax rate | N14: ='Model inputs'!F90 -> 0.3 | O14: =N14 -> 0.3 | P14: =O14 -> 0.3 | Q14: 0.3 | R14: 0.3
B15: Value attributed to franking credits | N15: ='Model inputs'!F91 -> 0.25 | O15: =N15 -> 0.25 | P15: =O15 -> 0.25 | Q15: 0.25 | R15: 0.25
B17: Return on equity | H17: $m | N17: =N7*N10*(1-N12) -> 19.47388165 | O17: =O7*O10*(1-O12) -> 19.29883561 | P17: 18.98071813 | Q17: 18.5152503 | R17: 18.01493508
B18: Return on debt | H18: $m | N18: =N7*N11*N12 -> 18.7727775 | O18: =O7*O11*O12 -> 18.60403351 | P18: 18.29736898 | Q18: 17.84865907 | R18: 17.36635633
B19: Depreciation | H19: $m | N19: ='Capital base 2010-2019'!N46 -> 10.34876809 | O19: ='Capital base 2010-2019'!O46 -> 10.71632392 | P19: ='Capital base 2010-2019'!P46 -> 10.90642766 | Q19: ='Capital base 2010-2019'!Q46 -> 10.99106491 | R19: ='Capital base 2010-2019'!R46 -> 11.00308101
B20: Over-depreciation prior period | H20: $m | N20: ='CAPEX 2010-2019 roll forward'!N96 -> -3.211205316
B21: Operating expenditure | H21: $m | N21: ='Model inputs'!BB103 -> 25.27741564 | O21: ='Model inputs'!BC103 -> 25.41325912 | P21: ='Model inputs'!BD103 -> 26.16785387 | Q21: ='Model inputs'!BE103 -> 26.89704636 | R21: ='Model inputs'!BF103 -> 28.26337208
B22: Cost of tax | H22: $m | N22: 0.5913366063 | O22: 3.677055743 | P22: 9.993614558 | Q22: 10.132274 | R22: 10.02968282
B23: Value of imputation credits | H23: $m | N23: =-N15*N22 -> -0.1478341516 | O23: -0.9192639358 | P23: -2.49840364 | Q23: -2.533068499 | R23: -2.507420705
B25: Total revenue | H25: $m | N25: =SUM(N17:N24) -> 71.10514002 | O25: =SUM(O17:O24) -> 76.79024396 | P25: 81.84757955 | Q25: 81.85122614 | R25: 82.17000663
B27: Tax depreciation | H27: $m | N27: ='Consolidated tax asset base'!N44 -> 25.08382486 | O27: ='Consolidated tax asset base'!O44 -> 20.51609886 | P27: ='Consolidated tax asset base'!P44 -> 4.070308173 | Q27: ='Consolidated tax asset base'!Q44 -> 3.331274054 | R27: ='Consolidated tax asset base'!R44 -> 3.108002146
B28: Return on debt | H28: $m | N28: =N18 -> 18.7727775 | O28: 18.60403351 | P28: 18.29736898 | Q28: 17.84865907 | R28: 17.36635633
B29: Operating cost | H29: $m | N29: =N21 -> 25.27741564 | O29: =O21 -> 25.41325912 | P29: 26.16785387 | Q29: 26.89704636 | R29: 28.26337208
B31: Tax expenses | H31: $m | N31: =SUM(N27:N30) -> 69.134018 | O31: =SUM(O27:O30) -> 64.53339148 | P31: 48.53553103 | Q31: 48.07697948 | R31: 48.73773057
B33: Tax loss brought forward | H33: $m | N33: ='Model inputs'!F93 -> 0 | O33: =N35 -> 0 | P33: 0 | Q33: 0 | R33: 0
B34: Taxable income | H34: $m | N34: =N25-N31 -> 1.971122021 | O34: =O25-O31 -> 12.25685248 | P34: 33.31204853 | Q34: 33.77424666 | R34: 33.43227607
B35: Tax loss carried forward | H35: $m | N35: =IF(N33+N34<0,N33+N34,0) -> 0 | O35: =IF(O33+O34<0,O33+O34,0) -> 0 | P35: 0 | Q35: 0 | R35: 0
B36: Tax payable | H36: $m | N36: =IF(N35<0,0,N14*(N33+N34)) -> 0.5913366063 | O36: =IF(O35<0,0,O14*(O33+O34)) -> 3.677055743 | P36: 9.993614558 | Q36: 10.132274 | R36: 10.02968282
B37: Tax payable difference (set to zero with "Solve for tax payable") | H37: $m | M37: =IF(ROUND(SUM(N37:R37),8)=0,0,"RECALCULATE TAX") -> 0 | N37: =N22-N36 -> 0 | O37: =O22-O36 -> 3.552713679e-15 | P37: 0 | Q37: 0 | R37: 0
B39: Repayment of debt | H39: $m | N39: =(N7-O7)*N12 -> 2.138707053 | O39: =(O7-P7)*O12 -> 3.886749383 | P39: 5.687071207 | Q39: 6.112835636 | R39: =R7*R12 -> 220.1059105
B40: Pre-tax cash flow to debt | H40: $m | M40: =-N7*N12 -> -237.9312737 | N40: =N18+N39 -> 20.91148455 | O40: =O18+O39 -> 22.49078289 | P40: 23.98444019 | Q40: 23.9614947 | R40: 237.4722668
B41: Rate of return on debt | K41: =IF(ROUND(L41-M41,9)=0,"OK","ERROR") -> OK | L41: =IRR(M40:R40,0.1) -> 0.0789 | M41: ='Model inputs'!F82 -> 0.0789
B43: Pre-tax cash flow to equity | H43: $m | N43: =N25-N8-N20-N21-N40 -> 21.34318881 | O43: =O25-O8-O20-O21-O40 -> 24.64779367 | P43: 30.26730985 | Q43: 30.18967956 | R43: =(R25-R8-R20-R21)+(R7+R8-R19)-R40 -> 172.2744708
B44: Post-tax cash flow to equity | H44: $m | N44: =N43-N22 -> 20.7518522 | O44: 20.97073793 | P44: 20.27369529 | Q44: 20.05740556 | R44: 162.244788
B45: Post-tax cash flow to equity + imputation credits | H45: $m | M45: =-N7*(1-N12) -> -158.6208492 | N45: 20.89968635 | O45: 21.89000186 | P45: 22.77209893 | Q45: 22.59047406 | R45: 164.7522087
B46: Rate of return on equity | K46: =IF(ROUND(L46-M46,9)=0,"OK","ERROR") -> OK | L46: =IRR(M45:R45,0.1) -> 0.12277 | M46: ='Model inputs'!F81 -> 0.12277

Sheet Tariff calculation
B2: ='Model inputs'!B2 -> GOLDFIELDS GAS PIPELINE | I2: ='Model inputs'!BB2 -> 2015 | J2: ='Model inputs'!BC2 -> 2016 | K2: ='Model inputs'!BD2 -> 2017 | L2: ='Model inputs'!BE2 -> 2018 | M2: ='Model inputs'!BF2 -> 2019
B3: Tariff calculation
B7: Post-tax total revenue
B9: Return on equity | H9: $m | I9: ='Post-tax total revenue'!N17 -> 19.47388165 | J9: ='Post-tax total revenue'!O17 -> 19.29883561 | K9: ='Post-tax total revenue'!P17 -> 18.98071813 | L9: ='Post-tax total revenue'!Q17 -> 18.5152503 | M9: ='Post-tax total revenue'!R17 -> 18.01493508
B10: Return on debt | H10: $m | I10: ='Post-tax total revenue'!N18 -> 18.7727775 | J10: ='Post-tax total revenue'!O18 -> 18.60403351 | K10: ='Post-tax total revenue'!P18 -> 18.29736898 | L10: ='Post-tax total revenue'!Q18 -> 17.84865907 | M10: ='Post-tax total revenue'!R18 -> 17.36635633
B11: Depreciation | H11: $m | I11: ='Post-tax total revenue'!N19 -> 10.34876809 | J11: ='Post-tax total revenue'!O19 -> 10.71632392 | K11: ='Post-tax total revenue'!P19 -> 10.90642766 | L11: ='Post-tax total revenue'!Q19 -> 10.99106491 | M11: ='Post-tax total revenue'!R19 -> 11.00308101
B12: Over-depreciation prior period | H12: $m | I12: ='Post-tax total revenue'!N20 -> -3.211205316 | J12: ='Post-tax total revenue'!O20 -> 0 | K12: ='Post-tax total revenue'!P20 -> 0 | L12: ='Post-tax total revenue'!Q20 -> 0 | M12: ='Post-tax total revenue'!R20 -> 0
B13: Expenditure | H13: $m | I13: ='Post-tax total revenue'!N21 -> 25.27741564 | J13: ='Post-tax total revenue'!O21 -> 25.41325912 | K13: ='Post-tax total revenue'!P21 -> 26.16785387 | L13: ='Post-tax total revenue'!Q21 -> 26.89704636 | M13: ='Post-tax total revenue'!R21 -> 28.26337208
B14: Cost of tax | H14: $m | I14: ='Post-tax total revenue'!N22 -> 0.5913366063 | J14: ='Post-tax total revenue'!O22 -> 3.677055743 | K14: ='Post-tax total revenue'!P22 -> 9.993614558 | L14: ='Post-tax total revenue'!Q22 -> 10.132274 | M14: ='Post-tax total revenue'!R22 -> 10.02968282
B15: Value of imputation credits | H15: $m | I15: ='Post-tax total revenue'!N23 -> -0.1478341516 | J15: ='Post-tax total revenue'!O23 -> -0.9192639358 | K15: ='Post-tax total revenue'!P23 -> -2.49840364 | L15: ='Post-tax total revenue'!Q23 -> -2.533068499 | M15: ='Post-tax total revenue'!R23 -> -2.507420705
H17: $m | I17: =SUM(I9:I16) -> 71.10514002 | J17: =SUM(J9:J16) -> 76.79024396 | K17: 81.84757955 | L17: 81.85122614 | M17: 82.17000663
B19: Forecast revenue from reference services
B21: Toll charge | H21: $m | I21: ='Capacity and throughput'!L113 -> 8.158912388 | J21: ='Capacity and throughput'!P113 -> 9.090812314 | K21: ='Capacity and throughput'!T113 -> 9.040373447 | L21: ='Capacity and throughput'!X113 -> 9.040373447 | M21: ='Capacity and throughput'!AB113 -> 9.040373447
B22: Capacity reservation charge | H22: $m | I22: ='Capacity and throughput'!L114 -> 52.50740332 | J22: ='Capacity and throughput'!P114 -> 57.94713038 | K22: ='Capacity and throughput'!T114 -> 57.65215964 | L22: ='Capacity and throughput'!X114 -> 57.65215964 | M22: ='Capacity and throughput'!AB114 -> 57.65215964
B23: Throughput charge | H23: $m | I23: ='Capacity and throughput'!L115 -> 12.03468143 | J23: ='Capacity and throughput'!P115 -> 13.20931812 | K23: ='Capacity and throughput'!T115 -> 13.17335618 | L23: ='Capacity and throughput'!X115 -> 13.17335618 | M23: ='Capacity and throughput'!AB115 -> 13.17335618
H25: $m | I25: =SUM(I21:I24) -> 72.70099713 | J25: =SUM(J21:J24) -> 80.24726081 | K25: 79.86588927 | L25: 79.86588927 | M25: 79.86588927
B27: Allocation of Cost of Service to reference tariff
B29: Toll charge | I29: ='Model inputs'!$F$107 -> 0.113 | J29: ='Model inputs'!$F$107 -> 0.113 | K29: ='Model inputs'!$F$107 -> 0.113 | L29: ='Model inputs'!$F$107 -> 0.113 | M29: ='Model inputs'!$F$107 -> 0.113
B30: Reservation charge | I30: ='Model inputs'!$F$108 -> 0.722 | J30: ='Model inputs'!$F$108 -> 0.722 | K30: ='Model inputs'!$F$108 -> 0.722 | L30: ='Model inputs'!$F$108 -> 0.722 | M30: ='Model inputs'!$F$108 -> 0.722
B31: Throughput charge | I31: =1-I29-I30 -> 0.165 | J31: =1-J29-J30 -> 0.165 | K31: 0.165 | L31: 0.165 | M31: 0.165
B33: Reference tariff setting 2015 - 2019
B35: Toll charge | H35: $/GJ | I35: 0.2358058304 | J35: =I35 -> 0.2358058304 | K35: =J35 -> 0.2358058304 | L35: =K35 -> 0.2358058304 | M35: =L35 -> 0.2358058304
B36: Capacity reservation charge | H36: $/GJ km | I36: 0.001459001581 | J36: =I36 -> 0.001459001581 | K36: 0.001459001581 | L36: 0.001459001581 | M36: 0.001459001581
B37: Throughput charge | H37: $/GJ km | I37: 0.0004424538133 | J37: 0.0004424538133 | K37: 0.0004424538133 | L37: 0.0004424538133 | M37: 0.0004424538133
B39: Nominal vanilla WACC | G39: ='Model inputs'!F86 -> 0.096448
B40: PV(Total revenue allocated to reference service) | H40: $m | I40: =NPV(G39,I17:M17) -> 299.3045339
B42: Allocation of PV(Total revenue) to toll charge | H42: $m | I42: =I29*I40 -> 33.82141233
B43: PV(Revenue from toll charge) | H43: $m | I43: =NPV(G39,I21:M21) -> 33.82141233
B44: Difference | H44: $m | I44: =I42-I43 -> 0
B46: Allocation of PV(cost) to reservation charge | H46: $m | I46: =I30*I40 -> 216.0978735
B47: PV(revenue from capacity reservation charge) | H47: $m | I47: =NPV(G39,I22:M22) -> 216.0978735
B48: Difference | H48: $m | I48: =I46-I47 -> 0
B50: Allocation of PV(cost) to throughput charge | H50: $m | I50: =I31*I40 -> 49.38524809
B51: PV(revenue from throughput charge) | H51: $m | I51: =NPV(G39,I23:M23) -> 49.38524809
B52: Difference | H52: $m | I52: =I50-I51 -> 0
B54: Tariff calculation check (set to zero with "Reset reference tariff ") | G54: =IF(ROUND(I54,6)=0,"OK","RESET") -> OK | I54: =I44+I48+I52 -> 0

Sheet ICB roll forward
B2: ='Model inputs'!B2 -> GOLDFIELDS GAS PIPELINE | I2: ='Model inputs'!I2 -> 2000 | J2: ='Model inputs'!J2 -> 2000 | K2: ='Model inputs'!K2 -> 2000 | L2: ='Model inputs'!L2 -> 2000 | M2: ='Model inputs'!M2 -> 2001 | N2: ='Model inputs'!N2 -> 2001 | O2: ='Model inputs'!O2 -> 2001 | P2: ='Model inputs'!P2 -> 2001 | Q2: ='Model inputs'!Q2 -> 2002 | R2: ='Model inputs'!R2 -> 2002 | S2: ='Model inputs'!S2 -> 2002 | T2: ='Model inputs'!T2 -> 2002 | U2: ='Model inputs'!U2 -> 2003 | V2: ='Model inputs'!V2 -> 2003 | W2: ='Model inputs'!W2 -> 2003 | X2: ='Model inputs'!X2 -> 2003 | Y2: ='Model inputs'!Y2 -> 2004 | Z2: ='Model inputs'!Z2 -> 2004 | AA2: ='Model inputs'!AA2 -> 2004 | AB2: ='Model inputs'!AB2 -> 2004 | AC2: ='Model inputs'!AC2 -> 2005 | AD2: ='Model inputs'!AD2 -> 2005 | AE2: ='Model inputs'!AE2 -> 2005 | AF2: ='Model inputs'!AF2 -> 2005 | AG2: ='Model inputs'!AG2 -> 2006 | AH2: ='Model inputs'!AH2 -> 2006 | AI2: ='Model inputs'!AI2 -> 2006 | AJ2: ='Model inputs'!AJ2 -> 2006 | AK2: ='Model inputs'!AK2 -> 2007 | AL2: ='Model inputs'!AL2 -> 2007 | AM2: ='Model inputs'!AM2 -> 2007 | AN2: ='Model inputs'!AN2 -> 2007 | AO2: ='Model inputs'!AO2 -> 2008 | AP2: ='Model inputs'!AP2 -> 2008 | AQ2: ='Model inputs'!AQ2 -> 2008 | AR2: ='Model inputs'!AR2 -> 2008 | AS2: ='Model inputs'!AS2 -> 2009 | AT2: ='Model inputs'!AT2 -> 2009 | AU2: ='Model inputs'!AU2 -> 2009 | AV2: ='Model inputs'!AV2 -> 2009 | AW2: ='Model inputs'!AW2 -> 2010 | AX2: ='Model inputs'!AX2 -> 2011 | AY2: ='Model inputs'!AY2 -> 2012 | AZ2: ='Model inputs'!AZ2 -> 2013 | BA2: ='Model inputs'!BA2 -> 2014 | BB2: ='Model inputs'!BB2 -> 2015 | BC2: ='Model inputs'!BC2 -> 2016 | BD2: ='Model inputs'!BD2 -> 2017 | BE2: ='Model inputs'!BE2 -> 2018 | BF2: ='Model inputs'!BF2 -> 2019 | BG2: =BF2+1 -> 2020 | BH2: =BG2+1 -> 2021 | BI2: 2022 | BJ2: 2023 | BK2: 2024 | BL2: 2025 | BM2: 2026 | BN2: 2027 | BO2: 2028 | BP2: 2029 | BQ2: 2030 | BR2: 2031 | BS2: 2032 | BT2: 2033 | BU2: 2034 | BV2: 2035 | BW2: 2036 | BX2: 2037 | BY2: 2038 | BZ2: 2039 | CA2: 2040 | CB2: 2041 | CC2: 2042 | CD2: 2043 | CE2: 2044 | CF2: 2045 | CG2: 2046 | CH2: 2047 | CI2: 2048 | CJ2: 2049 | CK2: 2050 | CL2: 2051 | CM2: 2052 | CN2: 2053 | CO2: 2054 | CP2: 2055 | CQ2: 2056 | CR2: 2057 | CS2: 2058 | CT2: 2059 | CU2: 2060 | CV2: 2061 | CW2: 2062 | CX2: 2063 | CY2: 2064 | CZ2: 2065 | DA2: 2066 | DB2: 2067 | DC2: 2068 | DD2: 2069 | DE2: 2070 | DF2: 2071 | DG2: 2072 | DH2: 2073 | DI2: 2074 | DJ2: 2075 | DK2: 2076 | DL2: 2077 | DM2: 2078 | DN2: 2079 | DO2: 2080 | DP2: 2081 | DQ2: 2082 | DR2: 2083 | DS2: 2084 | DT2: =DS2+1 -> 2085 | DU2: 2086 | DV2: 2087 | DW2: 2088 | DX2: 2089 | DY2: 2090 | DZ2: 2091 | EA2: 2092 | EB2: 2093 | EC2: 2094 | ED2: 2095 | EE2: 2096 | EF2: 2097 | EG2: 2098 | EH2: 2099 | EI2: 2100 | EJ2: 2101 | EK2: 2102 | EL2: 2103 | EM2: 2104 | EN2: 2105 | EO2: 2106 | EP2: 2107 | EQ2: 2108 | ER2: 2109 | ES2: 2110
B3: Initial capital base roll forward | I3: ='Model inputs'!I3 -> Q1 | J3: ='Model inputs'!J3 -> Q2 | K3: ='Model inputs'!K3 -> Q3 | L3: ='Model inputs'!L3 -> Q4 | M3: ='Model inputs'!M3 -> Q1 | N3: ='Model inputs'!N3 -> Q2 | O3: ='Model inputs'!O3 -> Q3 | P3: ='Model inputs'!P3 -> Q4 | Q3: ='Model inputs'!Q3 -> Q1 | R3: ='Model inputs'!R3 -> Q2 | S3: ='Model inputs'!S3 -> Q3 | T3: ='Model inputs'!T3 -> Q4 | U3: ='Model inputs'!U3 -> Q1 | V3: ='Model inputs'!V3 -> Q2 | W3: ='Model inputs'!W3 -> Q3 | X3: ='Model inputs'!X3 -> Q4 | Y3: ='Model inputs'!Y3 -> Q1 | Z3: ='Model inputs'!Z3 -> Q2 | AA3: ='Model inputs'!AA3 -> Q3 | AB3: ='Model inputs'!AB3 -> Q4 | AC3: ='Model inputs'!AC3 -> Q1 | AD3: ='Model inputs'!AD3 -> Q2 | AE3: ='Model inputs'!AE3 -> Q3 | AF3: ='Model inputs'!AF3 -> Q4 | AG3: ='Model inputs'!AG3 -> Q1 | AH3: ='Model inputs'!AH3 -> Q2 | AI3: ='Model inputs'!AI3 -> Q3 | AJ3: ='Model inputs'!AJ3 -> Q4 | AK3: ='Model inputs'!AK3 -> Q1 | AL3: ='Model inputs'!AL3 -> Q2 | AM3: ='Model inputs'!AM3 -> Q3 | AN3: ='Model inputs'!AN3 -> Q4 | AO3: ='Model inputs'!AO3 -> Q1 | AP3: ='Model inputs'!AP3 -> Q2 | AQ3: ='Model inputs'!AQ3 -> Q3 | AR3: ='Model inputs'!AR3 -> Q4 | AS3: ='Model inputs'!AS3 -> Q1 | AT3: ='Model inputs'!AT3 -> Q2 | AU3: ='Model inputs'!AU3 -> Q3 | AV3: ='Model inputs'!AV3 -> Q4
B7: Initial capital base (beginning of period)
B9: ='Model inputs'!B9 -> Pipeline and laterals | H9: $m | I9: ='Model inputs'!I21 -> 438.6555358 | J9: =I36 -> 436.9553205 | K9: 435.2551053 | L9: 433.55489 | M9: 431.8546748 | N9: 430.1544595 | O9: 428.4542443 | P9: 426.754029 | Q9: 425.0538137 | R9: 423.3535985 | S9: 421.6533832 | T9: 419.953168 | U9: 418.2529527 | V9: 416.5527375 | W9: 414.8525222 | X9: 413.152307 | Y9: 411.4520917 | Z9: 409.7518765 | AA9: 408.0516612 | AB9: 406.3514459 | AC9: 404.6512307 | AD9: 402.9510154 | AE9: 401.2508002 | AF9: 399.5505849 | AG9: 397.8503697 | AH9: 396.1501544 | AI9: 394.4499392 | AJ9: 392.7497239 | AK9: 391.0495086 | AL9: 389.3492934 | AM9: 387.6490781 | AN9: 385.9488629 | AO9: 384.2486476 | AP9: =AO36 -> 382.5484324 | AQ9: 380.8482171 | AR9: 379.1480019 | AS9: 377.4477866 | AT9: 375.7475714 | AU9: 374.0473561 | AV9: 372.3471408 | AW9: 370.6469256 | AX9: 363.8460646 | AY9: 357.0452035 | AZ9: 350.2443425 | BA9: 343.4434815 | BB9: 336.6426205 | BC9: 329.8417595 | BD9: 323.0408984 | BE9: 316.2400374 | BF9: 309.4391764 | BG9: 302.6383154 | BH9: 295.8374544 | BI9: 289.0365933 | BJ9: 282.2357323 | BK9: 275.4348713 | BL9: 268.6340103 | BM9: 261.8331493 | BN9: 255.0322882 | BO9: 248.2314272 | BP9: 241.4305662 | BQ9: 234.6297052 | BR9: 227.8288442 | BS9: 221.0279831 | BT9: 214.2271221 | BU9: 207.4262611 | BV9: =BU36 -> 200.6254001 | BW9: 193.8245391 | BX9: 187.023678 | BY9: 180.222817 | BZ9: 173.421956 | CA9: 166.621095 | CB9: 159.820234 | CC9: 153.0193729 | CD9: 146.2185119 | CE9: 139.4176509 | CF9: 132.6167899 | CG9: 125.8159289 | CH9: 119.0150678 | CI9: 112.2142068 | CJ9: 105.4133458 | CK9: 98.61248479 | CL9: 91.81162377 | CM9: 85.01076275 | CN9: 78.20990173 | CO9: 71.40904071 | CP9: 64.60817969 | CQ9: 57.80731867 | CR9: 51.00645765 | CS9: 44.20559663 | CT9: 37.40473561 | CU9: 30.60387459 | CV9: 23.80301357 | CW9: 17.00215255 | CX9: 10.20129153 | CY9: 3.40043051 | CZ9: -6.048495038e-13 | DA9: -6.048495038e-13 | DB9: =DA36 -> -6.048495038e-13 | DC9: -6.048495038e-13 | DD9: -6.048495038e-13 | DE9: -6.048495038e-13 | DF9: -6.048495038e-13 | DG9: -6.048495038e-13 | DH9: -6.048495038e-13 | DI9: -6.048495038e-13 | DJ9: -6.048495038e-13 | DK9: -6.048495038e-13 | DL9: -6.048495038e-13 | DM9: -6.048495038e-13 | DN9: -6.048495038e-13 | DO9: -6.048495038e-13 | DP9: -6.048495038e-13 | DQ9: -6.048495038e-13 | DR9: -6.048495038e-13 | DS9: -6.048495038e-13 | DT9: -6.048495038e-13 | DU9: -6.048495038e-13 | DV9: -6.048495038e-13 | DW9: -6.048495038e-13 | DX9: -6.048495038e-13 | DY9: -6.048495038e-13 | DZ9: -6.048495038e-13 | EA9: -6.048495038e-13 | EB9: -6.048495038e-13 | EC9: -6.048495038e-13 | ED9: -6.048495038e-13 | EE9: =ED36 -> -6.048495038e-13 | EF9: =EE36 -> -6.048495038e-13 | EG9: =EF36 -> -6.048495038e-13 | EH9: =EG36 -> -6.048495038e-13 | EI9: =EH36 -> -6.048495038e-13 | EJ9: =EI36 -> -6.048495038e-13 | EK9: =EJ36 -> -6.048495038e-13 | EL9: =EK36 -> -6.048495038e-13 | EM9: =EL36 -> -6.048495038e-13 | EN9: =EM36 -> -6.048495038e-13 | EO9: =EN36 -> -6.048495038e-13 | EP9: =EO36 -> -6.048495038e-13 | EQ9: =EP36 -> -6.048495038e-13 | ER9: =EQ36 -> -6.048495038e-13 | ES9: =ER36 -> -6.048495038e-13
B10: ='Model inputs'!B10 -> Main line valve and scraper stations | H10: $m | I10: ='Model inputs'!I22 -> 9.177771758 | J10: =I37 -> 9.126211242 | K10: 9.074650727 | L10: 9.023090211 | M10: 8.971529696 | N10: 8.91996918 | O10: 8.868408665 | P10: 8.816848149 | Q10: 8.765287634 | R10: 8.713727118 | S10: 8.662166603 | T10: 8.610606087 | U10: 8.559045572 | V10: 8.507485056 | W10: 8.455924541 | X10: 8.404364025 | Y10: 8.35280351 | Z10: 8.301242994 | AA10: 8.249682479 | AB10: 8.198121963 | AC10: 8.146561448 | AD10: 8.095000932 | AE10: 8.043440417 | AF10: 7.991879901 | AG10: 7.940319386 | AH10: 7.88875887 | AI10: 7.837198355 | AJ10: 7.785637839 | AK10: 7.734077324 | AL10: 7.682516808 | AM10: 7.630956293 | AN10: 7.579395777 | AO10: 7.527835262 | AP10: =AO37 -> 7.476274746 | AQ10: 7.424714231 | AR10: 7.373153715 | AS10: 7.3215932 | AT10: 7.270032684 | AU10: 7.218472169 | AV10: 7.166911653 | AW10: 7.115351138 | AX10: 6.909109076 | AY10: 6.702867014 | AZ10: 6.496624952 | BA10: 6.29038289 | BB10: 6.084140828 | BC10: 5.877898766 | BD10: 5.671656704 | BE10: 5.465414642 | BF10: 5.25917258 | BG10: 5.052930518 | BH10: 4.846688456 | BI10: 4.640446394 | BJ10: 4.434204332 | BK10: 4.22796227 | BL10: 4.021720208 | BM10: 3.815478146 | BN10: 3.609236084 | BO10: 3.402994022 | BP10: 3.196751961 | BQ10: 2.990509899 | BR10: 2.784267837 | BS10: 2.578025775 | BT10: 2.371783713 | BU10: 2.165541651 | BV10: =BU37 -> 1.959299589 | BW10: 1.753057527 | BX10: 1.546815465 | BY10: 1.340573403 | BZ10: 1.134331341 | CA10: 0.9280892789 | CB10: 0.7218472169 | CC10: 0.5156051549 | CD10: 0.309363093 | CE10: 0.103121031 | CF10: -8.326672685e-15 | CG10: -8.326672685e-15 | CH10: -8.326672685e-15 | CI10: -8.326672685e-15 | CJ10: -8.326672685e-15 | CK10: -8.326672685e-15 | CL10: -8.326672685e-15 | CM10: -8.326672685e-15 | CN10: -8.326672685e-15 | CO10: -8.326672685e-15 | CP10: -8.326672685e-15 | CQ10: -8.326672685e-15 | CR10: -8.326672685e-15 | CS10: -8.326672685e-15 | CT10: -8.326672685e-15 | CU10: -8.326672685e-15 | CV10: -8.326672685e-15 | CW10: -8.326672685e-15 | CX10: -8.326672685e-15 | CY10: -8.326672685e-15 | CZ10: -8.326672685e-15 | DA10: -8.326672685e-15 | DB10: =DA37 -> -8.326672685e-15 | DC10: -8.326672685e-15 | DD10: -8.326672685e-15 | DE10: -8.326672685e-15 | DF10: -8.326672685e-15 | DG10: -8.326672685e-15 | DH10: -8.326672685e-15 | DI10: -8.326672685e-15 | DJ10: -8.326672685e-15 | DK10: -8.326672685e-15 | DL10: -8.326672685e-15 | DM10: -8.326672685e-15 | DN10: -8.326672685e-15 | DO10: -8.326672685e-15 | DP10: -8.326672685e-15 | DQ10: -8.326672685e-15 | DR10: -8.326672685e-15 | DS10: -8.326672685e-15 | DT10: -8.326672685e-15 | DU10: -8.326672685e-15 | DV10: -8.326672685e-15 | DW10: -8.326672685e-15 | DX10: -8.326672685e-15 | DY10: -8.326672685e-15 | DZ10: -8.326672685e-15 | EA10: -8.326672685e-15 | EB10: -8.326672685e-15 | EC10: -8.326672685e-15 | ED10: -8.326672685e-15 | EE10: -8.326672685e-15 | EF10: -8.326672685e-15 | EG10: -8.326672685e-15 | EH10: -8.326672685e-15 | EI10: -8.326672685e-15 | EJ10: -8.326672685e-15 | EK10: -8.326672685e-15 | EL10: -8.326672685e-15 | EM10: -8.326672685e-15 | EN10: -8.326672685e-15 | EO10: -8.326672685e-15 | EP10: -8.326672685e-15 | EQ10: -8.326672685e-15 | ER10: -8.326672685e-15 | ES10: -8.326672685e-15
B11: ='Model inputs'!B11 -> Compressor stations | H11: $m | I11: ='Model inputs'!I23 -> 41.57599489 | J11: =I38 -> 41.15175004 | K11: 40.72750519 | L11: 40.30326035 | M11: 39.8790155 | N11: 39.45477066 | O11: 39.03052581 | P11: 38.60628097 | Q11: 38.18203612 | R11: 37.75779127 | S11: 37.33354643 | T11: 36.90930158 | U11: 36.48505674 | V11: 36.06081189 | W11: 35.63656704 | X11: 35.2123222 | Y11: 34.78807735 | Z11: 34.36383251 | AA11: 33.93958766 | AB11: 33.51534282 | AC11: 33.09109797 | AD11: 32.66685312 | AE11: 32.24260828 | AF11: 31.81836343 | AG11: 31.39411859 | AH11: 30.96987374 | AI11: 30.5456289 | AJ11: 30.12138405 | AK11: 29.6971392 | AL11: 29.27289436 | AM11: 28.84864951 | AN11: 28.42440467 | AO11: 28.00015982 | AP11: =AO38 -> 27.57591498 | AQ11: 27.15167013 | AR11: 26.72742528 | AS11: 26.30318044 | AT11: 25.87893559 | AU11: 25.45469075 | AV11: 25.0304459 | AW11: 24.60620105 | AX11: 22.90922167 | AY11: 21.21224229 | AZ11: 19.51526291 | BA11: 17.81828352 | BB11: 16.12130414 | BC11: 14.42432476 | BD11: 12.72734537 | BE11: 11.03036599 | BF11: 9.333386607 | BG11: 7.636407224 | BH11: 5.939427841 | BI11: 4.242448458 | BJ11: 2.545469075 | BK11: 0.8484896915 | BL11: 1.398881011e-14 | BM11: 1.398881011e-14 | BN11: 1.398881011e-14 | BO11: 1.398881011e-14 | BP11: 1.398881011e-14 | BQ11: 1.398881011e-14 | BR11: 1.398881011e-14 | BS11: 1.398881011e-14 | BT11: 1.398881011e-14 | BU11: 1.398881011e-14 | BV11: =BU38 -> 1.398881011e-14 | BW11: 1.398881011e-14 | BX11: 1.398881011e-14 | BY11: 1.398881011e-14 | BZ11: 1.398881011e-14 | CA11: 1.398881011e-14 | CB11: 1.398881011e-14 | CC11: 1.398881011e-14 | CD11: 1.398881011e-14 | CE11: 1.398881011e-14 | CF11: 1.398881011e-14 | CG11: 1.398881011e-14 | CH11: 1.398881011e-14 | CI11: 1.398881011e-14 | CJ11: 1.398881011e-14 | CK11: 1.398881011e-14 | CL11: 1.398881011e-14 | CM11: 1.398881011e-14 | CN11: 1.398881011e-14 | CO11: 1.398881011e-14 | CP11: 1.398881011e-14 | CQ11: 1.398881011e-14 | CR11: 1.398881011e-14 | CS11: 1.398881011e-14 | CT11: 1.398881011e-14 | CU11: 1.398881011e-14 | CV11: 1.398881011e-14 | CW11: 1.398881011e-14 | CX11: 1.398881011e-14 | CY11: 1.398881011e-14 | CZ11: 1.398881011e-14 | DA11: 1.398881011e-14 | DB11: =DA38 -> 1.398881011e-14 | DC11: 1.398881011e-14 | DD11: 1.398881011e-14 | DE11: 1.398881011e-14 | DF11: 1.398881011e-14 | DG11: 1.398881011e-14 | DH11: 1.398881011e-14 | DI11: 1.398881011e-14 | DJ11: 1.398881011e-14 | DK11: 1.398881011e-14 | DL11: 1.398881011e-14 | DM11: 1.398881011e-14 | DN11: 1.398881011e-14 | DO11: 1.398881011e-14 | DP11: 1.398881011e-14 | DQ11: 1.398881011e-14 | DR11: 1.398881011e-14 | DS11: 1.398881011e-14 | DT11: 1.398881011e-14 | DU11: 1.398881011e-14 | DV11: 1.398881011e-14 | DW11: 1.398881011e-14 | DX11: 1.398881011e-14 | DY11: 1.398881011e-14 | DZ11: 1.398881011e-14 | EA11: 1.398881011e-14 | EB11: 1.398881011e-14 | EC11: 1.398881011e-14 | ED11: 1.398881011e-14 | EE11: 1.398881011e-14 | EF11: 1.398881011e-14 | EG11: 1.398881011e-14 | EH11: 1.398881011e-14 | EI11: 1.398881011e-14 | EJ11: 1.398881011e-14 | EK11: 1.398881011e-14 | EL11: 1.398881011e-14 | EM11: 1.398881011e-14 | EN11: 1.398881011e-14 | EO11: 1.398881011e-14 | EP11: 1.398881011e-14 | EQ11: 1.398881011e-14 | ER11: 1.398881011e-14 | ES11: 1.398881011e-14
B12: ='Model inputs'!B12 -> Receipt and delivery point facilities | H12: $m | I12: ='Model inputs'!I24 -> 1.534343975 | J12: =I39 -> 1.518687404 | K12: 1.503030833 | L12: 1.487374262 | M12: 1.47171769 | N12: 1.456061119 | O12: 1.440404548 | P12: 1.424747977 | Q12: 1.409091406 | R12: 1.393434835 | S12: 1.377778263 | T12: 1.362121692 | U12: 1.346465121 | V12: 1.33080855 | W12: 1.315151979 | X12: 1.299495408 | Y12: 1.283838836 | Z12: 1.268182265 | AA12: 1.252525694 | AB12: 1.236869123 | AC12: 1.221212552 | AD12: 1.20555598 | AE12: 1.189899409 | AF12: 1.174242838 | AG12: 1.158586267 | AH12: 1.142929696 | AI12: 1.127273125 | AJ12: 1.111616553 | AK12: 1.095959982 | AL12: 1.080303411 | AM12: 1.06464684 | AN12: 1.048990269 | AO12: 1.033333698 | AP12: =AO39 -> 1.017677126 | AQ12: 1.002020555 | AR12: 0.986363984 | AS12: 0.9707074128 | AT12: 0.9550508417 | AU12: 0.9393942705 | AV12: 0.9237376993 | AW12: 0.9080811281 | AX12: 0.8454548434 | AY12: 0.7828285587 | AZ12: 0.720202274 | BA12: 0.6575759893 | BB12: 0.5949497046 | BC12: 0.5323234199 | BD12: 0.4696971352 | BE12: 0.4070708505 | BF12: 0.3444445658 | BG12: 0.2818182811 | BH12: 0.2191919964 | BI12: 0.1565657117 | BJ12: 0.09393942705 | BK12: 0.03131314235 | BL12: 2.498001805e-16 | BM12: 2.498001805e-16 | BN12: 2.498001805e-16 | BO12: 2.498001805e-16 | BP12: 2.498001805e-16 | BQ12: 2.498001805e-16 | BR12: 2.498001805e-16 | BS12: 2.498001805e-16 | BT12: 2.498001805e-16 | BU12: 2.498001805e-16 | BV12: =BU39 -> 2.498001805e-16 | BW12: 2.498001805e-16 | BX12: 2.498001805e-16 | BY12: 2.498001805e-16 | BZ12: 2.498001805e-16 | CA12: 2.498001805e-16 | CB12: 2.498001805e-16 | CC12: 2.498001805e-16 | CD12: 2.498001805e-16 | CE12: 2.498001805e-16 | CF12: 2.498001805e-16 | CG12: 2.498001805e-16 | CH12: 2.498001805e-16 | CI12: 2.498001805e-16 | CJ12: 2.498001805e-16 | CK12: 2.498001805e-16 | CL12: 2.498001805e-16 | CM12: 2.498001805e-16 | CN12: 2.498001805e-16 | CO12: 2.498001805e-16 | CP12: 2.498001805e-16 | CQ12: 2.498001805e-16 | CR12: 2.498001805e-16 | CS12: 2.498001805e-16 | CT12: 2.498001805e-16 | CU12: 2.498001805e-16 | CV12: 2.498001805e-16 | CW12: 2.498001805e-16 | CX12: 2.498001805e-16 | CY12: 2.498001805e-16 | CZ12: 2.498001805e-16 | DA12: 2.498001805e-16 | DB12: =DA39 -> 2.498001805e-16 | DC12: 2.498001805e-16 | DD12: 2.498001805e-16 | DE12: 2.498001805e-16 | DF12: 2.498001805e-16 | DG12: 2.498001805e-16 | DH12: 2.498001805e-16 | DI12: 2.498001805e-16 | DJ12: 2.498001805e-16 | DK12: 2.498001805e-16 | DL12: 2.498001805e-16 | DM12: 2.498001805e-16 | DN12: 2.498001805e-16 | DO12: 2.498001805e-16 | DP12: 2.498001805e-16 | DQ12: 2.498001805e-16 | DR12: 2.498001805e-16 | DS12: 2.498001805e-16 | DT12: 2.498001805e-16 | DU12: 2.498001805e-16 | DV12: 2.498001805e-16 | DW12: 2.498001805e-16 | DX12: 2.498001805e-16 | DY12: 2.498001805e-16 | DZ12: 2.498001805e-16 | EA12: 2.498001805e-16 | EB12: 2.498001805e-16 | EC12: 2.498001805e-16 | ED12: 2.498001805e-16 | EE12: 2.498001805e-16 | EF12: 2.498001805e-16 | EG12: 2.498001805e-16 | EH12: 2.498001805e-16 | EI12: 2.498001805e-16 | EJ12: 2.498001805e-16 | EK12: 2.498001805e-16 | EL12: 2.498001805e-16 | EM12: 2.498001805e-16 | EN12: 2.498001805e-16 | EO12: 2.498001805e-16 | EP12: 2.498001805e-16 | EQ12: 2.498001805e-16 | ER12: 2.498001805e-16 | ES12: 2.498001805e-16
B13: ='Model inputs'!B13 -> SCADA and communications | H13: $m | I13: ='Model inputs'!I25 -> 10.12958811 | J13: =I40 -> 9.863019999 | K13: 9.596451891 | L13: 9.329883783 | M13: 9.063315675 | N13: 8.796747567 | O13: 8.530179459 | P13: 8.263611351 | Q13: 7.997043242 | R13: 7.730475134 | S13: 7.463907026 | T13: 7.197338918 | U13: 6.93077081 | V13: 6.664202702 | W13: 6.397634594 | X13: 6.131066486 | Y13: 5.864498378 | Z13: 5.59793027 | AA13: 5.331362162 | AB13: 5.064794054 | AC13: 4.798225945 | AD13: 4.531657837 | AE13: 4.265089729 | AF13: 3.998521621 | AG13: 3.731953513 | AH13: 3.465385405 | AI13: 3.198817297 | AJ13: 2.932249189 | AK13: 2.665681081 | AL13: 2.399112973 | AM13: 2.132544865 | AN13: 1.865976757 | AO13: 1.599408648 | AP13: =AO40 -> 1.33284054 | AQ13: 1.066272432 | AR13: 0.7997043242 | AS13: 0.5331362162 | AT13: 0.2665681081 | AU13: -5.440092821e-15 | AV13: -1.110223025e-16 | AW13: 5.218048216e-15 | AX13: 2.653433029e-14 | AY13: 4.785061236e-14 | AZ13: 6.916689443e-14 | BA13: 9.048317651e-14 | BB13: 1.117994586e-13 | BC13: 1.331157407e-13 | BD13: 1.544320227e-13 | BE13: 1.757483048e-13 | BF13: 1.970645869e-13 | BG13: 2.183808689e-13 | BH13: 2.39697151e-13 | BI13: 2.610134331e-13 | BJ13: 2.823297152e-13 | BK13: 3.036459972e-13 | BL13: 3.249622793e-13 | BM13: 3.462785614e-13 | BN13: 3.675948435e-13 | BO13: 3.889111255e-13 | BP13: 4.102274076e-13 | BQ13: 4.315436897e-13 | BR13: 4.528599717e-13 | BS13: 4.741762538e-13 | BT13: 4.954925359e-13 | BU13: 5.16808818e-13 | BV13: =BU40 -> 5.381251e-13 | BW13: 5.594413821e-13 | BX13: 5.807576642e-13 | BY13: 6.020739463e-13 | BZ13: 6.233902283e-13 | CA13: 6.447065104e-13 | CB13: 6.660227925e-13 | CC13: 6.873390745e-13 | CD13: 7.086553566e-13 | CE13: 7.299716387e-13 | CF13: 7.512879208e-13 | CG13: 7.726042028e-13 | CH13: 7.939204849e-13 | CI13: 8.15236767e-13 | CJ13: 8.365530491e-13 | CK13: 8.578693311e-13 | CL13: 8.791856132e-13 | CM13: 9.005018953e-13 | CN13: 9.218181773e-13 | CO13: 9.431344594e-13 | CP13: 9.644507415e-13 | CQ13: 9.857670236e-13 | CR13: 1.007083306e-12 | CS13: 1.028399588e-12 | CT13: 1.04971587e-12 | CU13: 1.071032152e-12 | CV13: 1.092348434e-12 | CW13: 1.113664716e-12 | CX13: 1.134980998e-12 | CY13: 1.15629728e-12 | CZ13: 1.177613562e-12 | DA13: 1.198929844e-12 | DB13: =DA40 -> 1.220246126e-12 | DC13: 1.241562408e-12 | DD13: 1.262878691e-12 | DE13: 1.284194973e-12 | DF13: 1.305511255e-12 | DG13: 1.326827537e-12 | DH13: 1.348143819e-12 | DI13: 1.369460101e-12 | DJ13: 1.390776383e-12 | DK13: 1.412092665e-12 | DL13: 1.433408947e-12 | DM13: 1.454725229e-12 | DN13: 1.476041511e-12 | DO13: 1.497357793e-12 | DP13: 1.518674075e-12 | DQ13: 1.539990357e-12 | DR13: 1.56130664e-12 | DS13: 1.582622922e-12 | DT13: 1.603939204e-12 | DU13: 1.625255486e-12 | DV13: 1.646571768e-12 | DW13: 1.66788805e-12 | DX13: 1.689204332e-12 | DY13: 1.710520614e-12 | DZ13: 1.731836896e-12 | EA13: 1.753153178e-12 | EB13: 1.77446946e-12 | EC13: 1.795785742e-12 | ED13: 1.817102024e-12 | EE13: 1.838418306e-12 | EF13: 1.859734589e-12 | EG13: 1.881050871e-12 | EH13: 1.902367153e-12 | EI13: 1.923683435e-12 | EJ13: 1.944999717e-12 | EK13: 1.966315999e-12 | EL13: 1.987632281e-12 | EM13: 2.008948563e-12 | EN13: 2.030264845e-12 | EO13: 2.051581127e-12 | EP13: 2.072897409e-12 | EQ13: 2.094213691e-12 | ER13: 2.115529973e-12 | ES13: 2.136846255e-12
B14: ='Model inputs'!B14 -> Cathodic protection | H14: $m | I14: ='Model inputs'!I26 -> 1.828833019 | J14: =I41 -> 1.780705834 | K14: 1.732578649 | L14: 1.684451464 | M14: 1.63632428 | N14: 1.588197095 | O14: 1.54006991 | P14: 1.491942726 | Q14: 1.443815541 | R14: 1.395688356 | S14: 1.347561172 | T14: 1.299433987 | U14: 1.251306802 | V14: 1.203179617 | W14: 1.155052433 | X14: 1.106925248 | Y14: 1.058798063 | Z14: 1.010670879 | AA14: 0.962543694 | AB14: 0.9144165093 | AC14: 0.8662893246 | AD14: 0.8181621399 | AE14: 0.7700349552 | AF14: 0.7219077705 | AG14: 0.6737805858 | AH14: 0.6256534011 | AI14: 0.5775262164 | AJ14: 0.5293990317 | AK14: 0.481271847 | AL14: 0.4331446623 | AM14: 0.3850174776 | AN14: 0.3368902929 | AO14: 0.2887631082 | AP14: =AO41 -> 0.2406359235 | AQ14: 0.1925087388 | AR14: 0.1443815541 | AS14: 0.0962543694 | AT14: 0.0481271847 | AU14: 0 | AV14: 0 | AW14: 0 | AX14: 0 | AY14: 0 | AZ14: 0 | BA14: 0 | BB14: 0 | BC14: 0 | BD14: 0 | BE14: 0 | BF14: 0 | BG14: 0 | BH14: 0 | BI14: 0 | BJ14: 0 | BK14: 0 | BL14: 0 | BM14: 0 | BN14: 0 | BO14: 0 | BP14: 0 | BQ14: 0 | BR14: 0 | BS14: 0 | BT14: 0 | BU14: 0 | BV14: =BU41 -> 0 | BW14: 0 | BX14: 0 | BY14: 0 | BZ14: 0 | CA14: 0 | CB14: 0 | CC14: 0 | CD14: 0 | CE14: 0 | CF14: 0 | CG14: 0 | CH14: 0 | CI14: 0 | CJ14: 0 | CK14: 0 | CL14: 0 | CM14: 0 | CN14: 0 | CO14: 0 | CP14: 0 | CQ14: 0 | CR14: 0 | CS14: 0 | CT14: 0 | CU14: 0 | CV14: 0 | CW14: 0 | CX14: 0 | CY14: 0 | CZ14: 0 | DA14: 0 | DB14: =DA41 -> 0 | DC14: 0 | DD14: 0 | DE14: 0 | DF14: 0 | DG14: 0 | DH14: 0 | DI14: 0 | DJ14: 0 | DK14: 0 | DL14: 0 | DM14: 0 | DN14: 0 | DO14: 0 | DP14: 0 | DQ14: 0 | DR14: 0 | DS14: 0 | DT14: 0 | DU14: 0 | DV14: 0 | DW14: 0 | DX14: 0 | DY14: 0 | DZ14: 0 | EA14: 0 | EB14: 0 | EC14: 0 | ED14: 0 | EE14: 0 | EF14: 0 | EG14: 0 | EH14: 0 | EI14: 0 | EJ14: 0 | EK14: 0 | EL14: 0 | EM14: 0 | EN14: 0 | EO14: 0 | EP14: 0 | EQ14: 0 | ER14: 0 | ES14: 0
B15: ='Model inputs'!B15 -> Maintenance bases and depots | H15: $m | I15: ='Model inputs'!I27 -> 7.727642558 | J15: =I42 -> 7.684228835 | K15: 7.640815113 | L15: 7.597401391 | M15: 7.553987669 | N15: 7.510573947 | O15: 7.467160224 | P15: 7.423746502 | Q15: 7.38033278 | R15: 7.336919058 | S15: 7.293505335 | T15: 7.250091613 | U15: 7.206677891 | V15: 7.163264169 | W15: 7.119850446 | X15: 7.076436724 | Y15: 7.033023002 | Z15: 6.98960928 | AA15: 6.946195557 | AB15: 6.902781835 | AC15: 6.859368113 | AD15: 6.815954391 | AE15: 6.772540669 | AF15: 6.729126946 | AG15: 6.685713224 | AH15: 6.642299502 | AI15: 6.59888578 | AJ15: 6.555472057 | AK15: 6.512058335 | AL15: 6.468644613 | AM15: 6.425230891 | AN15: 6.381817168 | AO15: 6.338403446 | AP15: =AO42 -> 6.294989724 | AQ15: 6.251576002 | AR15: 6.20816228 | AS15: 6.164748557 | AT15: 6.121334835 | AU15: 6.077921113 | AV15: 6.034507391 | AW15: 5.991093668 | AX15: 5.817438779 | AY15: 5.64378389 | AZ15: 5.470129002 | BA15: 5.296474113 | BB15: 5.122819224 | BC15: 4.949164335 | BD15: 4.775509446 | BE15: 4.601854557 | BF15: 4.428199668 | BG15: 4.254544779 | BH15: 4.08088989 | BI15: 3.907235001 | BJ15: 3.733580112 | BK15: 3.559925223 | BL15: 3.386270334 | BM15: 3.212615445 | BN15: 3.038960556 | BO15: 2.865305667 | BP15: 2.691650779 | BQ15: 2.51799589 | BR15: 2.344341001 | BS15: 2.170686112 | BT15: 1.997031223 | BU15: 1.823376334 | BV15: =BU42 -> 1.649721445 | BW15: 1.476066556 | BX15: 1.302411667 | BY15: 1.128756778 | BZ15: 0.9551018892 | CA15: 0.7814470002 | CB15: 0.6077921113 | CC15: 0.4341372223 | CD15: 0.2604823334 | CE15: 0.08682744447 | CF15: -1.690314555e-14 | CG15: -1.690314555e-14 | CH15: -1.690314555e-14 | CI15: -1.690314555e-14 | CJ15: -1.690314555e-14 | CK15: -1.690314555e-14 | CL15: -1.690314555e-14 | CM15: -1.690314555e-14 | CN15: -1.690314555e-14 | CO15: -1.690314555e-14 | CP15: -1.690314555e-14 | CQ15: -1.690314555e-14 | CR15: -1.690314555e-14 | CS15: -1.690314555e-14 | CT15: -1.690314555e-14 | CU15: -1.690314555e-14 | CV15: -1.690314555e-14 | CW15: -1.690314555e-14 | CX15: -1.690314555e-14 | CY15: -1.690314555e-14 | CZ15: -1.690314555e-14 | DA15: -1.690314555e-14 | DB15: =DA42 -> -1.690314555e-14 | DC15: -1.690314555e-14 | DD15: -1.690314555e-14 | DE15: -1.690314555e-14 | DF15: -1.690314555e-14 | DG15: -1.690314555e-14 | DH15: -1.690314555e-14 | DI15: -1.690314555e-14 | DJ15: -1.690314555e-14 | DK15: -1.690314555e-14 | DL15: -1.690314555e-14 | DM15: -1.690314555e-14 | DN15: -1.690314555e-14 | DO15: -1.690314555e-14 | DP15: -1.690314555e-14 | DQ15: -1.690314555e-14 | DR15: -1.690314555e-14 | DS15: -1.690314555e-14 | DT15: -1.690314555e-14 | DU15: -1.690314555e-14 | DV15: -1.690314555e-14 | DW15: -1.690314555e-14 | DX15: -1.690314555e-14 | DY15: -1.690314555e-14 | DZ15: -1.690314555e-14 | EA15: -1.690314555e-14 | EB15: -1.690314555e-14 | EC15: -1.690314555e-14 | ED15: -1.690314555e-14 | EE15: -1.690314555e-14 | EF15: -1.690314555e-14 | EG15: -1.690314555e-14 | EH15: -1.690314555e-14 | EI15: -1.690314555e-14 | EJ15: -1.690314555e-14 | EK15: -1.690314555e-14 | EL15: -1.690314555e-14 | EM15: -1.690314555e-14 | EN15: -1.690314555e-14 | EO15: -1.690314555e-14 | EP15: -1.690314555e-14 | EQ15: -1.690314555e-14 | ER15: -1.690314555e-14 | ES15: -1.690314555e-14
B16: ='Model inputs'!B16 -> Other depreciable assets | H16: $m | I16: ='Model inputs'!I28 -> 0.4393552199 | J16: =I43 -> 0.4149465966 | K16: 0.3905379733 | L16: 0.3661293499 | M16: 0.3417207266 | N16: 0.3173121033 | O16: 0.29290348 | P16: 0.2684948566 | Q16: 0.2440862333 | R16: 0.21967761 | S16: 0.1952689866 | T16: 0.1708603633 | U16: 0.14645174 | V16: 0.1220431166 | W16: 0.09763449332 | X16: 0.07322586999 | Y16: 0.04881724666 | Z16: 0.02440862333 | AA16: 9.020562075e-17 | AB16: 3.469446952e-17 | AC16: -2.081668171e-17 | AD16: -7.632783294e-17 | AE16: -1.318389842e-16 | AF16: -1.873501354e-16 | AG16: -2.428612866e-16 | AH16: -2.983724379e-16 | AI16: -3.538835891e-16 | AJ16: 3.469446952e-17 | AK16: 4.232725281e-16 | AL16: 8.118505868e-16 | AM16: 1.200428645e-15 | AN16: 1.589006704e-15 | AO16: 1.977584763e-15 | AP16: =AO43 -> 2.366162821e-15 | AQ16: 2.75474088e-15 | AR16: 3.143318938e-15 | AS16: 3.531896997e-15 | AT16: 3.920475056e-15 | AU16: 4.309053114e-15 | AV16: 4.697631173e-15 | AW16: 5.086209232e-15 | AX16: 6.640521466e-15 | AY16: 8.194833701e-15 | AZ16: 9.749145935e-15 | BA16: 1.130345817e-14 | BB16: 1.28577704e-14 | BC16: 1.441208264e-14 | BD16: 1.596639487e-14 | BE16: 1.752070711e-14 | BF16: 1.907501934e-14 | BG16: 2.062933158e-14 | BH16: 2.218364381e-14 | BI16: 2.373795605e-14 | BJ16: 2.529226828e-14 | BK16: 2.684658051e-14 | BL16: 2.840089275e-14 | BM16: 2.995520498e-14 | BN16: 3.150951722e-14 | BO16: 3.306382945e-14 | BP16: 3.461814169e-14 | BQ16: 3.617245392e-14 | BR16: 3.772676616e-14 | BS16: 3.928107839e-14 | BT16: 4.083539062e-14 | BU16: 4.238970286e-14 | BV16: =BU43 -> 4.394401509e-14 | BW16: 4.549832733e-14 | BX16: 4.705263956e-14 | BY16: 4.86069518e-14 | BZ16: 5.016126403e-14 | CA16: 5.171557627e-14 | CB16: 5.32698885e-14 | CC16: 5.482420073e-14 | CD16: 5.637851297e-14 | CE16: 5.79328252e-14 | CF16: 5.948713744e-14 | CG16: 6.104144967e-14 | CH16: 6.259576191e-14 | CI16: 6.415007414e-14 | CJ16: 6.570438638e-14 | CK16: 6.725869861e-14 | CL16: 6.881301085e-14 | CM16: 7.036732308e-14 | CN16: 7.192163531e-14 | CO16: 7.347594755e-14 | CP16: 7.503025978e-14 | CQ16: 7.658457202e-14 | CR16: 7.813888425e-14 | CS16: 7.969319649e-14 | CT16: 8.124750872e-14 | CU16: 8.280182096e-14 | CV16: 8.435613319e-14 | CW16: 8.591044542e-14 | CX16: 8.746475766e-14 | CY16: 8.901906989e-14 | CZ16: 9.057338213e-14 | DA16: 9.212769436e-14 | DB16: =DA43 -> 9.36820066e-14 | DC16: 9.523631883e-14 | DD16: 9.679063107e-14 | DE16: 9.83449433e-14 | DF16: 9.989925553e-14 | DG16: 1.014535678e-13 | DH16: 1.0300788e-13 | DI16: 1.045621922e-13 | DJ16: 1.061165045e-13 | DK16: 1.076708167e-13 | DL16: 1.092251289e-13 | DM16: 1.107794412e-13 | DN16: 1.123337534e-13 | DO16: 1.138880656e-13 | DP16: 1.154423779e-13 | DQ16: 1.169966901e-13 | DR16: 1.185510023e-13 | DS16: 1.201053146e-13 | DT16: 1.216596268e-13 | DU16: 1.232139391e-13 | DV16: 1.247682513e-13 | DW16: 1.263225635e-13 | DX16: 1.278768758e-13 | DY16: 1.29431188e-13 | DZ16: 1.309855002e-13 | EA16: 1.325398125e-13 | EB16: 1.340941247e-13 | EC16: 1.356484369e-13 | ED16: 1.372027492e-13 | EE16: 1.387570614e-13 | EF16: 1.403113736e-13 | EG16: 1.418656859e-13 | EH16: 1.434199981e-13 | EI16: 1.449743103e-13 | EJ16: 1.465286226e-13 | EK16: 1.480829348e-13 | EL16: 1.49637247e-13 | EM16: 1.511915593e-13 | EN16: 1.527458715e-13 | EO16: 1.543001837e-13 | EP16: 1.55854496e-13 | EQ16: 1.574088082e-13 | ER16: 1.589631204e-13 | ES16: 1.605174327e-13
B17: ='Model inputs'!B17 -> Non-depreciable assets | I17: ='Model inputs'!I29 -> 2.581675929 | J17: 2.581675929 | K17: =J44 -> 2.581675929 | L17: =K44 -> 2.581675929 | M17: =L44 -> 2.581675929 | N17: =M44 -> 2.581675929 | O17: =N44 -> 2.581675929 | P17: =O44 -> 2.581675929 | Q17: =P44 -> 2.581675929 | R17: =Q44 -> 2.581675929 | S17: =R44 -> 2.581675929 | T17: =S44 -> 2.581675929 | U17: =T44 -> 2.581675929 | V17: =U44 -> 2.581675929 | W17: =V44 -> 2.581675929 | X17: =W44 -> 2.581675929 | Y17: =X44 -> 2.581675929 | Z17: =Y44 -> 2.581675929 | AA17: =Z44 -> 2.581675929 | AB17: =AA44 -> 2.581675929 | AC17: =AB44 -> 2.581675929 | AD17: =AC44 -> 2.581675929 | AE17: =AD44 -> 2.581675929 | AF17: =AE44 -> 2.581675929 | AG17: =AF44 -> 2.581675929 | AH17: =AG44 -> 2.581675929 | AI17: =AH44 -> 2.581675929 | AJ17: =AI44 -> 2.581675929 | AK17: =AJ44 -> 2.581675929 | AL17: =AK44 -> 2.581675929 | AM17: =AL44 -> 2.581675929 | AN17: =AM44 -> 2.581675929 | AO17: =AN44 -> 2.581675929 | AP17: 2.581675929 | AQ17: 2.581675929 | AR17: 2.581675929 | AS17: 2.581675929 | AT17: 2.581675929 | AU17: 2.581675929 | AV17: 2.581675929 | AW17: 2.581675929 | AX17: 2.581675929 | AY17: 2.581675929 | AZ17: 2.581675929 | BA17: 2.581675929 | BB17: 2.581675929 | BC17: 2.581675929 | BD17: 2.581675929 | BE17: 2.581675929 | BF17: 2.581675929 | BG17: 2.581675929 | BH17: 2.581675929 | BI17: 2.581675929 | BJ17: 2.581675929 | BK17: 2.581675929 | BL17: 2.581675929 | BM17: 2.581675929 | BN17: 2.581675929 | BO17: 2.581675929 | BP17: 2.581675929 | BQ17: 2.581675929 | BR17: 2.581675929 | BS17: 2.581675929 | BT17: 2.581675929 | BU17: 2.581675929 | BV17: 2.581675929 | BW17: 2.581675929 | BX17: 2.581675929 | BY17: 2.581675929 | BZ17: 2.581675929 | CA17: 2.581675929 | CB17: 2.581675929 | CC17: 2.581675929 | CD17: 2.581675929 | CE17: 2.581675929 | CF17: 2.581675929 | CG17: 2.581675929 | CH17: 2.581675929 | CI17: 2.581675929 | CJ17: 2.581675929 | CK17: 2.581675929 | CL17: 2.581675929 | CM17: 2.581675929 | CN17: 2.581675929 | CO17: 2.581675929 | CP17: 2.581675929 | CQ17: 2.581675929 | CR17: 2.581675929 | CS17: 2.581675929 | CT17: 2.581675929 | CU17: 2.581675929 | CV17: 2.581675929 | CW17: 2.581675929 | CX17: 2.581675929 | CY17: 2.581675929 | CZ17: 2.581675929 | DA17: 2.581675929 | DB17: 2.581675929 | DC17: 2.581675929 | DD17: 2.581675929 | DE17: 2.581675929 | DF17: 2.581675929 | DG17: 2.581675929 | DH17: 2.581675929 | DI17: 2.581675929 | DJ17: 2.581675929 | DK17: 2.581675929 | DL17: 2.581675929 | DM17: 2.581675929 | DN17: 2.581675929 | DO17: 2.581675929 | DP17: 2.581675929 | DQ17: 2.581675929 | DR17: 2.581675929 | DS17: 2.581675929 | DT17: 2.581675929 | DU17: 2.581675929 | DV17: 2.581675929 | DW17: 2.581675929 | DX17: 2.581675929 | DY17: 2.581675929 | DZ17: 2.581675929 | EA17: 2.581675929 | EB17: 2.581675929 | EC17: 2.581675929 | ED17: 2.581675929 | EE17: 2.581675929 | EF17: 2.581675929 | EG17: 2.581675929 | EH17: 2.581675929 | EI17: 2.581675929 | EJ17: 2.581675929 | EK17: 2.581675929 | EL17: 2.581675929 | EM17: 2.581675929 | EN17: 2.581675929 | EO17: 2.581675929 | EP17: 2.581675929 | EQ17: 2.581675929 | ER17: 2.581675929 | ES17: 2.581675929
H19: $m | I19: =SUM(I9:I18) -> 513.6507412 | J19: =SUM(J9:J18) -> 511.0765464 | K19: 508.5023516 | L19: 505.9281568 | M19: 503.3539619 | N19: 500.7797671 | O19: 498.2055723 | P19: 495.6313775 | Q19: 493.0571826 | R19: 490.4829878 | S19: 487.908793 | T19: 485.3345982 | U19: 482.7604033 | V19: 480.1862085 | W19: 477.6120137 | X19: 475.0378189 | Y19: 472.463624 | Z19: 469.8894292 | AA19: 467.3152344 | AB19: 464.7654482 | AC19: 462.215662 | AD19: 459.6658758 | AE19: 457.1160896 | AF19: 454.5663034 | AG19: 452.0165172 | AH19: 449.466731 | AI19: 446.9169448 | AJ19: 444.3671586 | AK19: 441.8173724 | AL19: 439.2675861 | AM19: 436.7177999 | AN19: 434.1680137 | AO19: 431.6182275 | AP19: 429.0684413 | AQ19: 426.5186551 | AR19: 423.9688689 | AS19: 421.4190827 | AT19: 418.8692965 | AU19: 416.3195103 | AV19: 414.0844194 | AW19: 411.8493285 | AX19: 402.9089649 | AY19: 393.9686012 | AZ19: 385.0282376 | BA19: 376.087874 | BB19: 367.1475103 | BC19: 358.2071467 | BD19: 349.266783 | BE19: 340.3264194 | BF19: 331.3860558 | BG19: 322.4456921 | BH19: 313.5053285 | BI19: 304.5649648 | BJ19: 295.6246012 | BK19: 286.6842376 | BL19: 278.6236768 | BM19: 271.4429188 | BN19: 264.2621608 | BO19: 257.0814028 | BP19: 249.9006449 | BQ19: 242.7198869 | BR19: 235.5391289 | BS19: 228.358371 | BT19: 221.177613 | BU19: 213.996855 | BV19: =SUM(BV9:BV18) -> 206.8160971 | BW19: 199.6353391 | BX19: 192.4545811 | BY19: 185.2738231 | BZ19: 178.0930652 | CA19: 170.9123072 | CB19: 163.7315492 | CC19: 156.5507913 | CD19: 149.3700333 | CE19: 142.1892753 | CF19: 135.1984658 | CG19: 128.3976048 | CH19: 121.5967438 | CI19: 114.7958828 | CJ19: 107.9950217 | CK19: 101.1941607 | CL19: 94.3932997 | CM19: 87.59243868 | CN19: 80.79157766 | CO19: 73.99071664 | CP19: 67.18985562 | CQ19: 60.3889946 | CR19: 53.58813358 | CS19: 46.78727256 | CT19: 39.98641154 | CU19: 33.18555052 | CV19: 26.3846895 | CW19: 19.58382848 | CX19: 12.78296746 | CY19: 5.982106439 | CZ19: 2.581675929 | DA19: 2.581675929 | DB19: 2.581675929 | DC19: 2.581675929 | DD19: 2.581675929 | DE19: 2.581675929 | DF19: 2.581675929 | DG19: 2.581675929 | DH19: 2.581675929 | DI19: 2.581675929 | DJ19: 2.581675929 | DK19: 2.581675929 | DL19: 2.581675929 | DM19: 2.581675929 | DN19: 2.581675929 | DO19: 2.581675929 | DP19: 2.581675929 | DQ19: 2.581675929 | DR19: 2.581675929 | DS19: 2.581675929 | DT19: 2.581675929 | DU19: 2.581675929 | DV19: 2.581675929 | DW19: 2.581675929 | DX19: 2.581675929 | DY19: 2.581675929 | DZ19: 2.581675929 | EA19: 2.581675929 | EB19: 2.581675929 | EC19: 2.581675929 | ED19: 2.581675929 | EE19: 2.581675929 | EF19: 2.581675929 | EG19: 2.581675929 | EH19: =SUM(EH9:EH18) -> 2.581675929 | EI19: 2.581675929 | EJ19: 2.581675929 | EK19: 2.581675929 | EL19: 2.581675929 | EM19: 2.581675929 | EN19: 2.581675929 | EO19: 2.581675929 | EP19: 2.581675929 | EQ19: 2.581675929 | ER19: 2.581675929 | ES19: 2.581675929
B21: Depreciation: initial capital base | F21: Asset life
B23: ='Model inputs'!B9 -> Pipeline and laterals | F23: =4*('Model inputs'!G9-5.5) -> 258 | G23: quarters | H23: $m | I23: ='Model inputs'!I35 -> 1.700215255 | J23: ='Model inputs'!J35 -> 1.700215255 | K23: ='Model inputs'!K35 -> 1.700215255 | L23: ='Model inputs'!L35 -> 1.700215255 | M23: ='Model inputs'!M35 -> 1.700215255 | N23: ='Model inputs'!N35 -> 1.700215255 | O23: ='Model inputs'!O35 -> 1.700215255 | P23: ='Model inputs'!P35 -> 1.700215255 | Q23: ='Model inputs'!Q35 -> 1.700215255 | R23: ='Model inputs'!R35 -> 1.700215255 | S23: ='Model inputs'!S35 -> 1.700215255 | T23: ='Model inputs'!T35 -> 1.700215255 | U23: ='Model inputs'!U35 -> 1.700215255 | V23: ='Model inputs'!V35 -> 1.700215255 | W23: ='Model inputs'!W35 -> 1.700215255 | X23: ='Model inputs'!X35 -> 1.700215255 | Y23: ='Model inputs'!Y35 -> 1.700215255 | Z23: ='Model inputs'!Z35 -> 1.700215255 | AA23: ='Model inputs'!AA35 -> 1.700215255 | AB23: ='Model inputs'!AB35 -> 1.700215255 | AC23: ='Model inputs'!AC35 -> 1.700215255 | AD23: ='Model inputs'!AD35 -> 1.700215255 | AE23: ='Model inputs'!AE35 -> 1.700215255 | AF23: ='Model inputs'!AF35 -> 1.700215255 | AG23: ='Model inputs'!AG35 -> 1.700215255 | AH23: ='Model inputs'!AH35 -> 1.700215255 | AI23: ='Model inputs'!AI35 -> 1.700215255 | AJ23: ='Model inputs'!AJ35 -> 1.700215255 | AK23: ='Model inputs'!AK35 -> 1.700215255 | AL23: ='Model inputs'!AL35 -> 1.700215255 | AM23: ='Model inputs'!AM35 -> 1.700215255 | AN23: ='Model inputs'!AN35 -> 1.700215255 | AO23: ='Model inputs'!AO35 -> 1.700215255 | AP23: ='Model inputs'!AP35 -> 1.700215255 | AQ23: ='Model inputs'!AQ35 -> 1.700215255 | AR23: ='Model inputs'!AR35 -> 1.700215255 | AS23: ='Model inputs'!AS35 -> 1.700215255 | AT23: ='Model inputs'!AT35 -> 1.700215255 | AU23: ='Model inputs'!AU35 -> 1.700215255 | AV23: ='Model inputs'!AV35 -> 1.700215255 | AW23: =IF(SUM($I23:AV23)+4*AV23>$I9,$I9-SUM($I23:AV23),4*AV23) -> 6.80086102 | AX23: =IF(SUM($I23:AW23)+AW23>$I9,$I9-SUM($I23:AW23),AW23) -> 6.80086102 | AY23: =IF(SUM($I23:AX23)+AX23>$I9,$I9-SUM($I23:AX23),AX23) -> 6.80086102 | AZ23: =IF(SUM($I23:AY23)+AY23>$I9,$I9-SUM($I23:AY23),AY23) -> 6.80086102 | BA23: =IF(SUM($I23:AZ23)+AZ23>$I9,$I9-SUM($I23:AZ23),AZ23) -> 6.80086102 | BB23: =IF(SUM($I23:BA23)+BA23>$I9,$I9-SUM($I23:BA23),BA23) -> 6.80086102 | BC23: =IF(SUM($I23:BB23)+BB23>$I9,$I9-SUM($I23:BB23),BB23) -> 6.80086102 | BD23: =IF(SUM($I23:BC23)+BC23>$I9,$I9-SUM($I23:BC23),BC23) -> 6.80086102 | BE23: =IF(SUM($I23:BD23)+BD23>$I9,$I9-SUM($I23:BD23),BD23) -> 6.80086102 | BF23: =IF(SUM($I23:BE23)+BE23>$I9,$I9-SUM($I23:BE23),BE23) -> 6.80086102 | BG23: =IF(SUM($I23:BF23)+BF23>$I9,$I9-SUM($I23:BF23),BF23) -> 6.80086102 | BH23: =IF(SUM($I23:BG23)+BG23>$I9,$I9-SUM($I23:BG23),BG23) -> 6.80086102 | BI23: =IF(SUM($I23:BH23)+BH23>$I9,$I9-SUM($I23:BH23),BH23) -> 6.80086102 | BJ23: =IF(SUM($I23:BI23)+BI23>$I9,$I9-SUM($I23:BI23),BI23) -> 6.80086102 | BK23: =IF(SUM($I23:BJ23)+BJ23>$I9,$I9-SUM($I23:BJ23),BJ23) -> 6.80086102 | BL23: =IF(SUM($I23:BK23)+BK23>$I9,$I9-SUM($I23:BK23),BK23) -> 6.80086102 | BM23: =IF(SUM($I23:BL23)+BL23>$I9,$I9-SUM($I23:BL23),BL23) -> 6.80086102 | BN23: =IF(SUM($I23:BM23)+BM23>$I9,$I9-SUM($I23:BM23),BM23) -> 6.80086102 | BO23: =IF(SUM($I23:BN23)+BN23>$I9,$I9-SUM($I23:BN23),BN23) -> 6.80086102 | BP23: =IF(SUM($I23:BO23)+BO23>$I9,$I9-SUM($I23:BO23),BO23) -> 6.80086102 | BQ23: =IF(SUM($I23:BP23)+BP23>$I9,$I9-SUM($I23:BP23),BP23) -> 6.80086102 | BR23: =IF(SUM($I23:BQ23)+BQ23>$I9,$I9-SUM($I23:BQ23),BQ23) -> 6.80086102 | BS23: =IF(SUM($I23:BR23)+BR23>$I9,$I9-SUM($I23:BR23),BR23) -> 6.80086102 | BT23: =IF(SUM($I23:BS23)+BS23>$I9,$I9-SUM($I23:BS23),BS23) -> 6.80086102 | BU23: =IF(SUM($I23:BT23)+BT23>$I9,$I9-SUM($I23:BT23),BT23) -> 6.80086102 | BV23: =IF(SUM($I23:BU23)+BU23>$I9,$I9-SUM($I23:BU23),BU23) -> 6.80086102 | BW23: =IF(SUM($I23:BV23)+BV23>$I9,$I9-SUM($I23:BV23),BV23) -> 6.80086102 | BX23: =IF(SUM($I23:BW23)+BW23>$I9,$I9-SUM($I23:BW23),BW23) -> 6.80086102 | BY23: =IF(SUM($I23:BX23)+BX23>$I9,$I9-SUM($I23:BX23),BX23) -> 6.80086102 | BZ23: =IF(SUM($I23:BY23)+BY23>$I9,$I9-SUM($I23:BY23),BY23) -> 6.80086102 | CA23: =IF(SUM($I23:BZ23)+BZ23>$I9,$I9-SUM($I23:BZ23),BZ23) -> 6.80086102 | CB23: =IF(SUM($I23:CA23)+CA23>$I9,$I9-SUM($I23:CA23),CA23) -> 6.80086102 | CC23: =IF(SUM($I23:CB23)+CB23>$I9,$I9-SUM($I23:CB23),CB23) -> 6.80086102 | CD23: =IF(SUM($I23:CC23)+CC23>$I9,$I9-SUM($I23:CC23),CC23) -> 6.80086102 | CE23: =IF(SUM($I23:CD23)+CD23>$I9,$I9-SUM($I23:CD23),CD23) -> 6.80086102 | CF23: =IF(SUM($I23:CE23)+CE23>$I9,$I9-SUM($I23:CE23),CE23) -> 6.80086102 | CG23: =IF(SUM($I23:CF23)+CF23>$I9,$I9-SUM($I23:CF23),CF23) -> 6.80086102 | CH23: =IF(SUM($I23:CG23)+CG23>$I9,$I9-SUM($I23:CG23),CG23) -> 6.80086102 | CI23: =IF(SUM($I23:CH23)+CH23>$I9,$I9-SUM($I23:CH23),CH23) -> 6.80086102 | CJ23: =IF(SUM($I23:CI23)+CI23>$I9,$I9-SUM($I23:CI23),CI23) -> 6.80086102 | CK23: =IF(SUM($I23:CJ23)+CJ23>$I9,$I9-SUM($I23:CJ23),CJ23) -> 6.80086102 | CL23: =IF(SUM($I23:CK23)+CK23>$I9,$I9-SUM($I23:CK23),CK23) -> 6.80086102 | CM23: =IF(SUM($I23:CL23)+CL23>$I9,$I9-SUM($I23:CL23),CL23) -> 6.80086102 | CN23: =IF(SUM($I23:CM23)+CM23>$I9,$I9-SUM($I23:CM23),CM23) -> 6.80086102 | CO23: =IF(SUM($I23:CN23)+CN23>$I9,$I9-SUM($I23:CN23),CN23) -> 6.80086102 | CP23: =IF(SUM($I23:CO23)+CO23>$I9,$I9-SUM($I23:CO23),CO23) -> 6.80086102 | CQ23: =IF(SUM($I23:CP23)+CP23>$I9,$I9-SUM($I23:CP23),CP23) -> 6.80086102 | CR23: =IF(SUM($I23:CQ23)+CQ23>$I9,$I9-SUM($I23:CQ23),CQ23) -> 6.80086102 | CS23: =IF(SUM($I23:CR23)+CR23>$I9,$I9-SUM($I23:CR23),CR23) -> 6.80086102 | CT23: =IF(SUM($I23:CS23)+CS23>$I9,$I9-SUM($I23:CS23),CS23) -> 6.80086102 | CU23: =IF(SUM($I23:CT23)+CT23>$I9,$I9-SUM($I23:CT23),CT23) -> 6.80086102 | CV23: =IF(SUM($I23:CU23)+CU23>$I9,$I9-SUM($I23:CU23),CU23) -> 6.80086102 | CW23: =IF(SUM($I23:CV23)+CV23>$I9,$I9-SUM($I23:CV23),CV23) -> 6.80086102 | CX23: =IF(SUM($I23:CW23)+CW23>$I9,$I9-SUM($I23:CW23),CW23) -> 6.80086102 | CY23: =IF(SUM($I23:CX23)+CX23>$I9,$I9-SUM($I23:CX23),CX23) -> 3.40043051 | CZ23: =IF(SUM($I23:CY23)+CY23>$I9,$I9-SUM($I23:CY23),CY23) -> 0 | DA23: =IF(SUM($I23:CZ23)+CZ23>$I9,$I9-SUM($I23:CZ23),CZ23) -> 0 | DB23: =IF(SUM($I23:DA23)+DA23>$I9,$I9-SUM($I23:DA23),DA23) -> 0 | DC23: =IF(SUM($I23:DB23)+DB23>$I9,$I9-SUM($I23:DB23),DB23) -> 0 | DD23: =IF(SUM($I23:DC23)+DC23>$I9,$I9-SUM($I23:DC23),DC23) -> 0 | DE23: =IF(SUM($I23:DD23)+DD23>$I9,$I9-SUM($I23:DD23),DD23) -> 0 | DF23: =IF(SUM($I23:DE23)+DE23>$I9,$I9-SUM($I23:DE23),DE23) -> 0 | DG23: =IF(SUM($I23:DF23)+DF23>$I9,$I9-SUM($I23:DF23),DF23) -> 0 | DH23: =IF(SUM($I23:DG23)+DG23>$I9,$I9-SUM($I23:DG23),DG23) -> 0 | DI23: =IF(SUM($I23:DH23)+DH23>$I9,$I9-SUM($I23:DH23),DH23) -> 0 | DJ23: =IF(SUM($I23:DI23)+DI23>$I9,$I9-SUM($I23:DI23),DI23) -> 0 | DK23: =IF(SUM($I23:DJ23)+DJ23>$I9,$I9-SUM($I23:DJ23),DJ23) -> 0 | DL23: =IF(SUM($I23:DK23)+DK23>$I9,$I9-SUM($I23:DK23),DK23) -> 0 | DM23: =IF(SUM($I23:DL23)+DL23>$I9,$I9-SUM($I23:DL23),DL23) -> 0 | DN23: =IF(SUM($I23:DM23)+DM23>$I9,$I9-SUM($I23:DM23),DM23) -> 0 | DO23: =IF(SUM($I23:DN23)+DN23>$I9,$I9-SUM($I23:DN23),DN23) -> 0 | DP23: =IF(SUM($I23:DO23)+DO23>$I9,$I9-SUM($I23:DO23),DO23) -> 0 | DQ23: =IF(SUM($I23:DP23)+DP23>$I9,$I9-SUM($I23:DP23),DP23) -> 0 | DR23: =IF(SUM($I23:DQ23)+DQ23>$I9,$I9-SUM($I23:DQ23),DQ23) -> 0 | DS23: =IF(SUM($I23:DR23)+DR23>$I9,$I9-SUM($I23:DR23),DR23) -> 0 | DT23: =IF(SUM($I23:DS23)+DS23>$I9,$I9-SUM($I23:DS23),DS23) -> 0 | DU23: =IF(SUM($I23:DT23)+DT23>$I9,$I9-SUM($I23:DT23),DT23) -> 0 | DV23: =IF(SUM($I23:DU23)+DU23>$I9,$I9-SUM($I23:DU23),DU23) -> 0 | DW23: =IF(SUM($I23:DV23)+DV23>$I9,$I9-SUM($I23:DV23),DV23) -> 0 | DX23: =IF(SUM($I23:DW23)+DW23>$I9,$I9-SUM($I23:DW23),DW23) -> 0 | DY23: =IF(SUM($I23:DX23)+DX23>$I9,$I9-SUM($I23:DX23),DX23) -> 0 | DZ23: =IF(SUM($I23:DY23)+DY23>$I9,$I9-SUM($I23:DY23),DY23) -> 0 | EA23: =IF(SUM($I23:DZ23)+DZ23>$I9,$I9-SUM($I23:DZ23),DZ23) -> 0 | EB23: =IF(SUM($I23:EA23)+EA23>$I9,$I9-SUM($I23:EA23),EA23) -> 0 | EC23: =IF(SUM($I23:EB23)+EB23>$I9,$I9-SUM($I23:EB23),EB23) -> 0 | ED23: =IF(SUM($I23:EC23)+EC23>$I9,$I9-SUM($I23:EC23),EC23) -> 0 | EE23: =IF(SUM($I23:ED23)+ED23>$I9,$I9-SUM($I23:ED23),ED23) -> 0 | EF23: =IF(SUM($I23:EE23)+EE23>$I9,$I9-SUM($I23:EE23),EE23) -> 0 | EG23: =IF(SUM($I23:EF23)+EF23>$I9,$I9-SUM($I23:EF23),EF23) -> 0 | EH23: =IF(SUM($I23:EG23)+EG23>$I9,$I9-SUM($I23:EG23),EG23) -> 0 | EI23: =IF(SUM($I23:EH23)+EH23>$I9,$I9-SUM($I23:EH23),EH23) -> 0 | EJ23: =IF(SUM($I23:EI23)+EI23>$I9,$I9-SUM($I23:EI23),EI23) -> 0 | EK23: =IF(SUM($I23:EJ23)+EJ23>$I9,$I9-SUM($I23:EJ23),EJ23) -> 0 | EL23: =IF(SUM($I23:EK23)+EK23>$I9,$I9-SUM($I23:EK23),EK23) -> 0 | EM23: =IF(SUM($I23:EL23)+EL23>$I9,$I9-SUM($I23:EL23),EL23) -> 0 | EN23: =IF(SUM($I23:EM23)+EM23>$I9,$I9-SUM($I23:EM23),EM23) -> 0 | EO23: =IF(SUM($I23:EN23)+EN23>$I9,$I9-SUM($I23:EN23),EN23) -> 0 | EP23: =IF(SUM($I23:EO23)+EO23>$I9,$I9-SUM($I23:EO23),EO23) -> 0 | EQ23: =IF(SUM($I23:EP23)+EP23>$I9,$I9-SUM($I23:EP23),EP23) -> 0 | ER23: =IF(SUM($I23:EQ23)+EQ23>$I9,$I9-SUM($I23:EQ23),EQ23) -> 0 | ES23: =IF(SUM($I23:ER23)+ER23>$I9,$I9-SUM($I23:ER23),ER23) -> 0
B24: ='Model inputs'!B10 -> Main line valve and scraper stations | F24: =4*('Model inputs'!G10-5.5) -> 178 | G24: quarters | H24: $m | I24: ='Model inputs'!I36 -> 0.05156051549 | J24: ='Model inputs'!J36 -> 0.05156051549 | K24: ='Model inputs'!K36 -> 0.05156051549 | L24: ='Model inputs'!L36 -> 0.05156051549 | M24: ='Model inputs'!M36 -> 0.05156051549 | N24: ='Model inputs'!N36 -> 0.05156051549 | O24: ='Model inputs'!O36 -> 0.05156051549 | P24: ='Model inputs'!P36 -> 0.05156051549 | Q24: ='Model inputs'!Q36 -> 0.05156051549 | R24: ='Model inputs'!R36 -> 0.05156051549 | S24: ='Model inputs'!S36 -> 0.05156051549 | T24: ='Model inputs'!T36 -> 0.05156051549 | U24: ='Model inputs'!U36 -> 0.05156051549 | V24: ='Model inputs'!V36 -> 0.05156051549 | W24: ='Model inputs'!W36 -> 0.05156051549 | X24: ='Model inputs'!X36 -> 0.05156051549 | Y24: ='Model inputs'!Y36 -> 0.05156051549 | Z24: ='Model inputs'!Z36 -> 0.05156051549 | AA24: ='Model inputs'!AA36 -> 0.05156051549 | AB24: ='Model inputs'!AB36 -> 0.05156051549 | AC24: ='Model inputs'!AC36 -> 0.05156051549 | AD24: ='Model inputs'!AD36 -> 0.05156051549 | AE24: ='Model inputs'!AE36 -> 0.05156051549 | AF24: ='Model inputs'!AF36 -> 0.05156051549 | AG24: ='Model inputs'!AG36 -> 0.05156051549 | AH24: ='Model inputs'!AH36 -> 0.05156051549 | AI24: ='Model inputs'!AI36 -> 0.05156051549 | AJ24: ='Model inputs'!AJ36 -> 0.05156051549 | AK24: ='Model inputs'!AK36 -> 0.05156051549 | AL24: ='Model inputs'!AL36 -> 0.05156051549 | AM24: ='Model inputs'!AM36 -> 0.05156051549 | AN24: ='Model inputs'!AN36 -> 0.05156051549 | AO24: ='Model inputs'!AO36 -> 0.05156051549 | AP24: ='Model inputs'!AP36 -> 0.05156051549 | AQ24: ='Model inputs'!AQ36 -> 0.05156051549 | AR24: ='Model inputs'!AR36 -> 0.05156051549 | AS24: ='Model inputs'!AS36 -> 0.05156051549 | AT24: ='Model inputs'!AT36 -> 0.05156051549 | AU24: ='Model inputs'!AU36 -> 0.05156051549 | AV24: ='Model inputs'!AV36 -> 0.05156051549 | AW24: =IF(SUM($I24:AV24)+4*AV24>$I10,$I10-SUM($I24:AV24),4*AV24) -> 0.206242062 | AX24: =IF(SUM($I24:AW24)+AW24>$I10,$I10-SUM($I24:AW24),AW24) -> 0.206242062 | AY24: =IF(SUM($I24:AX24)+AX24>$I10,$I10-SUM($I24:AX24),AX24) -> 0.206242062 | AZ24: =IF(SUM($I24:AY24)+AY24>$I10,$I10-SUM($I24:AY24),AY24) -> 0.206242062 | BA24: =IF(SUM($I24:AZ24)+AZ24>$I10,$I10-SUM($I24:AZ24),AZ24) -> 0.206242062 | BB24: =IF(SUM($I24:BA24)+BA24>$I10,$I10-SUM($I24:BA24),BA24) -> 0.206242062 | BC24: =IF(SUM($I24:BB24)+BB24>$I10,$I10-SUM($I24:BB24),BB24) -> 0.206242062 | BD24: =IF(SUM($I24:BC24)+BC24>$I10,$I10-SUM($I24:BC24),BC24) -> 0.206242062 | BE24: =IF(SUM($I24:BD24)+BD24>$I10,$I10-SUM($I24:BD24),BD24) -> 0.206242062 | BF24: =IF(SUM($I24:BE24)+BE24>$I10,$I10-SUM($I24:BE24),BE24) -> 0.206242062 | BG24: =IF(SUM($I24:BF24)+BF24>$I10,$I10-SUM($I24:BF24),BF24) -> 0.206242062 | BH24: =IF(SUM($I24:BG24)+BG24>$I10,$I10-SUM($I24:BG24),BG24) -> 0.206242062 | BI24: =IF(SUM($I24:BH24)+BH24>$I10,$I10-SUM($I24:BH24),BH24) -> 0.206242062 | BJ24: =IF(SUM($I24:BI24)+BI24>$I10,$I10-SUM($I24:BI24),BI24) -> 0.206242062 | BK24: =IF(SUM($I24:BJ24)+BJ24>$I10,$I10-SUM($I24:BJ24),BJ24) -> 0.206242062 | BL24: =IF(SUM($I24:BK24)+BK24>$I10,$I10-SUM($I24:BK24),BK24) -> 0.206242062 | BM24: =IF(SUM($I24:BL24)+BL24>$I10,$I10-SUM($I24:BL24),BL24) -> 0.206242062 | BN24: =IF(SUM($I24:BM24)+BM24>$I10,$I10-SUM($I24:BM24),BM24) -> 0.206242062 | BO24: =IF(SUM($I24:BN24)+BN24>$I10,$I10-SUM($I24:BN24),BN24) -> 0.206242062 | BP24: =IF(SUM($I24:BO24)+BO24>$I10,$I10-SUM($I24:BO24),BO24) -> 0.206242062 | BQ24: =IF(SUM($I24:BP24)+BP24>$I10,$I10-SUM($I24:BP24),BP24) -> 0.206242062 | BR24: =IF(SUM($I24:BQ24)+BQ24>$I10,$I10-SUM($I24:BQ24),BQ24) -> 0.206242062 | BS24: =IF(SUM($I24:BR24)+BR24>$I10,$I10-SUM($I24:BR24),BR24) -> 0.206242062 | BT24: =IF(SUM($I24:BS24)+BS24>$I10,$I10-SUM($I24:BS24),BS24) -> 0.206242062 | BU24: =IF(SUM($I24:BT24)+BT24>$I10,$I10-SUM($I24:BT24),BT24) -> 0.206242062 | BV24: =IF(SUM($I24:BU24)+BU24>$I10,$I10-SUM($I24:BU24),BU24) -> 0.206242062 | BW24: =IF(SUM($I24:BV24)+BV24>$I10,$I10-SUM($I24:BV24),BV24) -> 0.206242062 | BX24: =IF(SUM($I24:BW24)+BW24>$I10,$I10-SUM($I24:BW24),BW24) -> 0.206242062 | BY24: =IF(SUM($I24:BX24)+BX24>$I10,$I10-SUM($I24:BX24),BX24) -> 0.206242062 | BZ24: =IF(SUM($I24:BY24)+BY24>$I10,$I10-SUM($I24:BY24),BY24) -> 0.206242062 | CA24: =IF(SUM($I24:BZ24)+BZ24>$I10,$I10-SUM($I24:BZ24),BZ24) -> 0.206242062 | CB24: =IF(SUM($I24:CA24)+CA24>$I10,$I10-SUM($I24:CA24),CA24) -> 0.206242062 | CC24: =IF(SUM($I24:CB24)+CB24>$I10,$I10-SUM($I24:CB24),CB24) -> 0.206242062 | CD24: =IF(SUM($I24:CC24)+CC24>$I10,$I10-SUM($I24:CC24),CC24) -> 0.206242062 | CE24: =IF(SUM($I24:CD24)+CD24>$I10,$I10-SUM($I24:CD24),CD24) -> 0.103121031 | CF24: =IF(SUM($I24:CE24)+CE24>$I10,$I10-SUM($I24:CE24),CE24) -> 0 | CG24: =IF(SUM($I24:CF24)+CF24>$I10,$I10-SUM($I24:CF24),CF24) -> 0 | CH24: =IF(SUM($I24:CG24)+CG24>$I10,$I10-SUM($I24:CG24),CG24) -> 0 | CI24: =IF(SUM($I24:CH24)+CH24>$I10,$I10-SUM($I24:CH24),CH24) -> 0 | CJ24: =IF(SUM($I24:CI24)+CI24>$I10,$I10-SUM($I24:CI24),CI24) -> 0 | CK24: =IF(SUM($I24:CJ24)+CJ24>$I10,$I10-SUM($I24:CJ24),CJ24) -> 0 | CL24: =IF(SUM($I24:CK24)+CK24>$I10,$I10-SUM($I24:CK24),CK24) -> 0 | CM24: =IF(SUM($I24:CL24)+CL24>$I10,$I10-SUM($I24:CL24),CL24) -> 0 | CN24: =IF(SUM($I24:CM24)+CM24>$I10,$I10-SUM($I24:CM24),CM24) -> 0 | CO24: =IF(SUM($I24:CN24)+CN24>$I10,$I10-SUM($I24:CN24),CN24) -> 0 | CP24: =IF(SUM($I24:CO24)+CO24>$I10,$I10-SUM($I24:CO24),CO24) -> 0 | CQ24: =IF(SUM($I24:CP24)+CP24>$I10,$I10-SUM($I24:CP24),CP24) -> 0 | CR24: =IF(SUM($I24:CQ24)+CQ24>$I10,$I10-SUM($I24:CQ24),CQ24) -> 0 | CS24: =IF(SUM($I24:CR24)+CR24>$I10,$I10-SUM($I24:CR24),CR24) -> 0 | CT24: =IF(SUM($I24:CS24)+CS24>$I10,$I10-SUM($I24:CS24),CS24) -> 0 | CU24: =IF(SUM($I24:CT24)+CT24>$I10,$I10-SUM($I24:CT24),CT24) -> 0 | CV24: =IF(SUM($I24:CU24)+CU24>$I10,$I10-SUM($I24:CU24),CU24) -> 0 | CW24: =IF(SUM($I24:CV24)+CV24>$I10,$I10-SUM($I24:CV24),CV24) -> 0 | CX24: =IF(SUM($I24:CW24)+CW24>$I10,$I10-SUM($I24:CW24),CW24) -> 0 | CY24: =IF(SUM($I24:CX24)+CX24>$I10,$I10-SUM($I24:CX24),CX24) -> 0 | CZ24: =IF(SUM($I24:CY24)+CY24>$I10,$I10-SUM($I24:CY24),CY24) -> 0 | DA24: =IF(SUM($I24:CZ24)+CZ24>$I10,$I10-SUM($I24:CZ24),CZ24) -> 0 | DB24: =IF(SUM($I24:DA24)+DA24>$I10,$I10-SUM($I24:DA24),DA24) -> 0 | DC24: =IF(SUM($I24:DB24)+DB24>$I10,$I10-SUM($I24:DB24),DB24) -> 0 | DD24: =IF(SUM($I24:DC24)+DC24>$I10,$I10-SUM($I24:DC24),DC24) -> 0 | DE24: =IF(SUM($I24:DD24)+DD24>$I10,$I10-SUM($I24:DD24),DD24) -> 0 | DF24: =IF(SUM($I24:DE24)+DE24>$I10,$I10-SUM($I24:DE24),DE24) -> 0 | DG24: =IF(SUM($I24:DF24)+DF24>$I10,$I10-SUM($I24:DF24),DF24) -> 0 | DH24: =IF(SUM($I24:DG24)+DG24>$I10,$I10-SUM($I24:DG24),DG24) -> 0 | DI24: =IF(SUM($I24:DH24)+DH24>$I10,$I10-SUM($I24:DH24),DH24) -> 0 | DJ24: =IF(SUM($I24:DI24)+DI24>$I10,$I10-SUM($I24:DI24),DI24) -> 0 | DK24: =IF(SUM($I24:DJ24)+DJ24>$I10,$I10-SUM($I24:DJ24),DJ24) -> 0 | DL24: =IF(SUM($I24:DK24)+DK24>$I10,$I10-SUM($I24:DK24),DK24) -> 0 | DM24: =IF(SUM($I24:DL24)+DL24>$I10,$I10-SUM($I24:DL24),DL24) -> 0 | DN24: =IF(SUM($I24:DM24)+DM24>$I10,$I10-SUM($I24:DM24),DM24) -> 0 | DO24: =IF(SUM($I24:DN24)+DN24>$I10,$I10-SUM($I24:DN24),DN24) -> 0 | DP24: =IF(SUM($I24:DO24)+DO24>$I10,$I10-SUM($I24:DO24),DO24) -> 0 | DQ24: =IF(SUM($I24:DP24)+DP24>$I10,$I10-SUM($I24:DP24),DP24) -> 0 | DR24: =IF(SUM($I24:DQ24)+DQ24>$I10,$I10-SUM($I24:DQ24),DQ24) -> 0 | DS24: =IF(SUM($I24:DR24)+DR24>$I10,$I10-SUM($I24:DR24),DR24) -> 0 | DT24: =IF(SUM($I24:DS24)+DS24>$I10,$I10-SUM($I24:DS24),DS24) -> 0 | DU24: =IF(SUM($I24:DT24)+DT24>$I10,$I10-SUM($I24:DT24),DT24) -> 0 | DV24: =IF(SUM($I24:DU24)+DU24>$I10,$I10-SUM($I24:DU24),DU24) -> 0 | DW24: =IF(SUM($I24:DV24)+DV24>$I10,$I10-SUM($I24:DV24),DV24) -> 0 | DX24: =IF(SUM($I24:DW24)+DW24>$I10,$I10-SUM($I24:DW24),DW24) -> 0 | DY24: =IF(SUM($I24:DX24)+DX24>$I10,$I10-SUM($I24:DX24),DX24) -> 0 | DZ24: =IF(SUM($I24:DY24)+DY24>$I10,$I10-SUM($I24:DY24),DY24) -> 0 | EA24: =IF(SUM($I24:DZ24)+DZ24>$I10,$I10-SUM($I24:DZ24),DZ24) -> 0 | EB24: =IF(SUM($I24:EA24)+EA24>$I10,$I10-SUM($I24:EA24),EA24) -> 0 | EC24: =IF(SUM($I24:EB24)+EB24>$I10,$I10-SUM($I24:EB24),EB24) -> 0 | ED24: =IF(SUM($I24:EC24)+EC24>$I10,$I10-SUM($I24:EC24),EC24) -> 0 | EE24: =IF(SUM($I24:ED24)+ED24>$I10,$I10-SUM($I24:ED24),ED24) -> 0 | EF24: =IF(SUM($I24:EE24)+EE24>$I10,$I10-SUM($I24:EE24),EE24) -> 0 | EG24: =IF(SUM($I24:EF24)+EF24>$I10,$I10-SUM($I24:EF24),EF24) -> 0 | EH24: =IF(SUM($I24:EG24)+EG24>$I10,$I10-SUM($I24:EG24),EG24) -> 0 | EI24: =IF(SUM($I24:EH24)+EH24>$I10,$I10-SUM($I24:EH24),EH24) -> 0 | EJ24: =IF(SUM($I24:EI24)+EI24>$I10,$I10-SUM($I24:EI24),EI24) -> 0 | EK24: =IF(SUM($I24:EJ24)+EJ24>$I10,$I10-SUM($I24:EJ24),EJ24) -> 0 | EL24: =IF(SUM($I24:EK24)+EK24>$I10,$I10-SUM($I24:EK24),EK24) -> 0 | EM24: =IF(SUM($I24:EL24)+EL24>$I10,$I10-SUM($I24:EL24),EL24) -> 0 | EN24: =IF(SUM($I24:EM24)+EM24>$I10,$I10-SUM($I24:EM24),EM24) -> 0 | EO24: =IF(SUM($I24:EN24)+EN24>$I10,$I10-SUM($I24:EN24),EN24) -> 0 | EP24: =IF(SUM($I24:EO24)+EO24>$I10,$I10-SUM($I24:EO24),EO24) -> 0 | EQ24: =IF(SUM($I24:EP24)+EP24>$I10,$I10-SUM($I24:EP24),EP24) -> 0 | ER24: =IF(SUM($I24:EQ24)+EQ24>$I10,$I10-SUM($I24:EQ24),EQ24) -> 0 | ES24: =IF(SUM($I24:ER24)+ER24>$I10,$I10-SUM($I24:ER24),ER24) -> 0
B25: ='Model inputs'!B11 -> Compressor stations | F25: =4*('Model inputs'!G11-5.5) -> 98 | G25: quarters | H25: $m | I25: ='Model inputs'!I37 -> 0.4242448458 | J25: ='Model inputs'!J37 -> 0.4242448458 | K25: ='Model inputs'!K37 -> 0.4242448458 | L25: ='Model inputs'!L37 -> 0.4242448458 | M25: ='Model inputs'!M37 -> 0.4242448458 | N25: ='Model inputs'!N37 -> 0.4242448458 | O25: ='Model inputs'!O37 -> 0.4242448458 | P25: ='Model inputs'!P37 -> 0.4242448458 | Q25: ='Model inputs'!Q37 -> 0.4242448458 | R25: ='Model inputs'!R37 -> 0.4242448458 | S25: ='Model inputs'!S37 -> 0.4242448458 | T25: ='Model inputs'!T37 -> 0.4242448458 | U25: ='Model inputs'!U37 -> 0.4242448458 | V25: ='Model inputs'!V37 -> 0.4242448458 | W25: ='Model inputs'!W37 -> 0.4242448458 | X25: ='Model inputs'!X37 -> 0.4242448458 | Y25: ='Model inputs'!Y37 -> 0.4242448458 | Z25: ='Model inputs'!Z37 -> 0.4242448458 | AA25: ='Model inputs'!AA37 -> 0.4242448458 | AB25: ='Model inputs'!AB37 -> 0.4242448458 | AC25: ='Model inputs'!AC37 -> 0.4242448458 | AD25: ='Model inputs'!AD37 -> 0.4242448458 | AE25: ='Model inputs'!AE37 -> 0.4242448458 | AF25: ='Model inputs'!AF37 -> 0.4242448458 | AG25: ='Model inputs'!AG37 -> 0.4242448458 | AH25: ='Model inputs'!AH37 -> 0.4242448458 | AI25: ='Model inputs'!AI37 -> 0.4242448458 | AJ25: ='Model inputs'!AJ37 -> 0.4242448458 | AK25: ='Model inputs'!AK37 -> 0.4242448458 | AL25: ='Model inputs'!AL37 -> 0.4242448458 | AM25: ='Model inputs'!AM37 -> 0.4242448458 | AN25: ='Model inputs'!AN37 -> 0.4242448458 | AO25: ='Model inputs'!AO37 -> 0.4242448458 | AP25: ='Model inputs'!AP37 -> 0.4242448458 | AQ25: ='Model inputs'!AQ37 -> 0.4242448458 | AR25: ='Model inputs'!AR37 -> 0.4242448458 | AS25: ='Model inputs'!AS37 -> 0.4242448458 | AT25: ='Model inputs'!AT37 -> 0.4242448458 | AU25: ='Model inputs'!AU37 -> 0.4242448458 | AV25: ='Model inputs'!AV37 -> 0.4242448458 | AW25: =IF(SUM($I25:AV25)+4*AV25>$I11,$I11-SUM($I25:AV25),4*AV25) -> 1.696979383 | AX25: =IF(SUM($I25:AW25)+AW25>$I11,$I11-SUM($I25:AW25),AW25) -> 1.696979383 | AY25: =IF(SUM($I25:AX25)+AX25>$I11,$I11-SUM($I25:AX25),AX25) -> 1.696979383 | AZ25: =IF(SUM($I25:AY25)+AY25>$I11,$I11-SUM($I25:AY25),AY25) -> 1.696979383 | BA25: =IF(SUM($I25:AZ25)+AZ25>$I11,$I11-SUM($I25:AZ25),AZ25) -> 1.696979383 | BB25: =IF(SUM($I25:BA25)+BA25>$I11,$I11-SUM($I25:BA25),BA25) -> 1.696979383 | BC25: =IF(SUM($I25:BB25)+BB25>$I11,$I11-SUM($I25:BB25),BB25) -> 1.696979383 | BD25: =IF(SUM($I25:BC25)+BC25>$I11,$I11-SUM($I25:BC25),BC25) -> 1.696979383 | BE25: =IF(SUM($I25:BD25)+BD25>$I11,$I11-SUM($I25:BD25),BD25) -> 1.696979383 | BF25: =IF(SUM($I25:BE25)+BE25>$I11,$I11-SUM($I25:BE25),BE25) -> 1.696979383 | BG25: =IF(SUM($I25:BF25)+BF25>$I11,$I11-SUM($I25:BF25),BF25) -> 1.696979383 | BH25: =IF(SUM($I25:BG25)+BG25>$I11,$I11-SUM($I25:BG25),BG25) -> 1.696979383 | BI25: =IF(SUM($I25:BH25)+BH25>$I11,$I11-SUM($I25:BH25),BH25) -> 1.696979383 | BJ25: =IF(SUM($I25:BI25)+BI25>$I11,$I11-SUM($I25:BI25),BI25) -> 1.696979383 | BK25: =IF(SUM($I25:BJ25)+BJ25>$I11,$I11-SUM($I25:BJ25),BJ25) -> 0.8484896915 | BL25: =IF(SUM($I25:BK25)+BK25>$I11,$I11-SUM($I25:BK25),BK25) -> 0 | BM25: =IF(SUM($I25:BL25)+BL25>$I11,$I11-SUM($I25:BL25),BL25) -> 0 | BN25: =IF(SUM($I25:BM25)+BM25>$I11,$I11-SUM($I25:BM25),BM25) -> 0 | BO25: =IF(SUM($I25:BN25)+BN25>$I11,$I11-SUM($I25:BN25),BN25) -> 0 | BP25: =IF(SUM($I25:BO25)+BO25>$I11,$I11-SUM($I25:BO25),BO25) -> 0 | BQ25: =IF(SUM($I25:BP25)+BP25>$I11,$I11-SUM($I25:BP25),BP25) -> 0 | BR25: =IF(SUM($I25:BQ25)+BQ25>$I11,$I11-SUM($I25:BQ25),BQ25) -> 0 | BS25: =IF(SUM($I25:BR25)+BR25>$I11,$I11-SUM($I25:BR25),BR25) -> 0 | BT25: =IF(SUM($I25:BS25)+BS25>$I11,$I11-SUM($I25:BS25),BS25) -> 0 | BU25: =IF(SUM($I25:BT25)+BT25>$I11,$I11-SUM($I25:BT25),BT25) -> 0 | BV25: =IF(SUM($I25:BU25)+BU25>$I11,$I11-SUM($I25:BU25),BU25) -> 0 | BW25: =IF(SUM($I25:BV25)+BV25>$I11,$I11-SUM($I25:BV25),BV25) -> 0 | BX25: =IF(SUM($I25:BW25)+BW25>$I11,$I11-SUM($I25:BW25),BW25) -> 0 | BY25: =IF(SUM($I25:BX25)+BX25>$I11,$I11-SUM($I25:BX25),BX25) -> 0 | BZ25: =IF(SUM($I25:BY25)+BY25>$I11,$I11-SUM($I25:BY25),BY25) -> 0 | CA25: =IF(SUM($I25:BZ25)+BZ25>$I11,$I11-SUM($I25:BZ25),BZ25) -> 0 | CB25: =IF(SUM($I25:CA25)+CA25>$I11,$I11-SUM($I25:CA25),CA25) -> 0 | CC25: =IF(SUM($I25:CB25)+CB25>$I11,$I11-SUM($I25:CB25),CB25) -> 0 | CD25: =IF(SUM($I25:CC25)+CC25>$I11,$I11-SUM($I25:CC25),CC25) -> 0 | CE25: =IF(SUM($I25:CD25)+CD25>$I11,$I11-SUM($I25:CD25),CD25) -> 0 | CF25: =IF(SUM($I25:CE25)+CE25>$I11,$I11-SUM($I25:CE25),CE25) -> 0 | CG25: =IF(SUM($I25:CF25)+CF25>$I11,$I11-SUM($I25:CF25),CF25) -> 0 | CH25: =IF(SUM($I25:CG25)+CG25>$I11,$I11-SUM($I25:CG25),CG25) -> 0 | CI25: =IF(SUM($I25:CH25)+CH25>$I11,$I11-SUM($I25:CH25),CH25) -> 0 | CJ25: =IF(SUM($I25:CI25)+CI25>$I11,$I11-SUM($I25:CI25),CI25) -> 0 | CK25: =IF(SUM($I25:CJ25)+CJ25>$I11,$I11-SUM($I25:CJ25),CJ25) -> 0 | CL25: =IF(SUM($I25:CK25)+CK25>$I11,$I11-SUM($I25:CK25),CK25) -> 0 | CM25: =IF(SUM($I25:CL25)+CL25>$I11,$I11-SUM($I25:CL25),CL25) -> 0 | CN25: =IF(SUM($I25:CM25)+CM25>$I11,$I11-SUM($I25:CM25),CM25) -> 0 | CO25: =IF(SUM($I25:CN25)+CN25>$I11,$I11-SUM($I25:CN25),CN25) -> 0 | CP25: =IF(SUM($I25:CO25)+CO25>$I11,$I11-SUM($I25:CO25),CO25) -> 0 | CQ25: =IF(SUM($I25:CP25)+CP25>$I11,$I11-SUM($I25:CP25),CP25) -> 0 | CR25: =IF(SUM($I25:CQ25)+CQ25>$I11,$I11-SUM($I25:CQ25),CQ25) -> 0 | CS25: =IF(SUM($I25:CR25)+CR25>$I11,$I11-SUM($I25:CR25),CR25) -> 0 | CT25: =IF(SUM($I25:CS25)+CS25>$I11,$I11-SUM($I25:CS25),CS25) -> 0 | CU25: =IF(SUM($I25:CT25)+CT25>$I11,$I11-SUM($I25:CT25),CT25) -> 0 | CV25: =IF(SUM($I25:CU25)+CU25>$I11,$I11-SUM($I25:CU25),CU25) -> 0 | CW25: =IF(SUM($I25:CV25)+CV25>$I11,$I11-SUM($I25:CV25),CV25) -> 0 | CX25: =IF(SUM($I25:CW25)+CW25>$I11,$I11-SUM($I25:CW25),CW25) -> 0 | CY25: =IF(SUM($I25:CX25)+CX25>$I11,$I11-SUM($I25:CX25),CX25) -> 0 | CZ25: =IF(SUM($I25:CY25)+CY25>$I11,$I11-SUM($I25:CY25),CY25) -> 0 | DA25: =IF(SUM($I25:CZ25)+CZ25>$I11,$I11-SUM($I25:CZ25),CZ25) -> 0 | DB25: =IF(SUM($I25:DA25)+DA25>$I11,$I11-SUM($I25:DA25),DA25) -> 0 | DC25: =IF(SUM($I25:DB25)+DB25>$I11,$I11-SUM($I25:DB25),DB25) -> 0 | DD25: =IF(SUM($I25:DC25)+DC25>$I11,$I11-SUM($I25:DC25),DC25) -> 0 | DE25: =IF(SUM($I25:DD25)+DD25>$I11,$I11-SUM($I25:DD25),DD25) -> 0 | DF25: =IF(SUM($I25:DE25)+DE25>$I11,$I11-SUM($I25:DE25),DE25) -> 0 | DG25: =IF(SUM($I25:DF25)+DF25>$I11,$I11-SUM($I25:DF25),DF25) -> 0 | DH25: =IF(SUM($I25:DG25)+DG25>$I11,$I11-SUM($I25:DG25),DG25) -> 0 | DI25: =IF(SUM($I25:DH25)+DH25>$I11,$I11-SUM($I25:DH25),DH25) -> 0 | DJ25: =IF(SUM($I25:DI25)+DI25>$I11,$I11-SUM($I25:DI25),DI25) -> 0 | DK25: =IF(SUM($I25:DJ25)+DJ25>$I11,$I11-SUM($I25:DJ25),DJ25) -> 0 | DL25: =IF(SUM($I25:DK25)+DK25>$I11,$I11-SUM($I25:DK25),DK25) -> 0 | DM25: =IF(SUM($I25:DL25)+DL25>$I11,$I11-SUM($I25:DL25),DL25) -> 0 | DN25: =IF(SUM($I25:DM25)+DM25>$I11,$I11-SUM($I25:DM25),DM25) -> 0 | DO25: =IF(SUM($I25:DN25)+DN25>$I11,$I11-SUM($I25:DN25),DN25) -> 0 | DP25: =IF(SUM($I25:DO25)+DO25>$I11,$I11-SUM($I25:DO25),DO25) -> 0 | DQ25: =IF(SUM($I25:DP25)+DP25>$I11,$I11-SUM($I25:DP25),DP25) -> 0 | DR25: =IF(SUM($I25:DQ25)+DQ25>$I11,$I11-SUM($I25:DQ25),DQ25) -> 0 | DS25: =IF(SUM($I25:DR25)+DR25>$I11,$I11-SUM($I25:DR25),DR25) -> 0 | DT25: =IF(SUM($I25:DS25)+DS25>$I11,$I11-SUM($I25:DS25),DS25) -> 0 | DU25: =IF(SUM($I25:DT25)+DT25>$I11,$I11-SUM($I25:DT25),DT25) -> 0 | DV25: =IF(SUM($I25:DU25)+DU25>$I11,$I11-SUM($I25:DU25),DU25) -> 0 | DW25: =IF(SUM($I25:DV25)+DV25>$I11,$I11-SUM($I25:DV25),DV25) -> 0 | DX25: =IF(SUM($I25:DW25)+DW25>$I11,$I11-SUM($I25:DW25),DW25) -> 0 | DY25: =IF(SUM($I25:DX25)+DX25>$I11,$I11-SUM($I25:DX25),DX25) -> 0 | DZ25: =IF(SUM($I25:DY25)+DY25>$I11,$I11-SUM($I25:DY25),DY25) -> 0 | EA25: =IF(SUM($I25:DZ25)+DZ25>$I11,$I11-SUM($I25:DZ25),DZ25) -> 0 | EB25: =IF(SUM($I25:EA25)+EA25>$I11,$I11-SUM($I25:EA25),EA25) -> 0 | EC25: =IF(SUM($I25:EB25)+EB25>$I11,$I11-SUM($I25:EB25),EB25) -> 0 | ED25: =IF(SUM($I25:EC25)+EC25>$I11,$I11-SUM($I25:EC25),EC25) -> 0 | EE25: =IF(SUM($I25:ED25)+ED25>$I11,$I11-SUM($I25:ED25),ED25) -> 0 | EF25: =IF(SUM($I25:EE25)+EE25>$I11,$I11-SUM($I25:EE25),EE25) -> 0 | EG25: =IF(SUM($I25:EF25)+EF25>$I11,$I11-SUM($I25:EF25),EF25) -> 0 | EH25: =IF(SUM($I25:EG25)+EG25>$I11,$I11-SUM($I25:EG25),EG25) -> 0 | EI25: =IF(SUM($I25:EH25)+EH25>$I11,$I11-SUM($I25:EH25),EH25) -> 0 | EJ25: =IF(SUM($I25:EI25)+EI25>$I11,$I11-SUM($I25:EI25),EI25) -> 0 | EK25: =IF(SUM($I25:EJ25)+EJ25>$I11,$I11-SUM($I25:EJ25),EJ25) -> 0 | EL25: =IF(SUM($I25:EK25)+EK25>$I11,$I11-SUM($I25:EK25),EK25) -> 0 | EM25: =IF(SUM($I25:EL25)+EL25>$I11,$I11-SUM($I25:EL25),EL25) -> 0 | EN25: =IF(SUM($I25:EM25)+EM25>$I11,$I11-SUM($I25:EM25),EM25) -> 0 | EO25: =IF(SUM($I25:EN25)+EN25>$I11,$I11-SUM($I25:EN25),EN25) -> 0 | EP25: =IF(SUM($I25:EO25)+EO25>$I11,$I11-SUM($I25:EO25),EO25) -> 0 | EQ25: =IF(SUM($I25:EP25)+EP25>$I11,$I11-SUM($I25:EP25),EP25) -> 0 | ER25: =IF(SUM($I25:EQ25)+EQ25>$I11,$I11-SUM($I25:EQ25),EQ25) -> 0 | ES25: =IF(SUM($I25:ER25)+ER25>$I11,$I11-SUM($I25:ER25),ER25) -> 0
B26: ='Model inputs'!B12 -> Receipt and delivery point facilities | F26: =4*('Model inputs'!G12-5.5) -> 98 | G26: quarters | H26: $m | I26: ='Model inputs'!I38 -> 0.01565657117 | J26: ='Model inputs'!J38 -> 0.01565657117 | K26: ='Model inputs'!K38 -> 0.01565657117 | L26: ='Model inputs'!L38 -> 0.01565657117 | M26: ='Model inputs'!M38 -> 0.01565657117 | N26: ='Model inputs'!N38 -> 0.01565657117 | O26: ='Model inputs'!O38 -> 0.01565657117 | P26: ='Model inputs'!P38 -> 0.01565657117 | Q26: ='Model inputs'!Q38 -> 0.01565657117 | R26: ='Model inputs'!R38 -> 0.01565657117 | S26: ='Model inputs'!S38 -> 0.01565657117 | T26: ='Model inputs'!T38 -> 0.01565657117 | U26: ='Model inputs'!U38 -> 0.01565657117 | V26: ='Model inputs'!V38 -> 0.01565657117 | W26: ='Model inputs'!W38 -> 0.01565657117 | X26: ='Model inputs'!X38 -> 0.01565657117 | Y26: ='Model inputs'!Y38 -> 0.01565657117 | Z26: ='Model inputs'!Z38 -> 0.01565657117 | AA26: ='Model inputs'!AA38 -> 0.01565657117 | AB26: ='Model inputs'!AB38 -> 0.01565657117 | AC26: ='Model inputs'!AC38 -> 0.01565657117 | AD26: ='Model inputs'!AD38 -> 0.01565657117 | AE26: ='Model inputs'!AE38 -> 0.01565657117 | AF26: ='Model inputs'!AF38 -> 0.01565657117 | AG26: ='Model inputs'!AG38 -> 0.01565657117 | AH26: ='Model inputs'!AH38 -> 0.01565657117 | AI26: ='Model inputs'!AI38 -> 0.01565657117 | AJ26: ='Model inputs'!AJ38 -> 0.01565657117 | AK26: ='Model inputs'!AK38 -> 0.01565657117 | AL26: ='Model inputs'!AL38 -> 0.01565657117 | AM26: ='Model inputs'!AM38 -> 0.01565657117 | AN26: ='Model inputs'!AN38 -> 0.01565657117 | AO26: ='Model inputs'!AO38 -> 0.01565657117 | AP26: ='Model inputs'!AP38 -> 0.01565657117 | AQ26: ='Model inputs'!AQ38 -> 0.01565657117 | AR26: ='Model inputs'!AR38 -> 0.01565657117 | AS26: ='Model inputs'!AS38 -> 0.01565657117 | AT26: ='Model inputs'!AT38 -> 0.01565657117 | AU26: ='Model inputs'!AU38 -> 0.01565657117 | AV26: ='Model inputs'!AV38 -> 0.01565657117 | AW26: =IF(SUM($I26:AV26)+4*AV26>$I12,$I12-SUM($I26:AV26),4*AV26) -> 0.0626262847 | AX26: =IF(SUM($I26:AW26)+AW26>$I12,$I12-SUM($I26:AW26),AW26) -> 0.0626262847 | AY26: =IF(SUM($I26:AX26)+AX26>$I12,$I12-SUM($I26:AX26),AX26) -> 0.0626262847 | AZ26: =IF(SUM($I26:AY26)+AY26>$I12,$I12-SUM($I26:AY26),AY26) -> 0.0626262847 | BA26: =IF(SUM($I26:AZ26)+AZ26>$I12,$I12-SUM($I26:AZ26),AZ26) -> 0.0626262847 | BB26: =IF(SUM($I26:BA26)+BA26>$I12,$I12-SUM($I26:BA26),BA26) -> 0.0626262847 | BC26: =IF(SUM($I26:BB26)+BB26>$I12,$I12-SUM($I26:BB26),BB26) -> 0.0626262847 | BD26: =IF(SUM($I26:BC26)+BC26>$I12,$I12-SUM($I26:BC26),BC26) -> 0.0626262847 | BE26: =IF(SUM($I26:BD26)+BD26>$I12,$I12-SUM($I26:BD26),BD26) -> 0.0626262847 | BF26: =IF(SUM($I26:BE26)+BE26>$I12,$I12-SUM($I26:BE26),BE26) -> 0.0626262847 | BG26: =IF(SUM($I26:BF26)+BF26>$I12,$I12-SUM($I26:BF26),BF26) -> 0.0626262847 | BH26: =IF(SUM($I26:BG26)+BG26>$I12,$I12-SUM($I26:BG26),BG26) -> 0.0626262847 | BI26: =IF(SUM($I26:BH26)+BH26>$I12,$I12-SUM($I26:BH26),BH26) -> 0.0626262847 | BJ26: =IF(SUM($I26:BI26)+BI26>$I12,$I12-SUM($I26:BI26),BI26) -> 0.0626262847 | BK26: =IF(SUM($I26:BJ26)+BJ26>$I12,$I12-SUM($I26:BJ26),BJ26) -> 0.03131314235 | BL26: =IF(SUM($I26:BK26)+BK26>$I12,$I12-SUM($I26:BK26),BK26) -> 0 | BM26: =IF(SUM($I26:BL26)+BL26>$I12,$I12-SUM($I26:BL26),BL26) -> 0 | BN26: =IF(SUM($I26:BM26)+BM26>$I12,$I12-SUM($I26:BM26),BM26) -> 0 | BO26: =IF(SUM($I26:BN26)+BN26>$I12,$I12-SUM($I26:BN26),BN26) -> 0 | BP26: =IF(SUM($I26:BO26)+BO26>$I12,$I12-SUM($I26:BO26),BO26) -> 0 | BQ26: =IF(SUM($I26:BP26)+BP26>$I12,$I12-SUM($I26:BP26),BP26) -> 0 | BR26: =IF(SUM($I26:BQ26)+BQ26>$I12,$I12-SUM($I26:BQ26),BQ26) -> 0 | BS26: =IF(SUM($I26:BR26)+BR26>$I12,$I12-SUM($I26:BR26),BR26) -> 0 | BT26: =IF(SUM($I26:BS26)+BS26>$I12,$I12-SUM($I26:BS26),BS26) -> 0 | BU26: =IF(SUM($I26:BT26)+BT26>$I12,$I12-SUM($I26:BT26),BT26) -> 0 | BV26: =IF(SUM($I26:BU26)+BU26>$I12,$I12-SUM($I26:BU26),BU26) -> 0 | BW26: =IF(SUM($I26:BV26)+BV26>$I12,$I12-SUM($I26:BV26),BV26) -> 0 | BX26: =IF(SUM($I26:BW26)+BW26>$I12,$I12-SUM($I26:BW26),BW26) -> 0 | BY26: =IF(SUM($I26:BX26)+BX26>$I12,$I12-SUM($I26:BX26),BX26) -> 0 | BZ26: =IF(SUM($I26:BY26)+BY26>$I12,$I12-SUM($I26:BY26),BY26) -> 0 | CA26: =IF(SUM($I26:BZ26)+BZ26>$I12,$I12-SUM($I26:BZ26),BZ26) -> 0 | CB26: =IF(SUM($I26:CA26)+CA26>$I12,$I12-SUM($I26:CA26),CA26) -> 0 | CC26: =IF(SUM($I26:CB26)+CB26>$I12,$I12-SUM($I26:CB26),CB26) -> 0 | CD26: =IF(SUM($I26:CC26)+CC26>$I12,$I12-SUM($I26:CC26),CC26) -> 0 | CE26: =IF(SUM($I26:CD26)+CD26>$I12,$I12-SUM($I26:CD26),CD26) -> 0 | CF26: =IF(SUM($I26:CE26)+CE26>$I12,$I12-SUM($I26:CE26),CE26) -> 0 | CG26: =IF(SUM($I26:CF26)+CF26>$I12,$I12-SUM($I26:CF26),CF26) -> 0 | CH26: =IF(SUM($I26:CG26)+CG26>$I12,$I12-SUM($I26:CG26),CG26) -> 0 | CI26: =IF(SUM($I26:CH26)+CH26>$I12,$I12-SUM($I26:CH26),CH26) -> 0 | CJ26: =IF(SUM($I26:CI26)+CI26>$I12,$I12-SUM($I26:CI26),CI26) -> 0 | CK26: =IF(SUM($I26:CJ26)+CJ26>$I12,$I12-SUM($I26:CJ26),CJ26) -> 0 | CL26: =IF(SUM($I26:CK26)+CK26>$I12,$I12-SUM($I26:CK26),CK26) -> 0 | CM26: =IF(SUM($I26:CL26)+CL26>$I12,$I12-SUM($I26:CL26),CL26) -> 0 | CN26: =IF(SUM($I26:CM26)+CM26>$I12,$I12-SUM($I26:CM26),CM26) -> 0 | CO26: =IF(SUM($I26:CN26)+CN26>$I12,$I12-SUM($I26:CN26),CN26) -> 0 | CP26: =IF(SUM($I26:CO26)+CO26>$I12,$I12-SUM($I26:CO26),CO26) -> 0 | CQ26: =IF(SUM($I26:CP26)+CP26>$I12,$I12-SUM($I26:CP26),CP26) -> 0 | CR26: =IF(SUM($I26:CQ26)+CQ26>$I12,$I12-SUM($I26:CQ26),CQ26) -> 0 | CS26: =IF(SUM($I26:CR26)+CR26>$I12,$I12-SUM($I26:CR26),CR26) -> 0 | CT26: =IF(SUM($I26:CS26)+CS26>$I12,$I12-SUM($I26:CS26),CS26) -> 0 | CU26: =IF(SUM($I26:CT26)+CT26>$I12,$I12-SUM($I26:CT26),CT26) -> 0 | CV26: =IF(SUM($I26:CU26)+CU26>$I12,$I12-SUM($I26:CU26),CU26) -> 0 | CW26: =IF(SUM($I26:CV26)+CV26>$I12,$I12-SUM($I26:CV26),CV26) -> 0 | CX26: =IF(SUM($I26:CW26)+CW26>$I12,$I12-SUM($I26:CW26),CW26) -> 0 | CY26: =IF(SUM($I26:CX26)+CX26>$I12,$I12-SUM($I26:CX26),CX26) -> 0 | CZ26: =IF(SUM($I26:CY26)+CY26>$I12,$I12-SUM($I26:CY26),CY26) -> 0 | DA26: =IF(SUM($I26:CZ26)+CZ26>$I12,$I12-SUM($I26:CZ26),CZ26) -> 0 | DB26: =IF(SUM($I26:DA26)+DA26>$I12,$I12-SUM($I26:DA26),DA26) -> 0 | DC26: =IF(SUM($I26:DB26)+DB26>$I12,$I12-SUM($I26:DB26),DB26) -> 0 | DD26: =IF(SUM($I26:DC26)+DC26>$I12,$I12-SUM($I26:DC26),DC26) -> 0 | DE26: =IF(SUM($I26:DD26)+DD26>$I12,$I12-SUM($I26:DD26),DD26) -> 0 | DF26: =IF(SUM($I26:DE26)+DE26>$I12,$I12-SUM($I26:DE26),DE26) -> 0 | DG26: =IF(SUM($I26:DF26)+DF26>$I12,$I12-SUM($I26:DF26),DF26) -> 0 | DH26: =IF(SUM($I26:DG26)+DG26>$I12,$I12-SUM($I26:DG26),DG26) -> 0 | DI26: =IF(SUM($I26:DH26)+DH26>$I12,$I12-SUM($I26:DH26),DH26) -> 0 | DJ26: =IF(SUM($I26:DI26)+DI26>$I12,$I12-SUM($I26:DI26),DI26) -> 0 | DK26: =IF(SUM($I26:DJ26)+DJ26>$I12,$I12-SUM($I26:DJ26),DJ26) -> 0 | DL26: =IF(SUM($I26:DK26)+DK26>$I12,$I12-SUM($I26:DK26),DK26) -> 0 | DM26: =IF(SUM($I26:DL26)+DL26>$I12,$I12-SUM($I26:DL26),DL26) -> 0 | DN26: =IF(SUM($I26:DM26)+DM26>$I12,$I12-SUM($I26:DM26),DM26) -> 0 | DO26: =IF(SUM($I26:DN26)+DN26>$I12,$I12-SUM($I26:DN26),DN26) -> 0 | DP26: =IF(SUM($I26:DO26)+DO26>$I12,$I12-SUM($I26:DO26),DO26) -> 0 | DQ26: =IF(SUM($I26:DP26)+DP26>$I12,$I12-SUM($I26:DP26),DP26) -> 0 | DR26: =IF(SUM($I26:DQ26)+DQ26>$I12,$I12-SUM($I26:DQ26),DQ26) -> 0 | DS26: =IF(SUM($I26:DR26)+DR26>$I12,$I12-SUM($I26:DR26),DR26) -> 0 | DT26: =IF(SUM($I26:DS26)+DS26>$I12,$I12-SUM($I26:DS26),DS26) -> 0 | DU26: =IF(SUM($I26:DT26)+DT26>$I12,$I12-SUM($I26:DT26),DT26) -> 0 | DV26: =IF(SUM($I26:DU26)+DU26>$I12,$I12-SUM($I26:DU26),DU26) -> 0 | DW26: =IF(SUM($I26:DV26)+DV26>$I12,$I12-SUM($I26:DV26),DV26) -> 0 | DX26: =IF(SUM($I26:DW26)+DW26>$I12,$I12-SUM($I26:DW26),DW26) -> 0 | DY26: =IF(SUM($I26:DX26)+DX26>$I12,$I12-SUM($I26:DX26),DX26) -> 0 | DZ26: =IF(SUM($I26:DY26)+DY26>$I12,$I12-SUM($I26:DY26),DY26) -> 0 | EA26: =IF(SUM($I26:DZ26)+DZ26>$I12,$I12-SUM($I26:DZ26),DZ26) -> 0 | EB26: =IF(SUM($I26:EA26)+EA26>$I12,$I12-SUM($I26:EA26),EA26) -> 0 | EC26: =IF(SUM($I26:EB26)+EB26>$I12,$I12-SUM($I26:EB26),EB26) -> 0 | ED26: =IF(SUM($I26:EC26)+EC26>$I12,$I12-SUM($I26:EC26),EC26) -> 0 | EE26: =IF(SUM($I26:ED26)+ED26>$I12,$I12-SUM($I26:ED26),ED26) -> 0 | EF26: =IF(SUM($I26:EE26)+EE26>$I12,$I12-SUM($I26:EE26),EE26) -> 0 | EG26: =IF(SUM($I26:EF26)+EF26>$I12,$I12-SUM($I26:EF26),EF26) -> 0 | EH26: =IF(SUM($I26:EG26)+EG26>$I12,$I12-SUM($I26:EG26),EG26) -> 0 | EI26: =IF(SUM($I26:EH26)+EH26>$I12,$I12-SUM($I26:EH26),EH26) -> 0 | EJ26: =IF(SUM($I26:EI26)+EI26>$I12,$I12-SUM($I26:EI26),EI26) -> 0 | EK26: =IF(SUM($I26:EJ26)+EJ26>$I12,$I12-SUM($I26:EJ26),EJ26) -> 0 | EL26: =IF(SUM($I26:EK26)+EK26>$I12,$I12-SUM($I26:EK26),EK26) -> 0 | EM26: =IF(SUM($I26:EL26)+EL26>$I12,$I12-SUM($I26:EL26),EL26) -> 0 | EN26: =IF(SUM($I26:EM26)+EM26>$I12,$I12-SUM($I26:EM26),EM26) -> 0 | EO26: =IF(SUM($I26:EN26)+EN26>$I12,$I12-SUM($I26:EN26),EN26) -> 0 | EP26: =IF(SUM($I26:EO26)+EO26>$I12,$I12-SUM($I26:EO26),EO26) -> 0 | EQ26: =IF(SUM($I26:EP26)+EP26>$I12,$I12-SUM($I26:EP26),EP26) -> 0 | ER26: =IF(SUM($I26:EQ26)+EQ26>$I12,$I12-SUM($I26:EQ26),EQ26) -> 0 | ES26: =IF(SUM($I26:ER26)+ER26>$I12,$I12-SUM($I26:ER26),ER26) -> 0
B27: ='Model inputs'!B13 -> SCADA and communications | F27: =4*('Model inputs'!G13-5.5) -> 38 | G27: quarters | H27: $m | I27: ='Model inputs'!I39 -> 0.2665681081 | J27: ='Model inputs'!J39 -> 0.2665681081 | K27: ='Model inputs'!K39 -> 0.2665681081 | L27: ='Model inputs'!L39 -> 0.2665681081 | M27: ='Model inputs'!M39 -> 0.2665681081 | N27: ='Model inputs'!N39 -> 0.2665681081 | O27: ='Model inputs'!O39 -> 0.2665681081 | P27: ='Model inputs'!P39 -> 0.2665681081 | Q27: ='Model inputs'!Q39 -> 0.2665681081 | R27: ='Model inputs'!R39 -> 0.2665681081 | S27: ='Model inputs'!S39 -> 0.2665681081 | T27: ='Model inputs'!T39 -> 0.2665681081 | U27: ='Model inputs'!U39 -> 0.2665681081 | V27: ='Model inputs'!V39 -> 0.2665681081 | W27: ='Model inputs'!W39 -> 0.2665681081 | X27: ='Model inputs'!X39 -> 0.2665681081 | Y27: ='Model inputs'!Y39 -> 0.2665681081 | Z27: ='Model inputs'!Z39 -> 0.2665681081 | AA27: ='Model inputs'!AA39 -> 0.2665681081 | AB27: ='Model inputs'!AB39 -> 0.2665681081 | AC27: ='Model inputs'!AC39 -> 0.2665681081 | AD27: ='Model inputs'!AD39 -> 0.2665681081 | AE27: ='Model inputs'!AE39 -> 0.2665681081 | AF27: ='Model inputs'!AF39 -> 0.2665681081 | AG27: ='Model inputs'!AG39 -> 0.2665681081 | AH27: ='Model inputs'!AH39 -> 0.2665681081 | AI27: ='Model inputs'!AI39 -> 0.2665681081 | AJ27: ='Model inputs'!AJ39 -> 0.2665681081 | AK27: ='Model inputs'!AK39 -> 0.2665681081 | AL27: ='Model inputs'!AL39 -> 0.2665681081 | AM27: ='Model inputs'!AM39 -> 0.2665681081 | AN27: ='Model inputs'!AN39 -> 0.2665681081 | AO27: ='Model inputs'!AO39 -> 0.2665681081 | AP27: ='Model inputs'!AP39 -> 0.2665681081 | AQ27: ='Model inputs'!AQ39 -> 0.2665681081 | AR27: ='Model inputs'!AR39 -> 0.2665681081 | AS27: ='Model inputs'!AS39 -> 0.2665681081 | AT27: ='Model inputs'!AT39 -> 0.2665681081 | AU27: ='Model inputs'!AU39 -> -5.329070518e-15 | AV27: ='Model inputs'!AV39 -> -5.329070518e-15 | AW27: =IF(SUM($I27:AV27)+4*AV27>$I13,$I13-SUM($I27:AV27),4*AV27) -> -2.131628207e-14 | AX27: =IF(SUM($I27:AW27)+AW27>$I13,$I13-SUM($I27:AW27),AW27) -> -2.131628207e-14 | AY27: =IF(SUM($I27:AX27)+AX27>$I13,$I13-SUM($I27:AX27),AX27) -> -2.131628207e-14 | AZ27: =IF(SUM($I27:AY27)+AY27>$I13,$I13-SUM($I27:AY27),AY27) -> -2.131628207e-14 | BA27: =IF(SUM($I27:AZ27)+AZ27>$I13,$I13-SUM($I27:AZ27),AZ27) -> -2.131628207e-14 | BB27: =IF(SUM($I27:BA27)+BA27>$I13,$I13-SUM($I27:BA27),BA27) -> -2.131628207e-14 | BC27: =IF(SUM($I27:BB27)+BB27>$I13,$I13-SUM($I27:BB27),BB27) -> -2.131628207e-14 | BD27: =IF(SUM($I27:BC27)+BC27>$I13,$I13-SUM($I27:BC27),BC27) -> -2.131628207e-14 | BE27: =IF(SUM($I27:BD27)+BD27>$I13,$I13-SUM($I27:BD27),BD27) -> -2.131628207e-14 | BF27: =IF(SUM($I27:BE27)+BE27>$I13,$I13-SUM($I27:BE27),BE27) -> -2.131628207e-14 | BG27: =IF(SUM($I27:BF27)+BF27>$I13,$I13-SUM($I27:BF27),BF27) -> -2.131628207e-14 | BH27: =IF(SUM($I27:BG27)+BG27>$I13,$I13-SUM($I27:BG27),BG27) -> -2.131628207e-14 | BI27: =IF(SUM($I27:BH27)+BH27>$I13,$I13-SUM($I27:BH27),BH27) -> -2.131628207e-14 | BJ27: =IF(SUM($I27:BI27)+BI27>$I13,$I13-SUM($I27:BI27),BI27) -> -2.131628207e-14 | BK27: =IF(SUM($I27:BJ27)+BJ27>$I13,$I13-SUM($I27:BJ27),BJ27) -> -2.131628207e-14 | BL27: =IF(SUM($I27:BK27)+BK27>$I13,$I13-SUM($I27:BK27),BK27) -> -2.131628207e-14 | BM27: =IF(SUM($I27:BL27)+BL27>$I13,$I13-SUM($I27:BL27),BL27) -> -2.131628207e-14 | BN27: =IF(SUM($I27:BM27)+BM27>$I13,$I13-SUM($I27:BM27),BM27) -> -2.131628207e-14 | BO27: =IF(SUM($I27:BN27)+BN27>$I13,$I13-SUM($I27:BN27),BN27) -> -2.131628207e-14 | BP27: =IF(SUM($I27:BO27)+BO27>$I13,$I13-SUM($I27:BO27),BO27) -> -2.131628207e-14 | BQ27: =IF(SUM($I27:BP27)+BP27>$I13,$I13-SUM($I27:BP27),BP27) -> -2.131628207e-14 | BR27: =IF(SUM($I27:BQ27)+BQ27>$I13,$I13-SUM($I27:BQ27),BQ27) -> -2.131628207e-14 | BS27: =IF(SUM($I27:BR27)+BR27>$I13,$I13-SUM($I27:BR27),BR27) -> -2.131628207e-14 | BT27: =IF(SUM($I27:BS27)+BS27>$I13,$I13-SUM($I27:BS27),BS27) -> -2.131628207e-14 | BU27: =IF(SUM($I27:BT27)+BT27>$I13,$I13-SUM($I27:BT27),BT27) -> -2.131628207e-14 | BV27: =IF(SUM($I27:BU27)+BU27>$I13,$I13-SUM($I27:BU27),BU27) -> -2.131628207e-14 | BW27: =IF(SUM($I27:BV27)+BV27>$I13,$I13-SUM($I27:BV27),BV27) -> -2.131628207e-14 | BX27: =IF(SUM($I27:BW27)+BW27>$I13,$I13-SUM($I27:BW27),BW27) -> -2.131628207e-14 | BY27: =IF(SUM($I27:BX27)+BX27>$I13,$I13-SUM($I27:BX27),BX27) -> -2.131628207e-14 | BZ27: =IF(SUM($I27:BY27)+BY27>$I13,$I13-SUM($I27:BY27),BY27) -> -2.131628207e-14 | CA27: =IF(SUM($I27:BZ27)+BZ27>$I13,$I13-SUM($I27:BZ27),BZ27) -> -2.131628207e-14 | CB27: =IF(SUM($I27:CA27)+CA27>$I13,$I13-SUM($I27:CA27),CA27) -> -2.131628207e-14 | CC27: =IF(SUM($I27:CB27)+CB27>$I13,$I13-SUM($I27:CB27),CB27) -> -2.131628207e-14 | CD27: =IF(SUM($I27:CC27)+CC27>$I13,$I13-SUM($I27:CC27),CC27) -> -2.131628207e-14 | CE27: =IF(SUM($I27:CD27)+CD27>$I13,$I13-SUM($I27:CD27),CD27) -> -2.131628207e-14 | CF27: =IF(SUM($I27:CE27)+CE27>$I13,$I13-SUM($I27:CE27),CE27) -> -2.131628207e-14 | CG27: =IF(SUM($I27:CF27)+CF27>$I13,$I13-SUM($I27:CF27),CF27) -> -2.131628207e-14 | CH27: =IF(SUM($I27:CG27)+CG27>$I13,$I13-SUM($I27:CG27),CG27) -> -2.131628207e-14 | CI27: =IF(SUM($I27:CH27)+CH27>$I13,$I13-SUM($I27:CH27),CH27) -> -2.131628207e-14 | CJ27: =IF(SUM($I27:CI27)+CI27>$I13,$I13-SUM($I27:CI27),CI27) -> -2.131628207e-14 | CK27: =IF(SUM($I27:CJ27)+CJ27>$I13,$I13-SUM($I27:CJ27),CJ27) -> -2.131628207e-14 | CL27: =IF(SUM($I27:CK27)+CK27>$I13,$I13-SUM($I27:CK27),CK27) -> -2.131628207e-14 | CM27: =IF(SUM($I27:CL27)+CL27>$I13,$I13-SUM($I27:CL27),CL27) -> -2.131628207e-14 | CN27: =IF(SUM($I27:CM27)+CM27>$I13,$I13-SUM($I27:CM27),CM27) -> -2.131628207e-14 | CO27: =IF(SUM($I27:CN27)+CN27>$I13,$I13-SUM($I27:CN27),CN27) -> -2.131628207e-14 | CP27: =IF(SUM($I27:CO27)+CO27>$I13,$I13-SUM($I27:CO27),CO27) -> -2.131628207e-14 | CQ27: =IF(SUM($I27:CP27)+CP27>$I13,$I13-SUM($I27:CP27),CP27) -> -2.131628207e-14 | CR27: =IF(SUM($I27:CQ27)+CQ27>$I13,$I13-SUM($I27:CQ27),CQ27) -> -2.131628207e-14 | CS27: =IF(SUM($I27:CR27)+CR27>$I13,$I13-SUM($I27:CR27),CR27) -> -2.131628207e-14 | CT27: =IF(SUM($I27:CS27)+CS27>$I13,$I13-SUM($I27:CS27),CS27) -> -2.131628207e-14 | CU27: =IF(SUM($I27:CT27)+CT27>$I13,$I13-SUM($I27:CT27),CT27) -> -2.131628207e-14 | CV27: =IF(SUM($I27:CU27)+CU27>$I13,$I13-SUM($I27:CU27),CU27) -> -2.131628207e-14 | CW27: =IF(SUM($I27:CV27)+CV27>$I13,$I13-SUM($I27:CV27),CV27) -> -2.131628207e-14 | CX27: =IF(SUM($I27:CW27)+CW27>$I13,$I13-SUM($I27:CW27),CW27) -> -2.131628207e-14 | CY27: =IF(SUM($I27:CX27)+CX27>$I13,$I13-SUM($I27:CX27),CX27) -> -2.131628207e-14 | CZ27: =IF(SUM($I27:CY27)+CY27>$I13,$I13-SUM($I27:CY27),CY27) -> -2.131628207e-14 | DA27: =IF(SUM($I27:CZ27)+CZ27>$I13,$I13-SUM($I27:CZ27),CZ27) -> -2.131628207e-14 | DB27: =IF(SUM($I27:DA27)+DA27>$I13,$I13-SUM($I27:DA27),DA27) -> -2.131628207e-14 | DC27: =IF(SUM($I27:DB27)+DB27>$I13,$I13-SUM($I27:DB27),DB27) -> -2.131628207e-14 | DD27: =IF(SUM($I27:DC27)+DC27>$I13,$I13-SUM($I27:DC27),DC27) -> -2.131628207e-14 | DE27: =IF(SUM($I27:DD27)+DD27>$I13,$I13-SUM($I27:DD27),DD27) -> -2.131628207e-14 | DF27: =IF(SUM($I27:DE27)+DE27>$I13,$I13-SUM($I27:DE27),DE27) -> -2.131628207e-14 | DG27: =IF(SUM($I27:DF27)+DF27>$I13,$I13-SUM($I27:DF27),DF27) -> -2.131628207e-14 | DH27: =IF(SUM($I27:DG27)+DG27>$I13,$I13-SUM($I27:DG27),DG27) -> -2.131628207e-14 | DI27: =IF(SUM($I27:DH27)+DH27>$I13,$I13-SUM($I27:DH27),DH27) -> -2.131628207e-14 | DJ27: =IF(SUM($I27:DI27)+DI27>$I13,$I13-SUM($I27:DI27),DI27) -> -2.131628207e-14 | DK27: =IF(SUM($I27:DJ27)+DJ27>$I13,$I13-SUM($I27:DJ27),DJ27) -> -2.131628207e-14 | DL27: =IF(SUM($I27:DK27)+DK27>$I13,$I13-SUM($I27:DK27),DK27) -> -2.131628207e-14 | DM27: =IF(SUM($I27:DL27)+DL27>$I13,$I13-SUM($I27:DL27),DL27) -> -2.131628207e-14 | DN27: =IF(SUM($I27:DM27)+DM27>$I13,$I13-SUM($I27:DM27),DM27) -> -2.131628207e-14 | DO27: =IF(SUM($I27:DN27)+DN27>$I13,$I13-SUM($I27:DN27),DN27) -> -2.131628207e-14 | DP27: =IF(SUM($I27:DO27)+DO27>$I13,$I13-SUM($I27:DO27),DO27) -> -2.131628207e-14 | DQ27: =IF(SUM($I27:DP27)+DP27>$I13,$I13-SUM($I27:DP27),DP27) -> -2.131628207e-14 | DR27: =IF(SUM($I27:DQ27)+DQ27>$I13,$I13-SUM($I27:DQ27),DQ27) -> -2.131628207e-14 | DS27: =IF(SUM($I27:DR27)+DR27>$I13,$I13-SUM($I27:DR27),DR27) -> -2.131628207e-14 | DT27: =IF(SUM($I27:DS27)+DS27>$I13,$I13-SUM($I27:DS27),DS27) -> -2.131628207e-14 | DU27: =IF(SUM($I27:DT27)+DT27>$I13,$I13-SUM($I27:DT27),DT27) -> -2.131628207e-14 | DV27: =IF(SUM($I27:DU27)+DU27>$I13,$I13-SUM($I27:DU27),DU27) -> -2.131628207e-14 | DW27: =IF(SUM($I27:DV27)+DV27>$I13,$I13-SUM($I27:DV27),DV27) -> -2.131628207e-14 | DX27: =IF(SUM($I27:DW27)+DW27>$I13,$I13-SUM($I27:DW27),DW27) -> -2.131628207e-14 | DY27: =IF(SUM($I27:DX27)+DX27>$I13,$I13-SUM($I27:DX27),DX27) -> -2.131628207e-14 | DZ27: =IF(SUM($I27:DY27)+DY27>$I13,$I13-SUM($I27:DY27),DY27) -> -2.131628207e-14 | EA27: =IF(SUM($I27:DZ27)+DZ27>$I13,$I13-SUM($I27:DZ27),DZ27) -> -2.131628207e-14 | EB27: =IF(SUM($I27:EA27)+EA27>$I13,$I13-SUM($I27:EA27),EA27) -> -2.131628207e-14 | EC27: =IF(SUM($I27:EB27)+EB27>$I13,$I13-SUM($I27:EB27),EB27) -> -2.131628207e-14 | ED27: =IF(SUM($I27:EC27)+EC27>$I13,$I13-SUM($I27:EC27),EC27) -> -2.131628207e-14 | EE27: =IF(SUM($I27:ED27)+ED27>$I13,$I13-SUM($I27:ED27),ED27) -> -2.131628207e-14 | EF27: =IF(SUM($I27:EE27)+EE27>$I13,$I13-SUM($I27:EE27),EE27) -> -2.131628207e-14 | EG27: =IF(SUM($I27:EF27)+EF27>$I13,$I13-SUM($I27:EF27),EF27) -> -2.131628207e-14 | EH27: =IF(SUM($I27:EG27)+EG27>$I13,$I13-SUM($I27:EG27),EG27) -> -2.131628207e-14 | EI27: =IF(SUM($I27:EH27)+EH27>$I13,$I13-SUM($I27:EH27),EH27) -> -2.131628207e-14 | EJ27: =IF(SUM($I27:EI27)+EI27>$I13,$I13-SUM($I27:EI27),EI27) -> -2.131628207e-14 | EK27: =IF(SUM($I27:EJ27)+EJ27>$I13,$I13-SUM($I27:EJ27),EJ27) -> -2.131628207e-14 | EL27: =IF(SUM($I27:EK27)+EK27>$I13,$I13-SUM($I27:EK27),EK27) -> -2.131628207e-14 | EM27: =IF(SUM($I27:EL27)+EL27>$I13,$I13-SUM($I27:EL27),EL27) -> -2.131628207e-14 | EN27: =IF(SUM($I27:EM27)+EM27>$I13,$I13-SUM($I27:EM27),EM27) -> -2.131628207e-14 | EO27: =IF(SUM($I27:EN27)+EN27>$I13,$I13-SUM($I27:EN27),EN27) -> -2.131628207e-14 | EP27: =IF(SUM($I27:EO27)+EO27>$I13,$I13-SUM($I27:EO27),EO27) -> -2.131628207e-14 | EQ27: =IF(SUM($I27:EP27)+EP27>$I13,$I13-SUM($I27:EP27),EP27) -> -2.131628207e-14 | ER27: =IF(SUM($I27:EQ27)+EQ27>$I13,$I13-SUM($I27:EQ27),EQ27) -> -2.131628207e-14 | ES27: =IF(SUM($I27:ER27)+ER27>$I13,$I13-SUM($I27:ER27),ER27) -> -2.131628207e-14
B28: ='Model inputs'!B14 -> Cathodic protection | F28: =4*('Model inputs'!G14-5.5) -> 38 | G28: quarters | H28: $m | I28: ='Model inputs'!I40 -> 0.0481271847 | J28: ='Model inputs'!J40 -> 0.0481271847 | K28: ='Model inputs'!K40 -> 0.0481271847 | L28: ='Model inputs'!L40 -> 0.0481271847 | M28: ='Model inputs'!M40 -> 0.0481271847 | N28: ='Model inputs'!N40 -> 0.0481271847 | O28: ='Model inputs'!O40 -> 0.0481271847 | P28: ='Model inputs'!P40 -> 0.0481271847 | Q28: ='Model inputs'!Q40 -> 0.0481271847 | R28: ='Model inputs'!R40 -> 0.0481271847 | S28: ='Model inputs'!S40 -> 0.0481271847 | T28: ='Model inputs'!T40 -> 0.0481271847 | U28: ='Model inputs'!U40 -> 0.0481271847 | V28: ='Model inputs'!V40 -> 0.0481271847 | W28: ='Model inputs'!W40 -> 0.0481271847 | X28: ='Model inputs'!X40 -> 0.0481271847 | Y28: ='Model inputs'!Y40 -> 0.0481271847 | Z28: ='Model inputs'!Z40 -> 0.0481271847 | AA28: ='Model inputs'!AA40 -> 0.0481271847 | AB28: ='Model inputs'!AB40 -> 0.0481271847 | AC28: ='Model inputs'!AC40 -> 0.0481271847 | AD28: ='Model inputs'!AD40 -> 0.0481271847 | AE28: ='Model inputs'!AE40 -> 0.0481271847 | AF28: ='Model inputs'!AF40 -> 0.0481271847 | AG28: ='Model inputs'!AG40 -> 0.0481271847 | AH28: ='Model inputs'!AH40 -> 0.0481271847 | AI28: ='Model inputs'!AI40 -> 0.0481271847 | AJ28: ='Model inputs'!AJ40 -> 0.0481271847 | AK28: ='Model inputs'!AK40 -> 0.0481271847 | AL28: ='Model inputs'!AL40 -> 0.0481271847 | AM28: ='Model inputs'!AM40 -> 0.0481271847 | AN28: ='Model inputs'!AN40 -> 0.0481271847 | AO28: ='Model inputs'!AO40 -> 0.0481271847 | AP28: ='Model inputs'!AP40 -> 0.0481271847 | AQ28: ='Model inputs'!AQ40 -> 0.0481271847 | AR28: ='Model inputs'!AR40 -> 0.0481271847 | AS28: ='Model inputs'!AS40 -> 0.0481271847 | AT28: ='Model inputs'!AT40 -> 0.0481271847 | AU28: ='Model inputs'!AU40 -> 0 | AV28: ='Model inputs'!AV40 -> 0 | AW28: =IF(SUM($I28:AV28)+4*AV28>$I14,$I14-SUM($I28:AV28),4*AV28) -> 0 | AX28: =IF(SUM($I28:AW28)+AW28>$I14,$I14-SUM($I28:AW28),AW28) -> 0 | AY28: =IF(SUM($I28:AX28)+AX28>$I14,$I14-SUM($I28:AX28),AX28) -> 0 | AZ28: =IF(SUM($I28:AY28)+AY28>$I14,$I14-SUM($I28:AY28),AY28) -> 0 | BA28: =IF(SUM($I28:AZ28)+AZ28>$I14,$I14-SUM($I28:AZ28),AZ28) -> 0 | BB28: =IF(SUM($I28:BA28)+BA28>$I14,$I14-SUM($I28:BA28),BA28) -> 0 | BC28: =IF(SUM($I28:BB28)+BB28>$I14,$I14-SUM($I28:BB28),BB28) -> 0 | BD28: =IF(SUM($I28:BC28)+BC28>$I14,$I14-SUM($I28:BC28),BC28) -> 0 | BE28: =IF(SUM($I28:BD28)+BD28>$I14,$I14-SUM($I28:BD28),BD28) -> 0 | BF28: =IF(SUM($I28:BE28)+BE28>$I14,$I14-SUM($I28:BE28),BE28) -> 0 | BG28: =IF(SUM($I28:BF28)+BF28>$I14,$I14-SUM($I28:BF28),BF28) -> 0 | BH28: =IF(SUM($I28:BG28)+BG28>$I14,$I14-SUM($I28:BG28),BG28) -> 0 | BI28: =IF(SUM($I28:BH28)+BH28>$I14,$I14-SUM($I28:BH28),BH28) -> 0 | BJ28: =IF(SUM($I28:BI28)+BI28>$I14,$I14-SUM($I28:BI28),BI28) -> 0 | BK28: =IF(SUM($I28:BJ28)+BJ28>$I14,$I14-SUM($I28:BJ28),BJ28) -> 0 | BL28: =IF(SUM($I28:BK28)+BK28>$I14,$I14-SUM($I28:BK28),BK28) -> 0 | BM28: =IF(SUM($I28:BL28)+BL28>$I14,$I14-SUM($I28:BL28),BL28) -> 0 | BN28: =IF(SUM($I28:BM28)+BM28>$I14,$I14-SUM($I28:BM28),BM28) -> 0 | BO28: =IF(SUM($I28:BN28)+BN28>$I14,$I14-SUM($I28:BN28),BN28) -> 0 | BP28: =IF(SUM($I28:BO28)+BO28>$I14,$I14-SUM($I28:BO28),BO28) -> 0 | BQ28: =IF(SUM($I28:BP28)+BP28>$I14,$I14-SUM($I28:BP28),BP28) -> 0 | BR28: =IF(SUM($I28:BQ28)+BQ28>$I14,$I14-SUM($I28:BQ28),BQ28) -> 0 | BS28: =IF(SUM($I28:BR28)+BR28>$I14,$I14-SUM($I28:BR28),BR28) -> 0 | BT28: =IF(SUM($I28:BS28)+BS28>$I14,$I14-SUM($I28:BS28),BS28) -> 0 | BU28: =IF(SUM($I28:BT28)+BT28>$I14,$I14-SUM($I28:BT28),BT28) -> 0 | BV28: =IF(SUM($I28:BU28)+BU28>$I14,$I14-SUM($I28:BU28),BU28) -> 0 | BW28: =IF(SUM($I28:BV28)+BV28>$I14,$I14-SUM($I28:BV28),BV28) -> 0 | BX28: =IF(SUM($I28:BW28)+BW28>$I14,$I14-SUM($I28:BW28),BW28) -> 0 | BY28: =IF(SUM($I28:BX28)+BX28>$I14,$I14-SUM($I28:BX28),BX28) -> 0 | BZ28: =IF(SUM($I28:BY28)+BY28>$I14,$I14-SUM($I28:BY28),BY28) -> 0 | CA28: =IF(SUM($I28:BZ28)+BZ28>$I14,$I14-SUM($I28:BZ28),BZ28) -> 0 | CB28: =IF(SUM($I28:CA28)+CA28>$I14,$I14-SUM($I28:CA28),CA28) -> 0 | CC28: =IF(SUM($I28:CB28)+CB28>$I14,$I14-SUM($I28:CB28),CB28) -> 0 | CD28: =IF(SUM($I28:CC28)+CC28>$I14,$I14-SUM($I28:CC28),CC28) -> 0 | CE28: =IF(SUM($I28:CD28)+CD28>$I14,$I14-SUM($I28:CD28),CD28) -> 0 | CF28: =IF(SUM($I28:CE28)+CE28>$I14,$I14-SUM($I28:CE28),CE28) -> 0 | CG28: =IF(SUM($I28:CF28)+CF28>$I14,$I14-SUM($I28:CF28),CF28) -> 0 | CH28: =IF(SUM($I28:CG28)+CG28>$I14,$I14-SUM($I28:CG28),CG28) -> 0 | CI28: =IF(SUM($I28:CH28)+CH28>$I14,$I14-SUM($I28:CH28),CH28) -> 0 | CJ28: =IF(SUM($I28:CI28)+CI28>$I14,$I14-SUM($I28:CI28),CI28) -> 0 | CK28: =IF(SUM($I28:CJ28)+CJ28>$I14,$I14-SUM($I28:CJ28),CJ28) -> 0 | CL28: =IF(SUM($I28:CK28)+CK28>$I14,$I14-SUM($I28:CK28),CK28) -> 0 | CM28: =IF(SUM($I28:CL28)+CL28>$I14,$I14-SUM($I28:CL28),CL28) -> 0 | CN28: =IF(SUM($I28:CM28)+CM28>$I14,$I14-SUM($I28:CM28),CM28) -> 0 | CO28: =IF(SUM($I28:CN28)+CN28>$I14,$I14-SUM($I28:CN28),CN28) -> 0 | CP28: =IF(SUM($I28:CO28)+CO28>$I14,$I14-SUM($I28:CO28),CO28) -> 0 | CQ28: =IF(SUM($I28:CP28)+CP28>$I14,$I14-SUM($I28:CP28),CP28) -> 0 | CR28: =IF(SUM($I28:CQ28)+CQ28>$I14,$I14-SUM($I28:CQ28),CQ28) -> 0 | CS28: =IF(SUM($I28:CR28)+CR28>$I14,$I14-SUM($I28:CR28),CR28) -> 0 | CT28: =IF(SUM($I28:CS28)+CS28>$I14,$I14-SUM($I28:CS28),CS28) -> 0 | CU28: =IF(SUM($I28:CT28)+CT28>$I14,$I14-SUM($I28:CT28),CT28) -> 0 | CV28: =IF(SUM($I28:CU28)+CU28>$I14,$I14-SUM($I28:CU28),CU28) -> 0 | CW28: =IF(SUM($I28:CV28)+CV28>$I14,$I14-SUM($I28:CV28),CV28) -> 0 | CX28: =IF(SUM($I28:CW28)+CW28>$I14,$I14-SUM($I28:CW28),CW28) -> 0 | CY28: =IF(SUM($I28:CX28)+CX28>$I14,$I14-SUM($I28:CX28),CX28) -> 0 | CZ28: =IF(SUM($I28:CY28)+CY28>$I14,$I14-SUM($I28:CY28),CY28) -> 0 | DA28: =IF(SUM($I28:CZ28)+CZ28>$I14,$I14-SUM($I28:CZ28),CZ28) -> 0 | DB28: =IF(SUM($I28:DA28)+DA28>$I14,$I14-SUM($I28:DA28),DA28) -> 0 | DC28: =IF(SUM($I28:DB28)+DB28>$I14,$I14-SUM($I28:DB28),DB28) -> 0 | DD28: =IF(SUM($I28:DC28)+DC28>$I14,$I14-SUM($I28:DC28),DC28) -> 0 | DE28: =IF(SUM($I28:DD28)+DD28>$I14,$I14-SUM($I28:DD28),DD28) -> 0 | DF28: =IF(SUM($I28:DE28)+DE28>$I14,$I14-SUM($I28:DE28),DE28) -> 0 | DG28: =IF(SUM($I28:DF28)+DF28>$I14,$I14-SUM($I28:DF28),DF28) -> 0 | DH28: =IF(SUM($I28:DG28)+DG28>$I14,$I14-SUM($I28:DG28),DG28) -> 0 | DI28: =IF(SUM($I28:DH28)+DH28>$I14,$I14-SUM($I28:DH28),DH28) -> 0 | DJ28: =IF(SUM($I28:DI28)+DI28>$I14,$I14-SUM($I28:DI28),DI28) -> 0 | DK28: =IF(SUM($I28:DJ28)+DJ28>$I14,$I14-SUM($I28:DJ28),DJ28) -> 0 | DL28: =IF(SUM($I28:DK28)+DK28>$I14,$I14-SUM($I28:DK28),DK28) -> 0 | DM28: =IF(SUM($I28:DL28)+DL28>$I14,$I14-SUM($I28:DL28),DL28) -> 0 | DN28: =IF(SUM($I28:DM28)+DM28>$I14,$I14-SUM($I28:DM28),DM28) -> 0 | DO28: =IF(SUM($I28:DN28)+DN28>$I14,$I14-SUM($I28:DN28),DN28) -> 0 | DP28: =IF(SUM($I28:DO28)+DO28>$I14,$I14-SUM($I28:DO28),DO28) -> 0 | DQ28: =IF(SUM($I28:DP28)+DP28>$I14,$I14-SUM($I28:DP28),DP28) -> 0 | DR28: =IF(SUM($I28:DQ28)+DQ28>$I14,$I14-SUM($I28:DQ28),DQ28) -> 0 | DS28: =IF(SUM($I28:DR28)+DR28>$I14,$I14-SUM($I28:DR28),DR28) -> 0 | DT28: =IF(SUM($I28:DS28)+DS28>$I14,$I14-SUM($I28:DS28),DS28) -> 0 | DU28: =IF(SUM($I28:DT28)+DT28>$I14,$I14-SUM($I28:DT28),DT28) -> 0 | DV28: =IF(SUM($I28:DU28)+DU28>$I14,$I14-SUM($I28:DU28),DU28) -> 0 | DW28: =IF(SUM($I28:DV28)+DV28>$I14,$I14-SUM($I28:DV28),DV28) -> 0 | DX28: =IF(SUM($I28:DW28)+DW28>$I14,$I14-SUM($I28:DW28),DW28) -> 0 | DY28: =IF(SUM($I28:DX28)+DX28>$I14,$I14-SUM($I28:DX28),DX28) -> 0 | DZ28: =IF(SUM($I28:DY28)+DY28>$I14,$I14-SUM($I28:DY28),DY28) -> 0 | EA28: =IF(SUM($I28:DZ28)+DZ28>$I14,$I14-SUM($I28:DZ28),DZ28) -> 0 | EB28: =IF(SUM($I28:EA28)+EA28>$I14,$I14-SUM($I28:EA28),EA28) -> 0 | EC28: =IF(SUM($I28:EB28)+EB28>$I14,$I14-SUM($I28:EB28),EB28) -> 0 | ED28: =IF(SUM($I28:EC28)+EC28>$I14,$I14-SUM($I28:EC28),EC28) -> 0 | EE28: =IF(SUM($I28:ED28)+ED28>$I14,$I14-SUM($I28:ED28),ED28) -> 0 | EF28: =IF(SUM($I28:EE28)+EE28>$I14,$I14-SUM($I28:EE28),EE28) -> 0 | EG28: =IF(SUM($I28:EF28)+EF28>$I14,$I14-SUM($I28:EF28),EF28) -> 0 | EH28: =IF(SUM($I28:EG28)+EG28>$I14,$I14-SUM($I28:EG28),EG28) -> 0 | EI28: =IF(SUM($I28:EH28)+EH28>$I14,$I14-SUM($I28:EH28),EH28) -> 0 | EJ28: =IF(SUM($I28:EI28)+EI28>$I14,$I14-SUM($I28:EI28),EI28) -> 0 | EK28: =IF(SUM($I28:EJ28)+EJ28>$I14,$I14-SUM($I28:EJ28),EJ28) -> 0 | EL28: =IF(SUM($I28:EK28)+EK28>$I14,$I14-SUM($I28:EK28),EK28) -> 0 | EM28: =IF(SUM($I28:EL28)+EL28>$I14,$I14-SUM($I28:EL28),EL28) -> 0 | EN28: =IF(SUM($I28:EM28)+EM28>$I14,$I14-SUM($I28:EM28),EM28) -> 0 | EO28: =IF(SUM($I28:EN28)+EN28>$I14,$I14-SUM($I28:EN28),EN28) -> 0 | EP28: =IF(SUM($I28:EO28)+EO28>$I14,$I14-SUM($I28:EO28),EO28) -> 0 | EQ28: =IF(SUM($I28:EP28)+EP28>$I14,$I14-SUM($I28:EP28),EP28) -> 0 | ER28: =IF(SUM($I28:EQ28)+EQ28>$I14,$I14-SUM($I28:EQ28),EQ28) -> 0 | ES28: =IF(SUM($I28:ER28)+ER28>$I14,$I14-SUM($I28:ER28),ER28) -> 0
B29: ='Model inputs'!B15 -> Maintenance bases and depots | F29: =4*('Model inputs'!G15-5.5) -> 178 | G29: quarters | H29: $m | I29: ='Model inputs'!I41 -> 0.04341372223 | J29: ='Model inputs'!J41 -> 0.04341372223 | K29: ='Model inputs'!K41 -> 0.04341372223 | L29: ='Model inputs'!L41 -> 0.04341372223 | M29: ='Model inputs'!M41 -> 0.04341372223 | N29: ='Model inputs'!N41 -> 0.04341372223 | O29: ='Model inputs'!O41 -> 0.04341372223 | P29: ='Model inputs'!P41 -> 0.04341372223 | Q29: ='Model inputs'!Q41 -> 0.04341372223 | R29: ='Model inputs'!R41 -> 0.04341372223 | S29: ='Model inputs'!S41 -> 0.04341372223 | T29: ='Model inputs'!T41 -> 0.04341372223 | U29: ='Model inputs'!U41 -> 0.04341372223 | V29: ='Model inputs'!V41 -> 0.04341372223 | W29: ='Model inputs'!W41 -> 0.04341372223 | X29: ='Model inputs'!X41 -> 0.04341372223 | Y29: ='Model inputs'!Y41 -> 0.04341372223 | Z29: ='Model inputs'!Z41 -> 0.04341372223 | AA29: ='Model inputs'!AA41 -> 0.04341372223 | AB29: ='Model inputs'!AB41 -> 0.04341372223 | AC29: ='Model inputs'!AC41 -> 0.04341372223 | AD29: ='Model inputs'!AD41 -> 0.04341372223 | AE29: ='Model inputs'!AE41 -> 0.04341372223 | AF29: ='Model inputs'!AF41 -> 0.04341372223 | AG29: ='Model inputs'!AG41 -> 0.04341372223 | AH29: ='Model inputs'!AH41 -> 0.04341372223 | AI29: ='Model inputs'!AI41 -> 0.04341372223 | AJ29: ='Model inputs'!AJ41 -> 0.04341372223 | AK29: ='Model inputs'!AK41 -> 0.04341372223 | AL29: ='Model inputs'!AL41 -> 0.04341372223 | AM29: ='Model inputs'!AM41 -> 0.04341372223 | AN29: ='Model inputs'!AN41 -> 0.04341372223 | AO29: ='Model inputs'!AO41 -> 0.04341372223 | AP29: ='Model inputs'!AP41 -> 0.04341372223 | AQ29: ='Model inputs'!AQ41 -> 0.04341372223 | AR29: ='Model inputs'!AR41 -> 0.04341372223 | AS29: ='Model inputs'!AS41 -> 0.04341372223 | AT29: ='Model inputs'!AT41 -> 0.04341372223 | AU29: ='Model inputs'!AU41 -> 0.04341372223 | AV29: ='Model inputs'!AV41 -> 0.04341372223 | AW29: =IF(SUM($I29:AV29)+4*AV29>$I15,$I15-SUM($I29:AV29),4*AV29) -> 0.1736548889 | AX29: =IF(SUM($I29:AW29)+AW29>$I15,$I15-SUM($I29:AW29),AW29) -> 0.1736548889 | AY29: =IF(SUM($I29:AX29)+AX29>$I15,$I15-SUM($I29:AX29),AX29) -> 0.1736548889 | AZ29: =IF(SUM($I29:AY29)+AY29>$I15,$I15-SUM($I29:AY29),AY29) -> 0.1736548889 | BA29: =IF(SUM($I29:AZ29)+AZ29>$I15,$I15-SUM($I29:AZ29),AZ29) -> 0.1736548889 | BB29: =IF(SUM($I29:BA29)+BA29>$I15,$I15-SUM($I29:BA29),BA29) -> 0.1736548889 | BC29: =IF(SUM($I29:BB29)+BB29>$I15,$I15-SUM($I29:BB29),BB29) -> 0.1736548889 | BD29: =IF(SUM($I29:BC29)+BC29>$I15,$I15-SUM($I29:BC29),BC29) -> 0.1736548889 | BE29: =IF(SUM($I29:BD29)+BD29>$I15,$I15-SUM($I29:BD29),BD29) -> 0.1736548889 | BF29: =IF(SUM($I29:BE29)+BE29>$I15,$I15-SUM($I29:BE29),BE29) -> 0.1736548889 | BG29: =IF(SUM($I29:BF29)+BF29>$I15,$I15-SUM($I29:BF29),BF29) -> 0.1736548889 | BH29: =IF(SUM($I29:BG29)+BG29>$I15,$I15-SUM($I29:BG29),BG29) -> 0.1736548889 | BI29: =IF(SUM($I29:BH29)+BH29>$I15,$I15-SUM($I29:BH29),BH29) -> 0.1736548889 | BJ29: =IF(SUM($I29:BI29)+BI29>$I15,$I15-SUM($I29:BI29),BI29) -> 0.1736548889 | BK29: =IF(SUM($I29:BJ29)+BJ29>$I15,$I15-SUM($I29:BJ29),BJ29) -> 0.1736548889 | BL29: =IF(SUM($I29:BK29)+BK29>$I15,$I15-SUM($I29:BK29),BK29) -> 0.1736548889 | BM29: =IF(SUM($I29:BL29)+BL29>$I15,$I15-SUM($I29:BL29),BL29) -> 0.1736548889 | BN29: =IF(SUM($I29:BM29)+BM29>$I15,$I15-SUM($I29:BM29),BM29) -> 0.1736548889 | BO29: =IF(SUM($I29:BN29)+BN29>$I15,$I15-SUM($I29:BN29),BN29) -> 0.1736548889 | BP29: =IF(SUM($I29:BO29)+BO29>$I15,$I15-SUM($I29:BO29),BO29) -> 0.1736548889 | BQ29: =IF(SUM($I29:BP29)+BP29>$I15,$I15-SUM($I29:BP29),BP29) -> 0.1736548889 | BR29: =IF(SUM($I29:BQ29)+BQ29>$I15,$I15-SUM($I29:BQ29),BQ29) -> 0.1736548889 | BS29: =IF(SUM($I29:BR29)+BR29>$I15,$I15-SUM($I29:BR29),BR29) -> 0.1736548889 | BT29: =IF(SUM($I29:BS29)+BS29>$I15,$I15-SUM($I29:BS29),BS29) -> 0.1736548889 | BU29: =IF(SUM($I29:BT29)+BT29>$I15,$I15-SUM($I29:BT29),BT29) -> 0.1736548889 | BV29: =IF(SUM($I29:BU29)+BU29>$I15,$I15-SUM($I29:BU29),BU29) -> 0.1736548889 | BW29: =IF(SUM($I29:BV29)+BV29>$I15,$I15-SUM($I29:BV29),BV29) -> 0.1736548889 | BX29: =IF(SUM($I29:BW29)+BW29>$I15,$I15-SUM($I29:BW29),BW29) -> 0.1736548889 | BY29: =IF(SUM($I29:BX29)+BX29>$I15,$I15-SUM($I29:BX29),BX29) -> 0.1736548889 | BZ29: =IF(SUM($I29:BY29)+BY29>$I15,$I15-SUM($I29:BY29),BY29) -> 0.1736548889 | CA29: =IF(SUM($I29:BZ29)+BZ29>$I15,$I15-SUM($I29:BZ29),BZ29) -> 0.1736548889 | CB29: =IF(SUM($I29:CA29)+CA29>$I15,$I15-SUM($I29:CA29),CA29) -> 0.1736548889 | CC29: =IF(SUM($I29:CB29)+CB29>$I15,$I15-SUM($I29:CB29),CB29) -> 0.1736548889 | CD29: =IF(SUM($I29:CC29)+CC29>$I15,$I15-SUM($I29:CC29),CC29) -> 0.1736548889 | CE29: =IF(SUM($I29:CD29)+CD29>$I15,$I15-SUM($I29:CD29),CD29) -> 0.08682744447 | CF29: =IF(SUM($I29:CE29)+CE29>$I15,$I15-SUM($I29:CE29),CE29) -> 0 | CG29: =IF(SUM($I29:CF29)+CF29>$I15,$I15-SUM($I29:CF29),CF29) -> 0 | CH29: =IF(SUM($I29:CG29)+CG29>$I15,$I15-SUM($I29:CG29),CG29) -> 0 | CI29: =IF(SUM($I29:CH29)+CH29>$I15,$I15-SUM($I29:CH29),CH29) -> 0 | CJ29: =IF(SUM($I29:CI29)+CI29>$I15,$I15-SUM($I29:CI29),CI29) -> 0 | CK29: =IF(SUM($I29:CJ29)+CJ29>$I15,$I15-SUM($I29:CJ29),CJ29) -> 0 | CL29: =IF(SUM($I29:CK29)+CK29>$I15,$I15-SUM($I29:CK29),CK29) -> 0 | CM29: =IF(SUM($I29:CL29)+CL29>$I15,$I15-SUM($I29:CL29),CL29) -> 0 | CN29: =IF(SUM($I29:CM29)+CM29>$I15,$I15-SUM($I29:CM29),CM29) -> 0 | CO29: =IF(SUM($I29:CN29)+CN29>$I15,$I15-SUM($I29:CN29),CN29) -> 0 | CP29: =IF(SUM($I29:CO29)+CO29>$I15,$I15-SUM($I29:CO29),CO29) -> 0 | CQ29: =IF(SUM($I29:CP29)+CP29>$I15,$I15-SUM($I29:CP29),CP29) -> 0 | CR29: =IF(SUM($I29:CQ29)+CQ29>$I15,$I15-SUM($I29:CQ29),CQ29) -> 0 | CS29: =IF(SUM($I29:CR29)+CR29>$I15,$I15-SUM($I29:CR29),CR29) -> 0 | CT29: =IF(SUM($I29:CS29)+CS29>$I15,$I15-SUM($I29:CS29),CS29) -> 0 | CU29: =IF(SUM($I29:CT29)+CT29>$I15,$I15-SUM($I29:CT29),CT29) -> 0 | CV29: =IF(SUM($I29:CU29)+CU29>$I15,$I15-SUM($I29:CU29),CU29) -> 0 | CW29: =IF(SUM($I29:CV29)+CV29>$I15,$I15-SUM($I29:CV29),CV29) -> 0 | CX29: =IF(SUM($I29:CW29)+CW29>$I15,$I15-SUM($I29:CW29),CW29) -> 0 | CY29: =IF(SUM($I29:CX29)+CX29>$I15,$I15-SUM($I29:CX29),CX29) -> 0 | CZ29: =IF(SUM($I29:CY29)+CY29>$I15,$I15-SUM($I29:CY29),CY29) -> 0 | DA29: =IF(SUM($I29:CZ29)+CZ29>$I15,$I15-SUM($I29:CZ29),CZ29) -> 0 | DB29: =IF(SUM($I29:DA29)+DA29>$I15,$I15-SUM($I29:DA29),DA29) -> 0 | DC29: =IF(SUM($I29:DB29)+DB29>$I15,$I15-SUM($I29:DB29),DB29) -> 0 | DD29: =IF(SUM($I29:DC29)+DC29>$I15,$I15-SUM($I29:DC29),DC29) -> 0 | DE29: =IF(SUM($I29:DD29)+DD29>$I15,$I15-SUM($I29:DD29),DD29) -> 0 | DF29: =IF(SUM($I29:DE29)+DE29>$I15,$I15-SUM($I29:DE29),DE29) -> 0 | DG29: =IF(SUM($I29:DF29)+DF29>$I15,$I15-SUM($I29:DF29),DF29) -> 0 | DH29: =IF(SUM($I29:DG29)+DG29>$I15,$I15-SUM($I29:DG29),DG29) -> 0 | DI29: =IF(SUM($I29:DH29)+DH29>$I15,$I15-SUM($I29:DH29),DH29) -> 0 | DJ29: =IF(SUM($I29:DI29)+DI29>$I15,$I15-SUM($I29:DI29),DI29) -> 0 | DK29: =IF(SUM($I29:DJ29)+DJ29>$I15,$I15-SUM($I29:DJ29),DJ29) -> 0 | DL29: =IF(SUM($I29:DK29)+DK29>$I15,$I15-SUM($I29:DK29),DK29) -> 0 | DM29: =IF(SUM($I29:DL29)+DL29>$I15,$I15-SUM($I29:DL29),DL29) -> 0 | DN29: =IF(SUM($I29:DM29)+DM29>$I15,$I15-SUM($I29:DM29),DM29) -> 0 | DO29: =IF(SUM($I29:DN29)+DN29>$I15,$I15-SUM($I29:DN29),DN29) -> 0 | DP29: =IF(SUM($I29:DO29)+DO29>$I15,$I15-SUM($I29:DO29),DO29) -> 0 | DQ29: =IF(SUM($I29:DP29)+DP29>$I15,$I15-SUM($I29:DP29),DP29) -> 0 | DR29: =IF(SUM($I29:DQ29)+DQ29>$I15,$I15-SUM($I29:DQ29),DQ29) -> 0 | DS29: =IF(SUM($I29:DR29)+DR29>$I15,$I15-SUM($I29:DR29),DR29) -> 0 | DT29: =IF(SUM($I29:DS29)+DS29>$I15,$I15-SUM($I29:DS29),DS29) -> 0 | DU29: =IF(SUM($I29:DT29)+DT29>$I15,$I15-SUM($I29:DT29),DT29) -> 0 | DV29: =IF(SUM($I29:DU29)+DU29>$I15,$I15-SUM($I29:DU29),DU29) -> 0 | DW29: =IF(SUM($I29:DV29)+DV29>$I15,$I15-SUM($I29:DV29),DV29) -> 0 | DX29: =IF(SUM($I29:DW29)+DW29>$I15,$I15-SUM($I29:DW29),DW29) -> 0 | DY29: =IF(SUM($I29:DX29)+DX29>$I15,$I15-SUM($I29:DX29),DX29) -> 0 | DZ29: =IF(SUM($I29:DY29)+DY29>$I15,$I15-SUM($I29:DY29),DY29) -> 0 | EA29: =IF(SUM($I29:DZ29)+DZ29>$I15,$I15-SUM($I29:DZ29),DZ29) -> 0 | EB29: =IF(SUM($I29:EA29)+EA29>$I15,$I15-SUM($I29:EA29),EA29) -> 0 | EC29: =IF(SUM($I29:EB29)+EB29>$I15,$I15-SUM($I29:EB29),EB29) -> 0 | ED29: =IF(SUM($I29:EC29)+EC29>$I15,$I15-SUM($I29:EC29),EC29) -> 0 | EE29: =IF(SUM($I29:ED29)+ED29>$I15,$I15-SUM($I29:ED29),ED29) -> 0 | EF29: =IF(SUM($I29:EE29)+EE29>$I15,$I15-SUM($I29:EE29),EE29) -> 0 | EG29: =IF(SUM($I29:EF29)+EF29>$I15,$I15-SUM($I29:EF29),EF29) -> 0 | EH29: =IF(SUM($I29:EG29)+EG29>$I15,$I15-SUM($I29:EG29),EG29) -> 0 | EI29: =IF(SUM($I29:EH29)+EH29>$I15,$I15-SUM($I29:EH29),EH29) -> 0 | EJ29: =IF(SUM($I29:EI29)+EI29>$I15,$I15-SUM($I29:EI29),EI29) -> 0 | EK29: =IF(SUM($I29:EJ29)+EJ29>$I15,$I15-SUM($I29:EJ29),EJ29) -> 0 | EL29: =IF(SUM($I29:EK29)+EK29>$I15,$I15-SUM($I29:EK29),EK29) -> 0 | EM29: =IF(SUM($I29:EL29)+EL29>$I15,$I15-SUM($I29:EL29),EL29) -> 0 | EN29: =IF(SUM($I29:EM29)+EM29>$I15,$I15-SUM($I29:EM29),EM29) -> 0 | EO29: =IF(SUM($I29:EN29)+EN29>$I15,$I15-SUM($I29:EN29),EN29) -> 0 | EP29: =IF(SUM($I29:EO29)+EO29>$I15,$I15-SUM($I29:EO29),EO29) -> 0 | EQ29: =IF(SUM($I29:EP29)+EP29>$I15,$I15-SUM($I29:EP29),EP29) -> 0 | ER29: =IF(SUM($I29:EQ29)+EQ29>$I15,$I15-SUM($I29:EQ29),EQ29) -> 0 | ES29: =IF(SUM($I29:ER29)+ER29>$I15,$I15-SUM($I29:ER29),ER29) -> 0
B30: ='Model inputs'!B16 -> Other depreciable assets | F30: =4*('Model inputs'!G16-5.5) -> 18 | G30: quarters | H30: $m | I30: ='Model inputs'!I42 -> 0.02440862333 | J30: ='Model inputs'!J42 -> 0.02440862333 | K30: ='Model inputs'!K42 -> 0.02440862333 | L30: ='Model inputs'!L42 -> 0.02440862333 | M30: ='Model inputs'!M42 -> 0.02440862333 | N30: ='Model inputs'!N42 -> 0.02440862333 | O30: ='Model inputs'!O42 -> 0.02440862333 | P30: ='Model inputs'!P42 -> 0.02440862333 | Q30: ='Model inputs'!Q42 -> 0.02440862333 | R30: ='Model inputs'!R42 -> 0.02440862333 | S30: ='Model inputs'!S42 -> 0.02440862333 | T30: ='Model inputs'!T42 -> 0.02440862333 | U30: ='Model inputs'!U42 -> 0.02440862333 | V30: ='Model inputs'!V42 -> 0.02440862333 | W30: ='Model inputs'!W42 -> 0.02440862333 | X30: ='Model inputs'!X42 -> 0.02440862333 | Y30: ='Model inputs'!Y42 -> 0.02440862333 | Z30: ='Model inputs'!Z42 -> 0.02440862333 | AA30: ='Model inputs'!AA42 -> 5.551115123e-17 | AB30: ='Model inputs'!AB42 -> 5.551115123e-17 | AC30: ='Model inputs'!AC42 -> 5.551115123e-17 | AD30: ='Model inputs'!AD42 -> 5.551115123e-17 | AE30: ='Model inputs'!AE42 -> 5.551115123e-17 | AF30: ='Model inputs'!AF42 -> 5.551115123e-17 | AG30: ='Model inputs'!AG42 -> 5.551115123e-17 | AH30: ='Model inputs'!AH42 -> 5.551115123e-17 | AI30: ='Model inputs'!AI42 -> -3.885780586e-16 | AJ30: ='Model inputs'!AJ42 -> -3.885780586e-16 | AK30: ='Model inputs'!AK42 -> -3.885780586e-16 | AL30: ='Model inputs'!AL42 -> -3.885780586e-16 | AM30: ='Model inputs'!AM42 -> -3.885780586e-16 | AN30: ='Model inputs'!AN42 -> -3.885780586e-16 | AO30: ='Model inputs'!AO42 -> -3.885780586e-16 | AP30: ='Model inputs'!AP42 -> -3.885780586e-16 | AQ30: ='Model inputs'!AQ42 -> -3.885780586e-16 | AR30: ='Model inputs'!AR42 -> -3.885780586e-16 | AS30: ='Model inputs'!AS42 -> -3.885780586e-16 | AT30: ='Model inputs'!AT42 -> -3.885780586e-16 | AU30: ='Model inputs'!AU42 -> -3.885780586e-16 | AV30: ='Model inputs'!AV42 -> -3.885780586e-16 | AW30: =IF(SUM($I30:AV30)+4*AV30>$I16,$I16-SUM($I30:AV30),4*AV30) -> -1.554312234e-15 | AX30: =IF(SUM($I30:AW30)+AW30>$I16,$I16-SUM($I30:AW30),AW30) -> -1.554312234e-15 | AY30: =IF(SUM($I30:AX30)+AX30>$I16,$I16-SUM($I30:AX30),AX30) -> -1.554312234e-15 | AZ30: =IF(SUM($I30:AY30)+AY30>$I16,$I16-SUM($I30:AY30),AY30) -> -1.554312234e-15 | BA30: =IF(SUM($I30:AZ30)+AZ30>$I16,$I16-SUM($I30:AZ30),AZ30) -> -1.554312234e-15 | BB30: =IF(SUM($I30:BA30)+BA30>$I16,$I16-SUM($I30:BA30),BA30) -> -1.554312234e-15 | BC30: =IF(SUM($I30:BB30)+BB30>$I16,$I16-SUM($I30:BB30),BB30) -> -1.554312234e-15 | BD30: =IF(SUM($I30:BC30)+BC30>$I16,$I16-SUM($I30:BC30),BC30) -> -1.554312234e-15 | BE30: =IF(SUM($I30:BD30)+BD30>$I16,$I16-SUM($I30:BD30),BD30) -> -1.554312234e-15 | BF30: =IF(SUM($I30:BE30)+BE30>$I16,$I16-SUM($I30:BE30),BE30) -> -1.554312234e-15 | BG30: =IF(SUM($I30:BF30)+BF30>$I16,$I16-SUM($I30:BF30),BF30) -> -1.554312234e-15 | BH30: =IF(SUM($I30:BG30)+BG30>$I16,$I16-SUM($I30:BG30),BG30) -> -1.554312234e-15 | BI30: =IF(SUM($I30:BH30)+BH30>$I16,$I16-SUM($I30:BH30),BH30) -> -1.554312234e-15 | BJ30: =IF(SUM($I30:BI30)+BI30>$I16,$I16-SUM($I30:BI30),BI30) -> -1.554312234e-15 | BK30: =IF(SUM($I30:BJ30)+BJ30>$I16,$I16-SUM($I30:BJ30),BJ30) -> -1.554312234e-15 | BL30: =IF(SUM($I30:BK30)+BK30>$I16,$I16-SUM($I30:BK30),BK30) -> -1.554312234e-15 | BM30: =IF(SUM($I30:BL30)+BL30>$I16,$I16-SUM($I30:BL30),BL30) -> -1.554312234e-15 | BN30: =IF(SUM($I30:BM30)+BM30>$I16,$I16-SUM($I30:BM30),BM30) -> -1.554312234e-15 | BO30: =IF(SUM($I30:BN30)+BN30>$I16,$I16-SUM($I30:BN30),BN30) -> -1.554312234e-15 | BP30: =IF(SUM($I30:BO30)+BO30>$I16,$I16-SUM($I30:BO30),BO30) -> -1.554312234e-15 | BQ30: =IF(SUM($I30:BP30)+BP30>$I16,$I16-SUM($I30:BP30),BP30) -> -1.554312234e-15 | BR30: =IF(SUM($I30:BQ30)+BQ30>$I16,$I16-SUM($I30:BQ30),BQ30) -> -1.554312234e-15 | BS30: =IF(SUM($I30:BR30)+BR30>$I16,$I16-SUM($I30:BR30),BR30) -> -1.554312234e-15 | BT30: =IF(SUM($I30:BS30)+BS30>$I16,$I16-SUM($I30:BS30),BS30) -> -1.554312234e-15 | BU30: =IF(SUM($I30:BT30)+BT30>$I16,$I16-SUM($I30:BT30),BT30) -> -1.554312234e-15 | BV30: =IF(SUM($I30:BU30)+BU30>$I16,$I16-SUM($I30:BU30),BU30) -> -1.554312234e-15 | BW30: =IF(SUM($I30:BV30)+BV30>$I16,$I16-SUM($I30:BV30),BV30) -> -1.554312234e-15 | BX30: =IF(SUM($I30:BW30)+BW30>$I16,$I16-SUM($I30:BW30),BW30) -> -1.554312234e-15 | BY30: =IF(SUM($I30:BX30)+BX30>$I16,$I16-SUM($I30:BX30),BX30) -> -1.554312234e-15 | BZ30: =IF(SUM($I30:BY30)+BY30>$I16,$I16-SUM($I30:BY30),BY30) -> -1.554312234e-15 | CA30: =IF(SUM($I30:BZ30)+BZ30>$I16,$I16-SUM($I30:BZ30),BZ30) -> -1.554312234e-15 | CB30: =IF(SUM($I30:CA30)+CA30>$I16,$I16-SUM($I30:CA30),CA30) -> -1.554312234e-15 | CC30: =IF(SUM($I30:CB30)+CB30>$I16,$I16-SUM($I30:CB30),CB30) -> -1.554312234e-15 | CD30: =IF(SUM($I30:CC30)+CC30>$I16,$I16-SUM($I30:CC30),CC30) -> -1.554312234e-15 | CE30: =IF(SUM($I30:CD30)+CD30>$I16,$I16-SUM($I30:CD30),CD30) -> -1.554312234e-15 | CF30: =IF(SUM($I30:CE30)+CE30>$I16,$I16-SUM($I30:CE30),CE30) -> -1.554312234e-15 | CG30: =IF(SUM($I30:CF30)+CF30>$I16,$I16-SUM($I30:CF30),CF30) -> -1.554312234e-15 | CH30: =IF(SUM($I30:CG30)+CG30>$I16,$I16-SUM($I30:CG30),CG30) -> -1.554312234e-15 | CI30: =IF(SUM($I30:CH30)+CH30>$I16,$I16-SUM($I30:CH30),CH30) -> -1.554312234e-15 | CJ30: =IF(SUM($I30:CI30)+CI30>$I16,$I16-SUM($I30:CI30),CI30) -> -1.554312234e-15 | CK30: =IF(SUM($I30:CJ30)+CJ30>$I16,$I16-SUM($I30:CJ30),CJ30) -> -1.554312234e-15 | CL30: =IF(SUM($I30:CK30)+CK30>$I16,$I16-SUM($I30:CK30),CK30) -> -1.554312234e-15 | CM30: =IF(SUM($I30:CL30)+CL30>$I16,$I16-SUM($I30:CL30),CL30) -> -1.554312234e-15 | CN30: =IF(SUM($I30:CM30)+CM30>$I16,$I16-SUM($I30:CM30),CM30) -> -1.554312234e-15 | CO30: =IF(SUM($I30:CN30)+CN30>$I16,$I16-SUM($I30:CN30),CN30) -> -1.554312234e-15 | CP30: =IF(SUM($I30:CO30)+CO30>$I16,$I16-SUM($I30:CO30),CO30) -> -1.554312234e-15 | CQ30: =IF(SUM($I30:CP30)+CP30>$I16,$I16-SUM($I30:CP30),CP30) -> -1.554312234e-15 | CR30: =IF(SUM($I30:CQ30)+CQ30>$I16,$I16-SUM($I30:CQ30),CQ30) -> -1.554312234e-15 | CS30: =IF(SUM($I30:CR30)+CR30>$I16,$I16-SUM($I30:CR30),CR30) -> -1.554312234e-15 | CT30: =IF(SUM($I30:CS30)+CS30>$I16,$I16-SUM($I30:CS30),CS30) -> -1.554312234e-15 | CU30: =IF(SUM($I30:CT30)+CT30>$I16,$I16-SUM($I30:CT30),CT30) -> -1.554312234e-15 | CV30: =IF(SUM($I30:CU30)+CU30>$I16,$I16-SUM($I30:CU30),CU30) -> -1.554312234e-15 | CW30: =IF(SUM($I30:CV30)+CV30>$I16,$I16-SUM($I30:CV30),CV30) -> -1.554312234e-15 | CX30: =IF(SUM($I30:CW30)+CW30>$I16,$I16-SUM($I30:CW30),CW30) -> -1.554312234e-15 | CY30: =IF(SUM($I30:CX30)+CX30>$I16,$I16-SUM($I30:CX30),CX30) -> -1.554312234e-15 | CZ30: =IF(SUM($I30:CY30)+CY30>$I16,$I16-SUM($I30:CY30),CY30) -> -1.554312234e-15 | DA30: =IF(SUM($I30:CZ30)+CZ30>$I16,$I16-SUM($I30:CZ30),CZ30) -> -1.554312234e-15 | DB30: =IF(SUM($I30:DA30)+DA30>$I16,$I16-SUM($I30:DA30),DA30) -> -1.554312234e-15 | DC30: =IF(SUM($I30:DB30)+DB30>$I16,$I16-SUM($I30:DB30),DB30) -> -1.554312234e-15 | DD30: =IF(SUM($I30:DC30)+DC30>$I16,$I16-SUM($I30:DC30),DC30) -> -1.554312234e-15 | DE30: =IF(SUM($I30:DD30)+DD30>$I16,$I16-SUM($I30:DD30),DD30) -> -1.554312234e-15 | DF30: =IF(SUM($I30:DE30)+DE30>$I16,$I16-SUM($I30:DE30),DE30) -> -1.554312234e-15 | DG30: =IF(SUM($I30:DF30)+DF30>$I16,$I16-SUM($I30:DF30),DF30) -> -1.554312234e-15 | DH30: =IF(SUM($I30:DG30)+DG30>$I16,$I16-SUM($I30:DG30),DG30) -> -1.554312234e-15 | DI30: =IF(SUM($I30:DH30)+DH30>$I16,$I16-SUM($I30:DH30),DH30) -> -1.554312234e-15 | DJ30: =IF(SUM($I30:DI30)+DI30>$I16,$I16-SUM($I30:DI30),DI30) -> -1.554312234e-15 | DK30: =IF(SUM($I30:DJ30)+DJ30>$I16,$I16-SUM($I30:DJ30),DJ30) -> -1.554312234e-15 | DL30: =IF(SUM($I30:DK30)+DK30>$I16,$I16-SUM($I30:DK30),DK30) -> -1.554312234e-15 | DM30: =IF(SUM($I30:DL30)+DL30>$I16,$I16-SUM($I30:DL30),DL30) -> -1.554312234e-15 | DN30: =IF(SUM($I30:DM30)+DM30>$I16,$I16-SUM($I30:DM30),DM30) -> -1.554312234e-15 | DO30: =IF(SUM($I30:DN30)+DN30>$I16,$I16-SUM($I30:DN30),DN30) -> -1.554312234e-15 | DP30: =IF(SUM($I30:DO30)+DO30>$I16,$I16-SUM($I30:DO30),DO30) -> -1.554312234e-15 | DQ30: =IF(SUM($I30:DP30)+DP30>$I16,$I16-SUM($I30:DP30),DP30) -> -1.554312234e-15 | DR30: =IF(SUM($I30:DQ30)+DQ30>$I16,$I16-SUM($I30:DQ30),DQ30) -> -1.554312234e-15 | DS30: =IF(SUM($I30:DR30)+DR30>$I16,$I16-SUM($I30:DR30),DR30) -> -1.554312234e-15 | DT30: =IF(SUM($I30:DS30)+DS30>$I16,$I16-SUM($I30:DS30),DS30) -> -1.554312234e-15 | DU30: =IF(SUM($I30:DT30)+DT30>$I16,$I16-SUM($I30:DT30),DT30) -> -1.554312234e-15 | DV30: =IF(SUM($I30:DU30)+DU30>$I16,$I16-SUM($I30:DU30),DU30) -> -1.554312234e-15 | DW30: =IF(SUM($I30:DV30)+DV30>$I16,$I16-SUM($I30:DV30),DV30) -> -1.554312234e-15 | DX30: =IF(SUM($I30:DW30)+DW30>$I16,$I16-SUM($I30:DW30),DW30) -> -1.554312234e-15 | DY30: =IF(SUM($I30:DX30)+DX30>$I16,$I16-SUM($I30:DX30),DX30) -> -1.554312234e-15 | DZ30: =IF(SUM($I30:DY30)+DY30>$I16,$I16-SUM($I30:DY30),DY30) -> -1.554312234e-15 | EA30: =IF(SUM($I30:DZ30)+DZ30>$I16,$I16-SUM($I30:DZ30),DZ30) -> -1.554312234e-15 | EB30: =IF(SUM($I30:EA30)+EA30>$I16,$I16-SUM($I30:EA30),EA30) -> -1.554312234e-15 | EC30: =IF(SUM($I30:EB30)+EB30>$I16,$I16-SUM($I30:EB30),EB30) -> -1.554312234e-15 | ED30: =IF(SUM($I30:EC30)+EC30>$I16,$I16-SUM($I30:EC30),EC30) -> -1.554312234e-15 | EE30: =IF(SUM($I30:ED30)+ED30>$I16,$I16-SUM($I30:ED30),ED30) -> -1.554312234e-15 | EF30: =IF(SUM($I30:EE30)+EE30>$I16,$I16-SUM($I30:EE30),EE30) -> -1.554312234e-15 | EG30: =IF(SUM($I30:EF30)+EF30>$I16,$I16-SUM($I30:EF30),EF30) -> -1.554312234e-15 | EH30: =IF(SUM($I30:EG30)+EG30>$I16,$I16-SUM($I30:EG30),EG30) -> -1.554312234e-15 | EI30: =IF(SUM($I30:EH30)+EH30>$I16,$I16-SUM($I30:EH30),EH30) -> -1.554312234e-15 | EJ30: =IF(SUM($I30:EI30)+EI30>$I16,$I16-SUM($I30:EI30),EI30) -> -1.554312234e-15 | EK30: =IF(SUM($I30:EJ30)+EJ30>$I16,$I16-SUM($I30:EJ30),EJ30) -> -1.554312234e-15 | EL30: =IF(SUM($I30:EK30)+EK30>$I16,$I16-SUM($I30:EK30),EK30) -> -1.554312234e-15 | EM30: =IF(SUM($I30:EL30)+EL30>$I16,$I16-SUM($I30:EL30),EL30) -> -1.554312234e-15 | EN30: =IF(SUM($I30:EM30)+EM30>$I16,$I16-SUM($I30:EM30),EM30) -> -1.554312234e-15 | EO30: =IF(SUM($I30:EN30)+EN30>$I16,$I16-SUM($I30:EN30),EN30) -> -1.554312234e-15 | EP30: =IF(SUM($I30:EO30)+EO30>$I16,$I16-SUM($I30:EO30),EO30) -> -1.554312234e-15 | EQ30: =IF(SUM($I30:EP30)+EP30>$I16,$I16-SUM($I30:EP30),EP30) -> -1.554312234e-15 | ER30: =IF(SUM($I30:EQ30)+EQ30>$I16,$I16-SUM($I30:EQ30),EQ30) -> -1.554312234e-15 | ES30: =IF(SUM($I30:ER30)+ER30>$I16,$I16-SUM($I30:ER30),ER30) -> -1.554312234e-15
H32: $m | I32: =SUM(I23:I31) -> 2.574194826 | J32: =SUM(J23:J31) -> 2.574194826 | K32: 2.574194826 | L32: 2.574194826 | M32: 2.574194826 | N32: 2.574194826 | O32: 2.574194826 | P32: 2.574194826 | Q32: 2.574194826 | R32: 2.574194826 | S32: 2.574194826 | T32: 2.574194826 | U32: 2.574194826 | V32: 2.574194826 | W32: 2.574194826 | X32: 2.574194826 | Y32: 2.574194826 | Z32: 2.574194826 | AA32: 2.549786202 | AB32: 2.549786202 | AC32: 2.549786202 | AD32: 2.549786202 | AE32: 2.549786202 | AF32: 2.549786202 | AG32: 2.549786202 | AH32: 2.549786202 | AI32: 2.549786202 | AJ32: 2.549786202 | AK32: 2.549786202 | AL32: 2.549786202 | AM32: 2.549786202 | AN32: 2.549786202 | AO32: 2.549786202 | AP32: 2.549786202 | AQ32: 2.549786202 | AR32: 2.549786202 | AS32: 2.549786202 | AT32: 2.549786202 | AU32: 2.23509091 | AV32: 2.23509091 | AW32: 8.940363639 | AX32: 8.940363639 | AY32: 8.940363639 | AZ32: 8.940363639 | BA32: 8.940363639 | BB32: 8.940363639 | BC32: 8.940363639 | BD32: 8.940363639 | BE32: 8.940363639 | BF32: 8.940363639 | BG32: 8.940363639 | BH32: 8.940363639 | BI32: 8.940363639 | BJ32: 8.940363639 | BK32: 8.060560805 | BL32: 7.180757971 | BM32: 7.180757971 | BN32: 7.180757971 | BO32: 7.180757971 | BP32: 7.180757971 | BQ32: 7.180757971 | BR32: 7.180757971 | BS32: 7.180757971 | BT32: 7.180757971 | BU32: 7.180757971 | BV32: =SUM(BV23:BV31) -> 7.180757971 | BW32: 7.180757971 | BX32: 7.180757971 | BY32: 7.180757971 | BZ32: 7.180757971 | CA32: 7.180757971 | CB32: 7.180757971 | CC32: 7.180757971 | CD32: 7.180757971 | CE32: 6.990809495 | CF32: 6.80086102 | CG32: 6.80086102 | CH32: 6.80086102 | CI32: 6.80086102 | CJ32: 6.80086102 | CK32: 6.80086102 | CL32: 6.80086102 | CM32: 6.80086102 | CN32: 6.80086102 | CO32: 6.80086102 | CP32: 6.80086102 | CQ32: 6.80086102 | CR32: 6.80086102 | CS32: 6.80086102 | CT32: 6.80086102 | CU32: 6.80086102 | CV32: 6.80086102 | CW32: 6.80086102 | CX32: 6.80086102 | CY32: 3.40043051 | CZ32: -2.287059431e-14 | DA32: -2.287059431e-14 | DB32: -2.287059431e-14 | DC32: -2.287059431e-14 | DD32: -2.287059431e-14 | DE32: -2.287059431e-14 | DF32: -2.287059431e-14 | DG32: -2.287059431e-14 | DH32: -2.287059431e-14 | DI32: -2.287059431e-14 | DJ32: -2.287059431e-14 | DK32: -2.287059431e-14 | DL32: -2.287059431e-14 | DM32: -2.287059431e-14 | DN32: -2.287059431e-14 | DO32: -2.287059431e-14 | DP32: -2.287059431e-14 | DQ32: -2.287059431e-14 | DR32: -2.287059431e-14 | DS32: -2.287059431e-14 | DT32: -2.287059431e-14 | DU32: -2.287059431e-14 | DV32: -2.287059431e-14 | DW32: -2.287059431e-14 | DX32: -2.287059431e-14 | DY32: -2.287059431e-14 | DZ32: -2.287059431e-14 | EA32: -2.287059431e-14 | EB32: -2.287059431e-14 | EC32: -2.287059431e-14 | ED32: -2.287059431e-14 | EE32: -2.287059431e-14 | EF32: -2.287059431e-14 | EG32: -2.287059431e-14 | EH32: =SUM(EH23:EH31) -> -2.287059431e-14 | EI32: -2.287059431e-14 | EJ32: -2.287059431e-14 | EK32: -2.287059431e-14 | EL32: -2.287059431e-14 | EM32: -2.287059431e-14 | EN32: -2.287059431e-14 | EO32: -2.287059431e-14 | EP32: -2.287059431e-14 | EQ32: -2.287059431e-14 | ER32: -2.287059431e-14 | ES32: -2.287059431e-14
B34: Initial capital base (end of period)
B36: ='Model inputs'!B9 -> Pipeline and laterals | H36: $m | I36: =I9-I23 -> 436.9553205 | J36: 435.2551053 | K36: 433.55489 | L36: 431.8546748 | M36: 430.1544595 | N36: 428.4542443 | O36: 426.754029 | P36: 425.0538137 | Q36: 423.3535985 | R36: 421.6533832 | S36: 419.953168 | T36: 418.2529527 | U36: 416.5527375 | V36: 414.8525222 | W36: 413.152307 | X36: 411.4520917 | Y36: 409.7518765 | Z36: 408.0516612 | AA36: 406.3514459 | AB36: 404.6512307 | AC36: 402.9510154 | AD36: 401.2508002 | AE36: 399.5505849 | AF36: 397.8503697 | AG36: 396.1501544 | AH36: 394.4499392 | AI36: 392.7497239 | AJ36: 391.0495086 | AK36: 389.3492934 | AL36: 387.6490781 | AM36: 385.9488629 | AN36: 384.2486476 | AO36: =AO9-AO23 -> 382.5484324 | AP36: 380.8482171 | AQ36: 379.1480019 | AR36: 377.4477866 | AS36: 375.7475714 | AT36: 374.0473561 | AU36: 372.3471408 | AV36: =AV9-AV23 -> 370.6469256 | AW36: 363.8460646 | AX36: 357.0452035 | AY36: 350.2443425 | AZ36: 343.4434815 | BA36: 336.6426205 | BB36: 329.8417595 | BC36: 323.0408984 | BD36: 316.2400374 | BE36: 309.4391764 | BF36: 302.6383154 | BG36: 295.8374544 | BH36: 289.0365933 | BI36: 282.2357323 | BJ36: 275.4348713 | BK36: 268.6340103 | BL36: 261.8331493 | BM36: 255.0322882 | BN36: 248.2314272 | BO36: 241.4305662 | BP36: 234.6297052 | BQ36: 227.8288442 | BR36: 221.0279831 | BS36: 214.2271221 | BT36: 207.4262611 | BU36: =BU9-BU23 -> 200.6254001 | BV36: 193.8245391 | BW36: 187.023678 | BX36: 180.222817 | BY36: 173.421956 | BZ36: 166.621095 | CA36: 159.820234 | CB36: 153.0193729 | CC36: 146.2185119 | CD36: 139.4176509 | CE36: 132.6167899 | CF36: 125.8159289 | CG36: 119.0150678 | CH36: 112.2142068 | CI36: 105.4133458 | CJ36: 98.61248479 | CK36: 91.81162377 | CL36: 85.01076275 | CM36: 78.20990173 | CN36: 71.40904071 | CO36: 64.60817969 | CP36: 57.80731867 | CQ36: 51.00645765 | CR36: 44.20559663 | CS36: 37.40473561 | CT36: 30.60387459 | CU36: 23.80301357 | CV36: 17.00215255 | CW36: 10.20129153 | CX36: 3.40043051 | CY36: -6.048495038e-13 | CZ36: -6.048495038e-13 | DA36: =DA9-DA23 -> -6.048495038e-13 | DB36: -6.048495038e-13 | DC36: -6.048495038e-13 | DD36: -6.048495038e-13 | DE36: -6.048495038e-13 | DF36: -6.048495038e-13 | DG36: -6.048495038e-13 | DH36: -6.048495038e-13 | DI36: -6.048495038e-13 | DJ36: -6.048495038e-13 | DK36: -6.048495038e-13 | DL36: -6.048495038e-13 | DM36: -6.048495038e-13 | DN36: -6.048495038e-13 | DO36: -6.048495038e-13 | DP36: -6.048495038e-13 | DQ36: -6.048495038e-13 | DR36: -6.048495038e-13 | DS36: -6.048495038e-13 | DT36: -6.048495038e-13 | DU36: -6.048495038e-13 | DV36: -6.048495038e-13 | DW36: -6.048495038e-13 | DX36: -6.048495038e-13 | DY36: -6.048495038e-13 | DZ36: -6.048495038e-13 | EA36: -6.048495038e-13 | EB36: -6.048495038e-13 | EC36: -6.048495038e-13 | ED36: -6.048495038e-13 | EE36: =EE9-EE23 -> -6.048495038e-13 | EF36: -6.048495038e-13 | EG36: -6.048495038e-13 | EH36: -6.048495038e-13 | EI36: -6.048495038e-13 | EJ36: -6.048495038e-13 | EK36: -6.048495038e-13 | EL36: -6.048495038e-13 | EM36: -6.048495038e-13 | EN36: -6.048495038e-13 | EO36: -6.048495038e-13 | EP36: -6.048495038e-13 | EQ36: -6.048495038e-13 | ER36: -6.048495038e-13 | ES36: -6.048495038e-13
B37: ='Model inputs'!B10 -> Main line valve and scraper stations | H37: $m | I37: =I10-I24 -> 9.126211242 | J37: 9.074650727 | K37: 9.023090211 | L37: 8.971529696 | M37: 8.91996918 | N37: 8.868408665 | O37: 8.816848149 | P37: 8.765287634 | Q37: 8.713727118 | R37: 8.662166603 | S37: 8.610606087 | T37: 8.559045572 | U37: 8.507485056 | V37: 8.455924541 | W37: 8.404364025 | X37: 8.35280351 | Y37: 8.301242994 | Z37: 8.249682479 | AA37: 8.198121963 | AB37: 8.146561448 | AC37: 8.095000932 | AD37: 8.043440417 | AE37: 7.991879901 | AF37: 7.940319386 | AG37: 7.88875887 | AH37: 7.837198355 | AI37: 7.785637839 | AJ37: 7.734077324 | AK37: 7.682516808 | AL37: 7.630956293 | AM37: 7.579395777 | AN37: 7.527835262 | AO37: =AO10-AO24 -> 7.476274746 | AP37: 7.424714231 | AQ37: 7.373153715 | AR37: 7.3215932 | AS37: 7.270032684 | AT37: 7.218472169 | AU37: 7.166911653 | AV37: 7.115351138 | AW37: 6.909109076 | AX37: 6.702867014 | AY37: 6.496624952 | AZ37: 6.29038289 | BA37: 6.084140828 | BB37: 5.877898766 | BC37: 5.671656704 | BD37: 5.465414642 | BE37: 5.25917258 | BF37: 5.052930518 | BG37: 4.846688456 | BH37: 4.640446394 | BI37: 4.434204332 | BJ37: 4.22796227 | BK37: 4.021720208 | BL37: 3.815478146 | BM37: 3.609236084 | BN37: 3.402994022 | BO37: 3.196751961 | BP37: 2.990509899 | BQ37: 2.784267837 | BR37: 2.578025775 | BS37: 2.371783713 | BT37: 2.165541651 | BU37: =BU10-BU24 -> 1.959299589 | BV37: 1.753057527 | BW37: 1.546815465 | BX37: 1.340573403 | BY37: 1.134331341 | BZ37: 0.9280892789 | CA37: 0.7218472169 | CB37: 0.5156051549 | CC37: 0.309363093 | CD37: 0.103121031 | CE37: -8.326672685e-15 | CF37: -8.326672685e-15 | CG37: -8.326672685e-15 | CH37: -8.326672685e-15 | CI37: -8.326672685e-15 | CJ37: -8.326672685e-15 | CK37: -8.326672685e-15 | CL37: -8.326672685e-15 | CM37: -8.326672685e-15 | CN37: -8.326672685e-15 | CO37: -8.326672685e-15 | CP37: -8.326672685e-15 | CQ37: -8.326672685e-15 | CR37: -8.326672685e-15 | CS37: -8.326672685e-15 | CT37: -8.326672685e-15 | CU37: -8.326672685e-15 | CV37: -8.326672685e-15 | CW37: -8.326672685e-15 | CX37: -8.326672685e-15 | CY37: -8.326672685e-15 | CZ37: -8.326672685e-15 | DA37: =DA10-DA24 -> -8.326672685e-15 | DB37: -8.326672685e-15 | DC37: -8.326672685e-15 | DD37: -8.326672685e-15 | DE37: -8.326672685e-15 | DF37: -8.326672685e-15 | DG37: -8.326672685e-15 | DH37: -8.326672685e-15 | DI37: -8.326672685e-15 | DJ37: -8.326672685e-15 | DK37: -8.326672685e-15 | DL37: -8.326672685e-15 | DM37: -8.326672685e-15 | DN37: -8.326672685e-15 | DO37: -8.326672685e-15 | DP37: -8.326672685e-15 | DQ37: -8.326672685e-15 | DR37: -8.326672685e-15 | DS37: -8.326672685e-15 | DT37: -8.326672685e-15 | DU37: -8.326672685e-15 | DV37: -8.326672685e-15 | DW37: -8.326672685e-15 | DX37: -8.326672685e-15 | DY37: -8.326672685e-15 | DZ37: -8.326672685e-15 | EA37: -8.326672685e-15 | EB37: -8.326672685e-15 | EC37: -8.326672685e-15 | ED37: -8.326672685e-15 | EE37: =EE10-EE24 -> -8.326672685e-15 | EF37: -8.326672685e-15 | EG37: -8.326672685e-15 | EH37: -8.326672685e-15 | EI37: -8.326672685e-15 | EJ37: -8.326672685e-15 | EK37: -8.326672685e-15 | EL37: -8.326672685e-15 | EM37: -8.326672685e-15 | EN37: -8.326672685e-15 | EO37: -8.326672685e-15 | EP37: -8.326672685e-15 | EQ37: -8.326672685e-15 | ER37: -8.326672685e-15 | ES37: -8.326672685e-15
B38: ='Model inputs'!B11 -> Compressor stations | H38: $m | I38: =I11-I25 -> 41.15175004 | J38: 40.72750519 | K38: 40.30326035 | L38: 39.8790155 | M38: 39.45477066 | N38: 39.03052581 | O38: 38.60628097 | P38: 38.18203612 | Q38: 37.75779127 | R38: 37.33354643 | S38: 36.90930158 | T38: 36.48505674 | U38: 36.06081189 | V38: 35.63656704 | W38: 35.2123222 | X38: 34.78807735 | Y38: 34.36383251 | Z38: 33.93958766 | AA38: 33.51534282 | AB38: 33.09109797 | AC38: 32.66685312 | AD38: 32.24260828 | AE38: 31.81836343 | AF38: 31.39411859 | AG38: 30.96987374 | AH38: 30.5456289 | AI38: 30.12138405 | AJ38: 29.6971392 | AK38: 29.27289436 | AL38: 28.84864951 | AM38: 28.42440467 | AN38: 28.00015982 | AO38: =AO11-AO25 -> 27.57591498 | AP38: 27.15167013 | AQ38: 26.72742528 | AR38: 26.30318044 | AS38: 25.87893559 | AT38: 25.45469075 | AU38: 25.0304459 | AV38: 24.60620105 | AW38: 22.90922167 | AX38: 21.21224229 | AY38: 19.51526291 | AZ38: 17.81828352 | BA38: 16.12130414 | BB38: 14.42432476 | BC38: 12.72734537 | BD38: 11.03036599 | BE38: 9.333386607 | BF38: 7.636407224 | BG38: 5.939427841 | BH38: 4.242448458 | BI38: 2.545469075 | BJ38: 0.8484896915 | BK38: 1.398881011e-14 | BL38: 1.398881011e-14 | BM38: 1.398881011e-14 | BN38: 1.398881011e-14 | BO38: 1.398881011e-14 | BP38: 1.398881011e-14 | BQ38: 1.398881011e-14 | BR38: 1.398881011e-14 | BS38: 1.398881011e-14 | BT38: 1.398881011e-14 | BU38: =BU11-BU25 -> 1.398881011e-14 | BV38: 1.398881011e-14 | BW38: 1.398881011e-14 | BX38: 1.398881011e-14 | BY38: 1.398881011e-14 | BZ38: 1.398881011e-14 | CA38: 1.398881011e-14 | CB38: 1.398881011e-14 | CC38: 1.398881011e-14 | CD38: 1.398881011e-14 | CE38: 1.398881011e-14 | CF38: 1.398881011e-14 | CG38: 1.398881011e-14 | CH38: 1.398881011e-14 | CI38: 1.398881011e-14 | CJ38: 1.398881011e-14 | CK38: 1.398881011e-14 | CL38: 1.398881011e-14 | CM38: 1.398881011e-14 | CN38: 1.398881011e-14 | CO38: 1.398881011e-14 | CP38: 1.398881011e-14 | CQ38: 1.398881011e-14 | CR38: 1.398881011e-14 | CS38: 1.398881011e-14 | CT38: 1.398881011e-14 | CU38: 1.398881011e-14 | CV38: 1.398881011e-14 | CW38: 1.398881011e-14 | CX38: 1.398881011e-14 | CY38: 1.398881011e-14 | CZ38: 1.398881011e-14 | DA38: =DA11-DA25 -> 1.398881011e-14 | DB38: 1.398881011e-14 | DC38: 1.398881011e-14 | DD38: 1.398881011e-14 | DE38: 1.398881011e-14 | DF38: 1.398881011e-14 | DG38: 1.398881011e-14 | DH38: 1.398881011e-14 | DI38: 1.398881011e-14 | DJ38: 1.398881011e-14 | DK38: 1.398881011e-14 | DL38: 1.398881011e-14 | DM38: 1.398881011e-14 | DN38: 1.398881011e-14 | DO38: 1.398881011e-14 | DP38: 1.398881011e-14 | DQ38: 1.398881011e-14 | DR38: 1.398881011e-14 | DS38: 1.398881011e-14 | DT38: 1.398881011e-14 | DU38: 1.398881011e-14 | DV38: 1.398881011e-14 | DW38: 1.398881011e-14 | DX38: 1.398881011e-14 | DY38: 1.398881011e-14 | DZ38: 1.398881011e-14 | EA38: 1.398881011e-14 | EB38: 1.398881011e-14 | EC38: 1.398881011e-14 | ED38: 1.398881011e-14 | EE38: =EE11-EE25 -> 1.398881011e-14 | EF38: 1.398881011e-14 | EG38: 1.398881011e-14 | EH38: 1.398881011e-14 | EI38: 1.398881011e-14 | EJ38: 1.398881011e-14 | EK38: 1.398881011e-14 | EL38: 1.398881011e-14 | EM38: 1.398881011e-14 | EN38: 1.398881011e-14 | EO38: 1.398881011e-14 | EP38: 1.398881011e-14 | EQ38: 1.398881011e-14 | ER38: 1.398881011e-14 | ES38: 1.398881011e-14
B39: ='Model inputs'!B12 -> Receipt and delivery point facilities | H39: $m | I39: =I12-I26 -> 1.518687404 | J39: 1.503030833 | K39: 1.487374262 | L39: 1.47171769 | M39: 1.456061119 | N39: 1.440404548 | O39: 1.424747977 | P39: 1.409091406 | Q39: 1.393434835 | R39: 1.377778263 | S39: 1.362121692 | T39: 1.346465121 | U39: 1.33080855 | V39: 1.315151979 | W39: 1.299495408 | X39: 1.283838836 | Y39: 1.268182265 | Z39: 1.252525694 | AA39: 1.236869123 | AB39: 1.221212552 | AC39: 1.20555598 | AD39: 1.189899409 | AE39: 1.174242838 | AF39: 1.158586267 | AG39: 1.142929696 | AH39: 1.127273125 | AI39: 1.111616553 | AJ39: 1.095959982 | AK39: 1.080303411 | AL39: 1.06464684 | AM39: 1.048990269 | AN39: 1.033333698 | AO39: =AO12-AO26 -> 1.017677126 | AP39: 1.002020555 | AQ39: 0.986363984 | AR39: 0.9707074128 | AS39: 0.9550508417 | AT39: 0.9393942705 | AU39: 0.9237376993 | AV39: 0.9080811281 | AW39: 0.8454548434 | AX39: 0.7828285587 | AY39: 0.720202274 | AZ39: 0.6575759893 | BA39: 0.5949497046 | BB39: 0.5323234199 | BC39: 0.4696971352 | BD39: 0.4070708505 | BE39: 0.3444445658 | BF39: 0.2818182811 | BG39: 0.2191919964 | BH39: 0.1565657117 | BI39: 0.09393942705 | BJ39: 0.03131314235 | BK39: 2.498001805e-16 | BL39: 2.498001805e-16 | BM39: 2.498001805e-16 | BN39: 2.498001805e-16 | BO39: 2.498001805e-16 | BP39: 2.498001805e-16 | BQ39: 2.498001805e-16 | BR39: 2.498001805e-16 | BS39: 2.498001805e-16 | BT39: 2.498001805e-16 | BU39: =BU12-BU26 -> 2.498001805e-16 | BV39: 2.498001805e-16 | BW39: 2.498001805e-16 | BX39: 2.498001805e-16 | BY39: 2.498001805e-16 | BZ39: 2.498001805e-16 | CA39: 2.498001805e-16 | CB39: 2.498001805e-16 | CC39: 2.498001805e-16 | CD39: 2.498001805e-16 | CE39: 2.498001805e-16 | CF39: 2.498001805e-16 | CG39: 2.498001805e-16 | CH39: 2.498001805e-16 | CI39: 2.498001805e-16 | CJ39: 2.498001805e-16 | CK39: 2.498001805e-16 | CL39: 2.498001805e-16 | CM39: 2.498001805e-16 | CN39: 2.498001805e-16 | CO39: 2.498001805e-16 | CP39: 2.498001805e-16 | CQ39: 2.498001805e-16 | CR39: 2.498001805e-16 | CS39: 2.498001805e-16 | CT39: 2.498001805e-16 | CU39: 2.498001805e-16 | CV39: 2.498001805e-16 | CW39: 2.498001805e-16 | CX39: 2.498001805e-16 | CY39: 2.498001805e-16 | CZ39: 2.498001805e-16 | DA39: =DA12-DA26 -> 2.498001805e-16 | DB39: 2.498001805e-16 | DC39: 2.498001805e-16 | DD39: 2.498001805e-16 | DE39: 2.498001805e-16 | DF39: 2.498001805e-16 | DG39: 2.498001805e-16 | DH39: 2.498001805e-16 | DI39: 2.498001805e-16 | DJ39: 2.498001805e-16 | DK39: 2.498001805e-16 | DL39: 2.498001805e-16 | DM39: 2.498001805e-16 | DN39: 2.498001805e-16 | DO39: 2.498001805e-16 | DP39: 2.498001805e-16 | DQ39: 2.498001805e-16 | DR39: 2.498001805e-16 | DS39: 2.498001805e-16 | DT39: 2.498001805e-16 | DU39: 2.498001805e-16 | DV39: 2.498001805e-16 | DW39: 2.498001805e-16 | DX39: 2.498001805e-16 | DY39: 2.498001805e-16 | DZ39: 2.498001805e-16 | EA39: 2.498001805e-16 | EB39: 2.498001805e-16 | EC39: 2.498001805e-16 | ED39: 2.498001805e-16 | EE39: =EE12-EE26 -> 2.498001805e-16 | EF39: 2.498001805e-16 | EG39: 2.498001805e-16 | EH39: 2.498001805e-16 | EI39: 2.498001805e-16 | EJ39: 2.498001805e-16 | EK39: 2.498001805e-16 | EL39: 2.498001805e-16 | EM39: 2.498001805e-16 | EN39: 2.498001805e-16 | EO39: 2.498001805e-16 | EP39: 2.498001805e-16 | EQ39: 2.498001805e-16 | ER39: 2.498001805e-16 | ES39: 2.498001805e-16
B40: ='Model inputs'!B13 -> SCADA and communications | H40: $m | I40: =I13-I27 -> 9.863019999 | J40: 9.596451891 | K40: 9.329883783 | L40: 9.063315675 | M40: 8.796747567 | N40: 8.530179459 | O40: 8.263611351 | P40: 7.997043242 | Q40: 7.730475134 | R40: 7.463907026 | S40: 7.197338918 | T40: 6.93077081 | U40: 6.664202702 | V40: 6.397634594 | W40: 6.131066486 | X40: 5.864498378 | Y40: 5.59793027 | Z40: 5.331362162 | AA40: 5.064794054 | AB40: 4.798225945 | AC40: 4.531657837 | AD40: 4.265089729 | AE40: 3.998521621 | AF40: 3.731953513 | AG40: 3.465385405 | AH40: 3.198817297 | AI40: 2.932249189 | AJ40: 2.665681081 | AK40: 2.399112973 | AL40: 2.132544865 | AM40: 1.865976757 | AN40: 1.599408648 | AO40: =AO13-AO27 -> 1.33284054 | AP40: 1.066272432 | AQ40: 0.7997043242 | AR40: 0.5331362162 | AS40: 0.2665681081 | AT40: -5.440092821e-15 | AU40: -1.110223025e-16 | AV40: 5.218048216e-15 | AW40: 2.653433029e-14 | AX40: 4.785061236e-14 | AY40: 6.916689443e-14 | AZ40: 9.048317651e-14 | BA40: 1.117994586e-13 | BB40: 1.331157407e-13 | BC40: 1.544320227e-13 | BD40: 1.757483048e-13 | BE40: 1.970645869e-13 | BF40: 2.183808689e-13 | BG40: 2.39697151e-13 | BH40: 2.610134331e-13 | BI40: 2.823297152e-13 | BJ40: 3.036459972e-13 | BK40: 3.249622793e-13 | BL40: 3.462785614e-13 | BM40: 3.675948435e-13 | BN40: 3.889111255e-13 | BO40: 4.102274076e-13 | BP40: 4.315436897e-13 | BQ40: 4.528599717e-13 | BR40: 4.741762538e-13 | BS40: 4.954925359e-13 | BT40: 5.16808818e-13 | BU40: =BU13-BU27 -> 5.381251e-13 | BV40: 5.594413821e-13 | BW40: 5.807576642e-13 | BX40: 6.020739463e-13 | BY40: 6.233902283e-13 | BZ40: 6.447065104e-13 | CA40: 6.660227925e-13 | CB40: 6.873390745e-13 | CC40: 7.086553566e-13 | CD40: 7.299716387e-13 | CE40: 7.512879208e-13 | CF40: 7.726042028e-13 | CG40: 7.939204849e-13 | CH40: 8.15236767e-13 | CI40: 8.365530491e-13 | CJ40: 8.578693311e-13 | CK40: 8.791856132e-13 | CL40: 9.005018953e-13 | CM40: 9.218181773e-13 | CN40: 9.431344594e-13 | CO40: 9.644507415e-13 | CP40: 9.857670236e-13 | CQ40: 1.007083306e-12 | CR40: 1.028399588e-12 | CS40: 1.04971587e-12 | CT40: 1.071032152e-12 | CU40: 1.092348434e-12 | CV40: 1.113664716e-12 | CW40: 1.134980998e-12 | CX40: 1.15629728e-12 | CY40: 1.177613562e-12 | CZ40: 1.198929844e-12 | DA40: =DA13-DA27 -> 1.220246126e-12 | DB40: 1.241562408e-12 | DC40: 1.262878691e-12 | DD40: 1.284194973e-12 | DE40: 1.305511255e-12 | DF40: 1.326827537e-12 | DG40: 1.348143819e-12 | DH40: 1.369460101e-12 | DI40: 1.390776383e-12 | DJ40: 1.412092665e-12 | DK40: 1.433408947e-12 | DL40: 1.454725229e-12 | DM40: 1.476041511e-12 | DN40: 1.497357793e-12 | DO40: 1.518674075e-12 | DP40: 1.539990357e-12 | DQ40: 1.56130664e-12 | DR40: 1.582622922e-12 | DS40: 1.603939204e-12 | DT40: 1.625255486e-12 | DU40: 1.646571768e-12 | DV40: 1.66788805e-12 | DW40: 1.689204332e-12 | DX40: 1.710520614e-12 | DY40: 1.731836896e-12 | DZ40: 1.753153178e-12 | EA40: 1.77446946e-12 | EB40: 1.795785742e-12 | EC40: 1.817102024e-12 | ED40: 1.838418306e-12 | EE40: =EE13-EE27 -> 1.859734589e-12 | EF40: 1.881050871e-12 | EG40: 1.902367153e-12 | EH40: 1.923683435e-12 | EI40: 1.944999717e-12 | EJ40: 1.966315999e-12 | EK40: 1.987632281e-12 | EL40: 2.008948563e-12 | EM40: 2.030264845e-12 | EN40: 2.051581127e-12 | EO40: 2.072897409e-12 | EP40: 2.094213691e-12 | EQ40: 2.115529973e-12 | ER40: 2.136846255e-12 | ES40: 2.158162538e-12
B41: ='Model inputs'!B14 -> Cathodic protection | H41: $m | I41: =I14-I28 -> 1.780705834 | J41: 1.732578649 | K41: 1.684451464 | L41: 1.63632428 | M41: 1.588197095 | N41: 1.54006991 | O41: 1.491942726 | P41: 1.443815541 | Q41: 1.395688356 | R41: 1.347561172 | S41: 1.299433987 | T41: 1.251306802 | U41: 1.203179617 | V41: 1.155052433 | W41: 1.106925248 | X41: 1.058798063 | Y41: 1.010670879 | Z41: 0.962543694 | AA41: 0.9144165093 | AB41: 0.8662893246 | AC41: 0.8181621399 | AD41: 0.7700349552 | AE41: 0.7219077705 | AF41: 0.6737805858 | AG41: 0.6256534011 | AH41: 0.5775262164 | AI41: 0.5293990317 | AJ41: 0.481271847 | AK41: 0.4331446623 | AL41: 0.3850174776 | AM41: 0.3368902929 | AN41: 0.2887631082 | AO41: =AO14-AO28 -> 0.2406359235 | AP41: 0.1925087388 | AQ41: 0.1443815541 | AR41: 0.0962543694 | AS41: 0.0481271847 | AT41: 0 | AU41: 0 | AV41: 0 | AW41: 0 | AX41: 0 | AY41: 0 | AZ41: 0 | BA41: 0 | BB41: 0 | BC41: 0 | BD41: 0 | BE41: 0 | BF41: 0 | BG41: 0 | BH41: 0 | BI41: 0 | BJ41: 0 | BK41: 0 | BL41: 0 | BM41: 0 | BN41: 0 | BO41: 0 | BP41: 0 | BQ41: 0 | BR41: 0 | BS41: 0 | BT41: 0 | BU41: =BU14-BU28 -> 0 | BV41: 0 | BW41: 0 | BX41: 0 | BY41: 0 | BZ41: 0 | CA41: 0 | CB41: 0 | CC41: 0 | CD41: 0 | CE41: 0 | CF41: 0 | CG41: 0 | CH41: 0 | CI41: 0 | CJ41: 0 | CK41: 0 | CL41: 0 | CM41: 0 | CN41: 0 | CO41: 0 | CP41: 0 | CQ41: 0 | CR41: 0 | CS41: 0 | CT41: 0 | CU41: 0 | CV41: 0 | CW41: 0 | CX41: 0 | CY41: 0 | CZ41: 0 | DA41: =DA14-DA28 -> 0 | DB41: 0 | DC41: 0 | DD41: 0 | DE41: 0 | DF41: 0 | DG41: 0 | DH41: 0 | DI41: 0 | DJ41: 0 | DK41: 0 | DL41: 0 | DM41: 0 | DN41: 0 | DO41: 0 | DP41: 0 | DQ41: 0 | DR41: 0 | DS41: 0 | DT41: 0 | DU41: 0 | DV41: 0 | DW41: 0 | DX41: 0 | DY41: 0 | DZ41: 0 | EA41: 0 | EB41: 0 | EC41: 0 | ED41: 0 | EE41: =EE14-EE28 -> 0 | EF41: 0 | EG41: 0 | EH41: 0 | EI41: 0 | EJ41: 0 | EK41: 0 | EL41: 0 | EM41: 0 | EN41: 0 | EO41: 0 | EP41: 0 | EQ41: 0 | ER41: 0 | ES41: 0
B42: ='Model inputs'!B15 -> Maintenance bases and depots | H42: $m | I42: =I15-I29 -> 7.684228835 | J42: 7.640815113 | K42: 7.597401391 | L42: 7.553987669 | M42: 7.510573947 | N42: 7.467160224 | O42: 7.423746502 | P42: 7.38033278 | Q42: 7.336919058 | R42: 7.293505335 | S42: 7.250091613 | T42: 7.206677891 | U42: 7.163264169 | V42: 7.119850446 | W42: 7.076436724 | X42: 7.033023002 | Y42: 6.98960928 | Z42: 6.946195557 | AA42: 6.902781835 | AB42: 6.859368113 | AC42: 6.815954391 | AD42: 6.772540669 | AE42: 6.729126946 | AF42: 6.685713224 | AG42: 6.642299502 | AH42: 6.59888578 | AI42: 6.555472057 | AJ42: 6.512058335 | AK42: 6.468644613 | AL42: 6.425230891 | AM42: 6.381817168 | AN42: 6.338403446 | AO42: =AO15-AO29 -> 6.294989724 | AP42: 6.251576002 | AQ42: 6.20816228 | AR42: 6.164748557 | AS42: 6.121334835 | AT42: 6.077921113 | AU42: 6.034507391 | AV42: 5.991093668 | AW42: 5.817438779 | AX42: 5.64378389 | AY42: 5.470129002 | AZ42: 5.296474113 | BA42: 5.122819224 | BB42: 4.949164335 | BC42: 4.775509446 | BD42: 4.601854557 | BE42: 4.428199668 | BF42: 4.254544779 | BG42: 4.08088989 | BH42: 3.907235001 | BI42: 3.733580112 | BJ42: 3.559925223 | BK42: 3.386270334 | BL42: 3.212615445 | BM42: 3.038960556 | BN42: 2.865305667 | BO42: 2.691650779 | BP42: 2.51799589 | BQ42: 2.344341001 | BR42: 2.170686112 | BS42: 1.997031223 | BT42: 1.823376334 | BU42: =BU15-BU29 -> 1.649721445 | BV42: 1.476066556 | BW42: 1.302411667 | BX42: 1.128756778 | BY42: 0.9551018892 | BZ42: 0.7814470002 | CA42: 0.6077921113 | CB42: 0.4341372223 | CC42: 0.2604823334 | CD42: 0.08682744447 | CE42: -1.690314555e-14 | CF42: -1.690314555e-14 | CG42: -1.690314555e-14 | CH42: -1.690314555e-14 | CI42: -1.690314555e-14 | CJ42: -1.690314555e-14 | CK42: -1.690314555e-14 | CL42: -1.690314555e-14 | CM42: -1.690314555e-14 | CN42: -1.690314555e-14 | CO42: -1.690314555e-14 | CP42: -1.690314555e-14 | CQ42: -1.690314555e-14 | CR42: -1.690314555e-14 | CS42: -1.690314555e-14 | CT42: -1.690314555e-14 | CU42: -1.690314555e-14 | CV42: -1.690314555e-14 | CW42: -1.690314555e-14 | CX42: -1.690314555e-14 | CY42: -1.690314555e-14 | CZ42: -1.690314555e-14 | DA42: =DA15-DA29 -> -1.690314555e-14 | DB42: -1.690314555e-14 | DC42: -1.690314555e-14 | DD42: -1.690314555e-14 | DE42: -1.690314555e-14 | DF42: -1.690314555e-14 | DG42: -1.690314555e-14 | DH42: -1.690314555e-14 | DI42: -1.690314555e-14 | DJ42: -1.690314555e-14 | DK42: -1.690314555e-14 | DL42: -1.690314555e-14 | DM42: -1.690314555e-14 | DN42: -1.690314555e-14 | DO42: -1.690314555e-14 | DP42: -1.690314555e-14 | DQ42: -1.690314555e-14 | DR42: -1.690314555e-14 | DS42: -1.690314555e-14 | DT42: -1.690314555e-14 | DU42: -1.690314555e-14 | DV42: -1.690314555e-14 | DW42: -1.690314555e-14 | DX42: -1.690314555e-14 | DY42: -1.690314555e-14 | DZ42: -1.690314555e-14 | EA42: -1.690314555e-14 | EB42: -1.690314555e-14 | EC42: -1.690314555e-14 | ED42: -1.690314555e-14 | EE42: =EE15-EE29 -> -1.690314555e-14 | EF42: -1.690314555e-14 | EG42: -1.690314555e-14 | EH42: -1.690314555e-14 | EI42: -1.690314555e-14 | EJ42: -1.690314555e-14 | EK42: -1.690314555e-14 | EL42: -1.690314555e-14 | EM42: -1.690314555e-14 | EN42: -1.690314555e-14 | EO42: -1.690314555e-14 | EP42: -1.690314555e-14 | EQ42: -1.690314555e-14 | ER42: -1.690314555e-14 | ES42: -1.690314555e-14
B43: ='Model inputs'!B16 -> Other depreciable assets | H43: $m | I43: =I16-I30 -> 0.4149465966 | J43: 0.3905379733 | K43: 0.3661293499 | L43: 0.3417207266 | M43: 0.3173121033 | N43: 0.29290348 | O43: 0.2684948566 | P43: 0.2440862333 | Q43: 0.21967761 | R43: 0.1952689866 | S43: 0.1708603633 | T43: 0.14645174 | U43: 0.1220431166 | V43: 0.09763449332 | W43: 0.07322586999 | X43: 0.04881724666 | Y43: 0.02440862333 | Z43: 9.020562075e-17 | AA43: 3.469446952e-17 | AB43: -2.081668171e-17 | AC43: -7.632783294e-17 | AD43: -1.318389842e-16 | AE43: -1.873501354e-16 | AF43: -2.428612866e-16 | AG43: -2.983724379e-16 | AH43: -3.538835891e-16 | AI43: 3.469446952e-17 | AJ43: 4.232725281e-16 | AK43: 8.118505868e-16 | AL43: 1.200428645e-15 | AM43: 1.589006704e-15 | AN43: 1.977584763e-15 | AO43: =AO16-AO30 -> 2.366162821e-15 | AP43: 2.75474088e-15 | AQ43: 3.143318938e-15 | AR43: 3.531896997e-15 | AS43: 3.920475056e-15 | AT43: 4.309053114e-15 | AU43: 4.697631173e-15 | AV43: 5.086209232e-15 | AW43: 6.640521466e-15 | AX43: 8.194833701e-15 | AY43: 9.749145935e-15 | AZ43: 1.130345817e-14 | BA43: 1.28577704e-14 | BB43: 1.441208264e-14 | BC43: 1.596639487e-14 | BD43: 1.752070711e-14 | BE43: 1.907501934e-14 | BF43: 2.062933158e-14 | BG43: 2.218364381e-14 | BH43: 2.373795605e-14 | BI43: 2.529226828e-14 | BJ43: 2.684658051e-14 | BK43: 2.840089275e-14 | BL43: 2.995520498e-14 | BM43: 3.150951722e-14 | BN43: 3.306382945e-14 | BO43: 3.461814169e-14 | BP43: 3.617245392e-14 | BQ43: 3.772676616e-14 | BR43: 3.928107839e-14 | BS43: 4.083539062e-14 | BT43: 4.238970286e-14 | BU43: =BU16-BU30 -> 4.394401509e-14 | BV43: 4.549832733e-14 | BW43: 4.705263956e-14 | BX43: 4.86069518e-14 | BY43: 5.016126403e-14 | BZ43: 5.171557627e-14 | CA43: 5.32698885e-14 | CB43: 5.482420073e-14 | CC43: 5.637851297e-14 | CD43: 5.79328252e-14 | CE43: 5.948713744e-14 | CF43: 6.104144967e-14 | CG43: 6.259576191e-14 | CH43: 6.415007414e-14 | CI43: 6.570438638e-14 | CJ43: 6.725869861e-14 | CK43: 6.881301085e-14 | CL43: 7.036732308e-14 | CM43: 7.192163531e-14 | CN43: 7.347594755e-14 | CO43: 7.503025978e-14 | CP43: 7.658457202e-14 | CQ43: 7.813888425e-14 | CR43: 7.969319649e-14 | CS43: 8.124750872e-14 | CT43: 8.280182096e-14 | CU43: 8.435613319e-14 | CV43: 8.591044542e-14 | CW43: 8.746475766e-14 | CX43: 8.901906989e-14 | CY43: 9.057338213e-14 | CZ43: 9.212769436e-14 | DA43: =DA16-DA30 -> 9.36820066e-14 | DB43: 9.523631883e-14 | DC43: 9.679063107e-14 | DD43: 9.83449433e-14 | DE43: 9.989925553e-14 | DF43: 1.014535678e-13 | DG43: 1.0300788e-13 | DH43: 1.045621922e-13 | DI43: 1.061165045e-13 | DJ43: 1.076708167e-13 | DK43: 1.092251289e-13 | DL43: 1.107794412e-13 | DM43: 1.123337534e-13 | DN43: 1.138880656e-13 | DO43: 1.154423779e-13 | DP43: 1.169966901e-13 | DQ43: 1.185510023e-13 | DR43: 1.201053146e-13 | DS43: 1.216596268e-13 | DT43: 1.232139391e-13 | DU43: 1.247682513e-13 | DV43: 1.263225635e-13 | DW43: 1.278768758e-13 | DX43: 1.29431188e-13 | DY43: 1.309855002e-13 | DZ43: 1.325398125e-13 | EA43: 1.340941247e-13 | EB43: 1.356484369e-13 | EC43: 1.372027492e-13 | ED43: 1.387570614e-13 | EE43: =EE16-EE30 -> 1.403113736e-13 | EF43: 1.418656859e-13 | EG43: 1.434199981e-13 | EH43: 1.449743103e-13 | EI43: 1.465286226e-13 | EJ43: 1.480829348e-13 | EK43: 1.49637247e-13 | EL43: 1.511915593e-13 | EM43: 1.527458715e-13 | EN43: 1.543001837e-13 | EO43: 1.55854496e-13 | EP43: 1.574088082e-13 | EQ43: 1.589631204e-13 | ER43: 1.605174327e-13 | ES43: 1.620717449e-13
B44: ='Model inputs'!B17 -> Non-depreciable assets | I44: =I17 -> 2.581675929 | J44: =J17 -> 2.581675929 | K44: =K17 -> 2.581675929 | L44: 2.581675929 | M44: 2.581675929 | N44: 2.581675929 | O44: 2.581675929 | P44: 2.581675929 | Q44: 2.581675929 | R44: 2.581675929 | S44: 2.581675929 | T44: 2.581675929 | U44: 2.581675929 | V44: 2.581675929 | W44: 2.581675929 | X44: 2.581675929 | Y44: 2.581675929 | Z44: 2.581675929 | AA44: 2.581675929 | AB44: 2.581675929 | AC44: 2.581675929 | AD44: 2.581675929 | AE44: 2.581675929 | AF44: 2.581675929 | AG44: 2.581675929 | AH44: 2.581675929 | AI44: 2.581675929 | AJ44: 2.581675929 | AK44: 2.581675929 | AL44: 2.581675929 | AM44: 2.581675929 | AN44: 2.581675929 | AO44: 2.581675929 | AP44: 2.581675929 | AQ44: 2.581675929 | AR44: 2.581675929 | AS44: 2.581675929 | AT44: 2.581675929 | AU44: 2.581675929 | AV44: 2.581675929 | AW44: 2.581675929 | AX44: 2.581675929 | AY44: 2.581675929 | AZ44: 2.581675929 | BA44: 2.581675929 | BB44: 2.581675929 | BC44: 2.581675929 | BD44: 2.581675929 | BE44: 2.581675929 | BF44: 2.581675929 | BG44: 2.581675929 | BH44: 2.581675929 | BI44: 2.581675929 | BJ44: 2.581675929 | BK44: 2.581675929 | BL44: 2.581675929 | BM44: 2.581675929 | BN44: 2.581675929 | BO44: 2.581675929 | BP44: 2.581675929 | BQ44: 2.581675929 | BR44: 2.581675929 | BS44: 2.581675929 | BT44: 2.581675929 | BU44: 2.581675929 | BV44: 2.581675929 | BW44: =BW17 -> 2.581675929 | BX44: 2.581675929 | BY44: 2.581675929 | BZ44: 2.581675929 | CA44: 2.581675929 | CB44: 2.581675929 | CC44: 2.581675929 | CD44: 2.581675929 | CE44: 2.581675929 | CF44: 2.581675929 | CG44: 2.581675929 | CH44: 2.581675929 | CI44: 2.581675929 | CJ44: 2.581675929 | CK44: 2.581675929 | CL44: 2.581675929 | CM44: 2.581675929 | CN44: 2.581675929 | CO44: 2.581675929 | CP44: 2.581675929 | CQ44: 2.581675929 | CR44: 2.581675929 | CS44: 2.581675929 | CT44: 2.581675929 | CU44: 2.581675929 | CV44: 2.581675929 | CW44: 2.581675929 | CX44: 2.581675929 | CY44: 2.581675929 | CZ44: 2.581675929 | DA44: 2.581675929 | DB44: 2.581675929 | DC44: 2.581675929 | DD44: 2.581675929 | DE44: 2.581675929 | DF44: 2.581675929 | DG44: 2.581675929 | DH44: 2.581675929 | DI44: 2.581675929 | DJ44: 2.581675929 | DK44: 2.581675929 | DL44: 2.581675929 | DM44: 2.581675929 | DN44: 2.581675929 | DO44: 2.581675929 | DP44: 2.581675929 | DQ44: 2.581675929 | DR44: 2.581675929 | DS44: 2.581675929 | DT44: 2.581675929 | DU44: 2.581675929 | DV44: 2.581675929 | DW44: 2.581675929 | DX44: 2.581675929 | DY44: 2.581675929 | DZ44: 2.581675929 | EA44: 2.581675929 | EB44: 2.581675929 | EC44: 2.581675929 | ED44: 2.581675929 | EE44: 2.581675929 | EF44: 2.581675929 | EG44: 2.581675929 | EH44: 2.581675929 | EI44: =EI17 -> 2.581675929 | EJ44: 2.581675929 | EK44: 2.581675929 | EL44: 2.581675929 | EM44: 2.581675929 | EN44: 2.581675929 | EO44: 2.581675929 | EP44: 2.581675929 | EQ44: 2.581675929 | ER44: 2.581675929 | ES44: 2.581675929
H46: $m | I46: =SUM(I36:I45) -> 511.0765464 | J46: =SUM(J36:J45) -> 508.5023516 | K46: 505.9281568 | L46: 503.3539619 | M46: 500.7797671 | N46: 498.2055723 | O46: 495.6313775 | P46: 493.0571826 | Q46: 490.4829878 | R46: 487.908793 | S46: 485.3345982 | T46: 482.7604033 | U46: 480.1862085 | V46: 477.6120137 | W46: 475.0378189 | X46: 472.463624 | Y46: 469.8894292 | Z46: 467.3152344 | AA46: 464.7654482 | AB46: 462.215662 | AC46: 459.6658758 | AD46: 457.1160896 | AE46: 454.5663034 | AF46: 452.0165172 | AG46: 449.466731 | AH46: 446.9169448 | AI46: 444.3671586 | AJ46: 441.8173724 | AK46: 439.2675861 | AL46: 436.7177999 | AM46: 434.1680137 | AN46: 431.6182275 | AO46: 429.0684413 | AP46: 426.5186551 | AQ46: 423.9688689 | AR46: 421.4190827 | AS46: 418.8692965 | AT46: 416.3195103 | AU46: 414.0844194 | AV46: 411.8493285 | AW46: 402.9089649 | AX46: 393.9686012 | AY46: 385.0282376 | AZ46: 376.087874 | BA46: 367.1475103 | BB46: 358.2071467 | BC46: 349.266783 | BD46: 340.3264194 | BE46: 331.3860558 | BF46: 322.4456921 | BG46: 313.5053285 | BH46: 304.5649648 | BI46: 295.6246012 | BJ46: 286.6842376 | BK46: 278.6236768 | BL46: 271.4429188 | BM46: 264.2621608 | BN46: 257.0814028 | BO46: 249.9006449 | BP46: 242.7198869 | BQ46: 235.5391289 | BR46: 228.358371 | BS46: 221.177613 | BT46: 213.996855 | BU46: 206.8160971 | BV46: =SUM(BV36:BV45) -> 199.6353391 | BW46: 192.4545811 | BX46: 185.2738231 | BY46: 178.0930652 | BZ46: 170.9123072 | CA46: 163.7315492 | CB46: 156.5507913 | CC46: 149.3700333 | CD46: 142.1892753 | CE46: 135.1984658 | CF46: 128.3976048 | CG46: 121.5967438 | CH46: 114.7958828 | CI46: 107.9950217 | CJ46: 101.1941607 | CK46: 94.3932997 | CL46: 87.59243868 | CM46: 80.79157766 | CN46: 73.99071664 | CO46: 67.18985562 | CP46: 60.3889946 | CQ46: 53.58813358 | CR46: 46.78727256 | CS46: 39.98641154 | CT46: 33.18555052 | CU46: 26.3846895 | CV46: 19.58382848 | CW46: 12.78296746 | CX46: 5.982106439 | CY46: 2.581675929 | CZ46: 2.581675929 | DA46: 2.581675929 | DB46: 2.581675929 | DC46: 2.581675929 | DD46: 2.581675929 | DE46: 2.581675929 | DF46: 2.581675929 | DG46: 2.581675929 | DH46: 2.581675929 | DI46: 2.581675929 | DJ46: 2.581675929 | DK46: 2.581675929 | DL46: 2.581675929 | DM46: 2.581675929 | DN46: 2.581675929 | DO46: 2.581675929 | DP46: 2.581675929 | DQ46: 2.581675929 | DR46: 2.581675929 | DS46: 2.581675929 | DT46: 2.581675929 | DU46: 2.581675929 | DV46: 2.581675929 | DW46: 2.581675929 | DX46: 2.581675929 | DY46: 2.581675929 | DZ46: 2.581675929 | EA46: 2.581675929 | EB46: 2.581675929 | EC46: 2.581675929 | ED46: 2.581675929 | EE46: 2.581675929 | EF46: 2.581675929 | EG46: 2.581675929 | EH46: =SUM(EH36:EH45) -> 2.581675929 | EI46: 2.581675929 | EJ46: 2.581675929 | EK46: 2.581675929 | EL46: 2.581675929 | EM46: 2.581675929 | EN46: 2.581675929 | EO46: 2.581675929 | EP46: 2.581675929 | EQ46: 2.581675929 | ER46: 2.581675929 | ES46: 2.581675929
B48: Check
B50: Initial capital base 2000 Q1 | F50: $m | G50: =I19 -> 513.6507412
B51: Depreciation | F51: $m | G51: =SUM(I32:ES32) -> 511.0690653
B52: Initial capital base 2110 | F52: $m | G52: =G50-G51 -> 2.581675929
B53: Non-depreciable assets end 2110 | F53: $m | G53: =ES44 -> 2.581675929
B54: Difference | F54: $m | G54: =G52-G53 -> 9.343636975e-13

Sheet CAPEX 2000-2009 roll forward
B2: ='Model inputs'!B2 -> GOLDFIELDS GAS PIPELINE | I2: ='Model inputs'!I2 -> 2000 | J2: ='Model inputs'!J2 -> 2000 | K2: ='Model inputs'!K2 -> 2000 | L2: ='Model inputs'!L2 -> 2000 | M2: ='Model inputs'!M2 -> 2001 | N2: ='Model inputs'!N2 -> 2001 | O2: ='Model inputs'!O2 -> 2001 | P2: ='Model inputs'!P2 -> 2001 | Q2: ='Model inputs'!Q2 -> 2002 | R2: ='Model inputs'!R2 -> 2002 | S2: ='Model inputs'!S2 -> 2002 | T2: ='Model inputs'!T2 -> 2002 | U2: ='Model inputs'!U2 -> 2003 | V2: ='Model inputs'!V2 -> 2003 | W2: ='Model inputs'!W2 -> 2003 | X2: ='Model inputs'!X2 -> 2003 | Y2: ='Model inputs'!Y2 -> 2004 | Z2: ='Model inputs'!Z2 -> 2004 | AA2: ='Model inputs'!AA2 -> 2004 | AB2: ='Model inputs'!AB2 -> 2004 | AC2: ='Model inputs'!AC2 -> 2005 | AD2: ='Model inputs'!AD2 -> 2005 | AE2: ='Model inputs'!AE2 -> 2005 | AF2: ='Model inputs'!AF2 -> 2005 | AG2: ='Model inputs'!AG2 -> 2006 | AH2: ='Model inputs'!AH2 -> 2006 | AI2: ='Model inputs'!AI2 -> 2006 | AJ2: ='Model inputs'!AJ2 -> 2006 | AK2: ='Model inputs'!AK2 -> 2007 | AL2: ='Model inputs'!AL2 -> 2007 | AM2: ='Model inputs'!AM2 -> 2007 | AN2: ='Model inputs'!AN2 -> 2007 | AO2: ='Model inputs'!AO2 -> 2008 | AP2: ='Model inputs'!AP2 -> 2008 | AQ2: ='Model inputs'!AQ2 -> 2008 | AR2: ='Model inputs'!AR2 -> 2008 | AS2: ='Model inputs'!AS2 -> 2009 | AT2: ='Model inputs'!AT2 -> 2009 | AU2: ='Model inputs'!AU2 -> 2009 | AV2: ='Model inputs'!AV2 -> 2009 | AX2: ='Model inputs'!AW2 -> 2010 | AY2: ='Model inputs'!AX2 -> 2011 | AZ2: ='Model inputs'!AY2 -> 2012 | BA2: ='Model inputs'!AZ2 -> 2013 | BB2: ='Model inputs'!BA2 -> 2014 | BC2: ='Model inputs'!BB2 -> 2015 | BD2: ='Model inputs'!BC2 -> 2016 | BE2: ='Model inputs'!BD2 -> 2017 | BF2: ='Model inputs'!BE2 -> 2018 | BG2: ='Model inputs'!BF2 -> 2019 | BH2: =BG2+1 -> 2020 | BI2: =BH2+1 -> 2021 | BJ2: 2022 | BK2: 2023 | BL2: 2024 | BM2: 2025 | BN2: 2026 | BO2: 2027 | BP2: 2028 | BQ2: 2029 | BR2: 2030 | BS2: 2031 | BT2: 2032 | BU2: 2033 | BV2: 2034 | BW2: 2035 | BX2: 2036 | BY2: 2037 | BZ2: 2038 | CA2: 2039 | CB2: 2040 | CC2: 2041 | CD2: 2042 | CE2: 2043 | CF2: 2044 | CG2: 2045 | CH2: 2046 | CI2: 2047 | CJ2: 2048 | CK2: 2049 | CL2: 2050 | CM2: 2051 | CN2: 2052 | CO2: 2053 | CP2: 2054 | CQ2: 2055 | CR2: 2056 | CS2: 2057 | CT2: 2058 | CU2: 2059 | CV2: 2060 | CW2: 2061 | CX2: 2062 | CY2: 2063 | CZ2: 2064 | DA2: 2065 | DB2: 2066 | DC2: 2067 | DD2: 2068 | DE2: 2069 | DF2: 2070 | DG2: 2071 | DH2: 2072 | DI2: 2073 | DJ2: 2074 | DK2: 2075 | DL2: 2076 | DM2: 2077 | DN2: 2078 | DO2: 2079 | DP2: 2080 | DQ2: 2081 | DR2: 2082 | DS2: 2083 | DT2: 2084 | DU2: =DT2+1 -> 2085 | DV2: 2086 | DW2: 2087 | DX2: 2088 | DY2: 2089 | DZ2: 2090 | EA2: 2091 | EB2: 2092 | EC2: 2093 | ED2: 2094 | EE2: 2095 | EF2: 2096 | EG2: 2097 | EH2: 2098 | EI2: 2099 | EJ2: 2100 | EK2: 2101 | EL2: 2102 | EM2: 2103 | EN2: 2104 | EO2: 2105 | EP2: 2106 | EQ2: 2107 | ER2: 2108 | ES2: 2109 | ET2: 2110
B3: CAPEX and capital base 2000-2009 | I3: ='Model inputs'!I3 -> Q1 | J3: ='Model inputs'!J3 -> Q2 | K3: ='Model inputs'!K3 -> Q3 | L3: ='Model inputs'!L3 -> Q4 | M3: ='Model inputs'!M3 -> Q1 | N3: ='Model inputs'!N3 -> Q2 | O3: ='Model inputs'!O3 -> Q3 | P3: ='Model inputs'!P3 -> Q4 | Q3: ='Model inputs'!Q3 -> Q1 | R3: ='Model inputs'!R3 -> Q2 | S3: ='Model inputs'!S3 -> Q3 | T3: ='Model inputs'!T3 -> Q4 | U3: ='Model inputs'!U3 -> Q1 | V3: ='Model inputs'!V3 -> Q2 | W3: ='Model inputs'!W3 -> Q3 | X3: ='Model inputs'!X3 -> Q4 | Y3: ='Model inputs'!Y3 -> Q1 | Z3: ='Model inputs'!Z3 -> Q2 | AA3: ='Model inputs'!AA3 -> Q3 | AB3: ='Model inputs'!AB3 -> Q4 | AC3: ='Model inputs'!AC3 -> Q1 | AD3: ='Model inputs'!AD3 -> Q2 | AE3: ='Model inputs'!AE3 -> Q3 | AF3: ='Model inputs'!AF3 -> Q4 | AG3: ='Model inputs'!AG3 -> Q1 | AH3: ='Model inputs'!AH3 -> Q2 | AI3: ='Model inputs'!AI3 -> Q3 | AJ3: ='Model inputs'!AJ3 -> Q4 | AK3: ='Model inputs'!AK3 -> Q1 | AL3: ='Model inputs'!AL3 -> Q2 | AM3: ='Model inputs'!AM3 -> Q3 | AN3: ='Model inputs'!AN3 -> Q4 | AO3: ='Model inputs'!AO3 -> Q1 | AP3: ='Model inputs'!AP3 -> Q2 | AQ3: ='Model inputs'!AQ3 -> Q3 | AR3: ='Model inputs'!AR3 -> Q4 | AS3: ='Model inputs'!AS3 -> Q1 | AT3: ='Model inputs'!AT3 -> Q2 | AU3: ='Model inputs'!AU3 -> Q3 | AV3: ='Model inputs'!AV3 -> Q4
B7: Capital base (beginning of period)
B9: ='Model inputs'!B9 -> Pipeline and laterals | H9: $m | J9: =I63 -> 0 | K9: =J63 -> 0 | L9: 0 | M9: 0 | N9: 0 | O9: 0 | P9: 0 | Q9: 0 | R9: 0 | S9: 0 | T9: 0 | U9: 0 | V9: 0 | W9: 0 | X9: 0 | Y9: 0 | Z9: 0 | AA9: 0 | AB9: 0 | AC9: 0 | AD9: 0.30112484 | AE9: 0.3013797 | AF9: 0.30183602 | AG9: 0.30150602 | AH9: 0.30150602 | AI9: 0.30150602 | AJ9: 0.30150602 | AK9: 0.30150602 | AL9: 0.30150602 | AM9: 0.58771978 | AN9: 0.58771978 | AO9: 0.58771978 | AP9: 0.58771978 | AQ9: 0.59127087 | AR9: 0.60129288 | AS9: 0.66206155 | AT9: 0.66350647 | AU9: 0.66492957 | AV9: 0.67349243 | AX9: =AV63-AW87 -> 0.67453779 | AY9: =AX63 -> 0.6644191681 | AZ9: 0.6543005462 | BA9: 0.6441819243 | BB9: 0.6340633024 | BC9: =BB63 -> 0.6239446805 | BD9: =BC63 -> 0.6138260585 | BE9: =BD63 -> 0.6037074366 | BF9: =BE63 -> 0.5935888147 | BG9: =BF63 -> 0.5834701928 | BH9: =BG63 -> 0.5733515709 | BI9: =BH63 -> 0.563232949 | BJ9: =BI63 -> 0.5531143271 | BK9: =BJ63 -> 0.5429957052 | BL9: =BK63 -> 0.5328770833 | BM9: =BL63 -> 0.5227584614 | BN9: =BM63 -> 0.5126398395 | BO9: =BN63 -> 0.5025212176 | BP9: =BO63 -> 0.4924025956 | BQ9: =BP63 -> 0.4822839737 | BR9: =BQ63 -> 0.4721653518 | BS9: =BR63 -> 0.4620467299 | BT9: =BS63 -> 0.451928108 | BU9: =BT63 -> 0.4418094861 | BV9: =BU63 -> 0.4316908642 | BW9: =BV63 -> 0.4215722423 | BX9: =BW63 -> 0.4114536204 | BY9: =BX63 -> 0.4013349985 | BZ9: =BY63 -> 0.3912163766 | CA9: =BZ63 -> 0.3810977547 | CB9: =CA63 -> 0.3709791327 | CC9: =CB63 -> 0.3608605108 | CD9: =CC63 -> 0.3507418889 | CE9: =CD63 -> 0.340623267 | CF9: =CE63 -> 0.3305046451 | CG9: =CF63 -> 0.3203860232 | CH9: =CG63 -> 0.3102674013 | CI9: =CH63 -> 0.3001487794 | CJ9: =CI63 -> 0.2900301575 | CK9: =CJ63 -> 0.2799115356 | CL9: =CK63 -> 0.2697929137 | CM9: =CL63 -> 0.2596742918 | CN9: =CM63 -> 0.2495556698 | CO9: =CN63 -> 0.2394370479 | CP9: =CO63 -> 0.229318426 | CQ9: =CP63 -> 0.2191998041 | CR9: =CQ63 -> 0.2090811822 | CS9: =CR63 -> 0.1989625603 | CT9: =CS63 -> 0.1888439384 | CU9: =CT63 -> 0.1787253165 | CV9: =CU63 -> 0.1686066946 | CW9: =CV63 -> 0.1584880727 | CX9: =CW63 -> 0.1483694508 | CY9: =CX63 -> 0.1382508289 | CZ9: =CY63 -> 0.1281322069 | DA9: =CZ63 -> 0.118013585 | DB9: =DA63 -> 0.1078949631 | DC9: =DB63 -> 0.09777634122 | DD9: =DC63 -> 0.08765771931 | DE9: =DD63 -> 0.07753909741 | DF9: =DE63 -> 0.0674204755 | DG9: =DF63 -> 0.05730185359 | DH9: =DG63 -> 0.04718323168 | DI9: =DH63 -> 0.03706460977 | DJ9: =DI63 -> 0.02694598786 | DK9: =DJ63 -> 0.01682736596 | DL9: =DK63 -> 0.01017362966 | DM9: =DL63 -> 0.004680779046 | DN9: =DM63 -> 0.001308030361 | DO9: =DN63 -> 0.0001177476392 | DP9: =DO63 -> 4.109126234e-17 | DQ9: =DP63 -> 4.098284212e-17 | DR9: =DQ63 -> 4.08744219e-17 | DS9: =DR63 -> 4.076600169e-17 | DT9: =DS63 -> 4.065758147e-17 | DU9: =DT63 -> 4.054916125e-17 | DV9: =DU63 -> 4.044074103e-17 | DW9: =DV63 -> 4.098284212e-17 | DX9: =DW63 -> 4.152494321e-17 | DY9: =DX63 -> 4.206704429e-17 | DZ9: =DY63 -> 4.260914538e-17 | EA9: =DZ63 -> 4.315124646e-17 | EB9: =EA63 -> 4.369334755e-17 | EC9: =EB63 -> 4.423544864e-17 | ED9: =EC63 -> 4.477754972e-17 | EE9: =ED63 -> 4.531965081e-17 | EF9: =EE63 -> 4.58617519e-17 | EG9: =EF63 -> 4.640385298e-17 | EH9: =EG63 -> 4.694595407e-17 | EI9: =EH63 -> 4.748805515e-17 | EJ9: =EI63 -> 4.803015624e-17 | EK9: =EJ63 -> 4.857225733e-17 | EL9: =EK63 -> 4.911435841e-17 | EM9: =EL63 -> 4.96564595e-17 | EN9: =EM63 -> 5.019856059e-17 | EO9: =EN63 -> 5.074066167e-17 | EP9: =EO63 -> 5.128276276e-17 | EQ9: =EP63 -> 5.182486384e-17 | ER9: =EQ63 -> 5.236696493e-17 | ES9: =ER63 -> 5.290906602e-17 | ET9: =ES63 -> 5.34511671e-17
B10: ='Model inputs'!B10 -> Main line valve and scraper stations | H10: $m | J10: =I64 -> 0 | K10: 0 | L10: 0 | M10: 0 | N10: 0 | O10: 0 | P10: 0 | Q10: 0 | R10: 0 | S10: 0 | T10: 0 | U10: 0 | V10: 0 | W10: 0 | X10: 0 | Y10: 0 | Z10: 0 | AA10: 0 | AB10: 0 | AC10: 0 | AD10: 0 | AE10: 0 | AF10: 0 | AG10: 0 | AH10: 0 | AI10: 0 | AJ10: 0 | AK10: 0 | AL10: 0 | AM10: 0 | AN10: 0 | AO10: 0 | AP10: 0 | AQ10: 0 | AR10: 0 | AS10: 0 | AT10: 0.02711449 | AU10: 0.02825941 | AV10: 0.02825941 | AX10: 0.02825941 | AY10: 0.02768573228 | AZ10: 0.02711205457 | BA10: 0.02653837685 | BB10: 0.02596469913 | BC10: 0.02539102141 | BD10: 0.0248173437 | BE10: 0.02424366598 | BF10: 0.02366998826 | BG10: 0.02309631054 | BH10: 0.02252263283 | BI10: 0.02194895511 | BJ10: 0.02137527739 | BK10: 0.02080159968 | BL10: 0.02022792196 | BM10: 0.01965424424 | BN10: 0.01908056652 | BO10: 0.01850688881 | BP10: 0.01793321109 | BQ10: 0.01735953337 | BR10: 0.01678585565 | BS10: 0.01621217794 | BT10: 0.01563850022 | BU10: 0.0150648225 | BV10: 0.01449114479 | BW10: 0.01391746707 | BX10: 0.01334378935 | BY10: 0.01277011163 | BZ10: 0.01219643392 | CA10: 0.0116227562 | CB10: 0.01104907848 | CC10: 0.01047540076 | CD10: 0.009901723047 | CE10: 0.00932804533 | CF10: 0.008754367613 | CG10: 0.008180689895 | CH10: 0.007607012178 | CI10: 0.007033334461 | CJ10: 0.006459656744 | CK10: 0.005885979026 | CL10: 0.005312301309 | CM10: 0.004738623592 | CN10: 0.004164945874 | CO10: 0.003591268157 | CP10: 0.00301759044 | CQ10: 0.002443912723 | CR10: 0.001870235005 | CS10: 0.001296557288 | CT10: 0.0007228795708 | CU10: 0.0001492018536 | CV10: -1.864827737e-17 | CW10: -1.864827737e-17 | CX10: -1.864827737e-17 | CY10: -1.864827737e-17 | CZ10: -1.864827737e-17 | DA10: -1.864827737e-17 | DB10: -1.864827737e-17 | DC10: -1.864827737e-17 | DD10: -1.864827737e-17 | DE10: -1.864827737e-17 | DF10: -1.864827737e-17 | DG10: -1.864827737e-17 | DH10: -1.864827737e-17 | DI10: -1.864827737e-17 | DJ10: -1.864827737e-17 | DK10: -1.864827737e-17 | DL10: -1.864827737e-17 | DM10: -1.864827737e-17 | DN10: -1.864827737e-17 | DO10: -1.864827737e-17 | DP10: -1.864827737e-17 | DQ10: -1.864827737e-17 | DR10: -1.864827737e-17 | DS10: -1.864827737e-17 | DT10: -1.864827737e-17 | DU10: -1.864827737e-17 | DV10: -1.864827737e-17 | DW10: -1.864827737e-17 | DX10: -1.864827737e-17 | DY10: -1.864827737e-17 | DZ10: -1.864827737e-17 | EA10: -1.864827737e-17 | EB10: -1.864827737e-17 | EC10: -1.864827737e-17 | ED10: -1.864827737e-17 | EE10: -1.864827737e-17 | EF10: -1.864827737e-17 | EG10: -1.864827737e-17 | EH10: -1.864827737e-17 | EI10: -1.864827737e-17 | EJ10: -1.864827737e-17 | EK10: -1.864827737e-17 | EL10: -1.864827737e-17 | EM10: -1.864827737e-17 | EN10: -1.864827737e-17 | EO10: -1.864827737e-17 | EP10: -1.864827737e-17 | EQ10: -1.864827737e-17 | ER10: -1.864827737e-17 | ES10: -1.864827737e-17 | ET10: -1.864827737e-17
B11: ='Model inputs'!B11 -> Compressor stations | H11: $m | J11: 0.7266078075 | K11: 1.44716055 | L11: 2.161658227 | M11: 2.87010084 | N11: 4.862558722 | O11: 6.838210953 | P11: 8.797057533 | Q11: 10.73909846 | R11: 10.81001886 | S11: 10.87958624 | T11: 10.94780059 | U11: 11.01466191 | V11: 13.36812173 | W11: 15.70116226 | X11: 18.01378349 | Y11: 20.30598544 | Z11: 21.14567224 | AA11: 21.97687389 | AB11: 22.79959037 | AC11: 23.6138217 | AD11: 23.63803473 | AE11: 23.79111112 | AF11: 23.64337927 | AG11: 23.46567838 | AH11: 23.28868548 | AI11: 23.40288948 | AJ11: 23.50769779 | AK11: 23.47409353 | AL11: 23.32158324 | AM11: 23.25090542 | AN11: 23.04799893 | AO11: 22.79931104 | AP11: 22.52272999 | AQ11: 22.47817853 | AR11: 22.24256526 | AS11: 22.09475533 | AT11: 22.10217655 | AU11: 21.8334457 | AV11: 21.55881209 | AX11: 21.40682723 | AY11: 20.48138061 | AZ11: 19.55593398 | BA11: 18.63048736 | BB11: 17.70504074 | BC11: 16.77959412 | BD11: 15.8541475 | BE11: 14.92870088 | BF11: 14.00325426 | BG11: 13.07780764 | BH11: 12.15236102 | BI11: 11.2269144 | BJ11: 10.30146778 | BK11: 9.376021158 | BL11: 8.450574538 | BM11: 7.525127917 | BN11: 6.599681297 | BO11: 5.674234676 | BP11: 4.748788055 | BQ11: 3.823341435 | BR11: 2.897894814 | BS11: 2.008778584 | BT11: 1.281046912 | BU11: 0.7294899143 | BV11: 0.313978929 | BW11: 0.1535717899 | BX11: 0.09190823374 | BY11: 0.04829880478 | BZ11: 0.0222303696 | CA11: 0.002609519192 | CB11: 1.746432859e-15 | CC11: 5.687724597e-15 | CD11: 9.629016334e-15 | CE11: 1.357030807e-14 | CF11: 2.239658112e-14 | CG11: 3.122285416e-14 | CH11: 4.004912721e-14 | CI11: 4.887540025e-14 | CJ11: 5.77016733e-14 | CK11: 6.652794635e-14 | CL11: 7.535421939e-14 | CM11: 8.418049244e-14 | CN11: 9.300676548e-14 | CO11: 1.018330385e-13 | CP11: 1.106593116e-13 | CQ11: 1.194855846e-13 | CR11: 1.283118577e-13 | CS11: 1.371381307e-13 | CT11: 1.459644038e-13 | CU11: 1.547906768e-13 | CV11: 1.636169498e-13 | CW11: 1.724432229e-13 | CX11: 1.812694959e-13 | CY11: 1.90095769e-13 | CZ11: 1.98922042e-13 | DA11: 2.077483151e-13 | DB11: 2.165745881e-13 | DC11: 2.254008612e-13 | DD11: 2.342271342e-13 | DE11: 2.430534073e-13 | DF11: 2.518796803e-13 | DG11: 2.607059534e-13 | DH11: 2.695322264e-13 | DI11: 2.783584994e-13 | DJ11: 2.871847725e-13 | DK11: 2.960110455e-13 | DL11: 3.048373186e-13 | DM11: 3.136635916e-13 | DN11: 3.224898647e-13 | DO11: 3.313161377e-13 | DP11: 3.401424108e-13 | DQ11: 3.489686838e-13 | DR11: 3.577949569e-13 | DS11: 3.666212299e-13 | DT11: 3.754475029e-13 | DU11: 3.84273776e-13 | DV11: 3.93100049e-13 | DW11: 4.019263221e-13 | DX11: 4.107525951e-13 | DY11: 4.195788682e-13 | DZ11: 4.284051412e-13 | EA11: 4.372314143e-13 | EB11: 4.460576873e-13 | EC11: 4.548839604e-13 | ED11: 4.637102334e-13 | EE11: 4.725365065e-13 | EF11: 4.813627795e-13 | EG11: 4.901890525e-13 | EH11: 4.990153256e-13 | EI11: 5.078415986e-13 | EJ11: 5.166678717e-13 | EK11: 5.254941447e-13 | EL11: 5.343204178e-13 | EM11: 5.431466908e-13 | EN11: 5.519729639e-13 | EO11: 5.607992369e-13 | EP11: 5.6962551e-13 | EQ11: 5.78451783e-13 | ER11: 5.87278056e-13 | ES11: 5.961043291e-13 | ET11: 6.049306021e-13
B12: ='Model inputs'!B12 -> Receipt and delivery point facilities | H12: $m | J12: 0.04005906 | K12: 0.0797842945 | L12: 0.1191757035 | M12: 0.158233287 | N12: 0.1811840775 | O12: 0.2039324839 | P12: 0.2264785062 | Q12: 0.2488221444 | R12: 0.2614580335 | S12: 0.2739707498 | T12: 0.2863602934 | U12: 0.2986266643 | V12: 0.3133664775 | W12: 0.3279614795 | X12: 0.3424116703 | Y12: 0.3567170499 | Z12: 0.3619450258 | AA12: 0.3671026288 | AB12: 0.3721898589 | AC12: 0.377206716 | AD12: 0.3737084503 | AE12: 0.3702101845 | AF12: 0.3667119188 | AG12: 0.380767323 | AH12: 0.3909504873 | AI12: 0.5099976815 | AJ12: 0.6249010958 | AK12: 0.74716429 | AL12: 1.139739224 | AM12: 1.220771789 | AN12: 1.217402193 | AO12: 1.213903927 | AP12: 1.210405661 | AQ12: 1.206907396 | AR12: 1.20340913 | AS12: 1.203130004 | AT12: 1.199631738 | AU12: 1.196133473 | AV12: 1.192635207 | AX12: 1.189136941 | AY12: 1.142514833 | AZ12: 1.095892726 | BA12: 1.049270618 | BB12: 1.002648511 | BC12: 0.9560264029 | BD12: 0.9094042953 | BE12: 0.8627821877 | BF12: 0.81616008 | BG12: 0.7695379724 | BH12: 0.7229158648 | BI12: 0.6762937572 | BJ12: 0.6296716495 | BK12: 0.5830495419 | BL12: 0.5364274343 | BM12: 0.4898053266 | BN12: 0.443183219 | BO12: 0.3965611114 | BP12: 0.3499390038 | BQ12: 0.3033168961 | BR12: 0.2566947885 | BS12: 0.2120756339 | BT12: 0.1720090389 | BU12: 0.1347053213 | BV12: 0.09950219813 | BW12: 0.06616942434 | BX12: 0.03354037971 | BY12: 0.005396110487 | BZ12: 0.0001110048276 | CA12: -1.025926306e-16 | CB12: -7.960754451e-17 | CC12: -5.662245846e-17 | CD12: 1.493488493e-17 | CE12: 8.649222831e-17 | CF12: 1.580495717e-16 | CG12: 2.296069151e-16 | CH12: 3.913698792e-16 | CI12: 5.531328433e-16 | CJ12: 7.148958075e-16 | CK12: 8.766587716e-16 | CL12: 1.038421736e-15 | CM12: 1.2001847e-15 | CN12: 1.361947664e-15 | CO12: 1.523710628e-15 | CP12: 1.685473592e-15 | CQ12: 1.847236556e-15 | CR12: 2.008999521e-15 | CS12: 2.170762485e-15 | CT12: 2.332525449e-15 | CU12: 2.494288413e-15 | CV12: 2.656051377e-15 | CW12: 2.817814341e-15 | CX12: 2.979577305e-15 | CY12: 3.14134027e-15 | CZ12: 3.303103234e-15 | DA12: 3.464866198e-15 | DB12: 3.626629162e-15 | DC12: 3.788392126e-15 | DD12: 3.95015509e-15 | DE12: 4.111918054e-15 | DF12: 4.273681018e-15 | DG12: 4.435443983e-15 | DH12: 4.597206947e-15 | DI12: 4.758969911e-15 | DJ12: 4.920732875e-15 | DK12: 5.082495839e-15 | DL12: 5.244258803e-15 | DM12: 5.406021767e-15 | DN12: 5.567784732e-15 | DO12: 5.729547696e-15 | DP12: 5.89131066e-15 | DQ12: 6.053073624e-15 | DR12: 6.214836588e-15 | DS12: 6.376599552e-15 | DT12: 6.538362516e-15 | DU12: 6.70012548e-15 | DV12: 6.861888445e-15 | DW12: 7.023651409e-15 | DX12: 7.185414373e-15 | DY12: 7.347177337e-15 | DZ12: 7.508940301e-15 | EA12: 7.670703265e-15 | EB12: 7.832466229e-15 | EC12: 7.994229194e-15 | ED12: 8.155992158e-15 | EE12: 8.317755122e-15 | EF12: 8.479518086e-15 | EG12: 8.64128105e-15 | EH12: 8.803044014e-15 | EI12: 8.964806978e-15 | EJ12: 9.126569942e-15 | EK12: 9.288332907e-15 | EL12: 9.450095871e-15 | EM12: 9.611858835e-15 | EN12: 9.773621799e-15 | EO12: 9.935384763e-15 | EP12: 1.009714773e-14 | EQ12: 1.025891069e-14 | ER12: 1.042067366e-14 | ES12: 1.058243662e-14 | ET12: 1.074419958e-14
B13: ='Model inputs'!B13 -> SCADA and communications | H13: $m | J13: 0.006985115 | K13: 0.01385381142 | L13: 0.02060608925 | M13: 0.0272419485 | N13: 0.02807186167 | O13: 0.02888018171 | P13: 0.02966690863 | Q13: 0.03043204242 | R13: 0.04385460308 | S13: 0.05704425363 | T13: 0.07000099404 | U13: 0.08272482433 | V13: 0.0985879545 | W13: 0.114161971 | X13: 0.129446874 | Y13: 0.1444426633 | Z13: 0.2516969764 | AA13: 0.3571197153 | AB13: 0.46071088 | AC13: 0.5624704704 | AD13: 0.5775057016 | AE13: 0.5728473183 | AF13: 0.5633325305 | AG13: 0.5526279283 | AH13: 0.5929668816 | AI13: 0.7786744483 | AJ13: 0.9349551982 | AK13: 0.9336394316 | AL13: 0.9553061782 | AM13: 0.9940505682 | AN13: 0.9760772715 | AO13: 0.9935787381 | AP13: 0.9565629981 | AQ13: 0.9695738581 | AR13: 1.228666958 | AS13: 1.521496178 | AT13: 1.724780758 | AU13: 2.144309418 | AV13: 2.104300578 | AX13: 2.125790765 | AY13: 1.956067639 | AZ13: 1.786344513 | BA13: 1.616621386 | BB13: 1.44689826 | BC13: 1.277175134 | BD13: 1.108150519 | BE13: 0.9404196485 | BF13: 0.7743021702 | BG13: 0.612248475 | BH13: 0.4640753614 | BI13: 0.3357588828 | BJ13: 0.2167699762 | BK13: 0.1130909059 | BL13: 0.02055422841 | BM13: -5.620504062e-16 | BN13: -6.209225842e-16 | BO13: -6.797947621e-16 | BP13: -7.386669401e-16 | BQ13: -7.975391181e-16 | BR13: -8.56411296e-16 | BS13: -9.15283474e-16 | BT13: -9.74155652e-16 | BU13: -1.03302783e-15 | BV13: -5.922996468e-16 | BW13: -1.515714637e-16 | BX13: 2.891567194e-16 | BY13: 7.298849025e-16 | BZ13: 1.170613086e-15 | CA13: 1.611341269e-15 | CB13: 2.052069452e-15 | CC13: 2.492797635e-15 | CD13: 2.933525818e-15 | CE13: 3.374254001e-15 | CF13: 3.814982184e-15 | CG13: 4.255710367e-15 | CH13: 4.696438551e-15 | CI13: 5.137166734e-15 | CJ13: 5.577894917e-15 | CK13: 6.0186231e-15 | CL13: 6.549556904e-15 | CM13: 7.080490708e-15 | CN13: 7.611424511e-15 | CO13: 8.142358315e-15 | CP13: 8.673292119e-15 | CQ13: 9.204225923e-15 | CR13: 9.735159727e-15 | CS13: 1.026609353e-14 | CT13: 1.079702733e-14 | CU13: 1.132796114e-14 | CV13: 1.185889494e-14 | CW13: 1.238982875e-14 | CX13: 1.292076255e-14 | CY13: 1.345169635e-14 | CZ13: 1.398263016e-14 | DA13: 1.451356396e-14 | DB13: 1.504449777e-14 | DC13: 1.557543157e-14 | DD13: 1.610636537e-14 | DE13: 1.663729918e-14 | DF13: 1.716823298e-14 | DG13: 1.769916678e-14 | DH13: 1.823010059e-14 | DI13: 1.876103439e-14 | DJ13: 1.92919682e-14 | DK13: 1.9822902e-14 | DL13: 2.03538358e-14 | DM13: 2.088476961e-14 | DN13: 2.141570341e-14 | DO13: 2.194663722e-14 | DP13: 2.247757102e-14 | DQ13: 2.300850482e-14 | DR13: 2.353943863e-14 | DS13: 2.407037243e-14 | DT13: 2.460130624e-14 | DU13: 2.513224004e-14 | DV13: 2.566317384e-14 | DW13: 2.619410765e-14 | DX13: 2.672504145e-14 | DY13: 2.725597525e-14 | DZ13: 2.778690906e-14 | EA13: 2.831784286e-14 | EB13: 2.884877667e-14 | EC13: 2.937971047e-14 | ED13: 2.991064427e-14 | EE13: 3.044157808e-14 | EF13: 3.097251188e-14 | EG13: 3.150344569e-14 | EH13: 3.203437949e-14 | EI13: 3.256531329e-14 | EJ13: 3.30962471e-14 | EK13: 3.36271809e-14 | EL13: 3.41581147e-14 | EM13: 3.468904851e-14 | EN13: 3.521998231e-14 | EO13: 3.575091612e-14 | EP13: 3.628184992e-14 | EQ13: 3.681278372e-14 | ER13: 3.734371753e-14 | ES13: 3.787465133e-14 | ET13: 3.840558514e-14
B14: ='Model inputs'!B14 -> Cathodic protection | H14: $m | J14: 0 | K14: 0 | L14: 0 | M14: 0 | N14: 0 | O14: 0 | P14: 0 | Q14: 0 | R14: 0 | S14: 0 | T14: 0 | U14: 0 | V14: 0.00394725 | W14: 0.0078287125 | X14: 0.0116443875 | Y14: 0.015394275 | Z14: 0.015131125 | AA14: 0.014867975 | AB14: 0.014604825 | AC14: 0.014341675 | AD14: 0.014375525 | AE14: 0.014112375 | AF14: 0.013849225 | AG14: 0.013586075 | AH14: 0.013322925 | AI14: 0.013059775 | AJ14: 0.021046625 | AK14: 0.020783475 | AL14: 0.020520325 | AM14: 0.020257175 | AN14: 0.019994025 | AO14: 0.019730875 | AP14: 0.019467725 | AQ14: 0.084890545 | AR14: 0.086502895 | AS14: 0.132402935 | AT14: 0.240634215 | AU14: 0.980253675 | AV14: 1.141389705 | AX14: 1.729809375 | AY14: 1.610898404 | AZ14: 1.491987433 | BA14: 1.373076462 | BB14: 1.254165491 | BC14: 1.135254519 | BD14: 1.016343548 | BE14: 0.8974325772 | BF14: 0.778521606 | BG14: 0.6600053599 | BH14: 0.5421469888 | BI14: 0.4243103494 | BJ14: 0.3066564858 | BK14: 0.1895292179 | BL14: 0.0748688638 | BM14: 1.526556659e-16 | BN14: 3.751339517e-16 | BO14: 5.976122375e-16 | BP14: 8.200905233e-16 | BQ14: 1.042568809e-15 | BR14: 1.265047095e-15 | BS14: 1.487525381e-15 | BT14: 1.710003666e-15 | BU14: 1.932481952e-15 | BV14: 2.154960238e-15 | BW14: 2.377438524e-15 | BX14: 2.59991681e-15 | BY14: 2.822395095e-15 | BZ14: 3.044873381e-15 | CA14: 3.267351667e-15 | CB14: 3.489829953e-15 | CC14: 3.712308239e-15 | CD14: 3.934786524e-15 | CE14: 4.15726481e-15 | CF14: 4.379743096e-15 | CG14: 4.602221382e-15 | CH14: 4.824699668e-15 | CI14: 5.047177953e-15 | CJ14: 5.269656239e-15 | CK14: 5.492134525e-15 | CL14: 5.714612811e-15 | CM14: 5.937091097e-15 | CN14: 6.159569382e-15 | CO14: 6.382047668e-15 | CP14: 6.604525954e-15 | CQ14: 6.82700424e-15 | CR14: 7.049482526e-15 | CS14: 7.271960811e-15 | CT14: 7.494439097e-15 | CU14: 7.716917383e-15 | CV14: 7.939395669e-15 | CW14: 8.161873954e-15 | CX14: 8.38435224e-15 | CY14: 8.606830526e-15 | CZ14: 8.829308812e-15 | DA14: 9.051787098e-15 | DB14: 9.274265383e-15 | DC14: 9.496743669e-15 | DD14: 9.719221955e-15 | DE14: 9.941700241e-15 | DF14: 1.016417853e-14 | DG14: 1.038665681e-14 | DH14: 1.06091351e-14 | DI14: 1.083161338e-14 | DJ14: 1.105409167e-14 | DK14: 1.127656996e-14 | DL14: 1.149904824e-14 | DM14: 1.172152653e-14 | DN14: 1.194400481e-14 | DO14: 1.21664831e-14 | DP14: 1.238896138e-14 | DQ14: 1.261143967e-14 | DR14: 1.283391796e-14 | DS14: 1.305639624e-14 | DT14: 1.327887453e-14 | DU14: 1.350135281e-14 | DV14: 1.37238311e-14 | DW14: 1.394630939e-14 | DX14: 1.416878767e-14 | DY14: 1.439126596e-14 | DZ14: 1.461374424e-14 | EA14: 1.483622253e-14 | EB14: 1.505870081e-14 | EC14: 1.52811791e-14 | ED14: 1.550365739e-14 | EE14: 1.572613567e-14 | EF14: 1.594861396e-14 | EG14: 1.617109224e-14 | EH14: 1.639357053e-14 | EI14: 1.661604881e-14 | EJ14: 1.68385271e-14 | EK14: 1.706100539e-14 | EL14: 1.728348367e-14 | EM14: 1.750596196e-14 | EN14: 1.772844024e-14 | EO14: 1.795091853e-14 | EP14: 1.817339682e-14 | EQ14: 1.83958751e-14 | ER14: 1.861835339e-14 | ES14: 1.884083167e-14 | ET14: 1.906330996e-14
B15: ='Model inputs'!B15 -> Maintenance bases and depots | H15: $m | J15: 0.00182295 | K15: 0.00363678525 | L15: 0.00544150575 | M15: 0.0072371115 | N15: 0.0082676975 | O15: 0.009292948275 | P15: 0.01031286382 | Q15: 0.01132744415 | R15: 0.01181964425 | S15: 0.01230909435 | T15: 0.01279579445 | U15: 0.01327974455 | V15: 0.01321094465 | W15: 0.01314214475 | X15: 0.01307334485 | Y15: 0.01300454495 | Z15: 0.01293574505 | AA15: 0.01286694515 | AB15: 0.01279814525 | AC15: 0.01272934535 | AD15: 0.01266054545 | AE15: 0.01259174555 | AF15: 0.01252294565 | AG15: 0.01507314575 | AH15: 0.01500434585 | AI15: 0.04977284595 | AJ15: 0.04970404605 | AK15: 0.04963524615 | AL15: 0.04956644625 | AM15: 0.04949764635 | AN15: 0.05989470645 | AO15: 0.06148690655 | AP15: 0.06141810665 | AQ15: 0.1226282468 | AR15: 0.1348025169 | AS15: 0.205955057 | AT15: 0.2058862571 | AU15: 0.2058174572 | AV15: 0.2057486573 | AX15: 0.2244898574 | AY15: 0.2198104293 | AZ15: 0.2151310013 | BA15: 0.2104515732 | BB15: 0.2057721452 | BC15: 0.2010927171 | BD15: 0.1964132891 | BE15: 0.1917338611 | BF15: 0.187054433 | BG15: 0.182375005 | BH15: 0.1776955769 | BI15: 0.1730161489 | BJ15: 0.1683367208 | BK15: 0.1636572928 | BL15: 0.1589778648 | BM15: 0.1542984367 | BN15: 0.1496190087 | BO15: 0.1449395806 | BP15: 0.1402601526 | BQ15: 0.1355807246 | BR15: 0.1309012965 | BS15: 0.1262218685 | BT15: 0.1215424404 | BU15: 0.1168630124 | BV15: 0.1121835843 | BW15: 0.1075041563 | BX15: 0.1028247283 | BY15: 0.09814530022 | BZ15: 0.09346587218 | CA15: 0.08878644414 | CB15: 0.0841070161 | CC15: 0.07942758805 | CD15: 0.07474816001 | CE15: 0.07006873197 | CF15: 0.06538930393 | CG15: 0.06070987589 | CH15: 0.05603044784 | CI15: 0.0513510198 | CJ15: 0.04667159176 | CK15: 0.04199216372 | CL15: 0.03731273568 | CM15: 0.03268799614 | CN15: 0.02818641544 | CO15: 0.023754687 | CP15: 0.01935045856 | CQ15: 0.01494623012 | CR15: 0.01054200168 | CS15: 0.006569302641 | CT15: 0.003025993307 | CU15: 0.0003762 | CV15: -1.373142051e-16 | CW15: -8.657354347e-17 | CX15: -3.58328818e-17 | CY15: 1.490777987e-17 | CZ15: 6.564844154e-17 | DA15: 1.163891032e-16 | DB15: 1.671297649e-16 | DC15: 2.178704266e-16 | DD15: 2.686110882e-16 | DE15: 3.193517499e-16 | DF15: 3.700924116e-16 | DG15: 4.208330733e-16 | DH15: 4.715737349e-16 | DI15: 5.223143966e-16 | DJ15: 5.730550583e-16 | DK15: 6.237957199e-16 | DL15: 6.745363816e-16 | DM15: 7.252770433e-16 | DN15: 7.76017705e-16 | DO15: 8.267583666e-16 | DP15: 8.774990283e-16 | DQ15: 9.2823969e-16 | DR15: 9.789803516e-16 | DS15: 1.029721013e-15 | DT15: 1.080461675e-15 | DU15: 1.131202337e-15 | DV15: 1.181942998e-15 | DW15: 1.23268366e-15 | DX15: 1.283424322e-15 | DY15: 1.334164983e-15 | DZ15: 1.384905645e-15 | EA15: 1.435646307e-15 | EB15: 1.486386968e-15 | EC15: 1.53712763e-15 | ED15: 1.587868292e-15 | EE15: 1.638608953e-15 | EF15: 1.689349615e-15 | EG15: 1.740090277e-15 | EH15: 1.790830938e-15 | EI15: 1.8415716e-15 | EJ15: 1.892312262e-15 | EK15: 1.943052923e-15 | EL15: 1.993793585e-15 | EM15: 2.044534247e-15 | EN15: 2.095274908e-15 | EO15: 2.14601557e-15 | EP15: 2.196756232e-15 | EQ15: 2.247496893e-15 | ER15: 2.298237555e-15 | ES15: 2.348978217e-15 | ET15: 2.399718878e-15
B16: ='Model inputs'!B16 -> Other depreciable assets | H16: $m | J16: 0.1355580325 | K16: 0.2677271142 | L16: 0.3965072451 | M16: 0.5218984251 | N16: 0.5628642044 | O16: 0.6024669441 | P16: 0.6407066442 | Q16: 0.6775833047 | R16: 0.7467512507 | S16: 0.8137147991 | T16: 0.8784739497 | U16: 0.9410287026 | V16: 0.9589025654 | W16: 0.9756339427 | X16: 0.9912228347 | Y16: 1.005669241 | Z16: 1.371572198 | AA16: 1.727517693 | AB16: 2.073505726 | AC16: 2.409536299 | AD16: 2.41849275 | AE16: 2.534057439 | AF16: 2.524381787 | AG16: 2.519696682 | AH16: 2.570376905 | AI16: 2.551194028 | AJ16: 2.49943179 | AK16: 2.439469321 | AL16: 2.407883182 | AM16: 2.4621375 | AN16: 2.536447706 | AO16: 2.41195542 | AP16: 2.315864821 | AQ16: 2.307509692 | AR16: 2.208421413 | AS16: 2.059932874 | AT16: 2.144390855 | AU16: 2.082072196 | AV16: 1.980662617 | AX16: 2.092558672 | AY16: 1.684448519 | AZ16: 1.318406112 | BA16: 0.9792204861 | BB16: 0.6689337496 | BC16: 0.4298166343 | BD16: 0.2967882228 | BE16: 0.1828348271 | BF16: 0.09183415241 | BG16: 0.03039787797 | BH16: -6.245004514e-17 | BI16: -7.632783294e-17 | BJ16: -9.020562075e-17 | BK16: -1.040834086e-16 | BL16: -1.179611964e-16 | BM16: -1.318389842e-16 | BN16: -1.45716772e-16 | BO16: -1.595945598e-16 | BP16: -1.734723476e-16 | BQ16: -1.873501354e-16 | BR16: -2.012279232e-16 | BS16: -2.15105711e-16 | BT16: -2.289834988e-16 | BU16: -2.428612866e-16 | BV16: -2.567390744e-16 | BW16: -2.706168623e-16 | BX16: -2.844946501e-16 | BY16: -2.983724379e-16 | BZ16: -3.122502257e-16 | CA16: -3.261280135e-16 | CB16: -3.400058013e-16 | CC16: -3.538835891e-16 | CD16: -3.677613769e-16 | CE16: -3.816391647e-16 | CF16: -3.955169525e-16 | CG16: -4.093947403e-16 | CH16: -4.232725281e-16 | CI16: -4.371503159e-16 | CJ16: -4.510281038e-16 | CK16: -4.649058916e-16 | CL16: -4.787836794e-16 | CM16: -4.926614672e-16 | CN16: -5.06539255e-16 | CO16: -5.204170428e-16 | CP16: -5.342948306e-16 | CQ16: -5.481726184e-16 | CR16: -5.620504062e-16 | CS16: -5.75928194e-16 | CT16: -7.632783294e-17 | CU16: 4.232725281e-16 | CV16: 9.228728892e-16 | CW16: 1.42247325e-15 | CX16: 1.922073611e-15 | CY16: 2.421673972e-15 | CZ16: 2.921274334e-15 | DA16: 3.420874695e-15 | DB16: 3.920475056e-15 | DC16: 4.420075417e-15 | DD16: 4.919675778e-15 | DE16: 5.419276139e-15 | DF16: 5.9188765e-15 | DG16: 6.418476861e-15 | DH16: 6.918077222e-15 | DI16: 7.417677583e-15 | DJ16: 7.917277944e-15 | DK16: 8.416878305e-15 | DL16: 8.916478667e-15 | DM16: 9.416079028e-15 | DN16: 9.915679389e-15 | DO16: 1.041527975e-14 | DP16: 1.091488011e-14 | DQ16: 1.141448047e-14 | DR16: 1.191408083e-14 | DS16: 1.241368119e-14 | DT16: 1.291328156e-14 | DU16: 1.341288192e-14 | DV16: 1.391248228e-14 | DW16: 1.441208264e-14 | DX16: 1.4911683e-14 | DY16: 1.541128336e-14 | DZ16: 1.591088372e-14 | EA16: 1.641048408e-14 | EB16: 1.691008444e-14 | EC16: 1.74096848e-14 | ED16: 1.790928517e-14 | EE16: 1.840888553e-14 | EF16: 1.890848589e-14 | EG16: 1.940808625e-14 | EH16: 1.990768661e-14 | EI16: 2.040728697e-14 | EJ16: 2.090688733e-14 | EK16: 2.140648769e-14 | EL16: 2.190608805e-14 | EM16: 2.240568842e-14 | EN16: 2.290528878e-14 | EO16: 2.340488914e-14 | EP16: 2.39044895e-14 | EQ16: 2.440408986e-14 | ER16: 2.490369022e-14 | ES16: 2.540329058e-14 | ET16: 2.590289094e-14
B17: ='Model inputs'!B17 -> Non-depreciable assets | H17: $m | J17: -1.456675929 | K17: =J71 -> 0.366693219 | L17: =K71 -> 0.366693219 | M17: =L71 -> 0.3468739891 | N17: =M71 -> 0.3468739891 | O17: =N71 -> 1.122150221 | P17: =O71 -> 1.093811472 | Q17: =P71 -> 1.066088783 | R17: =Q71 -> 1.066088783 | S17: 0.4386952437 | T17: 0.4178669891 | U17: 0.3974915226 | V17: 0.3974915226 | W17: 1.856820291 | X17: 1.820408245 | Y17: 1.784787765 | Z17: =Y71 -> 1.784787765 | AA17: =Z71 -> 1.076766205 | AB17: =AA71 -> 1.076766205 | AC17: =AB71 -> 1.049228791 | AD17: =AC71 -> 1.049228791 | AE17: =AD71 -> 0.9793240712 | AF17: =AE71 -> 0.9525548404 | AG17: =AF71 -> 0.9263675495 | AH17: =AG71 -> 0.9263675495 | AI17: =AH71 -> 1.312449071 | AJ17: =AI71 -> 1.282019126 | AK17: =AJ71 -> 1.252250702 | AL17: =AK71 -> 1.252250702 | AM17: =AL71 -> 1.316824071 | AN17: =AM71 -> 1.286346049 | AO17: =AN71 -> 1.256530593 | AP17: =AO71 -> 1.256530593 | AQ17: =AP71 -> 1.074326818 | AR17: =AQ71 -> 1.074326818 | AS17: =AR71 -> 1.046815919 | AT17: =AS71 -> 1.046815919 | AU17: =AT71 -> 1.301574071 | AV17: =AU71 -> 1.271263632 | AX17: 1.241612115 | AY17: 1.241612115 | AZ17: =AY71 -> 1.241612115 | BA17: =AZ71 -> 1.241612115 | BB17: =BA71 -> 1.241612115 | BC17: 1.241612115 | BD17: 1.241612115 | BE17: 1.241612115 | BF17: 1.241612115 | BG17: 1.241612115 | BH17: 1.241612115 | BI17: 1.241612115 | BJ17: 1.241612115 | BK17: 1.241612115 | BL17: 1.241612115 | BM17: 1.241612115 | BN17: 1.241612115 | BO17: 1.241612115 | BP17: 1.241612115 | BQ17: 1.241612115 | BR17: 1.241612115 | BS17: 1.241612115 | BT17: 1.241612115 | BU17: 1.241612115 | BV17: 1.241612115 | BW17: 1.241612115 | BX17: 1.241612115 | BY17: 1.241612115 | BZ17: 1.241612115 | CA17: 1.241612115 | CB17: 1.241612115 | CC17: 1.241612115 | CD17: 1.241612115 | CE17: 1.241612115 | CF17: 1.241612115 | CG17: 1.241612115 | CH17: 1.241612115 | CI17: 1.241612115 | CJ17: 1.241612115 | CK17: 1.241612115 | CL17: 1.241612115 | CM17: 1.241612115 | CN17: 1.241612115 | CO17: 1.241612115 | CP17: 1.241612115 | CQ17: 1.241612115 | CR17: 1.241612115 | CS17: 1.241612115 | CT17: 1.241612115 | CU17: 1.241612115 | CV17: 1.241612115 | CW17: 1.241612115 | CX17: 1.241612115 | CY17: 1.241612115 | CZ17: 1.241612115 | DA17: 1.241612115 | DB17: 1.241612115 | DC17: 1.241612115 | DD17: 1.241612115 | DE17: 1.241612115 | DF17: 1.241612115 | DG17: 1.241612115 | DH17: 1.241612115 | DI17: 1.241612115 | DJ17: 1.241612115 | DK17: 1.241612115 | DL17: 1.241612115 | DM17: 1.241612115 | DN17: 1.241612115 | DO17: 1.241612115 | DP17: 1.241612115 | DQ17: 1.241612115 | DR17: 1.241612115 | DS17: 1.241612115 | DT17: 1.241612115 | DU17: 1.241612115 | DV17: 1.241612115 | DW17: 1.241612115 | DX17: 1.241612115 | DY17: 1.241612115 | DZ17: 1.241612115 | EA17: 1.241612115 | EB17: 1.241612115 | EC17: 1.241612115 | ED17: 1.241612115 | EE17: 1.241612115 | EF17: 1.241612115 | EG17: 1.241612115 | EH17: 1.241612115 | EI17: 1.241612115 | EJ17: 1.241612115 | EK17: 1.241612115 | EL17: 1.241612115 | EM17: 1.241612115 | EN17: 1.241612115 | EO17: 1.241612115 | EP17: 1.241612115 | EQ17: 1.241612115 | ER17: 1.241612115 | ES17: 1.241612115 | ET17: 1.241612115
H19: $m | J19: =SUM(J9:J18) -> -0.5456429638 | K19: =SUM(K9:K18) -> 2.178855774 | L19: 3.07008199 | M19: 3.931585601 | N19: 5.989820552 | O19: 8.804933732 | P19: 10.79803393 | Q19: 12.77335218 | R19: 12.93999118 | S19: 12.47532038 | T19: 12.61329861 | U19: 12.74781337 | V19: 15.15362844 | W19: 18.9967108 | X19: 21.32199085 | Y19: 23.62600098 | Z19: 24.94374108 | AA19: 25.53311505 | AB19: 26.81016601 | AC19: 28.039335 | AD19: 28.38513133 | AE19: 28.57563396 | AF19: 28.37856854 | AG19: 28.1753031 | AH19: 28.09918059 | AI19: 28.91954335 | AJ19: 29.22126169 | AK19: 29.21854202 | AL19: 29.44835531 | AM19: 29.90216395 | AN19: 29.73188066 | AO19: 29.34421728 | AP19: 28.93069968 | AQ19: 28.83528596 | AR19: 28.77998787 | AS19: 28.92654984 | AT19: 29.35493725 | AU19: 30.43679497 | AV19: 30.15656432 | AX19: 30.71302215 | AY19: 29.02883745 | AZ19: 27.38672048 | BA19: 25.77146031 | BB19: 24.18509902 | BC19: 22.66990735 | BD19: 21.26150289 | BE19: 19.8734672 | BF19: 18.50999762 | BG19: 17.18055095 | BH19: 15.89668113 | BI19: 14.66308756 | BJ19: 13.43900433 | BK19: 12.23075754 | BL19: 11.03612005 | BM19: 9.953256501 | BN19: 8.965816045 | BO19: 7.978375589 | BP19: 6.990935133 | BQ19: 6.003494677 | BR19: 5.016054221 | BS19: 4.066947109 | BT19: 3.283777114 | BU19: 2.679544671 | BV19: 2.213458835 | BW19: =SUM(BW9:BW18) -> 2.004347195 | BX19: 1.894682866 | BY19: 1.80755744 | BZ19: 1.760832172 | CA19: 1.725728589 | CB19: 1.707747342 | CC19: 1.692375614 | CD19: 1.677003887 | CE19: 1.661632159 | CF19: 1.646260431 | CG19: 1.630888704 | CH19: 1.615516976 | CI19: 1.600145248 | CJ19: 1.584773521 | CK19: 1.569401793 | CL19: 1.554030065 | CM19: 1.538713026 | CN19: 1.523519146 | CO19: 1.508395118 | CP19: 1.49329859 | CQ19: 1.478202062 | CR19: 1.463105534 | CS19: 1.448440535 | CT19: 1.434204926 | CU19: 1.420862833 | CV19: 1.410218809 | CW19: 1.400100187 | CX19: 1.389981565 | CY19: 1.379862944 | CZ19: 1.369744322 | DA19: 1.3596257 | DB19: 1.349507078 | DC19: 1.339388456 | DD19: 1.329269834 | DE19: 1.319151212 | DF19: 1.30903259 | DG19: 1.298913968 | DH19: 1.288795346 | DI19: 1.278676724 | DJ19: 1.268558103 | DK19: 1.258439481 | DL19: 1.251785744 | DM19: 1.246292894 | DN19: 1.242920145 | DO19: 1.241729862 | DP19: 1.241612115 | DQ19: 1.241612115 | DR19: 1.241612115 | DS19: 1.241612115 | DT19: 1.241612115 | DU19: 1.241612115 | DV19: 1.241612115 | DW19: 1.241612115 | DX19: 1.241612115 | DY19: 1.241612115 | DZ19: 1.241612115 | EA19: 1.241612115 | EB19: 1.241612115 | EC19: 1.241612115 | ED19: 1.241612115 | EE19: 1.241612115 | EF19: 1.241612115 | EG19: 1.241612115 | EH19: 1.241612115 | EI19: =SUM(EI9:EI18) -> 1.241612115 | EJ19: 1.241612115 | EK19: 1.241612115 | EL19: 1.241612115 | EM19: 1.241612115 | EN19: 1.241612115 | EO19: 1.241612115 | EP19: 1.241612115 | EQ19: 1.241612115 | ER19: 1.241612115 | ES19: 1.241612115 | ET19: 1.241612115
B21: CAPEX: 2000-2009: forecast used for AA depreciation
B23: ='Model inputs'!B9 -> Pipeline and laterals | H23: $m | I23: ='Model inputs'!I62 -> 0 | J23: ='Model inputs'!J62 -> 0 | K23: ='Model inputs'!K62 -> 0 | L23: ='Model inputs'!L62 -> 0 | M23: ='Model inputs'!M62 -> 0 | N23: ='Model inputs'!N62 -> 0 | O23: ='Model inputs'!O62 -> 0 | P23: ='Model inputs'!P62 -> 0 | Q23: ='Model inputs'!Q62 -> 0 | R23: ='Model inputs'!R62 -> 0 | S23: ='Model inputs'!S62 -> 0 | T23: ='Model inputs'!T62 -> 0 | U23: ='Model inputs'!U62 -> 0 | V23: ='Model inputs'!V62 -> 0 | W23: ='Model inputs'!W62 -> 0 | X23: ='Model inputs'!X62 -> 0 | Y23: ='Model inputs'!Y62 -> 0 | Z23: ='Model inputs'!Z62 -> 0 | AA23: ='Model inputs'!AA62 -> 0 | AB23: ='Model inputs'!AB62 -> 0 | AC23: ='Model inputs'!AC62 -> 0 | AD23: ='Model inputs'!AD62 -> 0 | AE23: ='Model inputs'!AE62 -> 0 | AF23: ='Model inputs'!AF62 -> 0 | AG23: ='Model inputs'!AG62 -> 0 | AH23: ='Model inputs'!AH62 -> 0 | AI23: ='Model inputs'!AI62 -> 0 | AJ23: ='Model inputs'!AJ62 -> 0 | AK23: ='Model inputs'!AK62 -> 0 | AL23: ='Model inputs'!AL62 -> 0 | AM23: ='Model inputs'!AM62 -> 0 | AN23: ='Model inputs'!AN62 -> 0 | AO23: ='Model inputs'!AO62 -> 0 | AP23: ='Model inputs'!AP62 -> 0 | AQ23: ='Model inputs'!AQ62 -> 0 | AR23: ='Model inputs'!AR62 -> 0 | AS23: ='Model inputs'!AS62 -> 0 | AT23: ='Model inputs'!AT62 -> 0 | AU23: ='Model inputs'!AU62 -> 0 | AV23: ='Model inputs'!AV62 -> 0
B24: ='Model inputs'!B10 -> Main line valve and scraper stations | H24: $m | I24: ='Model inputs'!I63 -> 0 | J24: ='Model inputs'!J63 -> 0 | K24: ='Model inputs'!K63 -> 0 | L24: ='Model inputs'!L63 -> 0 | M24: ='Model inputs'!M63 -> 0 | N24: ='Model inputs'!N63 -> 0 | O24: ='Model inputs'!O63 -> 0 | P24: ='Model inputs'!P63 -> 0 | Q24: ='Model inputs'!Q63 -> 0 | R24: ='Model inputs'!R63 -> 0 | S24: ='Model inputs'!S63 -> 0 | T24: ='Model inputs'!T63 -> 0 | U24: ='Model inputs'!U63 -> 0 | V24: ='Model inputs'!V63 -> 0 | W24: ='Model inputs'!W63 -> 0 | X24: ='Model inputs'!X63 -> 0 | Y24: ='Model inputs'!Y63 -> 0 | Z24: ='Model inputs'!Z63 -> 0 | AA24: ='Model inputs'!AA63 -> 0 | AB24: ='Model inputs'!AB63 -> 0 | AC24: ='Model inputs'!AC63 -> 0 | AD24: ='Model inputs'!AD63 -> 0 | AE24: ='Model inputs'!AE63 -> 0 | AF24: ='Model inputs'!AF63 -> 0 | AG24: ='Model inputs'!AG63 -> 0 | AH24: ='Model inputs'!AH63 -> 0 | AI24: ='Model inputs'!AI63 -> 0 | AJ24: ='Model inputs'!AJ63 -> 0 | AK24: ='Model inputs'!AK63 -> 0 | AL24: ='Model inputs'!AL63 -> 0 | AM24: ='Model inputs'!AM63 -> 0 | AN24: ='Model inputs'!AN63 -> 0 | AO24: ='Model inputs'!AO63 -> 0 | AP24: ='Model inputs'!AP63 -> 0 | AQ24: ='Model inputs'!AQ63 -> 0 | AR24: ='Model inputs'!AR63 -> 0 | AS24: ='Model inputs'!AS63 -> 0 | AT24: ='Model inputs'!AT63 -> 0 | AU24: ='Model inputs'!AU63 -> 0 | AV24: ='Model inputs'!AV63 -> 0
B25: ='Model inputs'!B11 -> Compressor stations | H25: $m | I25: ='Model inputs'!I64 -> 0.7266078075 | J25: ='Model inputs'!J64 -> 0.7266078075 | K25: ='Model inputs'!K64 -> 0.7266078075 | L25: ='Model inputs'!L64 -> 0.7266078075 | M25: ='Model inputs'!M64 -> 2.016678142 | N25: ='Model inputs'!N64 -> 2.016678142 | O25: ='Model inputs'!O64 -> 2.016678142 | P25: ='Model inputs'!P64 -> 2.016678142 | Q25: ='Model inputs'!Q64 -> 0.1623632675 | R25: ='Model inputs'!R64 -> 0.1623632675 | S25: ='Model inputs'!S64 -> 0.1623632675 | T25: ='Model inputs'!T64 -> 0.1623632675 | U25: ='Model inputs'!U64 -> 2.450314792 | V25: ='Model inputs'!V64 -> 2.450314792 | W25: ='Model inputs'!W64 -> 2.450314792 | X25: ='Model inputs'!X64 -> 2.450314792 | Y25: ='Model inputs'!Y64 -> 1.018218935 | Z25: ='Model inputs'!Z64 -> 1.018218935 | AA25: ='Model inputs'!AA64 -> 1.018218935 | AB25: ='Model inputs'!AB64 -> 1.018218935 | AC25: ='Model inputs'!AC64 -> 0.1074778518 | AD25: ='Model inputs'!AD64 -> 0.1074778518 | AE25: ='Model inputs'!AE64 -> 0.1074778518 | AF25: ='Model inputs'!AF64 -> 0.1074778518 | AG25: ='Model inputs'!AG64 -> 0.8976499761 | AH25: ='Model inputs'!AH64 -> 0.8976499761 | AI25: ='Model inputs'!AI64 -> 0.8976499761 | AJ25: ='Model inputs'!AJ64 -> 0.8976499761 | AK25: ='Model inputs'!AK64 -> 0.9181207023 | AL25: ='Model inputs'!AL64 -> 0.9181207023 | AM25: ='Model inputs'!AM64 -> 0.9181207023 | AN25: ='Model inputs'!AN64 -> 0.9181207023 | AO25: ='Model inputs'!AO64 -> 0 | AP25: ='Model inputs'!AP64 -> 0 | AQ25: ='Model inputs'!AQ64 -> 0 | AR25: ='Model inputs'!AR64 -> 0 | AS25: ='Model inputs'!AS64 -> 0 | AT25: ='Model inputs'!AT64 -> 0 | AU25: ='Model inputs'!AU64 -> 0 | AV25: ='Model inputs'!AV64 -> 0
B26: ='Model inputs'!B12 -> Receipt and delivery point facilities | H26: $m | I26: ='Model inputs'!I65 -> 0.04005906 | J26: ='Model inputs'!J65 -> 0.04005906 | K26: ='Model inputs'!K65 -> 0.04005906 | L26: ='Model inputs'!L65 -> 0.04005906 | M26: ='Model inputs'!M65 -> 0.0242860925 | N26: ='Model inputs'!N65 -> 0.0242860925 | O26: ='Model inputs'!O65 -> 0.0242860925 | P26: ='Model inputs'!P65 -> 0.0242860925 | Q26: ='Model inputs'!Q65 -> 0.0147807275 | R26: ='Model inputs'!R65 -> 0.0147807275 | S26: ='Model inputs'!S65 -> 0.0147807275 | T26: ='Model inputs'!T65 -> 0.0147807275 | U26: ='Model inputs'!U65 -> 0.0173773425 | V26: ='Model inputs'!V65 -> 0.0173773425 | W26: ='Model inputs'!W65 -> 0.0173773425 | X26: ='Model inputs'!X65 -> 0.0173773425 | Y26: ='Model inputs'!Y65 -> 0.00844475 | Z26: ='Model inputs'!Z65 -> 0.00844475 | AA26: ='Model inputs'!AA65 -> 0.00844475 | AB26: ='Model inputs'!AB65 -> 0.00844475 | AC26: ='Model inputs'!AC65 -> 0 | AD26: ='Model inputs'!AD65 -> 0 | AE26: ='Model inputs'!AE65 -> 0 | AF26: ='Model inputs'!AF65 -> 0 | AG26: ='Model inputs'!AG65 -> 0 | AH26: ='Model inputs'!AH65 -> 0 | AI26: ='Model inputs'!AI65 -> 0 | AJ26: ='Model inputs'!AJ65 -> 0 | AK26: ='Model inputs'!AK65 -> 0 | AL26: ='Model inputs'!AL65 -> 0 | AM26: ='Model inputs'!AM65 -> 0 | AN26: ='Model inputs'!AN65 -> 0 | AO26: ='Model inputs'!AO65 -> 0 | AP26: ='Model inputs'!AP65 -> 0 | AQ26: ='Model inputs'!AQ65 -> 0 | AR26: ='Model inputs'!AR65 -> 0 | AS26: ='Model inputs'!AS65 -> 0 | AT26: ='Model inputs'!AT65 -> 0 | AU26: ='Model inputs'!AU65 -> 0 | AV26: ='Model inputs'!AV65 -> 0
B27: ='Model inputs'!B13 -> SCADA and communications | H27: $m | I27: ='Model inputs'!I66 -> 0.006985115 | J27: ='Model inputs'!J66 -> 0.006985115 | K27: ='Model inputs'!K66 -> 0.006985115 | L27: ='Model inputs'!L66 -> 0.006985115 | M27: ='Model inputs'!M66 -> 0.0012955875 | N27: ='Model inputs'!N66 -> 0.0012955875 | O27: ='Model inputs'!O66 -> 0.0012955875 | P27: ='Model inputs'!P66 -> 0.0012955875 | Q27: ='Model inputs'!Q66 -> 0.0139746075 | R27: ='Model inputs'!R66 -> 0.0139746075 | S27: ='Model inputs'!S66 -> 0.0139746075 | T27: ='Model inputs'!T66 -> 0.0139746075 | U27: ='Model inputs'!U66 -> 0.0173468175 | V27: ='Model inputs'!V66 -> 0.0173468175 | W27: ='Model inputs'!W66 -> 0.0173468175 | X27: ='Model inputs'!X66 -> 0.0173468175 | Y27: ='Model inputs'!Y66 -> 0.109894455 | Z27: ='Model inputs'!Z66 -> 0.109894455 | AA27: ='Model inputs'!AA66 -> 0.109894455 | AB27: ='Model inputs'!AB66 -> 0.109894455 | AC27: ='Model inputs'!AC66 -> 0.01476326781 | AD27: ='Model inputs'!AD66 -> 0.01476326781 | AE27: ='Model inputs'!AE66 -> 0.01476326781 | AF27: ='Model inputs'!AF66 -> 0.01476326781 | AG27: ='Model inputs'!AG66 -> 0.25 | AH27: ='Model inputs'!AH66 -> 0.25 | AI27: ='Model inputs'!AI66 -> 0.25 | AJ27: ='Model inputs'!AJ66 -> 0.25 | AK27: ='Model inputs'!AK66 -> 0.25 | AL27: ='Model inputs'!AL66 -> 0.25 | AM27: ='Model inputs'!AM66 -> 0.25 | AN27: ='Model inputs'!AN66 -> 0.25 | AO27: ='Model inputs'!AO66 -> 0 | AP27: ='Model inputs'!AP66 -> 0 | AQ27: ='Model inputs'!AQ66 -> 0 | AR27: ='Model inputs'!AR66 -> 0 | AS27: ='Model inputs'!AS66 -> 0 | AT27: ='Model inputs'!AT66 -> 0 | AU27: ='Model inputs'!AU66 -> 0 | AV27: ='Model inputs'!AV66 -> 0
B28: ='Model inputs'!B14 -> Cathodic protection | H28: $m | I28: ='Model inputs'!I67 -> 0 | J28: ='Model inputs'!J67 -> 0 | K28: ='Model inputs'!K67 -> 0 | L28: ='Model inputs'!L67 -> 0 | M28: ='Model inputs'!M67 -> 0 | N28: ='Model inputs'!N67 -> 0 | O28: ='Model inputs'!O67 -> 0 | P28: ='Model inputs'!P67 -> 0 | Q28: ='Model inputs'!Q67 -> 0 | R28: ='Model inputs'!R67 -> 0 | S28: ='Model inputs'!S67 -> 0 | T28: ='Model inputs'!T67 -> 0 | U28: ='Model inputs'!U67 -> 0.00394725 | V28: ='Model inputs'!V67 -> 0.00394725 | W28: ='Model inputs'!W67 -> 0.00394725 | X28: ='Model inputs'!X67 -> 0.00394725 | Y28: ='Model inputs'!Y67 -> 0 | Z28: ='Model inputs'!Z67 -> 0 | AA28: ='Model inputs'!AA67 -> 0 | AB28: ='Model inputs'!AB67 -> 0 | AC28: ='Model inputs'!AC67 -> 0 | AD28: ='Model inputs'!AD67 -> 0 | AE28: ='Model inputs'!AE67 -> 0 | AF28: ='Model inputs'!AF67 -> 0 | AG28: ='Model inputs'!AG67 -> 0 | AH28: ='Model inputs'!AH67 -> 0 | AI28: ='Model inputs'!AI67 -> 0 | AJ28: ='Model inputs'!AJ67 -> 0 | AK28: ='Model inputs'!AK67 -> 0 | AL28: ='Model inputs'!AL67 -> 0 | AM28: ='Model inputs'!AM67 -> 0 | AN28: ='Model inputs'!AN67 -> 0 | AO28: ='Model inputs'!AO67 -> 0 | AP28: ='Model inputs'!AP67 -> 0 | AQ28: ='Model inputs'!AQ67 -> 0 | AR28: ='Model inputs'!AR67 -> 0 | AS28: ='Model inputs'!AS67 -> 0 | AT28: ='Model inputs'!AT67 -> 0 | AU28: ='Model inputs'!AU67 -> 0 | AV28: ='Model inputs'!AV67 -> 0
B29: ='Model inputs'!B15 -> Maintenance bases and depots | H29: $m | I29: ='Model inputs'!I68 -> 0.00182295 | J29: ='Model inputs'!J68 -> 0.00182295 | K29: ='Model inputs'!K68 -> 0.00182295 | L29: ='Model inputs'!L68 -> 0.00182295 | M29: ='Model inputs'!M68 -> 0.001067045 | N29: ='Model inputs'!N68 -> 0.001067045 | O29: ='Model inputs'!O68 -> 0.001067045 | P29: ='Model inputs'!P68 -> 0.001067045 | Q29: ='Model inputs'!Q68 -> 0.00055 | R29: ='Model inputs'!R68 -> 0.00055 | S29: ='Model inputs'!S68 -> 0.00055 | T29: ='Model inputs'!T68 -> 0.00055 | U29: ='Model inputs'!U68 -> 0 | V29: ='Model inputs'!V68 -> 0 | W29: ='Model inputs'!W68 -> 0 | X29: ='Model inputs'!X68 -> 0 | Y29: ='Model inputs'!Y68 -> 0 | Z29: ='Model inputs'!Z68 -> 0 | AA29: ='Model inputs'!AA68 -> 0 | AB29: ='Model inputs'!AB68 -> 0 | AC29: ='Model inputs'!AC68 -> 0 | AD29: ='Model inputs'!AD68 -> 0 | AE29: ='Model inputs'!AE68 -> 0 | AF29: ='Model inputs'!AF68 -> 0 | AG29: ='Model inputs'!AG68 -> 0 | AH29: ='Model inputs'!AH68 -> 0 | AI29: ='Model inputs'!AI68 -> 0 | AJ29: ='Model inputs'!AJ68 -> 0 | AK29: ='Model inputs'!AK68 -> 0 | AL29: ='Model inputs'!AL68 -> 0 | AM29: ='Model inputs'!AM68 -> 0 | AN29: ='Model inputs'!AN68 -> 0 | AO29: ='Model inputs'!AO68 -> 0 | AP29: ='Model inputs'!AP68 -> 0 | AQ29: ='Model inputs'!AQ68 -> 0 | AR29: ='Model inputs'!AR68 -> 0 | AS29: ='Model inputs'!AS68 -> 0 | AT29: ='Model inputs'!AT68 -> 0 | AU29: ='Model inputs'!AU68 -> 0 | AV29: ='Model inputs'!AV68 -> 0
B30: ='Model inputs'!B16 -> Other depreciable assets | H30: $m | I30: ='Model inputs'!I69 -> 0.1355580325 | J30: ='Model inputs'!J69 -> 0.1355580325 | K30: ='Model inputs'!K69 -> 0.1355580325 | L30: ='Model inputs'!L69 -> 0.1355580325 | M30: ='Model inputs'!M69 -> 0.0545215825 | N30: ='Model inputs'!N69 -> 0.0545215825 | O30: ='Model inputs'!O69 -> 0.0545215825 | P30: ='Model inputs'!P69 -> 0.0545215825 | Q30: ='Model inputs'!Q69 -> 0.0881759075 | R30: ='Model inputs'!R69 -> 0.0881759075 | S30: ='Model inputs'!S69 -> 0.0881759075 | T30: ='Model inputs'!T69 -> 0.0881759075 | U30: ='Model inputs'!U69 -> 0.045699415 | V30: ='Model inputs'!V69 -> 0.045699415 | W30: ='Model inputs'!W69 -> 0.045699415 | X30: ='Model inputs'!X69 -> 0.045699415 | Y30: ='Model inputs'!Y69 -> 0.39829845 | Z30: ='Model inputs'!Z69 -> 0.39829845 | AA30: ='Model inputs'!AA69 -> 0.39829845 | AB30: ='Model inputs'!AB69 -> 0.39829845 | AC30: ='Model inputs'!AC69 -> 0.2732588804 | AD30: ='Model inputs'!AD69 -> 0.2732588804 | AE30: ='Model inputs'!AE69 -> 0.2732588804 | AF30: ='Model inputs'!AF69 -> 0.2732588804 | AG30: ='Model inputs'!AG69 -> 0.1673500239 | AH30: ='Model inputs'!AH69 -> 0.1673500239 | AI30: ='Model inputs'!AI69 -> 0.1673500239 | AJ30: ='Model inputs'!AJ69 -> 0.1673500239 | AK30: ='Model inputs'!AK69 -> 0.1893792977 | AL30: ='Model inputs'!AL69 -> 0.1893792977 | AM30: ='Model inputs'!AM69 -> 0.1893792977 | AN30: ='Model inputs'!AN69 -> 0.1893792977 | AO30: ='Model inputs'!AO69 -> 0.4025 | AP30: ='Model inputs'!AP69 -> 0.4025 | AQ30: ='Model inputs'!AQ69 -> 0.4025 | AR30: ='Model inputs'!AR69 -> 0.4025 | AS30: ='Model inputs'!AS69 -> 0.43 | AT30: ='Model inputs'!AT69 -> 0.43 | AU30: ='Model inputs'!AU69 -> 0.43 | AV30: ='Model inputs'!AV69 -> 0.43
H32: $m | I32: =SUM(I23:I31) -> 0.911032965 | J32: 0.911032965 | K32: 0.911032965 | L32: 0.911032965 | M32: 2.09784845 | N32: 2.09784845 | O32: 2.09784845 | P32: 2.09784845 | Q32: 0.27984451 | R32: 0.27984451 | S32: 0.27984451 | T32: 0.27984451 | U32: 2.534685618 | V32: 2.534685618 | W32: 2.534685618 | X32: 2.534685618 | Y32: 1.53485659 | Z32: 1.53485659 | AA32: 1.53485659 | AB32: 1.53485659 | AC32: 0.3955 | AD32: 0.3955 | AE32: 0.3955 | AF32: 0.3955 | AG32: 1.315 | AH32: 1.315 | AI32: 1.315 | AJ32: 1.315 | AK32: 1.3575 | AL32: 1.3575 | AM32: 1.3575 | AN32: 1.3575 | AO32: 0.4025 | AP32: 0.4025 | AQ32: 0.4025 | AR32: 0.4025 | AS32: 0.43 | AT32: 0.43 | AU32: 0.43 | AV32: 0.43 | AX32: =SUM(AX23:AX31) -> 0 | AY32: 0 | AZ32: 0 | BA32: 0 | BB32: 0 | BC32: 0 | BD32: 0 | BE32: 0 | BF32: 0 | BG32: 0 | BH32: 0 | BI32: 0 | BJ32: 0 | BK32: 0 | BL32: 0 | BM32: 0 | BN32: 0 | BO32: 0 | BP32: 0 | BQ32: 0 | BR32: 0 | BS32: 0 | BT32: 0 | BU32: 0 | BV32: 0 | BW32: 0 | BX32: 0 | BY32: 0 | BZ32: 0 | CA32: 0 | CB32: 0 | CC32: 0 | CD32: =SUM(CD23:CD31) -> 0 | CE32: 0 | CF32: 0 | CG32: 0 | CH32: 0 | CI32: 0 | CJ32: 0 | CK32: 0 | CL32: 0 | CM32: 0 | CN32: 0 | CO32: 0 | CP32: 0 | CQ32: 0 | CR32: 0 | CS32: 0 | CT32: 0 | CU32: 0 | CV32: 0 | CW32: 0 | CX32: 0 | CY32: 0 | CZ32: 0 | DA32: 0 | DB32: 0 | DC32: 0 | DD32: 0 | DE32: 0 | DF32: 0 | DG32: 0 | DH32: 0 | DI32: 0 | DJ32: =SUM(DJ23:DJ31) -> 0 | DK32: 0 | DL32: 0 | DM32: 0 | DN32: 0 | DO32: 0 | DP32: 0 | DQ32: 0 | DR32: 0 | DS32: 0 | DT32: 0 | DU32: 0 | DV32: 0 | DW32: 0 | DX32: 0 | DY32: 0 | DZ32: 0 | EA32: 0 | EB32: 0 | EC32: 0 | ED32: 0 | EE32: 0 | EF32: 0 | EG32: 0 | EH32: 0 | EI32: 0 | EJ32: 0 | EK32: 0 | EL32: 0 | EM32: 0 | EN32: 0 | EO32: 0 | EP32: =SUM(EP23:EP31) -> 0 | EQ32: 0 | ER32: 0 | ES32: 0 | ET32: 0
B34: CAPEX: 2000-2009: actual
B36: ='Model inputs'!B9 -> Pipeline and laterals | H36: $m | I36: ='Model inputs'!I48 -> 0 | J36: ='Model inputs'!J48 -> 0 | K36: ='Model inputs'!K48 -> 0 | L36: ='Model inputs'!L48 -> 0 | M36: ='Model inputs'!M48 -> 0 | N36: ='Model inputs'!N48 -> 0 | O36: ='Model inputs'!O48 -> 0 | P36: ='Model inputs'!P48 -> 0 | Q36: ='Model inputs'!Q48 -> 0 | R36: ='Model inputs'!R48 -> 0 | S36: ='Model inputs'!S48 -> 0 | T36: ='Model inputs'!T48 -> 0 | U36: ='Model inputs'!U48 -> 0 | V36: ='Model inputs'!V48 -> 0 | W36: ='Model inputs'!W48 -> 0 | X36: ='Model inputs'!X48 -> 0 | Y36: ='Model inputs'!Y48 -> 0 | Z36: ='Model inputs'!Z48 -> 0 | AA36: ='Model inputs'!AA48 -> 0 | AB36: ='Model inputs'!AB48 -> 0 | AC36: ='Model inputs'!AC48 -> 0.30112484 | AD36: ='Model inputs'!AD48 -> 0.00025486 | AE36: ='Model inputs'!AE48 -> 0.00045632 | AF36: ='Model inputs'!AF48 -> -0.00033 | AG36: ='Model inputs'!AG48 -> 0 | AH36: ='Model inputs'!AH48 -> 0 | AI36: ='Model inputs'!AI48 -> 0 | AJ36: ='Model inputs'!AJ48 -> 0 | AK36: ='Model inputs'!AK48 -> 0 | AL36: ='Model inputs'!AL48 -> 0.28621376 | AM36: ='Model inputs'!AM48 -> 0 | AN36: ='Model inputs'!AN48 -> 0 | AO36: ='Model inputs'!AO48 -> 0 | AP36: ='Model inputs'!AP48 -> 0.00355109 | AQ36: ='Model inputs'!AQ48 -> 0.01002201 | AR36: ='Model inputs'!AR48 -> 0.06076867 | AS36: ='Model inputs'!AS48 -> 0.00144492 | AT36: ='Model inputs'!AT48 -> 0.0014231 | AU36: ='Model inputs'!AU48 -> 0.00856286 | AV36: ='Model inputs'!AV48 -> 0.00071536
B37: ='Model inputs'!B10 -> Main line valve and scraper stations | H37: $m | I37: ='Model inputs'!I49 -> 0 | J37: ='Model inputs'!J49 -> 0 | K37: ='Model inputs'!K49 -> 0 | L37: ='Model inputs'!L49 -> 0 | M37: ='Model inputs'!M49 -> 0 | N37: ='Model inputs'!N49 -> 0 | O37: ='Model inputs'!O49 -> 0 | P37: ='Model inputs'!P49 -> 0 | Q37: ='Model inputs'!Q49 -> 0 | R37: ='Model inputs'!R49 -> 0 | S37: ='Model inputs'!S49 -> 0 | T37: ='Model inputs'!T49 -> 0 | U37: ='Model inputs'!U49 -> 0 | V37: ='Model inputs'!V49 -> 0 | W37: ='Model inputs'!W49 -> 0 | X37: ='Model inputs'!X49 -> 0 | Y37: ='Model inputs'!Y49 -> 0 | Z37: ='Model inputs'!Z49 -> 0 | AA37: ='Model inputs'!AA49 -> 0 | AB37: ='Model inputs'!AB49 -> 0 | AC37: ='Model inputs'!AC49 -> 0 | AD37: ='Model inputs'!AD49 -> 0 | AE37: ='Model inputs'!AE49 -> 0 | AF37: ='Model inputs'!AF49 -> 0 | AG37: ='Model inputs'!AG49 -> 0 | AH37: ='Model inputs'!AH49 -> 0 | AI37: ='Model inputs'!AI49 -> 0 | AJ37: ='Model inputs'!AJ49 -> 0 | AK37: ='Model inputs'!AK49 -> 0 | AL37: ='Model inputs'!AL49 -> 0 | AM37: ='Model inputs'!AM49 -> 0 | AN37: ='Model inputs'!AN49 -> 0 | AO37: ='Model inputs'!AO49 -> 0 | AP37: ='Model inputs'!AP49 -> 0 | AQ37: ='Model inputs'!AQ49 -> 0 | AR37: ='Model inputs'!AR49 -> 0 | AS37: ='Model inputs'!AS49 -> 0.02711449 | AT37: ='Model inputs'!AT49 -> 0.00114492 | AU37: ='Model inputs'!AU49 -> 0 | AV37: ='Model inputs'!AV49 -> 0
B38: ='Model inputs'!B11 -> Compressor stations | H38: $m | I38: ='Model inputs'!I50 -> 0.7266078075 | J38: ='Model inputs'!J50 -> 0.7266078075 | K38: ='Model inputs'!K50 -> 0.7266078075 | L38: ='Model inputs'!L50 -> 0.7266078075 | M38: ='Model inputs'!M50 -> 2.016678142 | N38: ='Model inputs'!N50 -> 2.016678142 | O38: ='Model inputs'!O50 -> 2.016678142 | P38: ='Model inputs'!P50 -> 2.016678142 | Q38: ='Model inputs'!Q50 -> 0.1623632675 | R38: ='Model inputs'!R50 -> 0.1623632675 | S38: ='Model inputs'!S50 -> 0.1623632675 | T38: ='Model inputs'!T50 -> 0.1623632675 | U38: ='Model inputs'!U50 -> 2.450314792 | V38: ='Model inputs'!V50 -> 2.450314792 | W38: ='Model inputs'!W50 -> 2.450314792 | X38: ='Model inputs'!X50 -> 2.450314792 | Y38: ='Model inputs'!Y50 -> 1.018218935 | Z38: ='Model inputs'!Z50 -> 1.018218935 | AA38: ='Model inputs'!AA50 -> 1.018218935 | AB38: ='Model inputs'!AB50 -> 1.018218935 | AC38: ='Model inputs'!AC50 -> 0.23668579 | AD38: ='Model inputs'!AD50 -> 0.36644481 | AE38: ='Model inputs'!AE50 -> 0.06653221 | AF38: ='Model inputs'!AF50 -> 0.03745882 | AG38: ='Model inputs'!AG50 -> 0.03906246 | AH38: ='Model inputs'!AH50 -> 0.33773978 | AI38: ='Model inputs'!AI50 -> 0.3358245 | AJ38: ='Model inputs'!AJ50 -> 0.20489235 | AK38: ='Model inputs'!AK50 -> 0.09346673 | AL38: ='Model inputs'!AL50 -> 0.18295022 | AM38: ='Model inputs'!AM50 -> 0.05837254 | AN38: ='Model inputs'!AN50 -> 0.02024216 | AO38: ='Model inputs'!AO50 -> 0 | AP38: ='Model inputs'!AP50 -> 0.23202959 | AQ38: ='Model inputs'!AQ50 -> 0.04096777 | AR38: ='Model inputs'!AR50 -> 0.12877112 | AS38: ='Model inputs'!AS50 -> 0.28400227 | AT38: ='Model inputs'!AT50 -> 0.0078502 | AU38: ='Model inputs'!AU50 -> 0.00194744 | AV38: ='Model inputs'!AV50 -> 0
B39: ='Model inputs'!B12 -> Receipt and delivery point facilities | H39: $m | I39: ='Model inputs'!I51 -> 0.04005906 | J39: ='Model inputs'!J51 -> 0.04005906 | K39: ='Model inputs'!K51 -> 0.04005906 | L39: ='Model inputs'!L51 -> 0.04005906 | M39: ='Model inputs'!M51 -> 0.0242860925 | N39: ='Model inputs'!N51 -> 0.0242860925 | O39: ='Model inputs'!O51 -> 0.0242860925 | P39: ='Model inputs'!P51 -> 0.0242860925 | Q39: ='Model inputs'!Q51 -> 0.0147807275 | R39: ='Model inputs'!R51 -> 0.0147807275 | S39: ='Model inputs'!S51 -> 0.0147807275 | T39: ='Model inputs'!T51 -> 0.0147807275 | U39: ='Model inputs'!U51 -> 0.0173773425 | V39: ='Model inputs'!V51 -> 0.0173773425 | W39: ='Model inputs'!W51 -> 0.0173773425 | X39: ='Model inputs'!X51 -> 0.0173773425 | Y39: ='Model inputs'!Y51 -> 0.00844475 | Z39: ='Model inputs'!Z51 -> 0.00844475 | AA39: ='Model inputs'!AA51 -> 0.00844475 | AB39: ='Model inputs'!AB51 -> 0.00844475 | AC39: ='Model inputs'!AC51 -> 0 | AD39: ='Model inputs'!AD51 -> 0 | AE39: ='Model inputs'!AE51 -> 0 | AF39: ='Model inputs'!AF51 -> 0.01755367 | AG39: ='Model inputs'!AG51 -> 0.01368143 | AH39: ='Model inputs'!AH51 -> 0.12254546 | AI39: ='Model inputs'!AI51 -> 0.11840168 | AJ39: ='Model inputs'!AJ51 -> 0.12576146 | AK39: ='Model inputs'!AK51 -> 0.3960732 | AL39: ='Model inputs'!AL51 -> 0.08453083 | AM39: ='Model inputs'!AM51 -> 0.00012867 | AN39: ='Model inputs'!AN51 -> 0 | AO39: ='Model inputs'!AO51 -> 0 | AP39: ='Model inputs'!AP51 -> 0 | AQ39: ='Model inputs'!AQ51 -> 0 | AR39: ='Model inputs'!AR51 -> 0.00321914 | AS39: ='Model inputs'!AS51 -> 0 | AT39: ='Model inputs'!AT51 -> 0 | AU39: ='Model inputs'!AU51 -> 0 | AV39: ='Model inputs'!AV51 -> 0
B40: ='Model inputs'!B13 -> SCADA and communications | H40: $m | I40: ='Model inputs'!I52 -> 0.006985115 | J40: ='Model inputs'!J52 -> 0.006985115 | K40: ='Model inputs'!K52 -> 0.006985115 | L40: ='Model inputs'!L52 -> 0.006985115 | M40: ='Model inputs'!M52 -> 0.0012955875 | N40: ='Model inputs'!N52 -> 0.0012955875 | O40: ='Model inputs'!O52 -> 0.0012955875 | P40: ='Model inputs'!P52 -> 0.0012955875 | Q40: ='Model inputs'!Q52 -> 0.0139746075 | R40: ='Model inputs'!R52 -> 0.0139746075 | S40: ='Model inputs'!S52 -> 0.0139746075 | T40: ='Model inputs'!T52 -> 0.0139746075 | U40: ='Model inputs'!U52 -> 0.0173468175 | V40: ='Model inputs'!V52 -> 0.0173468175 | W40: ='Model inputs'!W52 -> 0.0173468175 | X40: ='Model inputs'!X52 -> 0.0173468175 | Y40: ='Model inputs'!Y52 -> 0.109894455 | Z40: ='Model inputs'!Z52 -> 0.109894455 | AA40: ='Model inputs'!AA52 -> 0.109894455 | AB40: ='Model inputs'!AB52 -> 0.109894455 | AC40: ='Model inputs'!AC52 -> 0.02500167 | AD40: ='Model inputs'!AD52 -> 0.00555411 | AE40: ='Model inputs'!AE52 -> 0.00094376 | AF40: ='Model inputs'!AF52 -> 0 | AG40: ='Model inputs'!AG52 -> 0.05128961 | AH40: ='Model inputs'!AH52 -> 0.20082489 | AI40: ='Model inputs'!AI52 -> 0.17556474 | AJ40: ='Model inputs'!AJ52 -> 0.02213489 | AK40: ='Model inputs'!AK52 -> 0.04928407 | AL40: ='Model inputs'!AL52 -> 0.07052838 | AM40: ='Model inputs'!AM52 -> 0.01797736 | AN40: ='Model inputs'!AN52 -> 0.05761879 | AO40: ='Model inputs'!AO52 -> 0.00726825 | AP40: ='Model inputs'!AP52 -> 0.05729485 | AQ40: ='Model inputs'!AQ52 -> 0.30337709 | AR40: ='Model inputs'!AR52 -> 0.33711321 | AS40: ='Model inputs'!AS52 -> 0.24756857 | AT40: ='Model inputs'!AT52 -> 0.46381265 | AU40: ='Model inputs'!AU52 -> 0.00427515 | AV40: ='Model inputs'!AV52 -> 0
B41: ='Model inputs'!B14 -> Cathodic protection | H41: $m | I41: ='Model inputs'!I53 -> 0 | J41: ='Model inputs'!J53 -> 0 | K41: ='Model inputs'!K53 -> 0 | L41: ='Model inputs'!L53 -> 0 | M41: ='Model inputs'!M53 -> 0 | N41: ='Model inputs'!N53 -> 0 | O41: ='Model inputs'!O53 -> 0 | P41: ='Model inputs'!P53 -> 0 | Q41: ='Model inputs'!Q53 -> 0 | R41: ='Model inputs'!R53 -> 0 | S41: ='Model inputs'!S53 -> 0 | T41: ='Model inputs'!T53 -> 0 | U41: ='Model inputs'!U53 -> 0.00394725 | V41: ='Model inputs'!V53 -> 0.00394725 | W41: ='Model inputs'!W53 -> 0.00394725 | X41: ='Model inputs'!X53 -> 0.00394725 | Y41: ='Model inputs'!Y53 -> 0 | Z41: ='Model inputs'!Z53 -> 0 | AA41: ='Model inputs'!AA53 -> 0 | AB41: ='Model inputs'!AB53 -> 0 | AC41: ='Model inputs'!AC53 -> 0.000297 | AD41: ='Model inputs'!AD53 -> 0 | AE41: ='Model inputs'!AE53 -> 0 | AF41: ='Model inputs'!AF53 -> 0 | AG41: ='Model inputs'!AG53 -> 0 | AH41: ='Model inputs'!AH53 -> 0 | AI41: ='Model inputs'!AI53 -> 0.00825 | AJ41: ='Model inputs'!AJ53 -> 0 | AK41: ='Model inputs'!AK53 -> 0 | AL41: ='Model inputs'!AL53 -> 0 | AM41: ='Model inputs'!AM53 -> 0 | AN41: ='Model inputs'!AN53 -> 0 | AO41: ='Model inputs'!AO53 -> 0 | AP41: ='Model inputs'!AP53 -> 0.06568597 | AQ41: ='Model inputs'!AQ53 -> 0.0018755 | AR41: ='Model inputs'!AR53 -> 0.04616319 | AS41: ='Model inputs'!AS53 -> 0.10849443 | AT41: ='Model inputs'!AT53 -> 0.73988261 | AU41: ='Model inputs'!AU53 -> 0.16139918 | AV41: ='Model inputs'!AV53 -> 0.58868282
B42: ='Model inputs'!B15 -> Maintenance bases and depots | H42: $m | I42: ='Model inputs'!I54 -> 0.00182295 | J42: ='Model inputs'!J54 -> 0.00182295 | K42: ='Model inputs'!K54 -> 0.00182295 | L42: ='Model inputs'!L54 -> 0.00182295 | M42: ='Model inputs'!M54 -> 0.001067045 | N42: ='Model inputs'!N54 -> 0.001067045 | O42: ='Model inputs'!O54 -> 0.001067045 | P42: ='Model inputs'!P54 -> 0.001067045 | Q42: ='Model inputs'!Q54 -> 0.00055 | R42: ='Model inputs'!R54 -> 0.00055 | S42: ='Model inputs'!S54 -> 0.00055 | T42: ='Model inputs'!T54 -> 0.00055 | U42: ='Model inputs'!U54 -> 0 | V42: ='Model inputs'!V54 -> 0 | W42: ='Model inputs'!W54 -> 0 | X42: ='Model inputs'!X54 -> 0 | Y42: ='Model inputs'!Y54 -> 0 | Z42: ='Model inputs'!Z54 -> 0 | AA42: ='Model inputs'!AA54 -> 0 | AB42: ='Model inputs'!AB54 -> 0 | AC42: ='Model inputs'!AC54 -> 0 | AD42: ='Model inputs'!AD54 -> 0 | AE42: ='Model inputs'!AE54 -> 0 | AF42: ='Model inputs'!AF54 -> 0.002619 | AG42: ='Model inputs'!AG54 -> 0 | AH42: ='Model inputs'!AH54 -> 0.0348373 | AI42: ='Model inputs'!AI54 -> 0 | AJ42: ='Model inputs'!AJ54 -> 0 | AK42: ='Model inputs'!AK54 -> 0 | AL42: ='Model inputs'!AL54 -> 0 | AM42: ='Model inputs'!AM54 -> 0.01046586 | AN42: ='Model inputs'!AN54 -> 0.001661 | AO42: ='Model inputs'!AO54 -> 0 | AP42: ='Model inputs'!AP54 -> 0.06127894 | AQ42: ='Model inputs'!AQ54 -> 0.01224307 | AR42: ='Model inputs'!AR54 -> 0.07122134 | AS42: ='Model inputs'!AS54 -> 0 | AT42: ='Model inputs'!AT54 -> 0 | AU42: ='Model inputs'!AU54 -> 0 | AV42: ='Model inputs'!AV54 -> 0.01881
B43: ='Model inputs'!B16 -> Other depreciable assets | H43: $m | I43: ='Model inputs'!I55 -> 0.1355580325 | J43: ='Model inputs'!J55 -> 0.1355580325 | K43: ='Model inputs'!K55 -> 0.1355580325 | L43: ='Model inputs'!L55 -> 0.1355580325 | M43: ='Model inputs'!M55 -> 0.0545215825 | N43: ='Model inputs'!N55 -> 0.0545215825 | O43: ='Model inputs'!O55 -> 0.0545215825 | P43: ='Model inputs'!P55 -> 0.0545215825 | Q43: ='Model inputs'!Q55 -> 0.0881759075 | R43: ='Model inputs'!R55 -> 0.0881759075 | S43: ='Model inputs'!S55 -> 0.0881759075 | T43: ='Model inputs'!T55 -> 0.0881759075 | U43: ='Model inputs'!U55 -> 0.045699415 | V43: ='Model inputs'!V55 -> 0.045699415 | W43: ='Model inputs'!W55 -> 0.045699415 | X43: ='Model inputs'!X55 -> 0.045699415 | Y43: ='Model inputs'!Y55 -> 0.39829845 | Z43: ='Model inputs'!Z55 -> 0.39829845 | AA43: ='Model inputs'!AA55 -> 0.39829845 | AB43: ='Model inputs'!AB55 -> 0.39829845 | AC43: ='Model inputs'!AC55 -> 0.08118179 | AD43: ='Model inputs'!AD55 -> 0.1946215 | AE43: ='Model inputs'!AE55 -> 0.07621263 | AF43: ='Model inputs'!AF55 -> 0.08803465 | AG43: ='Model inputs'!AG55 -> 0.15023145 | AH43: ='Model inputs'!AH55 -> 0.0845521 | AI43: ='Model inputs'!AI55 -> 0.05615649 | AJ43: ='Model inputs'!AJ55 -> 0.05214001 | AK43: ='Model inputs'!AK55 -> 0.08470009 | AL43: ='Model inputs'!AL55 -> 0.17527503 | AM43: ='Model inputs'!AM55 -> 0.2000654 | AN43: ='Model inputs'!AN55 -> 0.00599739 | AO43: ='Model inputs'!AO55 -> 0.03913356 | AP43: ='Model inputs'!AP55 -> 0.13693153 | AQ43: ='Model inputs'!AQ55 -> 0.05626088 | AR43: ='Model inputs'!AR55 -> 0.01692312 | AS43: ='Model inputs'!AS55 -> 0.25993214 | AT43: ='Model inputs'!AT55 -> 0.1239055 | AU43: ='Model inputs'!AU55 -> 0.09556458 | AV43: ='Model inputs'!AV55 -> 0.12330345
B44: ='Model inputs'!B17 -> Non-depreciable assets | H44: $m | I44: ='Model inputs'!I56 -> -1.456675929 | J44: ='Model inputs'!J56 -> 1.823369148 | K44: ='Model inputs'!K56 -> 0 | L44: ='Model inputs'!L56 -> -0.01981922987 | M44: ='Model inputs'!M56 -> 0 | N44: ='Model inputs'!N56 -> 0.7752762321 | O44: ='Model inputs'!O56 -> -0.0283387489 | P44: ='Model inputs'!P56 -> -0.02772268914 | Q44: ='Model inputs'!Q56 -> 0 | R44: ='Model inputs'!R56 -> -0.6273935395 | S44: ='Model inputs'!S56 -> -0.02082825464 | T44: ='Model inputs'!T56 -> -0.0203754665 | U44: ='Model inputs'!U56 -> 0 | V44: ='Model inputs'!V56 -> 1.459328769 | W44: ='Model inputs'!W56 -> -0.03641204637 | X44: ='Model inputs'!X56 -> -0.03562048015 | Y44: ='Model inputs'!Y56 -> 0 | Z44: ='Model inputs'!Z56 -> -0.7080215592 | AA44: ='Model inputs'!AA56 -> 0 | AB44: ='Model inputs'!AB56 -> -0.0275374145 | AC44: ='Model inputs'!AC56 -> 0 | AD44: ='Model inputs'!AD56 -> -0.06990471975 | AE44: ='Model inputs'!AE56 -> -0.02676923077 | AF44: ='Model inputs'!AF56 -> -0.02618729097 | AG44: ='Model inputs'!AG56 -> 0 | AH44: ='Model inputs'!AH56 -> 0.3860815217 | AI44: ='Model inputs'!AI56 -> -0.03042994505 | AJ44: ='Model inputs'!AJ56 -> -0.02976842451 | AK44: ='Model inputs'!AK56 -> 0 | AL44: ='Model inputs'!AL56 -> 0.06457336957 | AM44: ='Model inputs'!AM56 -> -0.03047802198 | AN44: ='Model inputs'!AN56 -> -0.02981545628 | AO44: ='Model inputs'!AO56 -> 0 | AP44: ='Model inputs'!AP56 -> -0.1822037745 | AQ44: ='Model inputs'!AQ56 -> 0 | AR44: ='Model inputs'!AR56 -> -0.02751089943 | AS44: ='Model inputs'!AS56 -> 0 | AT44: ='Model inputs'!AT56 -> 0.2547581522 | AU44: ='Model inputs'!AU56 -> -0.03031043956 | AV44: ='Model inputs'!AV56 -> -0.02965151696
H46: $m | I46: =SUM(I36:I45) -> -0.5456429638 | J46: =SUM(J36:J45) -> 2.734402113 | K46: 0.911032965 | L46: 0.8912137351 | M46: 2.09784845 | N46: 2.873124682 | O46: 2.069509701 | P46: 2.070125761 | Q46: 0.27984451 | R46: -0.3475490295 | S46: 0.2590162554 | T46: 0.2594690435 | U46: 2.534685618 | V46: 3.994014386 | W46: 2.498273571 | X46: 2.499065137 | Y46: 1.53485659 | Z46: 0.8268350308 | AA46: 1.53485659 | AB46: 1.507319175 | AC46: 0.64429109 | AD46: 0.4969705603 | AE46: 0.1173756892 | AF46: 0.119148849 | AG46: 0.25426495 | AH46: 1.166581052 | AI46: 0.6637674649 | AJ46: 0.3751602855 | AK46: 0.62352409 | AL46: 0.8640715896 | AM46: 0.256531808 | AN46: 0.05570388372 | AO46: 0.04640181 | AP46: 0.3745681955 | AQ46: 0.42474632 | AR46: 0.6366688906 | AS46: 0.92855682 | AT46: 1.592777132 | AU46: 0.2414387704 | AV46: 0.701860113 | AX46: =SUM(AX36:AX45) -> 0 | AY46: =SUM(AY36:AY45) -> 0 | AZ46: 0 | BA46: 0 | BB46: 0 | BC46: 0 | BD46: 0 | BE46: 0 | BF46: 0 | BG46: 0 | BH46: 0 | BI46: 0 | BJ46: 0 | BK46: 0 | BL46: 0 | BM46: 0 | BN46: 0 | BO46: 0 | BP46: 0 | BQ46: 0 | BR46: 0 | BS46: 0 | BT46: 0 | BU46: 0 | BV46: 0 | BW46: 0 | BX46: 0 | BY46: 0 | BZ46: 0 | CA46: 0 | CB46: 0 | CC46: 0 | CD46: 0 | CE46: 0 | CF46: 0 | CG46: 0 | CH46: 0 | CI46: 0 | CJ46: 0 | CK46: 0 | CL46: 0 | CM46: 0 | CN46: 0 | CO46: 0 | CP46: 0 | CQ46: 0 | CR46: 0 | CS46: 0 | CT46: 0 | CU46: 0 | CV46: 0 | CW46: 0 | CX46: 0 | CY46: 0 | CZ46: 0 | DA46: 0 | DB46: 0 | DC46: 0 | DD46: 0 | DE46: 0 | DF46: 0 | DG46: 0 | DH46: 0 | DI46: 0 | DJ46: 0 | DK46: =SUM(DK36:DK45) -> 0 | DL46: 0 | DM46: 0 | DN46: 0 | DO46: 0 | DP46: 0 | DQ46: 0 | DR46: 0 | DS46: 0 | DT46: 0 | DU46: 0 | DV46: 0 | DW46: 0 | DX46: 0 | DY46: 0 | DZ46: 0 | EA46: 0 | EB46: 0 | EC46: 0 | ED46: 0 | EE46: 0 | EF46: 0 | EG46: 0 | EH46: 0 | EI46: 0 | EJ46: 0 | EK46: 0 | EL46: 0 | EM46: 0 | EN46: 0 | EO46: 0 | EP46: 0 | EQ46: 0 | ER46: 0 | ES46: 0 | ET46: 0
B48: Depreciation
B50: ='Model inputs'!B9 -> Pipeline and laterals | H50: $m | I50: =SUMIF($B$99:$B$537,'Model inputs'!$B$9,I$99:I$537) -> 0 | J50: =SUMIF($B$99:$B$537,'Model inputs'!$B$9,J$99:J$537) -> 0 | K50: =SUMIF($B$99:$B$537,'Model inputs'!$B$9,K$99:K$537) -> 0 | L50: =SUMIF($B$99:$B$537,'Model inputs'!$B$9,L$99:L$537) -> 0 | M50: =SUMIF($B$99:$B$537,'Model inputs'!$B$9,M$99:M$537) -> 0 | N50: =SUMIF($B$99:$B$537,'Model inputs'!$B$9,N$99:N$537) -> 0 | O50: =SUMIF($B$99:$B$537,'Model inputs'!$B$9,O$99:O$537) -> 0 | P50: =SUMIF($B$99:$B$537,'Model inputs'!$B$9,P$99:P$537) -> 0 | Q50: =SUMIF($B$99:$B$537,'Model inputs'!$B$9,Q$99:Q$537) -> 0 | R50: =SUMIF($B$99:$B$537,'Model inputs'!$B$9,R$99:R$537) -> 0 | S50: =SUMIF($B$99:$B$537,'Model inputs'!$B$9,S$99:S$537) -> 0 | T50: =SUMIF($B$99:$B$537,'Model inputs'!$B$9,T$99:T$537) -> 0 | U50: =SUMIF($B$99:$B$537,'Model inputs'!$B$9,U$99:U$537) -> 0 | V50: =SUMIF($B$99:$B$537,'Model inputs'!$B$9,V$99:V$537) -> 0 | W50: =SUMIF($B$99:$B$537,'Model inputs'!$B$9,W$99:W$537) -> 0 | X50: =SUMIF($B$99:$B$537,'Model inputs'!$B$9,X$99:X$537) -> 0 | Y50: =SUMIF($B$99:$B$537,'Model inputs'!$B$9,Y$99:Y$537) -> 0 | Z50: =SUMIF($B$99:$B$537,'Model inputs'!$B$9,Z$99:Z$537) -> 0 | AA50: =SUMIF($B$99:$B$537,'Model inputs'!$B$9,AA$99:AA$537) -> 0 | AB50: =SUMIF($B$99:$B$537,'Model inputs'!$B$9,AB$99:AB$537) -> 0 | AC50: =SUMIF($B$99:$B$537,'Model inputs'!$B$9,AC$99:AC$537) -> 0 | AD50: =SUMIF($B$99:$B$537,'Model inputs'!$B$9,AD$99:AD$537) -> 0 | AE50: =SUMIF($B$99:$B$537,'Model inputs'!$B$9,AE$99:AE$537) -> 0 | AF50: =SUMIF($B$99:$B$537,'Model inputs'!$B$9,AF$99:AF$537) -> 0 | AG50: =SUMIF($B$99:$B$537,'Model inputs'!$B$9,AG$99:AG$537) -> 0 | AH50: =SUMIF($B$99:$B$537,'Model inputs'!$B$9,AH$99:AH$537) -> 0 | AI50: =SUMIF($B$99:$B$537,'Model inputs'!$B$9,AI$99:AI$537) -> 0 | AJ50: =SUMIF($B$99:$B$537,'Model inputs'!$B$9,AJ$99:AJ$537) -> 0 | AK50: =SUMIF($B$99:$B$537,'Model inputs'!$B$9,AK$99:AK$537) -> 0 | AL50: =SUMIF($B$99:$B$537,'Model inputs'!$B$9,AL$99:AL$537) -> 0 | AM50: =SUMIF($B$99:$B$537,'Model inputs'!$B$9,AM$99:AM$537) -> 0 | AN50: =SUMIF($B$99:$B$537,'Model inputs'!$B$9,AN$99:AN$537) -> 0 | AO50: =SUMIF($B$99:$B$537,'Model inputs'!$B$9,AO$99:AO$537) -> 0 | AP50: =SUMIF($B$99:$B$537,'Model inputs'!$B$9,AP$99:AP$537) -> 0 | AQ50: =SUMIF($B$99:$B$537,'Model inputs'!$B$9,AQ$99:AQ$537) -> 0 | AR50: =SUMIF($B$99:$B$537,'Model inputs'!$B$9,AR$99:AR$537) -> 0 | AS50: =SUMIF($B$99:$B$537,'Model inputs'!$B$9,AS$99:AS$537) -> 0 | AT50: =SUMIF($B$99:$B$537,'Model inputs'!$B$9,AT$99:AT$537) -> 0 | AU50: =SUMIF($B$99:$B$537,'Model inputs'!$B$9,AU$99:AU$537) -> 0 | AV50: =SUMIF($B$99:$B$537,'Model inputs'!$B$9,AV$99:AV$537) -> 0 | AX50: =SUMIF($B101:$B537,'Model inputs'!$B9,AX101:AX537) -> 0.01011862191 | AY50: =SUMIF($B$101:$B$537,'Model inputs'!$B$9,AY$101:AY$537) -> 0.01011862191 | AZ50: =SUMIF($B$101:$B$537,'Model inputs'!$B$9,AZ$101:AZ$537) -> 0.01011862191 | BA50: =SUMIF($B$101:$B$537,'Model inputs'!$B$9,BA$101:BA$537) -> 0.01011862191 | BB50: =SUMIF($B$101:$B$537,'Model inputs'!$B$9,BB$101:BB$537) -> 0.01011862191 | BC50: =SUMIF($B$101:$B$537,'Model inputs'!$B$9,BC$101:BC$537) -> 0.01011862191 | BD50: =SUMIF($B$101:$B$537,'Model inputs'!$B$9,BD$101:BD$537) -> 0.01011862191 | BE50: =SUMIF($B$101:$B$537,'Model inputs'!$B$9,BE$101:BE$537) -> 0.01011862191 | BF50: =SUMIF($B$101:$B$537,'Model inputs'!$B$9,BF$101:BF$537) -> 0.01011862191 | BG50: =SUMIF($B$101:$B$537,'Model inputs'!$B$9,BG$101:BG$537) -> 0.01011862191 | BH50: =SUMIF($B$101:$B$537,'Model inputs'!$B$9,BH$101:BH$537) -> 0.01011862191 | BI50: =SUMIF($B$101:$B$537,'Model inputs'!$B$9,BI$101:BI$537) -> 0.01011862191 | BJ50: =SUMIF($B$101:$B$537,'Model inputs'!$B$9,BJ$101:BJ$537) -> 0.01011862191 | BK50: =SUMIF($B$101:$B$537,'Model inputs'!$B$9,BK$101:BK$537) -> 0.01011862191 | BL50: =SUMIF($B$101:$B$537,'Model inputs'!$B$9,BL$101:BL$537) -> 0.01011862191 | BM50: =SUMIF($B$101:$B$537,'Model inputs'!$B$9,BM$101:BM$537) -> 0.01011862191 | BN50: =SUMIF($B$101:$B$537,'Model inputs'!$B$9,BN$101:BN$537) -> 0.01011862191 | BO50: =SUMIF($B$101:$B$537,'Model inputs'!$B$9,BO$101:BO$537) -> 0.01011862191 | BP50: =SUMIF($B$101:$B$537,'Model inputs'!$B$9,BP$101:BP$537) -> 0.01011862191 | BQ50: =SUMIF($B$101:$B$537,'Model inputs'!$B$9,BQ$101:BQ$537) -> 0.01011862191 | BR50: =SUMIF($B$101:$B$537,'Model inputs'!$B$9,BR$101:BR$537) -> 0.01011862191 | BS50: =SUMIF($B$101:$B$537,'Model inputs'!$B$9,BS$101:BS$537) -> 0.01011862191 | BT50: =SUMIF($B$101:$B$537,'Model inputs'!$B$9,BT$101:BT$537) -> 0.01011862191 | BU50: =SUMIF($B$101:$B$537,'Model inputs'!$B$9,BU$101:BU$537) -> 0.01011862191 | BV50: =SUMIF($B$101:$B$537,'Model inputs'!$B$9,BV$101:BV$537) -> 0.01011862191 | BW50: =SUMIF($B$101:$B$537,'Model inputs'!$B$9,BW$101:BW$537) -> 0.01011862191 | BX50: =SUMIF($B$101:$B$537,'Model inputs'!$B$9,BX$101:BX$537) -> 0.01011862191 | BY50: =SUMIF($B$101:$B$537,'Model inputs'!$B$9,BY$101:BY$537) -> 0.01011862191 | BZ50: =SUMIF($B$101:$B$537,'Model inputs'!$B$9,BZ$101:BZ$537) -> 0.01011862191 | CA50: =SUMIF($B$101:$B$537,'Model inputs'!$B$9,CA$101:CA$537) -> 0.01011862191 | CB50: =SUMIF($B$101:$B$537,'Model inputs'!$B$9,CB$101:CB$537) -> 0.01011862191 | CC50: =SUMIF($B$101:$B$537,'Model inputs'!$B$9,CC$101:CC$537) -> 0.01011862191 | CD50: =SUMIF($B$101:$B$537,'Model inputs'!$B$9,CD$101:CD$537) -> 0.01011862191 | CE50: =SUMIF($B$101:$B$537,'Model inputs'!$B$9,CE$101:CE$537) -> 0.01011862191 | CF50: =SUMIF($B$101:$B$537,'Model inputs'!$B$9,CF$101:CF$537) -> 0.01011862191 | CG50: =SUMIF($B$101:$B$537,'Model inputs'!$B$9,CG$101:CG$537) -> 0.01011862191 | CH50: =SUMIF($B$101:$B$537,'Model inputs'!$B$9,CH$101:CH$537) -> 0.01011862191 | CI50: =SUMIF($B$101:$B$537,'Model inputs'!$B$9,CI$101:CI$537) -> 0.01011862191 | CJ50: =SUMIF($B$101:$B$537,'Model inputs'!$B$9,CJ$101:CJ$537) -> 0.01011862191 | CK50: =SUMIF($B$101:$B$537,'Model inputs'!$B$9,CK$101:CK$537) -> 0.01011862191 | CL50: =SUMIF($B$101:$B$537,'Model inputs'!$B$9,CL$101:CL$537) -> 0.01011862191 | CM50: =SUMIF($B$101:$B$537,'Model inputs'!$B$9,CM$101:CM$537) -> 0.01011862191 | CN50: =SUMIF($B$101:$B$537,'Model inputs'!$B$9,CN$101:CN$537) -> 0.01011862191 | CO50: =SUMIF($B$101:$B$537,'Model inputs'!$B$9,CO$101:CO$537) -> 0.01011862191 | CP50: =SUMIF($B$101:$B$537,'Model inputs'!$B$9,CP$101:CP$537) -> 0.01011862191 | CQ50: =SUMIF($B$101:$B$537,'Model inputs'!$B$9,CQ$101:CQ$537) -> 0.01011862191 | CR50: =SUMIF($B$101:$B$537,'Model inputs'!$B$9,CR$101:CR$537) -> 0.01011862191 | CS50: =SUMIF($B$101:$B$537,'Model inputs'!$B$9,CS$101:CS$537) -> 0.01011862191 | CT50: =SUMIF($B$101:$B$537,'Model inputs'!$B$9,CT$101:CT$537) -> 0.01011862191 | CU50: =SUMIF($B$101:$B$537,'Model inputs'!$B$9,CU$101:CU$537) -> 0.01011862191 | CV50: =SUMIF($B$101:$B$537,'Model inputs'!$B$9,CV$101:CV$537) -> 0.01011862191 | CW50: =SUMIF($B$101:$B$537,'Model inputs'!$B$9,CW$101:CW$537) -> 0.01011862191 | CX50: =SUMIF($B$101:$B$537,'Model inputs'!$B$9,CX$101:CX$537) -> 0.01011862191 | CY50: =SUMIF($B$101:$B$537,'Model inputs'!$B$9,CY$101:CY$537) -> 0.01011862191 | CZ50: =SUMIF($B$101:$B$537,'Model inputs'!$B$9,CZ$101:CZ$537) -> 0.01011862191 | DA50: =SUMIF($B$101:$B$537,'Model inputs'!$B$9,DA$101:DA$537) -> 0.01011862191 | DB50: =SUMIF($B$101:$B$537,'Model inputs'!$B$9,DB$101:DB$537) -> 0.01011862191 | DC50: =SUMIF($B$101:$B$537,'Model inputs'!$B$9,DC$101:DC$537) -> 0.01011862191 | DD50: =SUMIF($B$101:$B$537,'Model inputs'!$B$9,DD$101:DD$537) -> 0.01011862191 | DE50: =SUMIF($B$101:$B$537,'Model inputs'!$B$9,DE$101:DE$537) -> 0.01011862191 | DF50: =SUMIF($B$101:$B$537,'Model inputs'!$B$9,DF$101:DF$537) -> 0.01011862191 | DG50: =SUMIF($B$101:$B$537,'Model inputs'!$B$9,DG$101:DG$537) -> 0.01011862191 | DH50: =SUMIF($B$101:$B$537,'Model inputs'!$B$9,DH$101:DH$537) -> 0.01011862191 | DI50: =SUMIF($B$101:$B$537,'Model inputs'!$B$9,DI$101:DI$537) -> 0.01011862191 | DJ50: =SUMIF($B$101:$B$537,'Model inputs'!$B$9,DJ$101:DJ$537) -> 0.01011862191 | DK50: =SUMIF($B$101:$B$537,'Model inputs'!$B$9,DK$101:DK$537) -> 0.006653736298 | DL50: =SUMIF($B$101:$B$537,'Model inputs'!$B$9,DL$101:DL$537) -> 0.005492850611 | DM50: =SUMIF($B$101:$B$537,'Model inputs'!$B$9,DM$101:DM$537) -> 0.003372748685 | DN50: =SUMIF($B$101:$B$537,'Model inputs'!$B$9,DN$101:DN$537) -> 0.001190282722 | DO50: =SUMIF($B$101:$B$537,'Model inputs'!$B$9,DO$101:DO$537) -> 0.0001177476392 | DP50: =SUMIF($B$101:$B$537,'Model inputs'!$B$9,DP$101:DP$537) -> 1.084202172e-19 | DQ50: =SUMIF($B$101:$B$537,'Model inputs'!$B$9,DQ$101:DQ$537) -> 1.084202172e-19 | DR50: =SUMIF($B$101:$B$537,'Model inputs'!$B$9,DR$101:DR$537) -> 1.084202172e-19 | DS50: =SUMIF($B$101:$B$537,'Model inputs'!$B$9,DS$101:DS$537) -> 1.084202172e-19 | DT50: =SUMIF($B$101:$B$537,'Model inputs'!$B$9,DT$101:DT$537) -> 1.084202172e-19 | DU50: =SUMIF($B$101:$B$537,'Model inputs'!$B$9,DU$101:DU$537) -> 1.084202172e-19 | DV50: =SUMIF($B$101:$B$537,'Model inputs'!$B$9,DV$101:DV$537) -> -5.421010862e-19 | DW50: =SUMIF($B$101:$B$537,'Model inputs'!$B$9,DW$101:DW$537) -> -5.421010862e-19 | DX50: =SUMIF($B$101:$B$537,'Model inputs'!$B$9,DX$101:DX$537) -> -5.421010862e-19 | DY50: =SUMIF($B$101:$B$537,'Model inputs'!$B$9,DY$101:DY$537) -> -5.421010862e-19 | DZ50: =SUMIF($B$101:$B$537,'Model inputs'!$B$9,DZ$101:DZ$537) -> -5.421010862e-19 | EA50: =SUMIF($B$101:$B$537,'Model inputs'!$B$9,EA$101:EA$537) -> -5.421010862e-19 | EB50: =SUMIF($B$101:$B$537,'Model inputs'!$B$9,EB$101:EB$537) -> -5.421010862e-19 | EC50: =SUMIF($B$101:$B$537,'Model inputs'!$B$9,EC$101:EC$537) -> -5.421010862e-19 | ED50: =SUMIF($B$101:$B$537,'Model inputs'!$B$9,ED$101:ED$537) -> -5.421010862e-19 | EE50: =SUMIF($B$101:$B$537,'Model inputs'!$B$9,EE$101:EE$537) -> -5.421010862e-19 | EF50: =SUMIF($B$101:$B$537,'Model inputs'!$B$9,EF$101:EF$537) -> -5.421010862e-19 | EG50: =SUMIF($B$101:$B$537,'Model inputs'!$B$9,EG$101:EG$537) -> -5.421010862e-19 | EH50: =SUMIF($B$101:$B$537,'Model inputs'!$B$9,EH$101:EH$537) -> -5.421010862e-19 | EI50: =SUMIF($B$101:$B$537,'Model inputs'!$B$9,EI$101:EI$537) -> -5.421010862e-19 | EJ50: =SUMIF($B$101:$B$537,'Model inputs'!$B$9,EJ$101:EJ$537) -> -5.421010862e-19 | EK50: =SUMIF($B$101:$B$537,'Model inputs'!$B$9,EK$101:EK$537) -> -5.421010862e-19 | EL50: =SUMIF($B$101:$B$537,'Model inputs'!$B$9,EL$101:EL$537) -> -5.421010862e-19 | EM50: =SUMIF($B$101:$B$537,'Model inputs'!$B$9,EM$101:EM$537) -> -5.421010862e-19 | EN50: =SUMIF($B$101:$B$537,'Model inputs'!$B$9,EN$101:EN$537) -> -5.421010862e-19 | EO50: =SUMIF($B$101:$B$537,'Model inputs'!$B$9,EO$101:EO$537) -> -5.421010862e-19 | EP50: =SUMIF($B$101:$B$537,'Model inputs'!$B$9,EP$101:EP$537) -> -5.421010862e-19 | EQ50: =SUMIF($B$101:$B$537,'Model inputs'!$B$9,EQ$101:EQ$537) -> -5.421010862e-19 | ER50: =SUMIF($B$101:$B$537,'Model inputs'!$B$9,ER$101:ER$537) -> -5.421010862e-19 | ES50: =SUMIF($B$101:$B$537,'Model inputs'!$B$9,ES$101:ES$537) -> -5.421010862e-19 | ET50: =SUMIF($B$101:$B$537,'Model inputs'!$B$9,ET$101:ET$537) -> -5.421010862e-19
